Workbook

Sheet Прайс
F1: =Параметры!$C$2 -> 1 | L1: =IF(SUMPRODUCT(G5:G2856*(L5:$L$2856=0))>0,"* Неполные данные!","") ->  | M1: =IF(SUMPRODUCT(G5:G2856*(M5:$M$2856=0))>0,"* Неполные данные!","") -> 
F2: =1-(Параметры!$C$3/100) -> 1 | I2: =Параметры!C5 & "%" -> % | L2: =SUMPRODUCT(G5:G2856,L5:$L$2856) -> 0 | M2: =SUMPRODUCT(G5:G2856,M5:$M$2856) -> 0
B3: =IF(TEXT(Параметры!C7,"ДД.ММ.ГГГГ")="ДД.ММ.ГГГГ","","на " & TEXT(Параметры!C7,"ДД.ММ.ГГГГ")) -> на 21.09.2021 | F3: Евро | G3: =SUMIF(G5:G2858,">=1",G5:G2858) & " шт." -> 0 шт. | H3: Сумма: | I3: =IF(Параметры!C3>0,"Скидка: " & TEXT(Параметры!C3, "Основной") & "%","") ->  | L3: Вес | M3: Объём
A4: Код | B4: Идент№ | C4: Артикул | D4: Описание | E4: Розница | F4: =Прайс!F3 -> Евро | G4: =COUNTIF(G5:G2858,">=1") & " поз." -> 0 поз. | H4: =SUM(H5:H2858) -> 0 | I4: Примечание | J4: Объед. | L4: =IF(L2>=1,"~ "&ROUND(L2,2)&" кг","~ "&ROUND(L2*1000,0)&" гр") -> ~ 0 гр | M4: =IF(M2>=100,"~ "&ROUND(M2/1000,2)&" м³","~ "&ROUND(M2,2)&" дм³") -> ~ 0 дм³
A5: <<<<SPACE STEP>>>> | F5: =IFERROR(IF(PriceSwitch=1,Q5-(Q5*AddDisc%),E5)*Kurs,0) -> 0 | H5: =F5*G5 -> 0 | J5: <<<<SPACE STEP>>>> | P5: SB_SPACE_STEP_FOTO.png
A6: <<Не забудьте укомплектовать, например, ящиками LEGRABOX, TANDEMBOX, MOVENTO…>> | D6: 1) Если макросы выключены, включите их (см. справку). | F6: =IFERROR(IF(PriceSwitch=1,Q6-(Q6*AddDisc%),E6)*Kurs,0) -> 0 | H6: =F6*G6 -> 0 | J6: <<Не забудьте укомплектовать, например, ящиками LEGRABOX, TANDEMBOX, MOVENTO…>>1) Если макросы выключены, включите их (см. справку). | P6: SB_SPACE_STEP_FOTO.png
A7: SPACE STEP Полезное пространство в цоколе и ступенька для доступа к верхним шкафам | D7: 2) Если Вы видите эту надпись, откройте файл заново! | F7: =IFERROR(IF(PriceSwitch=1,Q7-(Q7*AddDisc%),E7)*Kurs,0) -> 0 | H7: 0 | J7: SPACE STEP Полезное пространство в цоколе и ступенька для доступа к верхним шкафам 2) Если Вы видите эту надпись, откройте файл заново! | P7: SB_SPACE_STEP.png
A8: SPST41 | B8: 06184252 | C8: Z95.4101 *SPST41 MOG-M | D8: Комплект SPACE STEP 410 мм с попер. профилем и дистанц. прост. | E8: 199.4969143 | F8: =IFERROR(IF(PriceSwitch=1,Q8-(Q8*AddDisc%),E8)*Kurs,0) -> 199.4969143 | H8: 0 | J8: SPST4106184252Z95.4101 *SPST41 MOG-MКомплект SPACE STEP 410 мм с попер. профилем и дистанц. прост. | L8: 3.79949 | M8: 7.0422 | P8: SB_SPACE_STEP.png | Q8: 139.64784
A9: SPST46 | B9: 01629464 | C9: Z95.4600 *SPST46 MOG-M | D9: Комплект SPACE STEP 460 мм с попер. профилем и дистанц. прост. | E9: 199.9313143 | F9: =IFERROR(IF(PriceSwitch=1,Q9-(Q9*AddDisc%),E9)*Kurs,0) -> 199.9313143 | H9: 0 | J9: SPST4601629464Z95.4600 *SPST46 MOG-MКомплект SPACE STEP 460 мм с попер. профилем и дистанц. прост. | L9: 3.99139 | M9: 7.0422 | P9: SB_SPACE_STEP.png | Q9: 139.95192
B10: 01282669 | C10: Z95.4100 SP-ST V1 OG-M | D10: SPACE STEP Основные комплектующие 410 мм | E10: 145.3782857 | F10: =IFERROR(IF(PriceSwitch=1,Q10-(Q10*AddDisc%),E10)*Kurs,0) -> 145.3782857 | H10: 0 | J10: 01282669Z95.4100 SP-ST V1 OG-MSPACE STEP Основные комплектующие 410 мм | L10: 2.4514 | M10: 1.151 | P10: 01282669_ID_P_1_PB_BAU.png | Q10: 101.7648
B11: 05993665 | C11: Z95.4600 SP-ST V1 OG-M | D11: SPACE STEP Основные комплектующие 460 мм | E11: 145.8126857 | F11: =IFERROR(IF(PriceSwitch=1,Q11-(Q11*AddDisc%),E11)*Kurs,0) -> 145.8126857 | H11: 0 | J11: 05993665Z95.4600 SP-ST V1 OG-MSPACE STEP Основные комплектующие 460 мм | L11: 2.6433 | M11: 1.151 | P11: A_Z954XX_P_1_PB_BAU.png | Q11: 102.06888
B12: 04477561 | C12: Z95Q1040A QU-PR V10OG-M | D12: SPACE STEP Поперечный профиль 1040 мм | E12: 32.73257143 | F12: =IFERROR(IF(PriceSwitch=1,Q12-(Q12*AddDisc%),E12)*Kurs,0) -> 32.73257143 | H12: 0 | J12: 04477561Z95Q1040A QU-PR V10OG-MSPACE STEP Поперечный профиль 1040 мм | L12: 0.78209 | M12: 1.1233 | P12: A_Z95Q1040A_P_1_PB_BAU.png | Q12: 22.9128
B13: 05852773 | C13: Z95D4100 DI-LEI V20OG-M | D13: SPACE STEP Дистанционная проставка | E13: 10.69302857 | F13: =IFERROR(IF(PriceSwitch=1,Q13-(Q13*AddDisc%),E13)*Kurs,0) -> 10.69302857 | H13: 0 | J13: 05852773Z95D4100 DI-LEI V20OG-MSPACE STEP Дистанционная проставка | L13: 0.283 | M13: 2.38395 | P13: A_Z95D4100_P_1_PB_BAU.png | Q13: 7.48512
C14: Заказ невозможен - только цена - Z95D4100x2 | D14: SPACE STEP Дистанционная проставка (2шт) | E14: 21.38605714 | F14: =IFERROR(IF(PriceSwitch=1,Q14-(Q14*AddDisc%),E14)*Kurs,0) -> 21.38605714 | H14: 0 | J14: Заказ невозможен - только цена - Z95D4100x2SPACE STEP Дистанционная проставка (2шт) | Q14: 14.97024
A15: <<<<AVENTOS>>>> | F15: =IFERROR(IF(PriceSwitch=1,Q15-(Q15*AddDisc%),E15)*Kurs,0) -> 0 | H15: 0 | J15: <<<<AVENTOS>>>> | P15: SB_AV_GENERAL.png
A16: <<Подъёмники AVENTOS>> | F16: =IFERROR(IF(PriceSwitch=1,Q16-(Q16*AddDisc%),E16)*Kurs,0) -> 0 | H16: 0 | J16: <<Подъёмники AVENTOS>> | P16: SB_AV_MIX_HF_ICO.png
C17: Расчёт веса фасада | D17: Выбор типа AVENTOS | F17: =IFERROR(IF(PriceSwitch=1,Q17-(Q17*AddDisc%),E17)*Kurs,0) -> 0 | H17: 0 | J17: Расчёт веса фасада Выбор типа AVENTOS
A18: AVENTOS HF | C18: складной | D18: Выбор AVENTOS HF | F18: =IFERROR(IF(PriceSwitch=1,Q18-(Q18*AddDisc%),E18)*Kurs,0) -> 0 | H18: 0 | J18: AVENTOS HFскладнойВыбор AVENTOS HF | P18: SB_HF_ICO.png
A19: Комплект AVENTOS HF для деревянных фасадов и широких алюм. рамок | F19: =IFERROR(IF(PriceSwitch=1,Q19-(Q19*AddDisc%),E19)*Kurs,0) -> 0 | H19: 0 | J19: Комплект AVENTOS HF для деревянных фасадов и широких алюм. рамок
A20: HF01-2G | B20: 03342988 | C20: 20F1222 *HF01-2G MHG/T | D20: Комплект HF мех. F22 рыч. F32 2 петли - дер. фасады, светло-сер. | E20: 122.6228571 | F20: =IFERROR(IF(PriceSwitch=1,Q20-(Q20*AddDisc%),E20)*Kurs,0) -> 122.6228571 | H20: 0 | J20: HF01-2G0334298820F1222 *HF01-2G MHG/TКомплект HF мех. F22 рыч. F32 2 петли - дер. фасады, светло-сер. | L20: 2.60149 | M20: 6.643486 | P20: SB_HF.png | Q20: 85.836
A21: HF01-2W | B21: 06437727 | C21: 20F1222 *HF01-2W MSEIW | D21: Комплект HF мех. F22 рыч. F32 2 петли - дер. фасады, бел.ш. | E21: 123.7748571 | F21: =IFERROR(IF(PriceSwitch=1,Q21-(Q21*AddDisc%),E21)*Kurs,0) -> 123.7748571 | H21: 0 | J21: HF01-2W0643772720F1222 *HF01-2W MSEIWКомплект HF мех. F22 рыч. F32 2 петли - дер. фасады, бел.ш. | L21: 2.61239 | M21: 6.643486 | P21: SB_HF.png | Q21: 86.6424
A22: HF01-3G | B22: 09904763 | C22: 20F1222 *HF01-3G MHG/T | D22: Комплект HF мех. F22 рыч. F32 3 петли - дер. фасады, светло-сер. | E22: 131.0074286 | F22: =IFERROR(IF(PriceSwitch=1,Q22-(Q22*AddDisc%),E22)*Kurs,0) -> 131.0074286 | H22: 0 | J22: HF01-3G0990476320F1222 *HF01-3G MHG/TКомплект HF мех. F22 рыч. F32 3 петли - дер. фасады, светло-сер. | L22: 2.78006 | M22: 6.95993 | P22: SB_HF.png | Q22: 91.7052
A23: HF01-3W | B23: 04860046 | C23: 20F1222 *HF01-3W MSEIW | D23: Комплект HF мех. F22 рыч. F32 3 петли - дер. фасады, бел.ш. | E23: 132.1594286 | F23: =IFERROR(IF(PriceSwitch=1,Q23-(Q23*AddDisc%),E23)*Kurs,0) -> 132.1594286 | H23: 0 | J23: HF01-3W0486004620F1222 *HF01-3W MSEIWКомплект HF мех. F22 рыч. F32 3 петли - дер. фасады, бел.ш. | L23: 2.79096 | M23: 6.95993 | P23: SB_HF.png | Q23: 92.5116
A24: HF01-4G | B24: 07056308 | C24: 20F1222 *HF01-4G MHG/T | D24: Комплект HF мех. F22 рыч. F32 4 петли - дер. фасады, светло-сер. | E24: 139.392 | F24: =IFERROR(IF(PriceSwitch=1,Q24-(Q24*AddDisc%),E24)*Kurs,0) -> 139.392 | H24: 0 | J24: HF01-4G0705630820F1222 *HF01-4G MHG/TКомплект HF мех. F22 рыч. F32 4 петли - дер. фасады, светло-сер. | L24: 2.95863 | M24: 7.276374 | P24: SB_HF.png | Q24: 97.5744
A25: HF01-4W | B25: 02473182 | C25: 20F1222 *HF01-4W MSEIW | D25: Комплект HF мех. F22 рыч. F32 4 петли - дер. фасады, бел.ш. | E25: 140.544 | F25: =IFERROR(IF(PriceSwitch=1,Q25-(Q25*AddDisc%),E25)*Kurs,0) -> 140.544 | H25: 0 | J25: HF01-4W0247318220F1222 *HF01-4W MSEIWКомплект HF мех. F22 рыч. F32 4 петли - дер. фасады, бел.ш. | L25: 2.96953 | M25: 7.276374 | P25: SB_HF.png | Q25: 98.3808
A26: HF02-2G | B26: 06065825 | C26: 20F1252 *HF02-2G MHG/T | D26: Комплект HF мех. F25 рыч. F32 2 петли - дер. фасады, светло-сер. | E26: 127.9998857 | F26: =IFERROR(IF(PriceSwitch=1,Q26-(Q26*AddDisc%),E26)*Kurs,0) -> 127.9998857 | H26: 0 | J26: HF02-2G0606582520F1252 *HF02-2G MHG/TКомплект HF мех. F25 рыч. F32 2 петли - дер. фасады, светло-сер. | L26: 2.70921 | M26: 6.643486 | P26: SB_HF.png | Q26: 89.59992
A27: HF02-2W | B27: 06044727 | C27: 20F1252 *HF02-2W MSEIW | D27: Комплект HF мех. F25 рыч. F32 2 петли - дер. фасады, бел.ш. | E27: 129.1518857 | F27: =IFERROR(IF(PriceSwitch=1,Q27-(Q27*AddDisc%),E27)*Kurs,0) -> 129.1518857 | H27: 0 | J27: HF02-2W0604472720F1252 *HF02-2W MSEIWКомплект HF мех. F25 рыч. F32 2 петли - дер. фасады, бел.ш. | L27: 2.72011 | M27: 6.643486 | P27: SB_HF.png | Q27: 90.40632
A28: HF02-3G | B28: 08741112 | C28: 20F1252 *HF02-3G MHG/T | D28: Комплект HF мех. F25 рыч. F32 3 петли - дер. фасады, светло-сер. | E28: 136.3844571 | F28: =IFERROR(IF(PriceSwitch=1,Q28-(Q28*AddDisc%),E28)*Kurs,0) -> 136.3844571 | H28: 0 | J28: HF02-3G0874111220F1252 *HF02-3G MHG/TКомплект HF мех. F25 рыч. F32 3 петли - дер. фасады, светло-сер. | L28: 2.88778 | M28: 6.95993 | P28: SB_HF.png | Q28: 95.46912
A29: HF02-3W | B29: 07137695 | C29: 20F1252 *HF02-3W MSEIW | D29: Комплект HF мех. F25 рыч. F32 3 петли - дер. фасады, бел.ш. | E29: 137.5364571 | F29: =IFERROR(IF(PriceSwitch=1,Q29-(Q29*AddDisc%),E29)*Kurs,0) -> 137.5364571 | H29: 0 | J29: HF02-3W0713769520F1252 *HF02-3W MSEIWКомплект HF мех. F25 рыч. F32 3 петли - дер. фасады, бел.ш. | L29: 2.89868 | M29: 6.95993 | P29: SB_HF.png | Q29: 96.27552
A30: HF02-4G | B30: 01818098 | C30: 20F1252 *HF02-4G MHG/T | D30: Комплект HF мех. F25 рыч. F32 4 петли - дер. фасады, светло-сер. | E30: 144.7690286 | F30: =IFERROR(IF(PriceSwitch=1,Q30-(Q30*AddDisc%),E30)*Kurs,0) -> 144.7690286 | H30: 0 | J30: HF02-4G0181809820F1252 *HF02-4G MHG/TКомплект HF мех. F25 рыч. F32 4 петли - дер. фасады, светло-сер. | L30: 3.06635 | M30: 7.276374 | P30: SB_HF.png | Q30: 101.33832
A31: HF02-4W | B31: 02714224 | C31: 20F1252 *HF02-4W MSEIW | D31: Комплект HF мех. F25 рыч. F32 4 петли - дер. фасады, бел.ш. | E31: 145.9210286 | F31: =IFERROR(IF(PriceSwitch=1,Q31-(Q31*AddDisc%),E31)*Kurs,0) -> 145.9210286 | H31: 0 | J31: HF02-4W0271422420F1252 *HF02-4W MSEIWКомплект HF мех. F25 рыч. F32 4 петли - дер. фасады, бел.ш. | L31: 3.07725 | M31: 7.276374 | P31: SB_HF.png | Q31: 102.14472
A32: HF03-3G | B32: 01331764 | C32: 20F1282 *HF03-3G MHG/T | D32: Комплект HF мех. F28 рыч. F32 3 петли - дер. фасады, светло-сер. | E32: 144.0654857 | F32: =IFERROR(IF(PriceSwitch=1,Q32-(Q32*AddDisc%),E32)*Kurs,0) -> 144.0654857 | H32: 0 | J32: HF03-3G0133176420F1282 *HF03-3G MHG/TКомплект HF мех. F28 рыч. F32 3 петли - дер. фасады, светло-сер. | L32: 3.13218 | M32: 6.95993 | P32: SB_HF.png | Q32: 100.84584
A33: HF03-3W | B33: 02317186 | C33: 20F1282 *HF03-3W MSEIW | D33: Комплект HF мех. F28 рыч. F32 3 петли - дер. фасады, бел.ш. | E33: 145.2174857 | F33: =IFERROR(IF(PriceSwitch=1,Q33-(Q33*AddDisc%),E33)*Kurs,0) -> 145.2174857 | H33: 0 | J33: HF03-3W0231718620F1282 *HF03-3W MSEIWКомплект HF мех. F28 рыч. F32 3 петли - дер. фасады, бел.ш. | L33: 3.14308 | M33: 6.95993 | P33: SB_HF.png | Q33: 101.65224
A34: HF03-4G | B34: 09592771 | C34: 20F1282 *HF03-4G MHG/T | D34: Комплект HF мех. F28 рыч. F32 4 петли - дер. фасады, светло-сер. | E34: 152.4500571 | F34: =IFERROR(IF(PriceSwitch=1,Q34-(Q34*AddDisc%),E34)*Kurs,0) -> 152.4500571 | H34: 0 | J34: HF03-4G0959277120F1282 *HF03-4G MHG/TКомплект HF мех. F28 рыч. F32 4 петли - дер. фасады, светло-сер. | L34: 3.31075 | M34: 7.276374 | P34: SB_HF.png | Q34: 106.71504
A35: HF03-4W | B35: 09272238 | C35: 20F1282 *HF03-4W MSEIW | D35: Комплект HF мех. F28 рыч. F32 4 петли - дер. фасады, бел.ш. | E35: 153.6020571 | F35: =IFERROR(IF(PriceSwitch=1,Q35-(Q35*AddDisc%),E35)*Kurs,0) -> 153.6020571 | H35: 0 | J35: HF03-4W0927223820F1282 *HF03-4W MSEIWКомплект HF мех. F28 рыч. F32 4 петли - дер. фасады, бел.ш. | L35: 3.32165 | M35: 7.276374 | P35: SB_HF.png | Q35: 107.52144
A36: HF04-2G | B36: 04575586 | C36: 20F1225 *HF04-2G MHG/T | D36: Комплект HF мех. F22 рыч. F35 2 петли - дер. фасады, светло-сер. | E36: 126.4642286 | F36: =IFERROR(IF(PriceSwitch=1,Q36-(Q36*AddDisc%),E36)*Kurs,0) -> 126.4642286 | H36: 0 | J36: HF04-2G0457558620F1225 *HF04-2G MHG/TКомплект HF мех. F22 рыч. F35 2 петли - дер. фасады, светло-сер. | L36: 2.65669 | M36: 6.643486 | P36: SB_HF.png | Q36: 88.52496
A37: HF04-2W | B37: 09508397 | C37: 20F1225 *HF04-2W MSEIW | D37: Комплект HF мех. F22 рыч. F35 2 петли - дер. фасады, бел.ш. | E37: 127.6162286 | F37: =IFERROR(IF(PriceSwitch=1,Q37-(Q37*AddDisc%),E37)*Kurs,0) -> 127.6162286 | H37: 0 | J37: HF04-2W0950839720F1225 *HF04-2W MSEIWКомплект HF мех. F22 рыч. F35 2 петли - дер. фасады, бел.ш. | L37: 2.66759 | M37: 6.643486 | P37: SB_HF.png | Q37: 89.33136
A38: HF04-3G | B38: 03979362 | C38: 20F1225 *HF04-3G MHG/T | D38: Комплект HF мех. F22 рыч. F35 3 петли - дер. фасады, светло-сер. | E38: 134.8488 | F38: =IFERROR(IF(PriceSwitch=1,Q38-(Q38*AddDisc%),E38)*Kurs,0) -> 134.8488 | H38: 0 | J38: HF04-3G0397936220F1225 *HF04-3G MHG/TКомплект HF мех. F22 рыч. F35 3 петли - дер. фасады, светло-сер. | L38: 2.83526 | M38: 6.95993 | P38: SB_HF.png | Q38: 94.39416
A39: HF04-3W | B39: 06619491 | C39: 20F1225 *HF04-3W MSEIW | D39: Комплект HF мех. F22 рыч. F35 3 петли - дер. фасады, бел.ш. | E39: 136.0008 | F39: =IFERROR(IF(PriceSwitch=1,Q39-(Q39*AddDisc%),E39)*Kurs,0) -> 136.0008 | H39: 0 | J39: HF04-3W0661949120F1225 *HF04-3W MSEIWКомплект HF мех. F22 рыч. F35 3 петли - дер. фасады, бел.ш. | L39: 2.84616 | M39: 6.95993 | P39: SB_HF.png | Q39: 95.20056
A40: HF04-4G | B40: 05560412 | C40: 20F1225 *HF04-4G MHG/T | D40: Комплект HF мех. F22 рыч. F35 4 петли - дер. фасады, светло-сер. | E40: 143.2333714 | F40: =IFERROR(IF(PriceSwitch=1,Q40-(Q40*AddDisc%),E40)*Kurs,0) -> 143.2333714 | H40: 0 | J40: HF04-4G0556041220F1225 *HF04-4G MHG/TКомплект HF мех. F22 рыч. F35 4 петли - дер. фасады, светло-сер. | L40: 3.01383 | M40: 7.276374 | P40: SB_HF.png | Q40: 100.26336
A41: HF04-4W | B41: 02787662 | C41: 20F1225 *HF04-4W MSEIW | D41: Комплект HF мех. F22 рыч. F35 4 петли - дер. фасады, бел.ш. | E41: 144.3853714 | F41: =IFERROR(IF(PriceSwitch=1,Q41-(Q41*AddDisc%),E41)*Kurs,0) -> 144.3853714 | H41: 0 | J41: HF04-4W0278766220F1225 *HF04-4W MSEIWКомплект HF мех. F22 рыч. F35 4 петли - дер. фасады, бел.ш. | L41: 3.02473 | M41: 7.276374 | P41: SB_HF.png | Q41: 101.06976
A42: HF05-2G | B42: 08459594 | C42: 20F1255 *HF05-2G MHG/T | D42: Комплект HF мех. F25 рыч. F35 2 петли - дер. фасады, светло-сер. | E42: 131.8412571 | F42: =IFERROR(IF(PriceSwitch=1,Q42-(Q42*AddDisc%),E42)*Kurs,0) -> 131.8412571 | H42: 0 | J42: HF05-2G0845959420F1255 *HF05-2G MHG/TКомплект HF мех. F25 рыч. F35 2 петли - дер. фасады, светло-сер. | L42: 2.76441 | M42: 6.643486 | P42: SB_HF.png | Q42: 92.28888
A43: HF05-2W | B43: 09573450 | C43: 20F1255 *HF05-2W MSEIW | D43: Комплект HF мех. F25 рыч. F35 2 петли - дер. фасады, бел.ш. | E43: 132.9932571 | F43: =IFERROR(IF(PriceSwitch=1,Q43-(Q43*AddDisc%),E43)*Kurs,0) -> 132.9932571 | H43: 0 | J43: HF05-2W0957345020F1255 *HF05-2W MSEIWКомплект HF мех. F25 рыч. F35 2 петли - дер. фасады, бел.ш. | L43: 2.77531 | M43: 6.643486 | P43: SB_HF.png | Q43: 93.09528
A44: HF05-3G | B44: 01565440 | C44: 20F1255 *HF05-3G MHG/T | D44: Комплект HF мех. F25 рыч. F35 3 петли - дер. фасады, светло-сер. | E44: 140.2258286 | F44: =IFERROR(IF(PriceSwitch=1,Q44-(Q44*AddDisc%),E44)*Kurs,0) -> 140.2258286 | H44: 0 | J44: HF05-3G0156544020F1255 *HF05-3G MHG/TКомплект HF мех. F25 рыч. F35 3 петли - дер. фасады, светло-сер. | L44: 2.94298 | M44: 6.95993 | P44: SB_HF.png | Q44: 98.15808
A45: HF05-3W | B45: 04616485 | C45: 20F1255 *HF05-3W MSEIW | D45: Комплект HF мех. F25 рыч. F35 3 петли - дер. фасады, бел.ш. | E45: 141.3778286 | F45: =IFERROR(IF(PriceSwitch=1,Q45-(Q45*AddDisc%),E45)*Kurs,0) -> 141.3778286 | H45: 0 | J45: HF05-3W0461648520F1255 *HF05-3W MSEIWКомплект HF мех. F25 рыч. F35 3 петли - дер. фасады, бел.ш. | L45: 2.95388 | M45: 6.95993 | P45: SB_HF.png | Q45: 98.96448
A46: HF05-4G | B46: 07370426 | C46: 20F1255 *HF05-4G MHG/T | D46: Комплект HF мех. F25 рыч. F35 4 петли - дер. фасады, светло-сер. | E46: 148.6104 | F46: =IFERROR(IF(PriceSwitch=1,Q46-(Q46*AddDisc%),E46)*Kurs,0) -> 148.6104 | H46: 0 | J46: HF05-4G0737042620F1255 *HF05-4G MHG/TКомплект HF мех. F25 рыч. F35 4 петли - дер. фасады, светло-сер. | L46: 3.12155 | M46: 7.276374 | P46: SB_HF.png | Q46: 104.02728
A47: HF05-4W | B47: 09781598 | C47: 20F1255 *HF05-4W MSEIW | D47: Комплект HF мех. F25 рыч. F35 4 петли - дер. фасады, бел.ш. | E47: 149.7624 | F47: =IFERROR(IF(PriceSwitch=1,Q47-(Q47*AddDisc%),E47)*Kurs,0) -> 149.7624 | H47: 0 | J47: HF05-4W0978159820F1255 *HF05-4W MSEIWКомплект HF мех. F25 рыч. F35 4 петли - дер. фасады, бел.ш. | L47: 3.13245 | M47: 7.276374 | P47: SB_HF.png | Q47: 104.83368
A48: HF06-3G | B48: 06347036 | C48: 20F1285 *HF06-3G MHG/T | D48: Комплект HF мех. F28 рыч. F35 3 петли - дер. фасады, светло-сер. | E48: 147.9068571 | F48: =IFERROR(IF(PriceSwitch=1,Q48-(Q48*AddDisc%),E48)*Kurs,0) -> 147.9068571 | H48: 0 | J48: HF06-3G0634703620F1285 *HF06-3G MHG/TКомплект HF мех. F28 рыч. F35 3 петли - дер. фасады, светло-сер. | L48: 3.18738 | M48: 6.95993 | P48: SB_HF.png | Q48: 103.5348
A49: HF06-3W | B49: 01788775 | C49: 20F1285 *HF06-3W MSEIW | D49: Комплект HF мех. F28 рыч. F35 3 петли - дер. фасады, бел.ш. | E49: 149.0588571 | F49: =IFERROR(IF(PriceSwitch=1,Q49-(Q49*AddDisc%),E49)*Kurs,0) -> 149.0588571 | H49: 0 | J49: HF06-3W0178877520F1285 *HF06-3W MSEIWКомплект HF мех. F28 рыч. F35 3 петли - дер. фасады, бел.ш. | L49: 3.19828 | M49: 6.95993 | P49: SB_HF.png | Q49: 104.3412
A50: HF06-4G | B50: 08990817 | C50: 20F1285 *HF06-4G MHG/T | D50: Комплект HF мех. F28 рыч. F35 4 петли - дер. фасады, светло-сер. | E50: 156.2914286 | F50: =IFERROR(IF(PriceSwitch=1,Q50-(Q50*AddDisc%),E50)*Kurs,0) -> 156.2914286 | H50: 0 | J50: HF06-4G0899081720F1285 *HF06-4G MHG/TКомплект HF мех. F28 рыч. F35 4 петли - дер. фасады, светло-сер. | L50: 3.36595 | M50: 7.276374 | P50: SB_HF.png | Q50: 109.404
A51: HF06-4W | B51: 01695136 | C51: 20F1285 *HF06-4W MSEIW | D51: Комплект HF мех. F28 рыч. F35 4 петли - дер. фасады, бел.ш. | E51: 157.4434286 | F51: =IFERROR(IF(PriceSwitch=1,Q51-(Q51*AddDisc%),E51)*Kurs,0) -> 157.4434286 | H51: 0 | J51: HF06-4W0169513620F1285 *HF06-4W MSEIWКомплект HF мех. F28 рыч. F35 4 петли - дер. фасады, бел.ш. | L51: 3.37685 | M51: 7.276374 | P51: SB_HF.png | Q51: 110.2104
A52: HF07-2G | B52: 06774353 | C52: 20F1228 *HF07-2G MHG/T | D52: Комплект HF мех. F22 рыч. F38 2 петли - дер. фасады, светло-сер. | E52: 134.1459429 | F52: =IFERROR(IF(PriceSwitch=1,Q52-(Q52*AddDisc%),E52)*Kurs,0) -> 134.1459429 | H52: 0 | J52: HF07-2G0677435320F1228 *HF07-2G MHG/TКомплект HF мех. F22 рыч. F38 2 петли - дер. фасады, светло-сер. | L52: 2.74051 | M52: 6.651236 | P52: SB_HF.png | Q52: 93.90216
A53: HF07-2W | B53: 07282349 | C53: 20F1228 *HF07-2W MSEIW | D53: Комплект HF мех. F22 рыч. F38 2 петли - дер. фасады, бел.ш. | E53: 135.2979429 | F53: =IFERROR(IF(PriceSwitch=1,Q53-(Q53*AddDisc%),E53)*Kurs,0) -> 135.2979429 | H53: 0 | J53: HF07-2W0728234920F1228 *HF07-2W MSEIWКомплект HF мех. F22 рыч. F38 2 петли - дер. фасады, бел.ш. | L53: 2.75141 | M53: 6.651236 | P53: SB_HF.png | Q53: 94.70856
A54: HF07-3G | B54: 05043654 | C54: 20F1228 *HF07-3G MHG/T | D54: Комплект HF мех. F22 рыч. F38 3 петли - дер. фасады, светло-сер. | E54: 142.5305143 | F54: =IFERROR(IF(PriceSwitch=1,Q54-(Q54*AddDisc%),E54)*Kurs,0) -> 142.5305143 | H54: 0 | J54: HF07-3G0504365420F1228 *HF07-3G MHG/TКомплект HF мех. F22 рыч. F38 3 петли - дер. фасады, светло-сер. | L54: 2.91908 | M54: 6.96768 | P54: SB_HF.png | Q54: 99.77136
A55: HF07-3W | B55: 09362127 | C55: 20F1228 *HF07-3W MSEIW | D55: Комплект HF мех. F22 рыч. F38 3 петли - дер. фасады, бел.ш. | E55: 143.6825143 | F55: =IFERROR(IF(PriceSwitch=1,Q55-(Q55*AddDisc%),E55)*Kurs,0) -> 143.6825143 | H55: 0 | J55: HF07-3W0936212720F1228 *HF07-3W MSEIWКомплект HF мех. F22 рыч. F38 3 петли - дер. фасады, бел.ш. | L55: 2.92998 | M55: 6.96768 | P55: SB_HF.png | Q55: 100.57776
A56: HF07-4G | B56: 02294334 | C56: 20F1228 *HF07-4G MHG/T | D56: Комплект HF мех. F22 рыч. F38 4 петли - дер. фасады, светло-сер. | E56: 150.9150857 | F56: =IFERROR(IF(PriceSwitch=1,Q56-(Q56*AddDisc%),E56)*Kurs,0) -> 150.9150857 | H56: 0 | J56: HF07-4G0229433420F1228 *HF07-4G MHG/TКомплект HF мех. F22 рыч. F38 4 петли - дер. фасады, светло-сер. | L56: 3.09765 | M56: 7.284124 | P56: SB_HF.png | Q56: 105.64056
A57: HF07-4W | B57: 09794140 | C57: 20F1228 *HF07-4W MSEIW | D57: Комплект HF мех. F22 рыч. F38 4 петли - дер. фасады, бел.ш. | E57: 152.0670857 | F57: =IFERROR(IF(PriceSwitch=1,Q57-(Q57*AddDisc%),E57)*Kurs,0) -> 152.0670857 | H57: 0 | J57: HF07-4W0979414020F1228 *HF07-4W MSEIWКомплект HF мех. F22 рыч. F38 4 петли - дер. фасады, бел.ш. | L57: 3.10855 | M57: 7.284124 | P57: SB_HF.png | Q57: 106.44696
A58: HF08-2G | B58: 04932852 | C58: 20F1258 *HF08-2G MHG/T | D58: Комплект HF мех. F25 рыч. F38 2 петли - дер. фасады, светло-сер. | E58: 139.5229714 | F58: =IFERROR(IF(PriceSwitch=1,Q58-(Q58*AddDisc%),E58)*Kurs,0) -> 139.5229714 | H58: 0 | J58: HF08-2G0493285220F1258 *HF08-2G MHG/TКомплект HF мех. F25 рыч. F38 2 петли - дер. фасады, светло-сер. | L58: 2.84823 | M58: 6.651236 | P58: SB_HF.png | Q58: 97.66608
A59: HF08-2W | B59: 08142446 | C59: 20F1258 *HF08-2W MSEIW | D59: Комплект HF мех. F25 рыч. F38 2 петли - дер. фасады, бел.ш. | E59: 140.6749714 | F59: =IFERROR(IF(PriceSwitch=1,Q59-(Q59*AddDisc%),E59)*Kurs,0) -> 140.6749714 | H59: 0 | J59: HF08-2W0814244620F1258 *HF08-2W MSEIWКомплект HF мех. F25 рыч. F38 2 петли - дер. фасады, бел.ш. | L59: 2.85913 | M59: 6.651236 | P59: SB_HF.png | Q59: 98.47248
A60: HF08-3G | B60: 02034506 | C60: 20F1258 *HF08-3G MHG/T | D60: Комплект HF мех. F25 рыч. F38 3 петли - дер. фасады, светло-сер. | E60: 147.9075429 | F60: =IFERROR(IF(PriceSwitch=1,Q60-(Q60*AddDisc%),E60)*Kurs,0) -> 147.9075429 | H60: 0 | J60: HF08-3G0203450620F1258 *HF08-3G MHG/TКомплект HF мех. F25 рыч. F38 3 петли - дер. фасады, светло-сер. | L60: 3.0268 | M60: 6.96768 | P60: SB_HF.png | Q60: 103.53528
A61: HF08-3W | B61: 08434465 | C61: 20F1258 *HF08-3W MSEIW | D61: Комплект HF мех. F25 рыч. F38 3 петли - дер. фасады, бел.ш. | E61: 149.0595429 | F61: =IFERROR(IF(PriceSwitch=1,Q61-(Q61*AddDisc%),E61)*Kurs,0) -> 149.0595429 | H61: 0 | J61: HF08-3W0843446520F1258 *HF08-3W MSEIWКомплект HF мех. F25 рыч. F38 3 петли - дер. фасады, бел.ш. | L61: 3.0377 | M61: 6.96768 | P61: SB_HF.png | Q61: 104.34168
A62: HF08-4G | B62: 07161253 | C62: 20F1258 *HF08-4G MHG/T | D62: Комплект HF мех. F25 рыч. F38 4 петли - дер. фасады, светло-сер. | E62: 156.2921143 | F62: =IFERROR(IF(PriceSwitch=1,Q62-(Q62*AddDisc%),E62)*Kurs,0) -> 156.2921143 | H62: 0 | J62: HF08-4G0716125320F1258 *HF08-4G MHG/TКомплект HF мех. F25 рыч. F38 4 петли - дер. фасады, светло-сер. | L62: 3.20537 | M62: 7.284124 | P62: SB_HF.png | Q62: 109.40448
A63: HF08-4W | B63: 05033223 | C63: 20F1258 *HF08-4W MSEIW | D63: Комплект HF мех. F25 рыч. F38 4 петли - дер. фасады, бел.ш. | E63: 157.4441143 | F63: =IFERROR(IF(PriceSwitch=1,Q63-(Q63*AddDisc%),E63)*Kurs,0) -> 157.4441143 | H63: 0 | J63: HF08-4W0503322320F1258 *HF08-4W MSEIWКомплект HF мех. F25 рыч. F38 4 петли - дер. фасады, бел.ш. | L63: 3.21627 | M63: 7.284124 | P63: SB_HF.png | Q63: 110.21088
A64: HF09-2G | B64: 04411591 | C64: 20F1288 *HF09-2G MHG/T | D64: Комплект HF мех. F28 рыч. F38 2 петли - дер. фасады, светло-сер. | E64: 147.204 | F64: =IFERROR(IF(PriceSwitch=1,Q64-(Q64*AddDisc%),E64)*Kurs,0) -> 147.204 | H64: 0 | J64: HF09-2G0441159120F1288 *HF09-2G MHG/TКомплект HF мех. F28 рыч. F38 2 петли - дер. фасады, светло-сер. | L64: 3.09263 | M64: 6.651236 | P64: SB_HF.png | Q64: 103.0428
A65: HF09-2W | B65: 03985362 | C65: 20F1288 *HF09-2W MSEIW | D65: Комплект HF мех. F28 рыч. F38 2 петли - дер. фасады, бел.ш. | E65: 148.356 | F65: =IFERROR(IF(PriceSwitch=1,Q65-(Q65*AddDisc%),E65)*Kurs,0) -> 148.356 | H65: 0 | J65: HF09-2W0398536220F1288 *HF09-2W MSEIWКомплект HF мех. F28 рыч. F38 2 петли - дер. фасады, бел.ш. | L65: 3.10353 | M65: 6.651236 | P65: SB_HF.png | Q65: 103.8492
A66: HF09-3G | B66: 01324062 | C66: 20F1288 *HF09-3G MHG/T | D66: Комплект HF мех. F28 рыч. F38 3 петли - дер. фасады, светло-сер. | E66: 155.5885714 | F66: =IFERROR(IF(PriceSwitch=1,Q66-(Q66*AddDisc%),E66)*Kurs,0) -> 155.5885714 | H66: 0 | J66: HF09-3G0132406220F1288 *HF09-3G MHG/TКомплект HF мех. F28 рыч. F38 3 петли - дер. фасады, светло-сер. | L66: 3.2712 | M66: 6.96768 | P66: SB_HF.png | Q66: 108.912
A67: HF09-3W | B67: 01000469 | C67: 20F1288 *HF09-3W MSEIW | D67: Комплект HF мех. F28 рыч. F38 3 петли - дер. фасады, бел.ш. | E67: 156.7405714 | F67: =IFERROR(IF(PriceSwitch=1,Q67-(Q67*AddDisc%),E67)*Kurs,0) -> 156.7405714 | H67: 0 | J67: HF09-3W0100046920F1288 *HF09-3W MSEIWКомплект HF мех. F28 рыч. F38 3 петли - дер. фасады, бел.ш. | L67: 3.2821 | M67: 6.96768 | P67: SB_HF.png | Q67: 109.7184
A68: HF09-4G | B68: 01428871 | C68: 20F1288 *HF09-4G MHG/T | D68: Комплект HF мех. F28 рыч. F38 4 петли - дер. фасады, светло-сер. | E68: 163.9731429 | F68: =IFERROR(IF(PriceSwitch=1,Q68-(Q68*AddDisc%),E68)*Kurs,0) -> 163.9731429 | H68: 0 | J68: HF09-4G0142887120F1288 *HF09-4G MHG/TКомплект HF мех. F28 рыч. F38 4 петли - дер. фасады, светло-сер. | L68: 3.44977 | M68: 7.284124 | P68: SB_HF.png | Q68: 114.7812
A69: HF09-4W | B69: 03746749 | C69: 20F1288 *HF09-4W MSEIW | D69: Комплект HF мех. F28 рыч. F38 4 петли - дер. фасады, бел.ш. | E69: 165.1251429 | F69: =IFERROR(IF(PriceSwitch=1,Q69-(Q69*AddDisc%),E69)*Kurs,0) -> 165.1251429 | H69: 0 | J69: HF09-4W0374674920F1288 *HF09-4W MSEIWКомплект HF мех. F28 рыч. F38 4 петли - дер. фасады, бел.ш. | L69: 3.46067 | M69: 7.284124 | P69: SB_HF.png | Q69: 115.5876
A70: HF10-2G | B70: 01655337 | C70: 20F1229 *HF10-2G MHG/T | D70: Комплект HF мех. F22 рыч. F39 2 петли - дер. фасады, светло-сер. | E70: 139.9069714 | F70: =IFERROR(IF(PriceSwitch=1,Q70-(Q70*AddDisc%),E70)*Kurs,0) -> 139.9069714 | H70: =F70*G70 -> 0 | J70: HF10-2G0165533720F1229 *HF10-2G MHG/TКомплект HF мех. F22 рыч. F39 2 петли - дер. фасады, светло-сер. | L70: 2.79489 | M70: 7.096186 | P70: SB_HF.png | Q70: 97.93488
A71: HF10-2W | B71: 05458307 | C71: 20F1288 *HF10-2W MSEIW | D71: Комплект HF мех. F22 рыч. F39 2 петли - дер. фасады, бел.ш. | E71: 141.0589714 | F71: =IFERROR(IF(PriceSwitch=1,Q71-(Q71*AddDisc%),E71)*Kurs,0) -> 141.0589714 | H71: 0 | J71: HF10-2W0545830720F1288 *HF10-2W MSEIWКомплект HF мех. F22 рыч. F39 2 петли - дер. фасады, бел.ш. | L71: 2.80579 | M71: 7.096186 | P71: SB_HF.png | Q71: 98.74128
A72: HF10-3G | B72: 01852734 | C72: 20F1229 *HF10-3G MHG/T | D72: Комплект HF мех. F22 рыч. F39 3 петли - дер. фасады, светло-сер. | E72: 148.2915429 | F72: =IFERROR(IF(PriceSwitch=1,Q72-(Q72*AddDisc%),E72)*Kurs,0) -> 148.2915429 | H72: 0 | J72: HF10-3G0185273420F1229 *HF10-3G MHG/TКомплект HF мех. F22 рыч. F39 3 петли - дер. фасады, светло-сер. | L72: 2.97346 | M72: 7.41263 | P72: SB_HF.png | Q72: 103.80408
A73: HF10-3W | B73: 06334454 | C73: 20F1288 *HF10-3W MSEIW | D73: Комплект HF мех. F22 рыч. F39 3 петли - дер. фасады, бел.ш. | E73: 149.4435429 | F73: =IFERROR(IF(PriceSwitch=1,Q73-(Q73*AddDisc%),E73)*Kurs,0) -> 149.4435429 | H73: 0 | J73: HF10-3W0633445420F1288 *HF10-3W MSEIWКомплект HF мех. F22 рыч. F39 3 петли - дер. фасады, бел.ш. | L73: 2.98436 | M73: 7.41263 | P73: SB_HF.png | Q73: 104.61048
A74: HF10-4G | B74: 03551612 | C74: 20F1229 *HF10-4G MHG/T | D74: Комплект HF мех. F22 рыч. F39 4 петли - дер. фасады, светло-сер. | E74: 156.6761143 | F74: =IFERROR(IF(PriceSwitch=1,Q74-(Q74*AddDisc%),E74)*Kurs,0) -> 156.6761143 | H74: 0 | J74: HF10-4G0355161220F1229 *HF10-4G MHG/TКомплект HF мех. F22 рыч. F39 4 петли - дер. фасады, светло-сер. | L74: 3.15203 | M74: 7.729074 | P74: SB_HF.png | Q74: 109.67328
A75: HF10-4W | B75: 05096829 | C75: 20F1288 *HF10-4W MSEIW | D75: Комплект HF мех. F22 рыч. F39 4 петли - дер. фасады, бел.ш. | E75: 157.8281143 | F75: =IFERROR(IF(PriceSwitch=1,Q75-(Q75*AddDisc%),E75)*Kurs,0) -> 157.8281143 | H75: 0 | J75: HF10-4W0509682920F1288 *HF10-4W MSEIWКомплект HF мех. F22 рыч. F39 4 петли - дер. фасады, бел.ш. | L75: 3.16293 | M75: 7.729074 | P75: SB_HF.png | Q75: 110.47968
A76: HF11-2G | B76: 02175017 | C76: 20F1259 *HF11-2G MHG/T | D76: Комплект HF мех. F25 рыч. F39 2 петли - дер. фасады, светло-сер. | E76: 145.284 | F76: =IFERROR(IF(PriceSwitch=1,Q76-(Q76*AddDisc%),E76)*Kurs,0) -> 145.284 | H76: 0 | J76: HF11-2G0217501720F1259 *HF11-2G MHG/TКомплект HF мех. F25 рыч. F39 2 петли - дер. фасады, светло-сер. | L76: 2.90261 | M76: 7.096186 | P76: SB_HF.png | Q76: 101.6988
A77: HF11-2W | B77: 03428672 | C77: 20F1259 *HF11-2W MSEIW | D77: Комплект HF мех. F25 рыч. F39 2 петли - дер. фасады, бел.ш. | E77: 146.436 | F77: =IFERROR(IF(PriceSwitch=1,Q77-(Q77*AddDisc%),E77)*Kurs,0) -> 146.436 | H77: 0 | J77: HF11-2W0342867220F1259 *HF11-2W MSEIWКомплект HF мех. F25 рыч. F39 2 петли - дер. фасады, бел.ш. | L77: 2.91351 | M77: 7.096186 | P77: SB_HF.png | Q77: 102.5052
A78: HF11-3G | B78: 04337657 | C78: 20F1259 *HF11-3G MHG/T | D78: Комплект HF мех. F25 рыч. F39 3 петли - дер. фасады, светло-сер. | E78: 153.6685714 | F78: =IFERROR(IF(PriceSwitch=1,Q78-(Q78*AddDisc%),E78)*Kurs,0) -> 153.6685714 | H78: 0 | J78: HF11-3G0433765720F1259 *HF11-3G MHG/TКомплект HF мех. F25 рыч. F39 3 петли - дер. фасады, светло-сер. | L78: 3.08118 | M78: 7.41263 | P78: SB_HF.png | Q78: 107.568
A79: HF11-3W | B79: 09622394 | C79: 20F1259 *HF11-3W MSEIW | D79: Комплект HF мех. F25 рыч. F39 3 петли - дер. фасады, бел.ш. | E79: 154.8205714 | F79: =IFERROR(IF(PriceSwitch=1,Q79-(Q79*AddDisc%),E79)*Kurs,0) -> 154.8205714 | H79: 0 | J79: HF11-3W0962239420F1259 *HF11-3W MSEIWКомплект HF мех. F25 рыч. F39 3 петли - дер. фасады, бел.ш. | L79: 3.09208 | M79: 7.41263 | P79: SB_HF.png | Q79: 108.3744
A80: HF11-4G | B80: 06188664 | C80: 20F1259 *HF11-4G MHG/T | D80: Комплект HF мех. F25 рыч. F39 4 петли - дер. фасады, светло-сер. | E80: 162.0531429 | F80: =IFERROR(IF(PriceSwitch=1,Q80-(Q80*AddDisc%),E80)*Kurs,0) -> 162.0531429 | H80: 0 | J80: HF11-4G0618866420F1259 *HF11-4G MHG/TКомплект HF мех. F25 рыч. F39 4 петли - дер. фасады, светло-сер. | L80: 3.25975 | M80: 7.729074 | P80: SB_HF.png | Q80: 113.4372
A81: HF11-4W | B81: 06007511 | C81: 20F1259 *HF11-4W MSEIW | D81: Комплект HF мех. F25 рыч. F39 4 петли - дер. фасады, бел.ш. | E81: 163.2051429 | F81: =IFERROR(IF(PriceSwitch=1,Q81-(Q81*AddDisc%),E81)*Kurs,0) -> 163.2051429 | H81: 0 | J81: HF11-4W0600751120F1259 *HF11-4W MSEIWКомплект HF мех. F25 рыч. F39 4 петли - дер. фасады, бел.ш. | L81: 3.27065 | M81: 7.729074 | P81: SB_HF.png | Q81: 114.2436
A82: HF12-2G | B82: 02640043 | C82: 20F1289 *HF12-2G MHG/T | D82: Комплект HF мех. F28 рыч. F39 2 петли - дер. фасады, светло-сер. | E82: 152.9650286 | F82: =IFERROR(IF(PriceSwitch=1,Q82-(Q82*AddDisc%),E82)*Kurs,0) -> 152.9650286 | H82: 0 | J82: HF12-2G0264004320F1289 *HF12-2G MHG/TКомплект HF мех. F28 рыч. F39 2 петли - дер. фасады, светло-сер. | L82: 3.14701 | M82: 7.096186 | P82: SB_HF.png | Q82: 107.07552
A83: HF12-2W | B83: 08708240 | C83: 20F1289 *HF12-2W MSEIW | D83: Комплект HF мех. F28 рыч. F39 2 петли - дер. фасады, бел.ш. | E83: 154.1170286 | F83: =IFERROR(IF(PriceSwitch=1,Q83-(Q83*AddDisc%),E83)*Kurs,0) -> 154.1170286 | H83: 0 | J83: HF12-2W0870824020F1289 *HF12-2W MSEIWКомплект HF мех. F28 рыч. F39 2 петли - дер. фасады, бел.ш. | L83: 3.15791 | M83: 7.096186 | P83: SB_HF.png | Q83: 107.88192
A84: HF12-3G | B84: 06077502 | C84: 20F1289 *HF12-3G MHG/T | D84: Комплект HF мех. F28 рыч. F39 3 петли - дер. фасады, светло-сер. | E84: 161.3496 | F84: =IFERROR(IF(PriceSwitch=1,Q84-(Q84*AddDisc%),E84)*Kurs,0) -> 161.3496 | H84: 0 | J84: HF12-3G0607750220F1289 *HF12-3G MHG/TКомплект HF мех. F28 рыч. F39 3 петли - дер. фасады, светло-сер. | L84: 3.32558 | M84: 7.41263 | P84: SB_HF.png | Q84: 112.94472
A85: HF12-3W | B85: 05872735 | C85: 20F1289 *HF12-3W MSEIW | D85: Комплект HF мех. F28 рыч. F39 3 петли - дер. фасады, бел.ш. | E85: 162.5016 | F85: =IFERROR(IF(PriceSwitch=1,Q85-(Q85*AddDisc%),E85)*Kurs,0) -> 162.5016 | H85: 0 | J85: HF12-3W0587273520F1289 *HF12-3W MSEIWКомплект HF мех. F28 рыч. F39 3 петли - дер. фасады, бел.ш. | L85: 3.33648 | M85: 7.41263 | P85: SB_HF.png | Q85: 113.75112
A86: HF12-4G | B86: 01414599 | C86: 20F1289 *HF12-4G MHG/T | D86: Комплект HF мех. F28 рыч. F39 4 петли - дер. фасады, светло-сер. | E86: 169.7341714 | F86: =IFERROR(IF(PriceSwitch=1,Q86-(Q86*AddDisc%),E86)*Kurs,0) -> 169.7341714 | H86: 0 | J86: HF12-4G0141459920F1289 *HF12-4G MHG/TКомплект HF мех. F28 рыч. F39 4 петли - дер. фасады, светло-сер. | L86: 3.50415 | M86: 7.729074 | P86: SB_HF.png | Q86: 118.81392
A87: HF12-4W | B87: 09868213 | C87: 20F1289 *HF12-4W MSEIW | D87: Комплект HF мех. F28 рыч. F39 4 петли - дер. фасады, бел.ш. | E87: 170.8861714 | F87: =IFERROR(IF(PriceSwitch=1,Q87-(Q87*AddDisc%),E87)*Kurs,0) -> 170.8861714 | H87: 0 | J87: HF12-4W0986821320F1289 *HF12-4W MSEIWКомплект HF мех. F28 рыч. F39 4 петли - дер. фасады, бел.ш. | L87: 3.51505 | M87: 7.729074 | P87: SB_HF.png | Q87: 119.62032
A88: HF13-2G | B88: 09645174 | C88: 20F1222 *HF13-2G MHG/T | D88: Комплект HF мех. F22(1) рыч. F32 2 петли - дер. фасады, светло-сер. | E88: 68.47577143 | F88: =IFERROR(IF(PriceSwitch=1,Q88-(Q88*AddDisc%),E88)*Kurs,0) -> 68.47577143 | H88: 0 | J88: HF13-2G0964517420F1222 *HF13-2G MHG/TКомплект HF мех. F22(1) рыч. F32 2 петли - дер. фасады, светло-сер. | L88: 1.46804 | M88: 3.580011 | P88: SB_HF.png | Q88: 47.93304
A89: HF13-2W | B89: 06403403 | C89: 20F1222 *HF13-2W MSEIW | D89: Комплект HF мех. F22(1) рыч. F32 2 петли - дер. фасады, бел.ш. | E89: 69.05177143 | F89: =IFERROR(IF(PriceSwitch=1,Q89-(Q89*AddDisc%),E89)*Kurs,0) -> 69.05177143 | H89: 0 | J89: HF13-2W0640340320F1222 *HF13-2W MSEIWКомплект HF мех. F22(1) рыч. F32 2 петли - дер. фасады, бел.ш. | L89: 1.47344 | M89: 3.580011 | P89: SB_HF.png | Q89: 48.33624
A90: HF14-2G | B90: 07309811 | C90: 20F1225 *HF14-2G MHG/T | D90: Комплект HF мех. F22(1) рыч. F35 2 петли - дер. фасады, светло-сер. | E90: 70.39645714 | F90: =IFERROR(IF(PriceSwitch=1,Q90-(Q90*AddDisc%),E90)*Kurs,0) -> 70.39645714 | H90: 0 | J90: HF14-2G0730981120F1225 *HF14-2G MHG/TКомплект HF мех. F22(1) рыч. F35 2 петли - дер. фасады, светло-сер. | L90: 1.49564 | M90: 3.580011 | P90: SB_HF.png | Q90: 49.27752
A91: HF14-2W | B91: 09910190 | C91: 20F1225 *HF14-2W MSEIW | D91: Комплект HF мех. F22(1) рыч. F35 2 петли - дер. фасады, бел.ш. | E91: 70.97245714 | F91: =IFERROR(IF(PriceSwitch=1,Q91-(Q91*AddDisc%),E91)*Kurs,0) -> 70.97245714 | H91: 0 | J91: HF14-2W0991019020F1225 *HF14-2W MSEIWКомплект HF мех. F22(1) рыч. F35 2 петли - дер. фасады, бел.ш. | L91: 1.50104 | M91: 3.580011 | P91: SB_HF.png | Q91: 49.68072
A92: HF15-2G | B92: 03800626 | C92: 20F1228 *HF15-2G MHG/T | D92: Комплект HF мех. F22(1) рыч. F38 2 петли - дер. фасады, светло-сер. | E92: 74.23731429 | F92: =IFERROR(IF(PriceSwitch=1,Q92-(Q92*AddDisc%),E92)*Kurs,0) -> 74.23731429 | H92: 0 | J92: HF15-2G0380062620F1228 *HF15-2G MHG/TКомплект HF мех. F22(1) рыч. F38 2 петли - дер. фасады, светло-сер. | L92: 1.53755 | M92: 3.583886 | P92: SB_HF.png | Q92: 51.96612
A93: HF15-2W | B93: 04668316 | C93: 20F1228 *HF15-2W MSEIW | D93: Комплект HF мех. F22(1) рыч. F38 2 петли - дер. фасады, бел.ш. | E93: 74.81331429 | F93: =IFERROR(IF(PriceSwitch=1,Q93-(Q93*AddDisc%),E93)*Kurs,0) -> 74.81331429 | H93: 0 | J93: HF15-2W0466831620F1228 *HF15-2W MSEIWКомплект HF мех. F22(1) рыч. F38 2 петли - дер. фасады, бел.ш. | L93: 1.54295 | M93: 3.583886 | P93: SB_HF.png | Q93: 52.36932
A94: HF16-2G | B94: 07215233 | C94: 20F1229 *HF16-2G MHG/T | D94: Комплект HF мех. F22(1) рыч. F39 2 петли - дер. фасады, светло-сер. | E94: 77.11782857 | F94: =IFERROR(IF(PriceSwitch=1,Q94-(Q94*AddDisc%),E94)*Kurs,0) -> 77.11782857 | H94: 0 | J94: HF16-2G0721523320F1229 *HF16-2G MHG/TКомплект HF мех. F22(1) рыч. F39 2 петли - дер. фасады, светло-сер. | L94: 1.56474 | M94: 3.806361 | P94: SB_HF.png | Q94: 53.98248
A95: HF16-2W | B95: 08071774 | C95: 20F1229 *HF16-2W MSEIW | D95: Комплект HF мех. F22(1) рыч. F39 2 петли - дер. фасады, бел.ш. | E95: 77.69382857 | F95: =IFERROR(IF(PriceSwitch=1,Q95-(Q95*AddDisc%),E95)*Kurs,0) -> 77.69382857 | H95: 0 | J95: HF16-2W0807177420F1229 *HF16-2W MSEIWКомплект HF мех. F22(1) рыч. F39 2 петли - дер. фасады, бел.ш. | L95: 1.57014 | M95: 3.806361 | P95: SB_HF.png | Q95: 54.38568
A96: HF17-3G | B96: 05376764 | C96: 20F1282 *HF17-3G MHG/T | D96: Комплект HF мех. F28(3) рыч. F32 3 петли - дер. фасады, светло-сер. | E96: 202.3011429 | F96: =IFERROR(IF(PriceSwitch=1,Q96-(Q96*AddDisc%),E96)*Kurs,0) -> 202.3011429 | H96: 0 | J96: HF17-3G0537676420F1282 *HF17-3G MHG/TКомплект HF мех. F28(3) рыч. F32 3 петли - дер. фасады, светло-сер. | L96: 4.41914 | M96: 9.907053 | P96: SB_HF.png | Q96: 141.6108
A97: HF17-3W | B97: 05429740 | C97: 20F1282 *HF17-3W MSEIW | D97: Комплект HF мех. F28(3) рыч. F32 3 петли - дер. фасады, бел.ш. | E97: 204.0291429 | F97: =IFERROR(IF(PriceSwitch=1,Q97-(Q97*AddDisc%),E97)*Kurs,0) -> 204.0291429 | H97: 0 | J97: HF17-3W0542974020F1282 *HF17-3W MSEIWКомплект HF мех. F28(3) рыч. F32 3 петли - дер. фасады, бел.ш. | L97: 4.43544 | M97: 9.907053 | P97: SB_HF.png | Q97: 142.8204
A98: HF17-4G | B98: 06814383 | C98: 20F1282 *HF17-4G MHG/T | D98: Комплект HF мех. F28(3) рыч. F32 4 петли - дер. фасады, светло-сер. | E98: 210.6857143 | F98: =IFERROR(IF(PriceSwitch=1,Q98-(Q98*AddDisc%),E98)*Kurs,0) -> 210.6857143 | H98: 0 | J98: HF17-4G0681438320F1282 *HF17-4G MHG/TКомплект HF мех. F28(3) рыч. F32 4 петли - дер. фасады, светло-сер. | L98: 4.59771 | M98: 10.223497 | P98: SB_HF.png | Q98: 147.48
A99: HF17-4W | B99: 02143793 | C99: 20F1282 *HF17-4W MSEIW | D99: Комплект HF мех. F28(3) рыч. F32 4 петли - дер. фасады, бел.ш. | E99: 212.4137143 | F99: =IFERROR(IF(PriceSwitch=1,Q99-(Q99*AddDisc%),E99)*Kurs,0) -> 212.4137143 | H99: 0 | J99: HF17-4W0214379320F1282 *HF17-4W MSEIWКомплект HF мех. F28(3) рыч. F32 4 петли - дер. фасады, бел.ш. | L99: 4.61401 | M99: 10.223497 | P99: SB_HF.png | Q99: 148.6896
A100: HF18-3G | B100: 02199956 | C100: 20F1285 *HF18-3G MHG/T | D100: Комплект HF мех. F28(3) рыч. F35 3 петли - дер. фасады, светло-сер. | E100: 208.0632 | F100: =IFERROR(IF(PriceSwitch=1,Q100-(Q100*AddDisc%),E100)*Kurs,0) -> 208.0632 | H100: 0 | J100: HF18-3G0219995620F1285 *HF18-3G MHG/TКомплект HF мех. F28(3) рыч. F35 3 петли - дер. фасады, светло-сер. | L100: 4.50194 | M100: 9.907053 | P100: SB_HF.png | Q100: 145.64424
A101: HF18-3W | B101: 02022616 | C101: 20F1285 *HF18-3W MSEIW | D101: Комплект HF мех. F28(3) рыч. F35 3 петли - дер. фасады, бел.ш. | E101: 209.7912 | F101: =IFERROR(IF(PriceSwitch=1,Q101-(Q101*AddDisc%),E101)*Kurs,0) -> 209.7912 | H101: 0 | J101: HF18-3W0202261620F1285 *HF18-3W MSEIWКомплект HF мех. F28(3) рыч. F35 3 петли - дер. фасады, бел.ш. | L101: 4.51824 | M101: 9.907053 | P101: SB_HF.png | Q101: 146.85384
A102: HF18-4G | B102: 04666866 | C102: 20F1285 *HF18-4G MHG/T | D102: Комплект HF мех. F28(3) рыч. F35 4 петли - дер. фасады, светло-сер. | E102: 216.4477714 | F102: =IFERROR(IF(PriceSwitch=1,Q102-(Q102*AddDisc%),E102)*Kurs,0) -> 216.4477714 | H102: 0 | J102: HF18-4G0466686620F1285 *HF18-4G MHG/TКомплект HF мех. F28(3) рыч. F35 4 петли - дер. фасады, светло-сер. | L102: 4.68051 | M102: 10.223497 | P102: SB_HF.png | Q102: 151.51344
A103: HF18-4W | B103: 03092336 | C103: 20F1285 *HF18-4W MSEIW | D103: Комплект HF мех. F28(3) рыч. F35 4 петли - дер. фасады, бел.ш. | E103: 218.1757714 | F103: =IFERROR(IF(PriceSwitch=1,Q103-(Q103*AddDisc%),E103)*Kurs,0) -> 218.1757714 | H103: 0 | J103: HF18-4W0309233620F1285 *HF18-4W MSEIWКомплект HF мех. F28(3) рыч. F35 4 петли - дер. фасады, бел.ш. | L103: 4.69681 | M103: 10.223497 | P103: SB_HF.png | Q103: 152.72304
A104: HF19-3G | B104: 09083081 | C104: 20F1288 *HF19-3G MHG/T | D104: Комплект HF мех. F28(3) рыч. F38 3 петли - дер. фасады, светло-сер. | E104: 219.5857714 | F104: =IFERROR(IF(PriceSwitch=1,Q104-(Q104*AddDisc%),E104)*Kurs,0) -> 219.5857714 | H104: 0 | J104: HF19-3G0908308120F1288 *HF19-3G MHG/TКомплект HF мех. F28(3) рыч. F38 3 петли - дер. фасады, светло-сер. | L104: 4.62767 | M104: 9.918678 | P104: SB_HF.png | Q104: 153.71004
A105: HF19-3W | B105: 01945085 | C105: 20F1288 *HF19-3W MSEIW | D105: Комплект HF мех. F28(3) рыч. F38 3 петли - дер. фасады, бел.ш. | E105: 221.3137714 | F105: =IFERROR(IF(PriceSwitch=1,Q105-(Q105*AddDisc%),E105)*Kurs,0) -> 221.3137714 | H105: 0 | J105: HF19-3W0194508520F1288 *HF19-3W MSEIWКомплект HF мех. F28(3) рыч. F38 3 петли - дер. фасады, бел.ш. | L105: 4.64397 | M105: 9.918678 | P105: SB_HF.png | Q105: 154.91964
A106: HF19-4G | B106: 07761147 | C106: 20F1288 *HF19-4G MHG/T | D106: Комплект HF мех. F28(3) рыч. F38 4 петли - дер. фасады, светло-сер. | E106: 227.9703429 | F106: =IFERROR(IF(PriceSwitch=1,Q106-(Q106*AddDisc%),E106)*Kurs,0) -> 227.9703429 | H106: 0 | J106: HF19-4G0776114720F1288 *HF19-4G MHG/TКомплект HF мех. F28(3) рыч. F38 4 петли - дер. фасады, светло-сер. | L106: 4.80624 | M106: 10.235122 | P106: SB_HF.png | Q106: 159.57924
A107: HF19-4W | B107: 08939896 | C107: 20F1288 *HF19-4W MSEIW | D107: Комплект HF мех. F28(3) рыч. F38 4 петли - дер. фасады, бел.ш. | E107: 229.6983429 | F107: =IFERROR(IF(PriceSwitch=1,Q107-(Q107*AddDisc%),E107)*Kurs,0) -> 229.6983429 | H107: 0 | J107: HF19-4W0893989620F1288 *HF19-4W MSEIWКомплект HF мех. F28(3) рыч. F38 4 петли - дер. фасады, бел.ш. | L107: 4.82254 | M107: 10.235122 | P107: SB_HF.png | Q107: 160.78884
A108: HF20-3G | B108: 08142691 | C108: 20F1289 *HF20-3G MHG/T | D108: Комплект HF мех. F28(3) рыч. F39 3 петли - дер. фасады, светло-сер. | E108: 228.2273143 | F108: =IFERROR(IF(PriceSwitch=1,Q108-(Q108*AddDisc%),E108)*Kurs,0) -> 228.2273143 | H108: 0 | J108: HF20-3G0814269120F1289 *HF20-3G MHG/TКомплект HF мех. F28(3) рыч. F39 3 петли - дер. фасады, светло-сер. | L108: 4.70924 | M108: 10.586103 | P108: SB_HF.png | Q108: 159.75912
A109: HF20-3W | B109: 04053900 | C109: 20F1289 *HF20-3W MSEIW | D109: Комплект HF мех. F28(3) рыч. F39 3 петли - дер. фасады, бел.ш. | E109: 229.9553143 | F109: =IFERROR(IF(PriceSwitch=1,Q109-(Q109*AddDisc%),E109)*Kurs,0) -> 229.9553143 | H109: 0 | J109: HF20-3W0405390020F1289 *HF20-3W MSEIWКомплект HF мех. F28(3) рыч. F39 3 петли - дер. фасады, бел.ш. | L109: 4.72554 | M109: 10.586103 | P109: SB_HF.png | Q109: 160.96872
A110: HF20-4G | B110: 02470959 | C110: 20F1289 *HF20-4G MHG/T | D110: Комплект HF мех. F28(3) рыч. F39 4 петли - дер. фасады, светло-сер. | E110: 236.6118857 | F110: =IFERROR(IF(PriceSwitch=1,Q110-(Q110*AddDisc%),E110)*Kurs,0) -> 236.6118857 | H110: 0 | J110: HF20-4G0247095920F1289 *HF20-4G MHG/TКомплект HF мех. F28(3) рыч. F39 4 петли - дер. фасады, светло-сер. | L110: 4.88781 | M110: 10.902547 | P110: SB_HF.png | Q110: 165.62832
A111: HF20-4W | B111: 06881112 | C111: 20F1289 *HF20-4W MSEIW | D111: Комплект HF мех. F28(3) рыч. F39 4 петли - дер. фасады, бел.ш. | E111: 238.3398857 | F111: =IFERROR(IF(PriceSwitch=1,Q111-(Q111*AddDisc%),E111)*Kurs,0) -> 238.3398857 | H111: 0 | J111: HF20-4W0688111220F1289 *HF20-4W MSEIWКомплект HF мех. F28(3) рыч. F39 4 петли - дер. фасады, бел.ш. | L111: 4.90411 | M111: 10.902547 | P111: SB_HF.png | Q111: 166.83792
A112: Комплект AVENTOS HF для узких алюминиевых рамок | F112: =IFERROR(IF(PriceSwitch=1,Q112-(Q112*AddDisc%),E112)*Kurs,0) -> 0 | H112: 0 | J112: Комплект AVENTOS HF для узких алюминиевых рамок
A113: HFa01-2G | B113: 04792932 | C113: 20F1222 *HFA01-2GMHG/T | D113: Комплект HF мех. F22 рыч. F32 2 петли - алюм. рамки, светло-сер. | E113: 138.8938286 | F113: =IFERROR(IF(PriceSwitch=1,Q113-(Q113*AddDisc%),E113)*Kurs,0) -> 138.8938286 | H113: 0 | J113: HFa01-2G0479293220F1222 *HFA01-2GMHG/TКомплект HF мех. F22 рыч. F32 2 петли - алюм. рамки, светло-сер. | L113: 2.81261 | M113: 6.70447 | P113: SB_HF.png | Q113: 97.22568
A114: HFa01-3G | B114: 01705944 | C114: 20F1222 *HFA01-3GMHG/T | D114: Комплект HF мех. F22 рыч. F32 3 петли - алюм. рамки, светло-сер. | E114: 152.8045714 | F114: =IFERROR(IF(PriceSwitch=1,Q114-(Q114*AddDisc%),E114)*Kurs,0) -> 152.8045714 | H114: 0 | J114: HFa01-3G0170594420F1222 *HFA01-3GMHG/TКомплект HF мех. F22 рыч. F32 3 петли - алюм. рамки, светло-сер. | L114: 3.04896 | M114: 7.049152 | P114: SB_HF.png | Q114: 106.9632
A115: HFa01-4G | B115: 06749427 | C115: 20F1222 *HFA01-4GMHG/T | D115: Комплект HF мех. F22 рыч. F32 4 петли - алюм. рамки, светло-сер. | E115: 166.7153143 | F115: =IFERROR(IF(PriceSwitch=1,Q115-(Q115*AddDisc%),E115)*Kurs,0) -> 166.7153143 | H115: 0 | J115: HFa01-4G0674942720F1222 *HFA01-4GMHG/TКомплект HF мех. F22 рыч. F32 4 петли - алюм. рамки, светло-сер. | L115: 3.28531 | M115: 7.393834 | P115: SB_HF.png | Q115: 116.70072
A116: HFa02-2G | B116: 07805935 | C116: 20F1252 *HFA02-2GMHG/T | D116: Комплект HF мех. F25 рыч. F32 2 петли - алюм. рамки, светло-сер. | E116: 144.2708571 | F116: =IFERROR(IF(PriceSwitch=1,Q116-(Q116*AddDisc%),E116)*Kurs,0) -> 144.2708571 | H116: 0 | J116: HFa02-2G0780593520F1252 *HFA02-2GMHG/TКомплект HF мех. F25 рыч. F32 2 петли - алюм. рамки, светло-сер. | L116: 2.92033 | M116: 6.70447 | P116: SB_HF.png | Q116: 100.9896
A117: HFa02-3G | B117: 06301608 | C117: 20F1252 *HFA02-3GMHG/T | D117: Комплект HF мех. F25 рыч. F32 3 петли - алюм. рамки, светло-сер. | E117: 158.1816 | F117: =IFERROR(IF(PriceSwitch=1,Q117-(Q117*AddDisc%),E117)*Kurs,0) -> 158.1816 | H117: 0 | J117: HFa02-3G0630160820F1252 *HFA02-3GMHG/TКомплект HF мех. F25 рыч. F32 3 петли - алюм. рамки, светло-сер. | L117: 3.15668 | M117: 7.049152 | P117: SB_HF.png | Q117: 110.72712
A118: HFa02-4G | B118: 09675022 | C118: 20F1252 *HFA02-4GMHG/T | D118: Комплект HF мех. F25 рыч. F32 4 петли - алюм. рамки, светло-сер. | E118: 172.0923429 | F118: =IFERROR(IF(PriceSwitch=1,Q118-(Q118*AddDisc%),E118)*Kurs,0) -> 172.0923429 | H118: 0 | J118: HFa02-4G0967502220F1252 *HFA02-4GMHG/TКомплект HF мех. F25 рыч. F32 4 петли - алюм. рамки, светло-сер. | L118: 3.39303 | M118: 7.393834 | P118: SB_HF.png | Q118: 120.46464
A119: HFa03-3G | B119: 01345338 | C119: 20F1282 *HFA03-3GMHG/T | D119: Комплект HF мех. F28 рыч. F32 3 петли - алюм. рамки, светло-сер. | E119: 165.8626286 | F119: =IFERROR(IF(PriceSwitch=1,Q119-(Q119*AddDisc%),E119)*Kurs,0) -> 165.8626286 | H119: 0 | J119: HFa03-3G0134533820F1282 *HFA03-3GMHG/TКомплект HF мех. F28 рыч. F32 3 петли - алюм. рамки, светло-сер. | L119: 3.40108 | M119: 7.049152 | P119: SB_HF.png | Q119: 116.10384
A120: HFa03-4G | B120: 06843849 | C120: 20F1282 *HFA03-4GMHG/T | D120: Комплект HF мех. F28 рыч. F32 4 петли - алюм. рамки, светло-сер. | E120: 179.7733714 | F120: =IFERROR(IF(PriceSwitch=1,Q120-(Q120*AddDisc%),E120)*Kurs,0) -> 179.7733714 | H120: 0 | J120: HFa03-4G0684384920F1282 *HFA03-4GMHG/TКомплект HF мех. F28 рыч. F32 4 петли - алюм. рамки, светло-сер. | L120: 3.63743 | M120: 7.393834 | P120: SB_HF.png | Q120: 125.84136
A121: HFa04-2G | B121: 01371839 | C121: 20F1225 *HFA04-2GMHG/T | D121: Комплект HF мех. F22 рыч. F35 2 петли - алюм. рамки, светло-сер. | E121: 142.7352 | F121: =IFERROR(IF(PriceSwitch=1,Q121-(Q121*AddDisc%),E121)*Kurs,0) -> 142.7352 | H121: 0 | J121: HFa04-2G0137183920F1225 *HFA04-2GMHG/TКомплект HF мех. F22 рыч. F35 2 петли - алюм. рамки, светло-сер. | L121: 2.86781 | M121: 6.70447 | P121: SB_HF.png | Q121: 99.91464
A122: HFa04-3G | B122: 01906879 | C122: 20F1225 *HFA04-3GMHG/T | D122: Комплект HF мех. F22 рыч. F35 3 петли - алюм. рамки, светло-сер. | E122: 156.6459429 | F122: =IFERROR(IF(PriceSwitch=1,Q122-(Q122*AddDisc%),E122)*Kurs,0) -> 156.6459429 | H122: 0 | J122: HFa04-3G0190687920F1225 *HFA04-3GMHG/TКомплект HF мех. F22 рыч. F35 3 петли - алюм. рамки, светло-сер. | L122: 3.10416 | M122: 7.049152 | P122: SB_HF.png | Q122: 109.65216
A123: HFa04-4G | B123: 04809758 | C123: 20F1225 *HFA04-4GMHG/T | D123: Комплект HF мех. F22 рыч. F35 4 петли - алюм. рамки, светло-сер. | E123: 170.5566857 | F123: =IFERROR(IF(PriceSwitch=1,Q123-(Q123*AddDisc%),E123)*Kurs,0) -> 170.5566857 | H123: 0 | J123: HFa04-4G0480975820F1225 *HFA04-4GMHG/TКомплект HF мех. F22 рыч. F35 4 петли - алюм. рамки, светло-сер. | L123: 3.34051 | M123: 7.393834 | P123: SB_HF.png | Q123: 119.38968
A124: HFa05-2G | B124: 02208560 | C124: 20F1255 *HFA05-2GMHG/T | D124: Комплект HF мех. F25 рыч. F35 2 петли - алюм. рамки, светло-сер. | E124: 148.1122286 | F124: =IFERROR(IF(PriceSwitch=1,Q124-(Q124*AddDisc%),E124)*Kurs,0) -> 148.1122286 | H124: 0 | J124: HFa05-2G0220856020F1255 *HFA05-2GMHG/TКомплект HF мех. F25 рыч. F35 2 петли - алюм. рамки, светло-сер. | L124: 2.97553 | M124: 6.70447 | P124: SB_HF.png | Q124: 103.67856
A125: HFa05-3G | B125: 07009622 | C125: 20F1255 *HFA05-3GMHG/T | D125: Комплект HF мех. F25 рыч. F35 3 петли - алюм. рамки, светло-сер. | E125: 162.0229714 | F125: =IFERROR(IF(PriceSwitch=1,Q125-(Q125*AddDisc%),E125)*Kurs,0) -> 162.0229714 | H125: 0 | J125: HFa05-3G0700962220F1255 *HFA05-3GMHG/TКомплект HF мех. F25 рыч. F35 3 петли - алюм. рамки, светло-сер. | L125: 3.21188 | M125: 7.049152 | P125: SB_HF.png | Q125: 113.41608
A126: HFa05-4G | B126: 02574184 | C126: 20F1255 *HFA05-4GMHG/T | D126: Комплект HF мех. F25 рыч. F35 4 петли - алюм. рамки, светло-сер. | E126: 175.9337143 | F126: =IFERROR(IF(PriceSwitch=1,Q126-(Q126*AddDisc%),E126)*Kurs,0) -> 175.9337143 | H126: 0 | J126: HFa05-4G0257418420F1255 *HFA05-4GMHG/TКомплект HF мех. F25 рыч. F35 4 петли - алюм. рамки, светло-сер. | L126: 3.44823 | M126: 7.393834 | P126: SB_HF.png | Q126: 123.1536
A127: HFa06-3G | B127: 03074200 | C127: 20F1285 *HFA06-3GMHG/T | D127: Комплект HF мех. F28 рыч. F35 3 петли - алюм. рамки, светло-сер. | E127: 169.704 | F127: =IFERROR(IF(PriceSwitch=1,Q127-(Q127*AddDisc%),E127)*Kurs,0) -> 169.704 | H127: 0 | J127: HFa06-3G0307420020F1285 *HFA06-3GMHG/TКомплект HF мех. F28 рыч. F35 3 петли - алюм. рамки, светло-сер. | L127: 3.45628 | M127: 7.049152 | P127: SB_HF.png | Q127: 118.7928
A128: HFa06-4G | B128: 09805307 | C128: 20F1285 *HFA06-4GMHG/T | D128: Комплект HF мех. F28 рыч. F35 4 петли - алюм. рамки, светло-сер. | E128: 183.6147429 | F128: =IFERROR(IF(PriceSwitch=1,Q128-(Q128*AddDisc%),E128)*Kurs,0) -> 183.6147429 | H128: 0 | J128: HFa06-4G0980530720F1285 *HFA06-4GMHG/TКомплект HF мех. F28 рыч. F35 4 петли - алюм. рамки, светло-сер. | L128: 3.69263 | M128: 7.393834 | P128: SB_HF.png | Q128: 128.53032
A129: HFa07-2G | B129: 03179187 | C129: 20F1228 *HFA07-2GMHG/T | D129: Комплект HF мех. F22 рыч. F38 2 петли - алюм. рамки, светло-сер. | E129: 150.4169143 | F129: =IFERROR(IF(PriceSwitch=1,Q129-(Q129*AddDisc%),E129)*Kurs,0) -> 150.4169143 | H129: 0 | J129: HFa07-2G0317918720F1228 *HFA07-2GMHG/TКомплект HF мех. F22 рыч. F38 2 петли - алюм. рамки, светло-сер. | L129: 2.95163 | M129: 6.71222 | P129: SB_HF.png | Q129: 105.29184
A130: HFa07-3G | B130: 04889779 | C130: 20F1228 *HFA07-3GMHG/T | D130: Комплект HF мех. F22 рыч. F38 3 петли - алюм. рамки, светло-сер. | E130: 164.3276571 | F130: =IFERROR(IF(PriceSwitch=1,Q130-(Q130*AddDisc%),E130)*Kurs,0) -> 164.3276571 | H130: 0 | J130: HFa07-3G0488977920F1228 *HFA07-3GMHG/TКомплект HF мех. F22 рыч. F38 3 петли - алюм. рамки, светло-сер. | L130: 3.18798 | M130: 7.056902 | P130: SB_HF.png | Q130: 115.02936
A131: HFa07-4G | B131: 02152093 | C131: 20F1228 *HFA07-4GMHG/T | D131: Комплект HF мех. F22 рыч. F38 4 петли - алюм. рамки, светло-сер. | E131: 178.2384 | F131: =IFERROR(IF(PriceSwitch=1,Q131-(Q131*AddDisc%),E131)*Kurs,0) -> 178.2384 | H131: 0 | J131: HFa07-4G0215209320F1228 *HFA07-4GMHG/TКомплект HF мех. F22 рыч. F38 4 петли - алюм. рамки, светло-сер. | L131: 3.42433 | M131: 7.401584 | P131: SB_HF.png | Q131: 124.76688
A132: HFa08-2G | B132: 01922384 | C132: 20F1258 *HFA08-2GMHG/T | D132: Комплект HF мех. F25 рыч. F38 2 петли - алюм. рамки, светло-сер. | E132: 155.7939429 | F132: =IFERROR(IF(PriceSwitch=1,Q132-(Q132*AddDisc%),E132)*Kurs,0) -> 155.7939429 | H132: 0 | J132: HFa08-2G0192238420F1258 *HFA08-2GMHG/TКомплект HF мех. F25 рыч. F38 2 петли - алюм. рамки, светло-сер. | L132: 3.05935 | M132: 6.71222 | P132: SB_HF.png | Q132: 109.05576
A133: HFa08-3G | B133: 05357872 | C133: 20F1258 *HFA08-3GMHG/T | D133: Комплект HF мех. F25 рыч. F38 3 петли - алюм. рамки, светло-сер. | E133: 169.7046857 | F133: =IFERROR(IF(PriceSwitch=1,Q133-(Q133*AddDisc%),E133)*Kurs,0) -> 169.7046857 | H133: 0 | J133: HFa08-3G0535787220F1258 *HFA08-3GMHG/TКомплект HF мех. F25 рыч. F38 3 петли - алюм. рамки, светло-сер. | L133: 3.2957 | M133: 7.056902 | P133: SB_HF.png | Q133: 118.79328
A134: HFa08-4G | B134: 06739665 | C134: 20F1258 *HFA08-4GMHG/T | D134: Комплект HF мех. F25 рыч. F38 4 петли - алюм. рамки, светло-сер. | E134: 183.6154286 | F134: =IFERROR(IF(PriceSwitch=1,Q134-(Q134*AddDisc%),E134)*Kurs,0) -> 183.6154286 | H134: =F134*G134 -> 0 | J134: HFa08-4G0673966520F1258 *HFA08-4GMHG/TКомплект HF мех. F25 рыч. F38 4 петли - алюм. рамки, светло-сер. | L134: 3.53205 | M134: 7.401584 | P134: SB_HF.png | Q134: 128.5308
A135: HFa09-2G | B135: 05828939 | C135: 20F1288 *HFA09-2GMHG/T | D135: Комплект HF мех. F28 рыч. F38 2 петли - алюм. рамки, светло-сер. | E135: 163.4749714 | F135: =IFERROR(IF(PriceSwitch=1,Q135-(Q135*AddDisc%),E135)*Kurs,0) -> 163.4749714 | H135: 0 | J135: HFa09-2G0582893920F1288 *HFA09-2GMHG/TКомплект HF мех. F28 рыч. F38 2 петли - алюм. рамки, светло-сер. | L135: 3.30375 | M135: 6.71222 | P135: SB_HF.png | Q135: 114.43248
A136: HFa09-3G | B136: 04263862 | C136: 20F1288 *HFA09-3GMHG/T | D136: Комплект HF мех. F28 рыч. F38 3 петли - алюм. рамки, светло-сер. | E136: 177.3857143 | F136: =IFERROR(IF(PriceSwitch=1,Q136-(Q136*AddDisc%),E136)*Kurs,0) -> 177.3857143 | H136: 0 | J136: HFa09-3G0426386220F1288 *HFA09-3GMHG/TКомплект HF мех. F28 рыч. F38 3 петли - алюм. рамки, светло-сер. | L136: 3.5401 | M136: 7.056902 | P136: SB_HF.png | Q136: 124.17
A137: HFa09-4G | B137: 07609320 | C137: 20F1288 *HFA09-4GMHG/T | D137: Комплект HF мех. F28 рыч. F38 4 петли - алюм. рамки, светло-сер. | E137: 191.2964571 | F137: =IFERROR(IF(PriceSwitch=1,Q137-(Q137*AddDisc%),E137)*Kurs,0) -> 191.2964571 | H137: 0 | J137: HFa09-4G0760932020F1288 *HFA09-4GMHG/TКомплект HF мех. F28 рыч. F38 4 петли - алюм. рамки, светло-сер. | L137: 3.77645 | M137: 7.401584 | P137: SB_HF.png | Q137: 133.90752
A138: HFa10-2G | B138: 08801236 | C138: 20F1229 *HFA10-2GMHG/T | D138: Комплект HF мех. F22 рыч. F39 2 петли - алюм. рамки, светло-сер. | E138: 156.1779429 | F138: =IFERROR(IF(PriceSwitch=1,Q138-(Q138*AddDisc%),E138)*Kurs,0) -> 156.1779429 | H138: 0 | J138: HFa10-2G0880123620F1229 *HFA10-2GMHG/TКомплект HF мех. F22 рыч. F39 2 петли - алюм. рамки, светло-сер. | L138: 3.00601 | M138: 7.15717 | P138: SB_HF.png | Q138: 109.32456
A139: HFa10-3G | B139: 01407981 | C139: 20F1229 *HFA10-3GMHG/T | D139: Комплект HF мех. F22 рыч. F39 3 петли - алюм. рамки, светло-сер. | E139: 170.0886857 | F139: =IFERROR(IF(PriceSwitch=1,Q139-(Q139*AddDisc%),E139)*Kurs,0) -> 170.0886857 | H139: 0 | J139: HFa10-3G0140798120F1229 *HFA10-3GMHG/TКомплект HF мех. F22 рыч. F39 3 петли - алюм. рамки, светло-сер. | L139: 3.24236 | M139: 7.501852 | P139: SB_HF.png | Q139: 119.06208
A140: HFa10-4G | B140: 09526092 | C140: 20F1229 *HFA10-4GMHG/T | D140: Комплект HF мех. F22 рыч. F39 4 петли - алюм. рамки, светло-сер. | E140: 183.9994286 | F140: =IFERROR(IF(PriceSwitch=1,Q140-(Q140*AddDisc%),E140)*Kurs,0) -> 183.9994286 | H140: 0 | J140: HFa10-4G0952609220F1229 *HFA10-4GMHG/TКомплект HF мех. F22 рыч. F39 4 петли - алюм. рамки, светло-сер. | L140: 3.47871 | M140: 7.846534 | P140: SB_HF.png | Q140: 128.7996
A141: HFa11-2G | B141: 07735555 | C141: 20F1259 *HFA11-2GMHG/T | D141: Комплект HF мех. F25 рыч. F39 2 петли - алюм. рамки, светло-сер. | E141: 161.5549714 | F141: =IFERROR(IF(PriceSwitch=1,Q141-(Q141*AddDisc%),E141)*Kurs,0) -> 161.5549714 | H141: 0 | J141: HFa11-2G0773555520F1259 *HFA11-2GMHG/TКомплект HF мех. F25 рыч. F39 2 петли - алюм. рамки, светло-сер. | L141: 3.11373 | M141: 7.15717 | P141: SB_HF.png | Q141: 113.08848
A142: HFa11-3G | B142: 01158695 | C142: 20F1259 *HFA11-3GMHG/T | D142: Комплект HF мех. F25 рыч. F39 3 петли - алюм. рамки, светло-сер. | E142: 175.4657143 | F142: =IFERROR(IF(PriceSwitch=1,Q142-(Q142*AddDisc%),E142)*Kurs,0) -> 175.4657143 | H142: 0 | J142: HFa11-3G0115869520F1259 *HFA11-3GMHG/TКомплект HF мех. F25 рыч. F39 3 петли - алюм. рамки, светло-сер. | L142: 3.35008 | M142: 7.501852 | P142: SB_HF.png | Q142: 122.826
A143: HFa11-4G | B143: 01379033 | C143: 20F1259 *HFA11-4GMHG/T | D143: Комплект HF мех. F25 рыч. F39 4 петли - алюм. рамки, светло-сер. | E143: 189.3764571 | F143: =IFERROR(IF(PriceSwitch=1,Q143-(Q143*AddDisc%),E143)*Kurs,0) -> 189.3764571 | H143: 0 | J143: HFa11-4G0137903320F1259 *HFA11-4GMHG/TКомплект HF мех. F25 рыч. F39 4 петли - алюм. рамки, светло-сер. | L143: 3.58643 | M143: 7.846534 | P143: SB_HF.png | Q143: 132.56352
A144: HFa12-2G | B144: 01091978 | C144: 20F1289 *HFA12-2GMHG/T | D144: Комплект HF мех. F28 рыч. F39 2 петли - алюм. рамки, светло-сер. | E144: 169.236 | F144: =IFERROR(IF(PriceSwitch=1,Q144-(Q144*AddDisc%),E144)*Kurs,0) -> 169.236 | H144: 0 | J144: HFa12-2G0109197820F1289 *HFA12-2GMHG/TКомплект HF мех. F28 рыч. F39 2 петли - алюм. рамки, светло-сер. | L144: 3.35813 | M144: 7.15717 | P144: SB_HF.png | Q144: 118.4652
A145: HFa12-3G | B145: 06564732 | C145: 20F1289 *HFA12-3GMHG/T | D145: Комплект HF мех. F28 рыч. F39 3 петли - алюм. рамки, светло-сер. | E145: 183.1467429 | F145: =IFERROR(IF(PriceSwitch=1,Q145-(Q145*AddDisc%),E145)*Kurs,0) -> 183.1467429 | H145: 0 | J145: HFa12-3G0656473220F1289 *HFA12-3GMHG/TКомплект HF мех. F28 рыч. F39 3 петли - алюм. рамки, светло-сер. | L145: 3.59448 | M145: 7.501852 | P145: SB_HF.png | Q145: 128.20272
A146: HFa12-4G | B146: 03521698 | C146: 20F1289 *HFA12-4GMHG/T | D146: Комплект HF мех. F28 рыч. F39 4 петли - алюм. рамки, светло-сер. | E146: 197.0574857 | F146: =IFERROR(IF(PriceSwitch=1,Q146-(Q146*AddDisc%),E146)*Kurs,0) -> 197.0574857 | H146: 0 | J146: HFa12-4G0352169820F1289 *HFA12-4GMHG/TКомплект HF мех. F28 рыч. F39 4 петли - алюм. рамки, светло-сер. | L146: 3.83083 | M146: 7.846534 | P146: SB_HF.png | Q146: 137.94024
A147: HFa13-2G | B147: 09989941 | C147: 20F1222 *HFA13-2GMHG/T | D147: Комплект HF мех. F22(1) рыч. F32 2 петли - алюм. рамки, светло-сер. | E147: 87.88782857 | F147: =IFERROR(IF(PriceSwitch=1,Q147-(Q147*AddDisc%),E147)*Kurs,0) -> 87.88782857 | H147: 0 | J147: HFa13-2G0998994120F1222 *HFA13-2GMHG/TКомплект HF мех. F22(1) рыч. F32 2 петли - алюм. рамки, светло-сер. | L147: 1.7156 | M147: 3.770845 | P147: SB_HF.png | Q147: 61.52148
A148: HFa14-2G | B148: 02559824 | C148: 20F1225 *HFA14-2GMHG/T | D148: Комплект HF мех. F22(1) рыч. F35 2 петли - алюм. рамки, светло-сер. | E148: 89.80851429 | F148: =IFERROR(IF(PriceSwitch=1,Q148-(Q148*AddDisc%),E148)*Kurs,0) -> 89.80851429 | H148: 0 | J148: HFa14-2G0255982420F1225 *HFA14-2GMHG/TКомплект HF мех. F22(1) рыч. F35 2 петли - алюм. рамки, светло-сер. | L148: 1.7432 | M148: 3.770845 | P148: SB_HF.png | Q148: 62.86596
A149: HFa15-2G | B149: 09118075 | C149: 20F1228 *HFA15-2GMHG/T | D149: Комплект HF мех. F22(1) рыч. F38 2 петли - алюм. рамки, светло-сер. | E149: 93.64937143 | F149: =IFERROR(IF(PriceSwitch=1,Q149-(Q149*AddDisc%),E149)*Kurs,0) -> 93.64937143 | H149: 0 | J149: HFa15-2G0911807520F1228 *HFA15-2GMHG/TКомплект HF мех. F22(1) рыч. F38 2 петли - алюм. рамки, светло-сер. | L149: 1.78511 | M149: 3.77472 | P149: SB_HF.png | Q149: 65.55456
A150: HFa16-2G | B150: 08800751 | C150: 20F1229 *HFA16-2GMHG/T | D150: Комплект HF мех. F22(1) рыч. F39 2 петли - алюм. рамки, светло-сер. | E150: 96.52988571 | F150: =IFERROR(IF(PriceSwitch=1,Q150-(Q150*AddDisc%),E150)*Kurs,0) -> 96.52988571 | H150: 0 | J150: HFa16-2G0880075120F1229 *HFA16-2GMHG/TКомплект HF мех. F22(1) рыч. F39 2 петли - алюм. рамки, светло-сер. | L150: 1.8123 | M150: 3.997195 | P150: SB_HF.png | Q150: 67.57092
A151: HFa17-3G | B151: 01262952 | C151: 20F1282 *HFA17-3GMHG/T | D151: Комплект HF мех. F28(3) рыч. F32 3 петли - алюм. рамки, светло-сер. | E151: 227.9278286 | F151: =IFERROR(IF(PriceSwitch=1,Q151-(Q151*AddDisc%),E151)*Kurs,0) -> 227.9278286 | H151: 0 | J151: HFa17-3G0126295220F1282 *HFA17-3GMHG/TКомплект HF мех. F28(3) рыч. F32 3 петли - алюм. рамки, светло-сер. | L151: 4.74627 | M151: 10.056705 | P151: SB_HF.png | Q151: 159.54948
A152: HFa17-4G | B152: 02283776 | C152: 20F1282 *HFA17-4GMHG/T | D152: Комплект HF мех. F28(3) рыч. F32 4 петли - алюм. рамки, светло-сер. | E152: 241.8385714 | F152: =IFERROR(IF(PriceSwitch=1,Q152-(Q152*AddDisc%),E152)*Kurs,0) -> 241.8385714 | H152: 0 | J152: HFa17-4G0228377620F1282 *HFA17-4GMHG/TКомплект HF мех. F28(3) рыч. F32 4 петли - алюм. рамки, светло-сер. | L152: 4.98262 | M152: 10.401387 | P152: SB_HF.png | Q152: 169.287
A153: HFa18-3G | B153: 01285575 | C153: 20F1285 *HFA18-3GMHG/T | D153: Комплект HF мех. F28(3) рыч. F35 3 петли - алюм. рамки, светло-сер. | E153: 233.6898857 | F153: =IFERROR(IF(PriceSwitch=1,Q153-(Q153*AddDisc%),E153)*Kurs,0) -> 233.6898857 | H153: 0 | J153: HFa18-3G0128557520F1285 *HFA18-3GMHG/TКомплект HF мех. F28(3) рыч. F35 3 петли - алюм. рамки, светло-сер. | L153: 4.82907 | M153: 10.056705 | P153: SB_HF.png | Q153: 163.58292
A154: HFa18-4G | B154: 08020864 | C154: 20F1285 *HFA18-4GMHG/T | D154: Комплект HF мех. F28(3) рыч. F35 4 петли - алюм. рамки, светло-сер. | E154: 247.6006286 | F154: =IFERROR(IF(PriceSwitch=1,Q154-(Q154*AddDisc%),E154)*Kurs,0) -> 247.6006286 | H154: 0 | J154: HFa18-4G0802086420F1285 *HFA18-4GMHG/TКомплект HF мех. F28(3) рыч. F35 4 петли - алюм. рамки, светло-сер. | L154: 5.06542 | M154: 10.401387 | P154: SB_HF.png | Q154: 173.32044
A155: HFa19-3G | B155: 06882750 | C155: 20F1288 *HFA19-3GMHG/T | D155: Комплект HF мех. F28(3) рыч. F38 3 петли - алюм. рамки, светло-сер. | E155: 245.2124571 | F155: =IFERROR(IF(PriceSwitch=1,Q155-(Q155*AddDisc%),E155)*Kurs,0) -> 245.2124571 | H155: 0 | J155: HFa19-3G0688275020F1288 *HFA19-3GMHG/TКомплект HF мех. F28(3) рыч. F38 3 петли - алюм. рамки, светло-сер. | L155: 4.9548 | M155: 10.06833 | P155: SB_HF.png | Q155: 171.64872
A156: HFa19-4G | B156: 04531306 | C156: 20F1288 *HFA19-4GMHG/T | D156: Комплект HF мех. F28(3) рыч. F38 4 петли - алюм. рамки, светло-сер. | E156: 259.1232 | F156: =IFERROR(IF(PriceSwitch=1,Q156-(Q156*AddDisc%),E156)*Kurs,0) -> 259.1232 | H156: 0 | J156: HFa19-4G0453130620F1288 *HFA19-4GMHG/TКомплект HF мех. F28(3) рыч. F38 4 петли - алюм. рамки, светло-сер. | L156: 5.19115 | M156: 10.413012 | P156: SB_HF.png | Q156: 181.38624
A157: HFa20-3G | B157: 08174562 | C157: 20F1289 *HFA20-3GMHG/T | D157: Комплект HF мех. F28(3) рыч. F39 3 петли - алюм. рамки, светло-сер. | E157: 253.854 | F157: =IFERROR(IF(PriceSwitch=1,Q157-(Q157*AddDisc%),E157)*Kurs,0) -> 253.854 | H157: 0 | J157: HFa20-3G0817456220F1289 *HFA20-3GMHG/TКомплект HF мех. F28(3) рыч. F39 3 петли - алюм. рамки, светло-сер. | L157: 5.03637 | M157: 10.735755 | P157: SB_HF.png | Q157: 177.6978
A158: HFa20-4G | B158: 06293224 | C158: 20F1289 *HFA20-4GMHG/T | D158: Комплект HF мех. F28(3) рыч. F39 4 петли - алюм. рамки, светло-сер. | E158: 267.7647429 | F158: =IFERROR(IF(PriceSwitch=1,Q158-(Q158*AddDisc%),E158)*Kurs,0) -> 267.7647429 | H158: 0 | J158: HFa20-4G0629322420F1289 *HFA20-4GMHG/TКомплект HF мех. F28(3) рыч. F39 4 петли - алюм. рамки, светло-сер. | L158: 5.27272 | M158: 11.080437 | P158: SB_HF.png | Q158: 187.43532
A159: Общие комплектующие | F159: =IFERROR(IF(PriceSwitch=1,Q159-(Q159*AddDisc%),E159)*Kurs,0) -> 0 | H159: 0 | J159: Общие комплектующие
B160: 08931762 | C160: 20F2201.05KRAFTSP 20 ZN | D160: HF Силовой механизм 22 Коэфф. мощн. 2600-5500 | E160: 31.87714286 | F160: =IFERROR(IF(PriceSwitch=1,Q160-(Q160*AddDisc%),E160)*Kurs,0) -> 31.87714286 | H160: 0 | J160: 08931762 20F2201.05KRAFTSP 20 ZNHF Силовой механизм 22 Коэфф. мощн. 2600-5500 | L160: 0.78956 | M160: 1.6819 | P160: 49269752_BT_P_1_PB_BAU.png | Q160: 22.314
B161: 08931832 | C161: 20F2501.05KRAFTSP 20 ZN | D161: HF Силовой механизм 25 Коэфф. мощн. 5350-10150 | E161: 34.56565714 | F161: =IFERROR(IF(PriceSwitch=1,Q161-(Q161*AddDisc%),E161)*Kurs,0) -> 34.56565714 | H161: 0 | J161: 08931832 20F2501.05KRAFTSP 20 ZNHF Силовой механизм 25 Коэфф. мощн. 5350-10150 | L161: 0.84342 | M161: 1.6819 | P161: 41065815_BT_P_1_PB_BAU.png | Q161: 24.19596
B162: 08931902 | C162: 20F2801.05KRAFTSP 20 ZN | D162: HF Силовой механизм 28 Коэфф. мощн. 9000-17250 | E162: 38.40617143 | F162: =IFERROR(IF(PriceSwitch=1,Q162-(Q162*AddDisc%),E162)*Kurs,0) -> 38.40617143 | H162: 0 | J162: 08931902 20F2801.05KRAFTSP 20 ZNHF Силовой механизм 28 Коэфф. мощн. 9000-17250 | L162: 0.96562 | M162: 1.6819 | P162: 42064624_BT_P_1_PB_BAU.png | Q162: 26.88432
B163: 07588308 | C163: 20F3201.01TE-HEB V40 NI | D163: HF Рычаг телескопич. 32 выс.к. 480-570мм | E163: 15.36222857 | F163: =IFERROR(IF(PriceSwitch=1,Q163-(Q163*AddDisc%),E163)*Kurs,0) -> 15.36222857 | H163: 0 | J163: 07588308 20F3201.01TE-HEB V40 NIHF Рычаг телескопич. 32 выс.к. 480-570мм | L163: 0.20488 | M163: 0.468825 | P163: 48210274_BT_P_1_PB_BAU.png | Q163: 10.75356
B164: 02034079 | C164: 20F3501.01TE-HEB V40 NI | D164: HF Рычаг телескопич. 35 выс.к. 560-710мм | E164: 17.28291429 | F164: =IFERROR(IF(PriceSwitch=1,Q164-(Q164*AddDisc%),E164)*Kurs,0) -> 17.28291429 | H164: 0 | J164: 02034079 20F3501.01TE-HEB V40 NIHF Рычаг телескопич. 35 выс.к. 560-710мм | L164: 0.23248 | M164: 0.468825 | P164: 43071803_BT_P_1_PB_BAU.png | Q164: 12.09804
B165: 07360602 | C165: 20F3801.01TE-HEB V40 NI | D165: HF Рычаг телескопич. 38 выс.к. 700-900мм | E165: 21.12377143 | F165: =IFERROR(IF(PriceSwitch=1,Q165-(Q165*AddDisc%),E165)*Kurs,0) -> 21.12377143 | H165: 0 | J165: 07360602 20F3801.01TE-HEB V40 NIHF Рычаг телескопич. 38 выс.к. 700-900мм | L165: 0.27439 | M165: 0.4727 | P165: 44569277_BT_P_1_PB_BAU.png | Q165: 14.78664
B166: 09184068 | C166: 20F3901.01TE-HEB V40 NI | D166: HF Рычаг телескопич. 39 выс.к. 760-1040мм | E166: 24.00428571 | F166: =IFERROR(IF(PriceSwitch=1,Q166-(Q166*AddDisc%),E166)*Kurs,0) -> 24.00428571 | H166: 0 | J166: 09184068 20F3901.01TE-HEB V40 NIHF Рычаг телескопич. 39 выс.к. 760-1040мм | L166: 0.30158 | M166: 0.695175 | P166: 46220509_BT_P_1_PB_BAU.png | Q166: 16.803
B167: 04420654 | C167: 20F8021.22ABD L+ZT20HGIG | D167: HF Новая заглушка основн.: светло-сер., мал.: нерж. Ле. | E167: 3.766628571 | F167: =IFERROR(IF(PriceSwitch=1,Q167-(Q167*AddDisc%),E167)*Kurs,0) -> 3.766628571 | H167: 0 | J167: 04420654 20F8021.22ABD L+ZT20HGIGHF Новая заглушка основн.: светло-сер., мал.: нерж. Ле. | L167: 0.10092 | M167: 0.7829 | Q167: 2.63664
B168: 01234949 | C168: 20F8021.22ABD R+ZT20HGIG | D168: HF Новая заглушка основн.: светло-сер., мал.: нерж. Пр. | E168: 3.766628571 | F168: =IFERROR(IF(PriceSwitch=1,Q168-(Q168*AddDisc%),E168)*Kurs,0) -> 3.766628571 | H168: 0 | J168: 01234949 20F8021.22ABD R+ZT20HGIGHF Новая заглушка основн.: светло-сер., мал.: нерж. Пр. | L168: 0.10257 | M168: 0.7829 | Q168: 2.63664
B169: 05423582 | C169: 20F8021.22ABD L+ZT20SWIG | D169: HF Новая заглушка основн.: бел.шёлк, мал.: нерж. Ле. | E169: 4.342628571 | F169: =IFERROR(IF(PriceSwitch=1,Q169-(Q169*AddDisc%),E169)*Kurs,0) -> 4.342628571 | H169: 0 | J169: 05423582 20F8021.22ABD L+ZT20SWIGHF Новая заглушка основн.: бел.шёлк, мал.: нерж. Ле. | L169: 0.10632 | M169: 0.7829 | Q169: 3.03984
B170: 05725573 | C170: 20F8021.22ABD R+ZT20SWIG | D170: HF Новая заглушка основн.: бел.шёлк, мал.: нерж. Пр. | E170: 4.342628571 | F170: =IFERROR(IF(PriceSwitch=1,Q170-(Q170*AddDisc%),E170)*Kurs,0) -> 4.342628571 | H170: 0 | J170: 05725573 20F8021.22ABD R+ZT20SWIGHF Новая заглушка основн.: бел.шёлк, мал.: нерж. Пр. | L170: 0.10807 | M170: 0.7829 | Q170: 3.03984
B171: 08274026 | C171: 20F8021.22ABD L+ZT20TGIG | D171: HF Новая заглушка основн.: тёмно-сер., мал.: нерж. Ле. | E171: 4.342628571 | F171: =IFERROR(IF(PriceSwitch=1,Q171-(Q171*AddDisc%),E171)*Kurs,0) -> 4.342628571 | H171: 0 | J171: 08274026 20F8021.22ABD L+ZT20TGIGHF Новая заглушка основн.: тёмно-сер., мал.: нерж. Ле. | L171: 0.10092 | M171: 0.7829 | Q171: 3.03984
B172: 07712253 | C172: 20F8021.22ABD R+ZT20TGIG | D172: HF Новая заглушка основн.: тёмно-сер., мал.: нерж. Пр. | E172: 4.342628571 | F172: =IFERROR(IF(PriceSwitch=1,Q172-(Q172*AddDisc%),E172)*Kurs,0) -> 4.342628571 | H172: 0 | J172: 07712253 20F8021.22ABD R+ZT20TGIGHF Новая заглушка основн.: тёмно-сер., мал.: нерж. Пр. | L172: 0.10257 | M172: 0.7829 | Q172: 3.03984
A173: Комплектующие для деревянных фасадов | F173: =IFERROR(IF(PriceSwitch=1,Q173-(Q173*AddDisc%),E173)*Kurs,0) -> 0 | H173: 0 | J173: Комплектующие для деревянных фасадов
B174: 06510533 | C174: 70T5550.TLMB V50 NI | D174: Петля Clip t. без пружины 120° накл. п.самор. | E174: 2.334342857 | F174: =IFERROR(IF(PriceSwitch=1,Q174-(Q174*AddDisc%),E174)*Kurs,0) -> 2.334342857 | H174: 0 | J174: 06510533 70T5550.TLMB V50 NIПетля Clip t. без пружины 120° накл. п.самор. | L174: 0.06823 | M174: 0.144724 | P174: 45390618_BT_P_1_PB_BAU.png | Q174: 1.63404
B175: 06796673 | C175: 78Z5500T MB V50 NI | D175: Петля Clip t. средняя п.самор. | E175: 4.648971429 | F175: =IFERROR(IF(PriceSwitch=1,Q175-(Q175*AddDisc%),E175)*Kurs,0) -> 4.648971429 | H175: 0 | J175: 06796673 78Z5500T MB V50 NIПетля Clip t. средняя п.самор. | L175: 0.07926 | M175: 0.144724 | P175: 43448687_BT_P_1_PB_BAU.png | Q175: 3.25428
B176: 09618913 | C176: 175H3100.21MPL+SR S6 NI | D176: Планка Clip (6шт) прямая п.самор. с эксц. под петли и HK-S/HF (20/32), 8 саморезов | E176: 6.644228571 | F176: =IFERROR(IF(PriceSwitch=1,Q176-(Q176*AddDisc%),E176)*Kurs,0) -> 6.644228571 | H176: 0 | J176: 09618913175H3100.21MPL+SR S6 NIПланка Clip (6шт) прямая п.самор. с эксц. под петли и HK-S/HF (20/32), 8 саморезов | L176: 0.11414 | M176: 0.19734 | P176: S_175H3100_P_1_PB_BAU.png | Q176: 4.65096
B177: 05891994 | C177: 175H3100 MPL V500 NI | D177: Планка Clip прямая п.самор. с эксц. под петли и HK-S/HF (20/32) | E177: 0.7006285714 | F177: =IFERROR(IF(PriceSwitch=1,Q177-(Q177*AddDisc%),E177)*Kurs,0) -> 0.7006285714 | H177: 0 | J177: 05891994175H3100 MPL V500 NIПланка Clip прямая п.самор. с эксц. под петли и HK-S/HF (20/32) | L177: 0.01554 | M177: 0.013498 | P177: 40047892_BT_P_1_PB_BAU.png | Q177: 0.49044
B178: 04061248 | C178: 177H3100 DUEPL V500 NI | D178: Планка Clip прямая п.пресс. с эксц. под петли и HK-S/HF (20/32) [o.p.] | E178: 0.8264571429 | F178: =IFERROR(IF(PriceSwitch=1,Q178-(Q178*AddDisc%),E178)*Kurs,0) -> 0.8264571429 | H178: 0 | J178: 04061248177H3100 DUEPL V500 NIПланка Clip прямая п.пресс. с эксц. под петли и HK-S/HF (20/32) [o.p.] | L178: 0.0194 | M178: 0.031492 | P178: 45352874_BT_P_1_PB_BAU.png | Q178: 0.57852
B179: 04787251 | C179: 177H3100E DUEPL V500 NI | D179: Планка Clip прямая EXPANDO-5мм с эксц. под петли и HK-S/HF (20/32) | E179: 0.7923428571 | F179: =IFERROR(IF(PriceSwitch=1,Q179-(Q179*AddDisc%),E179)*Kurs,0) -> 0.7923428571 | H179: 0 | J179: 04787251177H3100E DUEPL V500 NIПланка Clip прямая EXPANDO-5мм с эксц. под петли и HK-S/HF (20/32) | L179: 0.01793 | M179: 0.021078 | P179: 48553690_BT_P_1_PB_BAU.png | Q179: 0.55464
A180: Комплектующие для узких алюминиевых рамок | F180: =IFERROR(IF(PriceSwitch=1,Q180-(Q180*AddDisc%),E180)*Kurs,0) -> 0 | H180: 0 | J180: Комплектующие для узких алюминиевых рамок
B181: 07655633 | C181: 72T550A.TLMB V50 NI | D181: Петля Clip t. без пружины к алюм. рамке 120° накл. п.саморез | E181: 3.583714286 | F181: =IFERROR(IF(PriceSwitch=1,Q181-(Q181*AddDisc%),E181)*Kurs,0) -> 3.583714286 | H181: 0 | J181: 07655633 72T550A.TLMB V50 NIПетля Clip t. без пружины к алюм. рамке 120° накл. п.саморез | L181: 0.07187 | M181: 0.112532 | P181: 07655633_ID_P_1_PB_BAU.png | Q181: 2.5086
B182: 06797303 | C182: 78Z550AT MB V50 NI | D182: Петля Clip t. средняя к алюм.р. п.саморез | E182: 5.096228571 | F182: =IFERROR(IF(PriceSwitch=1,Q182-(Q182*AddDisc%),E182)*Kurs,0) -> 5.096228571 | H182: 0 | J182: 06797303 78Z550AT MB V50 NIПетля Clip t. средняя к алюм.р. п.саморез | L182: 0.07577 | M182: 0.144724 | P182: 06797303_ID_P_1_PB_BAU.png | Q182: 3.56736
B183: 06796593 | C183: 175H5B00 AD-P L V50 NI | D183: HF Держатель телескоп. рычага узкой алюм. рамки Ле. | E183: 4.530171429 | F183: =IFERROR(IF(PriceSwitch=1,Q183-(Q183*AddDisc%),E183)*Kurs,0) -> 4.530171429 | H183: 0 | J183: 06796593175H5B00 AD-P L V50 NIHF Держатель телескоп. рычага узкой алюм. рамки Ле. | L183: 0.07377 | M183: 0.073928 | P183: 06796593_ID_P_1_PB_BAU.png | Q183: 3.17112
B184: 06796243 | C184: 175H5B00 AD-P R V50 NI | D184: HF Держатель телескоп. рычага узкой алюм. рамки Пр. | E184: 4.530171429 | F184: =IFERROR(IF(PriceSwitch=1,Q184-(Q184*AddDisc%),E184)*Kurs,0) -> 4.530171429 | H184: 0 | J184: 06796243175H5B00 AD-P R V50 NIHF Держатель телескоп. рычага узкой алюм. рамки Пр. | L184: 0.07377 | M184: 0.073928 | P184: 06796243_ID_P_1_PB_BAU.png | Q184: 3.17112
B185: 05891994 | C185: 175H3100 MPL V500 NI | D185: Планка Clip прямая п.самор. с эксц. под петли и HK-S/HF (20/32) | E185: 0.7006285714 | F185: =IFERROR(IF(PriceSwitch=1,Q185-(Q185*AddDisc%),E185)*Kurs,0) -> 0.7006285714 | H185: 0 | J185: 05891994175H3100 MPL V500 NIПланка Clip прямая п.самор. с эксц. под петли и HK-S/HF (20/32) | L185: 0.01554 | M185: 0.013498 | P185: 40047892_BT_P_1_PB_BAU.png | Q185: 0.49044
B186: 04061248 | C186: 177H3100 DUEPL V500 NI | D186: Планка Clip прямая п.пресс. с эксц. под петли и HK-S/HF (20/32) [o.p.] | E186: 0.8264571429 | F186: =IFERROR(IF(PriceSwitch=1,Q186-(Q186*AddDisc%),E186)*Kurs,0) -> 0.8264571429 | H186: 0 | J186: 04061248177H3100 DUEPL V500 NIПланка Clip прямая п.пресс. с эксц. под петли и HK-S/HF (20/32) [o.p.] | L186: 0.0194 | M186: 0.031492 | P186: 45352874_BT_P_1_PB_BAU.png | Q186: 0.57852
B187: 04787251 | C187: 177H3100E DUEPL V500 NI | D187: Планка Clip прямая EXPANDO-5мм с эксц. под петли и HK-S/HF (20/32) | E187: 0.7923428571 | F187: =IFERROR(IF(PriceSwitch=1,Q187-(Q187*AddDisc%),E187)*Kurs,0) -> 0.7923428571 | H187: 0 | J187: 04787251177H3100E DUEPL V500 NIПланка Clip прямая EXPANDO-5мм с эксц. под петли и HK-S/HF (20/32) | L187: 0.01793 | M187: 0.021078 | P187: 48553690_BT_P_1_PB_BAU.png | Q187: 0.55464
B188: 06796303 | C188: 175H5A00 AD-PL V50 NI | D188: Держатель к узк.ал.рамке, симм. | E188: 4.530171429 | F188: =IFERROR(IF(PriceSwitch=1,Q188-(Q188*AddDisc%),E188)*Kurs,0) -> 4.530171429 | H188: 0 | J188: 06796303175H5A00 AD-PL V50 NIДержатель к узк.ал.рамке, симм. | L188: 0.07317 | M188: 0.073928 | P188: 06796303_ID_P_1_PB_BAU.png | Q188: 3.17112
A189: Доп. информация для HF | F189: =IFERROR(IF(PriceSwitch=1,Q189-(Q189*AddDisc%),E189)*Kurs,0) -> 0 | H189: 0 | J189: Доп. информация для HF
B190: 07160400 | C190: 20F7051 BEGR V100 TGR | D190: HF Ограничитель откр. до 104° | E190: 1.843371429 | F190: =IFERROR(IF(PriceSwitch=1,Q190-(Q190*AddDisc%),E190)*Kurs,0) -> 1.843371429 | H190: 0 | J190: 07160400 20F7051 BEGR V100 TGRHF Ограничитель откр. до 104° | L190: 0.00098 | M190: 0.00527 | P190: 48557919_BT_P_1_PB_BAU.png | Q190: 1.29036
B191: 07285440 | C191: 20F7011 BEGR V100R737 | D191: HF Ограничитель откр. до 83° | E191: 1.843371429 | F191: =IFERROR(IF(PriceSwitch=1,Q191-(Q191*AddDisc%),E191)*Kurs,0) -> 1.843371429 | H191: 0 | J191: 07285440 20F7011 BEGR V100R737HF Ограничитель откр. до 83° | L191: 0.00218 | M191: 0.01779 | P191: 44011055_BT_P_1_PB_BAU.png | Q191: 1.29036
D192: Доп. стоимость компл. узк. алюм. рамки (с 2 петл.) | E192: 16.27097143 | F192: =IFERROR(IF(PriceSwitch=1,Q192-(Q192*AddDisc%),E192)*Kurs,0) -> 16.27097143 | H192: 0 | J192: Доп. стоимость компл. узк. алюм. рамки (с 2 петл.) | Q192: 11.38968
D193: Комплект в цвете белый шёлк + | E193: 1.152 | F193: =IFERROR(IF(PriceSwitch=1,Q193-(Q193*AddDisc%),E193)*Kurs,0) -> 1.152 | H193: 0 | J193: Комплект в цвете белый шёлк + | Q193: 0.8064
D194: Комплект в тёмно-сером цвете + | E194: 1.152 | F194: =IFERROR(IF(PriceSwitch=1,Q194-(Q194*AddDisc%),E194)*Kurs,0) -> 1.152 | H194: 0 | J194: Комплект в тёмно-сером цвете + | Q194: 0.8064
A195: AVENTOS HS | C195: откидной | D195: Выбор AVENTOS HS | F195: =IFERROR(IF(PriceSwitch=1,Q195-(Q195*AddDisc%),E195)*Kurs,0) -> 0 | H195: 0 | J195: AVENTOS HSоткиднойВыбор AVENTOS HS | P195: SB_HS_ICO.png
A196: Комплект AVENTOS HS для деревянных фасадов и широких алюм. рамок | F196: =IFERROR(IF(PriceSwitch=1,Q196-(Q196*AddDisc%),E196)*Kurs,0) -> 0 | H196: 0 | J196: Комплект AVENTOS HS для деревянных фасадов и широких алюм. рамок
A197: HS1G | B197: 03625386 | C197: 20S1A00 *HS1G MHG/T | D197: Комплект HS мех. A - дер. фасады, светло-сер. | E197: 144.6756 | F197: =IFERROR(IF(PriceSwitch=1,Q197-(Q197*AddDisc%),E197)*Kurs,0) -> 144.6756 | H197: 0 | J197: HS1G0362538620S1A00 *HS1G MHG/TКомплект HS мех. A - дер. фасады, светло-сер. | L197: 3.3719 | M197: 9.4795 | P197: SB_HS.png | Q197: 101.27292
A198: HS1W | B198: 05002089 | C198: 20S1A00 *HS1W MSEIW | D198: Комплект HS мех. A - дер. фасады, бел.ш. | E198: 145.8276 | F198: =IFERROR(IF(PriceSwitch=1,Q198-(Q198*AddDisc%),E198)*Kurs,0) -> 145.8276 | H198: =F198*G198 -> 0 | J198: HS1W0500208920S1A00 *HS1W MSEIWКомплект HS мех. A - дер. фасады, бел.ш. | L198: 3.3898 | M198: 9.4795 | P198: SB_HS.png | Q198: 102.07932
A199: HS2G | B199: 05699228 | C199: 20S1B00 *HS2G MHG/T | D199: Комплект HS мех. B - дер. фасады, светло-сер. | E199: 144.6756 | F199: =IFERROR(IF(PriceSwitch=1,Q199-(Q199*AddDisc%),E199)*Kurs,0) -> 144.6756 | H199: 0 | J199: HS2G0569922820S1B00 *HS2G MHG/TКомплект HS мех. B - дер. фасады, светло-сер. | L199: 3.2695 | M199: 9.4795 | P199: SB_HS.png | Q199: 101.27292
A200: HS2W | B200: 09368882 | C200: 20S1B00 *HS2W MSEIW | D200: Комплект HS мех. B - дер. фасады, бел.ш. | E200: 145.8276 | F200: =IFERROR(IF(PriceSwitch=1,Q200-(Q200*AddDisc%),E200)*Kurs,0) -> 145.8276 | H200: 0 | J200: HS2W0936888220S1B00 *HS2W MSEIWКомплект HS мех. B - дер. фасады, бел.ш. | L200: 3.2874 | M200: 9.4795 | P200: SB_HS.png | Q200: 102.07932
... 2658 more rows

Sheet Артикулы
A1: Фильтр | C1: ="Курс Евро: " & IF(TEXT(Параметры!C2,"Основной")="Основной",TEXT(Параметры!C2, "#,0000"),TEXT(Параметры!C2, "Основной")) -> Курс Евро: 1 | D1: =IF(Параметры!C3>0,"Скидка: " & TEXT(Параметры!C3, "Основной") & "%","") ->  | F1: =Параметры!$C$2 -> 1 | L1: =IF(SUMPRODUCT(G5:G3133*(L5:L3133=0))>0,"* Неполные данные!","") ->  | M1: =IF(SUMPRODUCT(G5:G3133*(M5:M3133=0))>0,"* Неполные данные!","") ->  | P1: Формула в колонке F:
A2: не удалять! | F2: =1-(Параметры!$C$3/100) -> 1 | L2: =SUMPRODUCT(G5:G3133,L5:L3133) -> 0 | M2: =SUMPRODUCT(G5:G3133,M5:M3133) -> 0
G3: =SUMIF(G5:G3133,">=1",G5:G3133) & " шт." -> 0 шт. | H3: Сумма: | I3: В кор. | L3: Вес | M3: Объём | N3: Код EAN
A4: Фильтр | B4: Ид. № | C4: Артикул | D4: Описание | E4: Исходн. | F4: =Прайс!F3 -> Евро | G4: =COUNTIF(G5:G3133,">=1") & " поз." -> 0 поз. | H4: =SUM(H5:H3133) -> 0 | J4: Объед. | L4: =IF(L2>=1,"~ "&ROUND(L2,2)&" кг","~ "&ROUND(L2*1000,0)&" гр") -> ~ 0 гр | M4: =IF(M2>=100,"~ "&ROUND(M2/1000,2)&" м³","~ "&ROUND(M2,2)&" дм³") -> ~ 0 дм³ | P4: Фото
B5: 08931762 | C5: 20F2201.05KRAFTSP 20 ZN | D5: HF Силовой механизм 22 Коэфф. мощн. 2600-5500 | E5: 31.87714286 | F5: =IF(PriceSwitch=1,Q5-(Q5*AddDisc%),E5)*Kurs -> 31.87714286 | H5: =F5*G5 -> 0 | I5: 20 | J5: 08931762 20F2201.05KRAFTSP 20 ZNHF Силовой механизм 22 Коэфф. мощн. 2600-5500 | L5: 0.78956 | M5: 1.6819 | N5: 9002617772050 | P5: 49269752_BT_P_1_PB_BAU.png | Q5: 22.314
B6: 08931832 | C6: 20F2501.05KRAFTSP 20 ZN | D6: HF Силовой механизм 25 Коэфф. мощн. 5350-10150 | E6: 34.56565714 | F6: =IF(PriceSwitch=1,Q6-(Q6*AddDisc%),E6)*Kurs -> 34.56565714 | H6: =F6*G6 -> 0 | I6: 20 | J6: 08931832 20F2501.05KRAFTSP 20 ZNHF Силовой механизм 25 Коэфф. мощн. 5350-10150 | L6: 0.84342 | M6: 1.6819 | N6: 9002617772067 | P6: 41065815_BT_P_1_PB_BAU.png | Q6: 24.19596
B7: 08931902 | C7: 20F2801.05KRAFTSP 20 ZN | D7: HF Силовой механизм 28 Коэфф. мощн. 9000-17250 | E7: 38.40617143 | F7: =IF(PriceSwitch=1,Q7-(Q7*AddDisc%),E7)*Kurs -> 38.40617143 | H7: 0 | I7: 20 | J7: 08931902 20F2801.05KRAFTSP 20 ZNHF Силовой механизм 28 Коэфф. мощн. 9000-17250 | L7: 0.96562 | M7: 1.6819 | N7: 9002617772074 | P7: 42064624_BT_P_1_PB_BAU.png | Q7: 26.88432
B8: 07588308 | C8: 20F3201.01TE-HEB V40 NI | D8: HF Рычаг телескопич. 32 выс.к. 480-570мм | E8: 15.36222857 | F8: =IF(PriceSwitch=1,Q8-(Q8*AddDisc%),E8)*Kurs -> 15.36222857 | H8: 0 | I8: 40 | J8: 07588308 20F3201.01TE-HEB V40 NIHF Рычаг телескопич. 32 выс.к. 480-570мм | L8: 0.20488 | M8: 0.468825 | N8: 9009494013597 | P8: 48210274_BT_P_1_PB_BAU.png | Q8: 10.75356
B9: 02034079 | C9: 20F3501.01TE-HEB V40 NI | D9: HF Рычаг телескопич. 35 выс.к. 560-710мм | E9: 17.28291429 | F9: =IF(PriceSwitch=1,Q9-(Q9*AddDisc%),E9)*Kurs -> 17.28291429 | H9: 0 | I9: 40 | J9: 02034079 20F3501.01TE-HEB V40 NIHF Рычаг телескопич. 35 выс.к. 560-710мм | L9: 0.23248 | M9: 0.468825 | N9: 9009494013603 | P9: 43071803_BT_P_1_PB_BAU.png | Q9: 12.09804
B10: 07360602 | C10: 20F3801.01TE-HEB V40 NI | D10: HF Рычаг телескопич. 38 выс.к. 700-900мм | E10: 21.12377143 | F10: =IF(PriceSwitch=1,Q10-(Q10*AddDisc%),E10)*Kurs -> 21.12377143 | H10: 0 | I10: 40 | J10: 07360602 20F3801.01TE-HEB V40 NIHF Рычаг телескопич. 38 выс.к. 700-900мм | L10: 0.27439 | M10: 0.4727 | N10: 9009494014679 | P10: 44569277_BT_P_1_PB_BAU.png | Q10: 14.78664
B11: 09184068 | C11: 20F3901.01TE-HEB V40 NI | D11: HF Рычаг телескопич. 39 выс.к. 760-1040мм | E11: 24.00428571 | F11: =IF(PriceSwitch=1,Q11-(Q11*AddDisc%),E11)*Kurs -> 24.00428571 | H11: 0 | I11: 40 | J11: 09184068 20F3901.01TE-HEB V40 NIHF Рычаг телескопич. 39 выс.к. 760-1040мм | L11: 0.30158 | M11: 0.695175 | N11: 9009494014686 | P11: 46220509_BT_P_1_PB_BAU.png | Q11: 16.803
B12: 07285440 | C12: 20F7011 BEGR V100R737 | D12: HF Ограничитель откр. до 83° | E12: 1.843371429 | F12: =IF(PriceSwitch=1,Q12-(Q12*AddDisc%),E12)*Kurs -> 1.843371429 | H12: 0 | I12: 100 | J12: 07285440 20F7011 BEGR V100R737HF Ограничитель откр. до 83° | L12: 0.00218 | M12: 0.01779 | N12: 9002617666786 | P12: 44011055_BT_P_1_PB_BAU.png | Q12: 1.29036
B13: 07160400 | C13: 20F7051 BEGR V100 TGR | D13: HF Ограничитель откр. до 104° | E13: 1.843371429 | F13: =IF(PriceSwitch=1,Q13-(Q13*AddDisc%),E13)*Kurs -> 1.843371429 | H13: 0 | I13: 100 | J13: 07160400 20F7051 BEGR V100 TGRHF Ограничитель откр. до 104° | L13: 0.00098 | M13: 0.00527 | N13: 9002617660296 | P13: 48557919_BT_P_1_PB_BAU.png | Q13: 1.29036
B14: 08817393 | C14: 20F8000 ABD R+L V1NI-L | D14: HF Заглушка основн. никел. Л+П + 2х заглушка круглая симм. | E14: 28.60662857 | F14: =IF(PriceSwitch=1,Q14-(Q14*AddDisc%),E14)*Kurs -> 28.60662857 | H14: 0 | I14: 1 | J14: 08817393 20F8000 ABD R+L V1NI-LHF Заглушка основн. никел. Л+П + 2х заглушка круглая симм. | L14: 0.24564 | M14: 2.795 | N14: 9002617800821 | P14: K_20F8000NI_P_1_PB_BAU.png | Q14: 20.02464
B15: 06844408 | C15: 20F8001 ABD L V20 HGR | D15: HF Заглушка основн. светло-сер. Ле. | E15: 2.457942857 | F15: =IF(PriceSwitch=1,Q15-(Q15*AddDisc%),E15)*Kurs -> 2.457942857 | H15: 0 | I15: 20 | J15: 06844408 20F8001 ABD L V20 HGRHF Заглушка основн. светло-сер. Ле. | L15: 0.09155 | M15: 0.7829 | N15: 9002617647402 | P15: 43265404_BT_P_1_PB_BAU.png | Q15: 1.72056
B16: 09585528 | C16: 20F8001 ABD L V20 TGR | D16: HF Заглушка основн. тёмно-сер. Ле. | E16: 3.033942857 | F16: =IF(PriceSwitch=1,Q16-(Q16*AddDisc%),E16)*Kurs -> 3.033942857 | H16: 0 | I16: 20 | J16: 09585528 20F8001 ABD L V20 TGRHF Заглушка основн. тёмно-сер. Ле. | L16: 0.09477 | M16: 0.7829 | N16: 9009494063547 | P16: 43183515_BT_P_1_PB_BAU.png | Q16: 2.12376
B17: 07731769 | C17: 20F8001 ABD L V20HB-M | D17: HF Заглушка основн. гавана-кор. Ле. | E17: 2.683885714 | F17: =IF(PriceSwitch=1,Q17-(Q17*AddDisc%),E17)*Kurs -> 2.683885714 | H17: 0 | I17: 20 | J17: 07731769 20F8001 ABD L V20HB-MHF Заглушка основн. гавана-кор. Ле. | L17: 0.09327 | M17: 0.7829 | N17: 9009494268799 | P17: K_20F8001NILI_P_1_PB_BAU.png | Q17: 1.87872
B18: 06844402 | C18: 20F8001 ABD L V20SEIW | D18: HF Заглушка основн. бел.шёлк Ле. | E18: 3.033942857 | F18: =IF(PriceSwitch=1,Q18-(Q18*AddDisc%),E18)*Kurs -> 3.033942857 | H18: 0 | I18: 20 | J18: 06844402 20F8001 ABD L V20SEIWHF Заглушка основн. бел.шёлк Ле. | L18: 0.09547 | M18: 0.7829 | N18: 9002617702682 | P18: 44443874_BT_P_1_PB_BAU.png | Q18: 2.12376
B19: 06844238 | C19: 20F8001 ABD R V20 HGR | D19: HF Заглушка основн. светло-сер. Пр. | E19: 2.457942857 | F19: =IF(PriceSwitch=1,Q19-(Q19*AddDisc%),E19)*Kurs -> 2.457942857 | H19: 0 | I19: 20 | J19: 06844238 20F8001 ABD R V20 HGRHF Заглушка основн. светло-сер. Пр. | L19: 0.09135 | M19: 0.7829 | N19: 9002617647396 | P19: 45450198_BT_P_1_PB_BAU.png | Q19: 1.72056
B20: 04562357 | C20: 20F8001 ABD R V20 TGR | D20: HF Заглушка основн. тёмно-сер. Пр. | E20: 3.033942857 | F20: =IF(PriceSwitch=1,Q20-(Q20*AddDisc%),E20)*Kurs -> 3.033942857 | H20: 0 | I20: 20 | J20: 04562357 20F8001 ABD R V20 TGRHF Заглушка основн. тёмно-сер. Пр. | L20: 0.09477 | M20: 0.7829 | N20: 9009494063554 | P20: 41086098_BT_P_1_PB_BAU.png | Q20: 2.12376
B21: 07822272 | C21: 20F8001 ABD R V20HB-M | D21: HF Заглушка основн. гавана-кор. Пр. | E21: 2.683885714 | F21: =IF(PriceSwitch=1,Q21-(Q21*AddDisc%),E21)*Kurs -> 2.683885714 | H21: 0 | I21: 20 | J21: 07822272 20F8001 ABD R V20HB-MHF Заглушка основн. гавана-кор. Пр. | L21: 0.09327 | M21: 0.7829 | N21: 9009494269406 | P21: K_20F8001NIRE_P_1_PB_BAU.png | Q21: 1.87872
B22: 06844232 | C22: 20F8001 ABD R V20SEIW | D22: HF Заглушка основн. бел.шёлк Пр. | E22: 3.033942857 | F22: =IF(PriceSwitch=1,Q22-(Q22*AddDisc%),E22)*Kurs -> 3.033942857 | H22: 0 | I22: 20 | J22: 06844232 20F8001 ABD R V20SEIWHF Заглушка основн. бел.шёлк Пр. | L22: 0.09547 | M22: 0.7829 | N22: 9002617702675 | P22: 46572587_BT_P_1_PB_BAU.png | Q22: 2.12376
B23: 04420654 | C23: 20F8021.22ABD L+ZT20HGIG | D23: HF Новая заглушка основн.: светло-сер., мал.: нерж. Ле. | E23: 3.766628571 | F23: =IF(PriceSwitch=1,Q23-(Q23*AddDisc%),E23)*Kurs -> 3.766628571 | H23: 0 | I23: 20 | J23: 04420654 20F8021.22ABD L+ZT20HGIGHF Новая заглушка основн.: светло-сер., мал.: нерж. Ле. | L23: 0.10092 | M23: 0.7829 | Q23: 2.63664
B24: 05423582 | C24: 20F8021.22ABD L+ZT20SWIG | D24: HF Новая заглушка основн.: бел.шёлк, мал.: нерж. Ле. | E24: 4.342628571 | F24: =IF(PriceSwitch=1,Q24-(Q24*AddDisc%),E24)*Kurs -> 4.342628571 | H24: 0 | I24: 20 | J24: 05423582 20F8021.22ABD L+ZT20SWIGHF Новая заглушка основн.: бел.шёлк, мал.: нерж. Ле. | L24: 0.10632 | M24: 0.7829 | Q24: 3.03984
B25: 08274026 | C25: 20F8021.22ABD L+ZT20TGIG | D25: HF Новая заглушка основн.: тёмно-сер., мал.: нерж. Ле. | E25: 4.342628571 | F25: =IF(PriceSwitch=1,Q25-(Q25*AddDisc%),E25)*Kurs -> 4.342628571 | H25: 0 | I25: 20 | J25: 08274026 20F8021.22ABD L+ZT20TGIGHF Новая заглушка основн.: тёмно-сер., мал.: нерж. Ле. | L25: 0.10092 | M25: 0.7829 | Q25: 3.03984
B26: 01234949 | C26: 20F8021.22ABD R+ZT20HGIG | D26: HF Новая заглушка основн.: светло-сер., мал.: нерж. Пр. | E26: 3.766628571 | F26: =IF(PriceSwitch=1,Q26-(Q26*AddDisc%),E26)*Kurs -> 3.766628571 | H26: 0 | I26: 20 | J26: 01234949 20F8021.22ABD R+ZT20HGIGHF Новая заглушка основн.: светло-сер., мал.: нерж. Пр. | L26: 0.10257 | M26: 0.7829 | Q26: 2.63664
B27: 05725573 | C27: 20F8021.22ABD R+ZT20SWIG | D27: HF Новая заглушка основн.: бел.шёлк, мал.: нерж. Пр. | E27: 4.342628571 | F27: =IF(PriceSwitch=1,Q27-(Q27*AddDisc%),E27)*Kurs -> 4.342628571 | H27: 0 | I27: 20 | J27: 05725573 20F8021.22ABD R+ZT20SWIGHF Новая заглушка основн.: бел.шёлк, мал.: нерж. Пр. | L27: 0.10807 | M27: 0.7829 | Q27: 3.03984
B28: 07712253 | C28: 20F8021.22ABD R+ZT20TGIG | D28: HF Новая заглушка основн.: тёмно-сер., мал.: нерж. Пр. | E28: 4.342628571 | F28: =IF(PriceSwitch=1,Q28-(Q28*AddDisc%),E28)*Kurs -> 4.342628571 | H28: 0 | I28: 20 | J28: 07712253 20F8021.22ABD R+ZT20TGIGHF Новая заглушка основн.: тёмно-сер., мал.: нерж. Пр. | L28: 0.10257 | M28: 0.7829 | Q28: 3.03984
B29: 06797560 | C29: 20F9001 ABD V500 TGR | D29: HF/HS/HL Заглушка кругл. симм. тёмно-сер. | E29: 0.3073714286 | F29: =IF(PriceSwitch=1,Q29-(Q29*AddDisc%),E29)*Kurs -> 0.3073714286 | H29: 0 | I29: 500 | J29: 06797560 20F9001 ABD V500 TGRHF/HS/HL Заглушка кругл. симм. тёмно-сер. | L29: 0.00569 | M29: 0.031028 | N29: 9002617642674 | P29: K_20F9001_P_1_PB_BAU.png | Q29: 0.21516
B30: 07105563 | C30: 20F9001 ABD V500HB-M | D30: HF/HS/HL Заглушка кругл. симм. гавана-кор. | E30: 0.3154285714 | F30: =IF(PriceSwitch=1,Q30-(Q30*AddDisc%),E30)*Kurs -> 0.3154285714 | H30: 0 | I30: 500 | J30: 07105563 20F9001 ABD V500HB-MHF/HS/HL Заглушка кругл. симм. гавана-кор. | L30: 0.00595 | M30: 0.031028 | N30: 9009494269413 | P30: K_20F9001_P_1_PB_BAU.png | Q30: 0.2208
B31: 06797562 | C31: 20F9001 ABD V500SEIW | D31: HF/HS/HL Заглушка кругл. симм. бел.шёлк | E31: 0.3516 | F31: =IF(PriceSwitch=1,Q31-(Q31*AddDisc%),E31)*Kurs -> 0.3516 | H31: 0 | I31: 500 | J31: 06797562 20F9001 ABD V500SEIWHF/HS/HL Заглушка кругл. симм. бел.шёлк | L31: 0.00599 | M31: 0.031028 | N31: 9002617702712 | P31: K_20F9001SEIW_P_1_PB_BAU.png | Q31: 0.24612
B32: 07272890 | C32: 20F9001.BLABD V500 TGR | D32: HF/HS/HL Заглушка кругл. симм. тёмно-сер. с лого "Blum" | E32: 0.3073714286 | F32: =IF(PriceSwitch=1,Q32-(Q32*AddDisc%),E32)*Kurs -> 0.3073714286 | H32: 0 | I32: 500 | J32: 07272890 20F9001.BLABD V500 TGRHF/HS/HL Заглушка кругл. симм. тёмно-сер. с лого "Blum" | L32: 0.00569 | M32: 0.031028 | N32: 9002617665215 | P32: K_20F9001_P_1_PB_BAU.png | Q32: 0.21516
B33: 05065724 | C33: 20F9001.BLABD V500SEIW | D33: HF/HS/HL Заглушка кругл. симм. бел.шёлк с лого "Blum" | E33: 0.4263428571 | F33: =IF(PriceSwitch=1,Q33-(Q33*AddDisc%),E33)*Kurs -> 0.4263428571 | H33: 0 | I33: 500 | J33: 05065724 20F9001.BLABD V500SEIWHF/HS/HL Заглушка кругл. симм. бел.шёлк с лого "Blum" | L33: 0.00599 | M33: 0.031028 | N33: 9009494065565 | P33: K_20F9001SEIW_P_1_PB_BAU.png | Q33: 0.29844
B34: 08572348 | C34: 20K1101 KRAFTSP 40 NI | D34: HK-XS Силовой механизм Коэфф. мощн. 200-1000 | E34: 13.66337143 | F34: =IF(PriceSwitch=1,Q34-(Q34*AddDisc%),E34)*Kurs -> 13.66337143 | H34: 0 | I34: 40 | J34: 08572348 20K1101 KRAFTSP 40 NIHK-XS Силовой механизм Коэфф. мощн. 200-1000 | L34: 0.27781 | M34: 0.84095 | N34: 9009494068917 | P34: 46544733_BT_P_1_PB_BAU.png | Q34: 9.56436
B35: 04857465 | C35: 20K1101T KRAFTSP 40 NI | D35: HK-XS TIP-ON Силовой механизм Коэфф. мощн. 180-800 | E35: 14.70102857 | F35: =IF(PriceSwitch=1,Q35-(Q35*AddDisc%),E35)*Kurs -> 14.70102857 | H35: 0 | I35: 40 | J35: 04857465 20K1101T KRAFTSP 40 NIHK-XS TIP-ON Силовой механизм Коэфф. мощн. 180-800 | L35: 0.27681 | M35: 0.84095 | N35: 9009494069143 | P35: 49480533_BT_P_1_PB_BAU.png | Q35: 10.29072
B36: 09330897 | C36: 20K1301 KRAFTSP 40 NI | D36: HK-XS Силовой механизм Коэфф. мощн. 500-1500 | E36: 13.66337143 | F36: =IF(PriceSwitch=1,Q36-(Q36*AddDisc%),E36)*Kurs -> 13.66337143 | H36: 0 | I36: 40 | J36: 09330897 20K1301 KRAFTSP 40 NIHK-XS Силовой механизм Коэфф. мощн. 500-1500 | L36: 0.27781 | M36: 0.84095 | N36: 9009494068108 | P36: 40231167_BT_P_1_PB_BAU.png | Q36: 9.56436
B37: 09519259 | C37: 20K1301T KRAFTSP 40 NI | D37: HK-XS TIP-ON Силовой механизм Коэфф. мощн. 500-1200 | E37: 14.70102857 | F37: =IF(PriceSwitch=1,Q37-(Q37*AddDisc%),E37)*Kurs -> 14.70102857 | H37: 0 | I37: 40 | J37: 09519259 20K1301T KRAFTSP 40 NIHK-XS TIP-ON Силовой механизм Коэфф. мощн. 500-1200 | L37: 0.27863 | M37: 0.84095 | N37: 9009494069174 | P37: 40383514_BT_P_1_PB_BAU.png | Q37: 10.29072
B38: 01615152 | C38: 20K1501 KRAFTSP 40 NI | D38: HK-XS Силовой механизм Коэфф. мощн. 800-1800 | E38: 13.66337143 | F38: =IF(PriceSwitch=1,Q38-(Q38*AddDisc%),E38)*Kurs -> 13.66337143 | H38: 0 | I38: 40 | J38: 01615152 20K1501 KRAFTSP 40 NIHK-XS Силовой механизм Коэфф. мощн. 800-1800 | L38: 0.27899 | M38: 0.84095 | N38: 9009494068122 | P38: 45562136_BT_P_1_PB_BAU.png | Q38: 9.56436
B39: 08041284 | C39: 20K1501T KRAFTSP 40 NI | D39: HK-XS TIP-ON Силовой механизм Коэфф. мощн. 800-1600 | E39: 14.70102857 | F39: =IF(PriceSwitch=1,Q39-(Q39*AddDisc%),E39)*Kurs -> 14.70102857 | H39: 0 | I39: 40 | J39: 08041284 20K1501T KRAFTSP 40 NIHK-XS TIP-ON Силовой механизм Коэфф. мощн. 800-1600 | L39: 0.27781 | M39: 0.84095 | N39: 9009494069181 | P39: 43515862_BT_P_1_PB_BAU.png | Q39: 10.29072
B40: 09390032 | C40: 20K2301.05KRAFTSP 20 ZN | D40: HK Силовой механизм 23 Коэфф. мощн. 480-1500 | E40: 26.54588571 | F40: =IF(PriceSwitch=1,Q40-(Q40*AddDisc%),E40)*Kurs -> 26.54588571 | H40: 0 | I40: 20 | J40: 09390032 20K2301.05KRAFTSP 20 ZNHK Силовой механизм 23 Коэфф. мощн. 480-1500 | L40: 0.89604 | M40: 1.30815 | N40: 9002617798470 | P40: 49176883_BT_P_1_PB_BAU.png | Q40: 18.58212
B41: 09391262 | C41: 20K2301T KRAFTSP 20 ZN | D41: HK TIP-ON Силовой механизм 23 Коэфф. мощн. 480-1500 | E41: 28.98171429 | F41: =IF(PriceSwitch=1,Q41-(Q41*AddDisc%),E41)*Kurs -> 28.98171429 | H41: 0 | I41: 20 | J41: 09391262 20K2301T KRAFTSP 20 ZNHK TIP-ON Силовой механизм 23 Коэфф. мощн. 480-1500 | L41: 0.88787 | M41: 1.30815 | N41: 9002617798500 | P41: 45031193_BT_P_1_PB_BAU.png | Q41: 20.2872
B42: 09390102 | C42: 20K2501.05KRAFTSP 20 ZN | D42: HK Силовой механизм 25 Коэфф. мощн. 750-2500 | E42: 26.54588571 | F42: =IF(PriceSwitch=1,Q42-(Q42*AddDisc%),E42)*Kurs -> 26.54588571 | H42: 0 | I42: 20 | J42: 09390102 20K2501.05KRAFTSP 20 ZNHK Силовой механизм 25 Коэфф. мощн. 750-2500 | L42: 0.89516 | M42: 1.30815 | N42: 9002617798548 | P42: 45495052_BT_P_1_PB_BAU.png | Q42: 18.58212
B43: 09391332 | C43: 20K2501T KRAFTSP 20 ZN | D43: HK TIP-ON Силовой механизм 25 Коэфф. мощн. 750-2500 | E43: 28.98171429 | F43: =IF(PriceSwitch=1,Q43-(Q43*AddDisc%),E43)*Kurs -> 28.98171429 | H43: 0 | I43: 20 | J43: 09391332 20K2501T KRAFTSP 20 ZNHK TIP-ON Силовой механизм 25 Коэфф. мощн. 750-2500 | L43: 0.88697 | M43: 1.30815 | N43: 9002617798647 | P43: 45470640_BT_P_1_PB_BAU.png | Q43: 20.2872
B44: 09390272 | C44: 20K2701.05KRAFTSP 20 ZN | D44: HK Силовой механизм 27 Коэфф. мощн. 1500-4900 | E44: 28.02188571 | F44: =IF(PriceSwitch=1,Q44-(Q44*AddDisc%),E44)*Kurs -> 28.02188571 | H44: 0 | I44: 20 | J44: 09390272 20K2701.05KRAFTSP 20 ZNHK Силовой механизм 27 Коэфф. мощн. 1500-4900 | L44: 0.90691 | M44: 1.30815 | N44: 9002617798555 | P44: 42151700_BT_P_1_PB_BAU.png | Q44: 19.61532
B45: 09391402 | C45: 20K2701T KRAFTSP 20 ZN | D45: HK TIP-ON Силовой механизм 27 Коэфф. мощн. 1500-4900 | E45: 34.76057143 | F45: =IF(PriceSwitch=1,Q45-(Q45*AddDisc%),E45)*Kurs -> 34.76057143 | H45: 0 | I45: 20 | J45: 09391402 20K2701T KRAFTSP 20 ZNHK TIP-ON Силовой механизм 27 Коэфф. мощн. 1500-4900 | L45: 0.93352 | M45: 1.30815 | N45: 9002617798678 | P45: 41241675_BT_P_1_PB_BAU.png | Q45: 24.3324
B46: 09390342 | C46: 20K2901.05KRAFTSP 20 ZN | D46: HK Силовой механизм 29 Коэфф. мощн. 3200-9000 | E46: 44.45074286 | F46: =IF(PriceSwitch=1,Q46-(Q46*AddDisc%),E46)*Kurs -> 44.45074286 | H46: 0 | I46: 20 | J46: 09390342 20K2901.05KRAFTSP 20 ZNHK Силовой механизм 29 Коэфф. мощн. 3200-9000 | L46: 0.97163 | M46: 1.30815 | N46: 9002617798562 | P46: K_20K2XX1_P_1_PB_BAU.png | Q46: 31.11552
B47: 09391572 | C47: 20K2901T KRAFTSP 20 ZN | D47: HK TIP-ON Силовой механизм 29 Коэфф. мощн. 3200-9000 | E47: 51.20691429 | F47: =IF(PriceSwitch=1,Q47-(Q47*AddDisc%),E47)*Kurs -> 51.20691429 | H47: 0 | I47: 20 | J47: 09391572 20K2901T KRAFTSP 20 ZNHK TIP-ON Силовой механизм 29 Коэфф. мощн. 3200-9000 | L47: 0.96146 | M47: 1.30815 | N47: 9002617798685 | P47: K_20K2XX1_P_1_PB_BAU.png | Q47: 35.84484
B48: 04694451 | C48: 20K2A01.02KRAFTSP 40 ZN | D48: HK-S Силовой механизм 'A' без пружины | E48: 11.52188571 | F48: =IF(PriceSwitch=1,Q48-(Q48*AddDisc%),E48)*Kurs -> 11.52188571 | H48: 0 | I48: 40 | J48: 04694451 20K2A01.02KRAFTSP 40 ZNHK-S Силовой механизм 'A' без пружины | L48: 0.36058 | M48: 0.84095 | N48: 9009494015270 | P48: 43394676_BT_P_1_PB_BAU.png | Q48: 8.06532
B49: 01064729 | C49: 20K2C01.02KRAFTSP 40 ZN | D49: HK-S Силовой механизм 'C' (слабая пруж.) | E49: 15.36274286 | F49: =IF(PriceSwitch=1,Q49-(Q49*AddDisc%),E49)*Kurs -> 15.36274286 | H49: 0 | I49: 40 | J49: 01064729 20K2C01.02KRAFTSP 40 ZNHK-S Силовой механизм 'C' (слабая пруж.) | L49: 0.42504 | M49: 0.84095 | N49: 9009494015287 | P49: 48205436_BT_P_1_PB_BAU.png | Q49: 10.75392
B50: 01010789 | C50: 20K2C01T KRAFTSP 40 ZN | D50: HK-S TIP-ON Силовой механизм 'C' (слабая пруж.) | E50: 15.69068571 | F50: =IF(PriceSwitch=1,Q50-(Q50*AddDisc%),E50)*Kurs -> 15.69068571 | H50: 0 | I50: 40 | J50: 01010789 20K2C01T KRAFTSP 40 ZNHK-S TIP-ON Силовой механизм 'C' (слабая пруж.) | L50: 0.41931 | M50: 0.84095 | N50: 9009494018363 | P50: 47129700_BT_P_1_PB_BAU.png | Q50: 10.98348
B51: 07924571 | C51: 20K2E01.02KRAFTSP 40 ZN | D51: HK-S Силовой механизм 'E' (сильная пруж.) | E51: 15.36274286 | F51: =IF(PriceSwitch=1,Q51-(Q51*AddDisc%),E51)*Kurs -> 15.36274286 | H51: 0 | I51: 40 | J51: 07924571 20K2E01.02KRAFTSP 40 ZNHK-S Силовой механизм 'E' (сильная пруж.) | L51: 0.43846 | M51: 0.84095 | N51: 9009494015294 | P51: 40302885_BT_P_1_PB_BAU.png | Q51: 10.75392
B52: 04132122 | C52: 20K2E01T KRAFTSP 40 ZN | D52: HK-S TIP-ON Силовой механизм 'E' (сильная пруж.) | E52: 15.69068571 | F52: =IF(PriceSwitch=1,Q52-(Q52*AddDisc%),E52)*Kurs -> 15.69068571 | H52: 0 | I52: 40 | J52: 04132122 20K2E01T KRAFTSP 40 ZNHK-S TIP-ON Силовой механизм 'E' (сильная пруж.) | L52: 0.43206 | M52: 0.84095 | N52: 9009494018370 | P52: 44041485_BT_P_1_PB_BAU.png | Q52: 10.98348
B53: 08910604 | C53: 20K4101 FRO-B V200 NI | D53: HK-XS Крепление фасада на самор. | E53: 0.588 | F53: =IF(PriceSwitch=1,Q53-(Q53*AddDisc%),E53)*Kurs -> 0.588 | H53: 0 | I53: 200 | J53: 08910604 20K4101 FRO-B V200 NIHK-XS Крепление фасада на самор. | L53: 0.01308 | M53: 0.029865 | N53: 9009494068009 | P53: 44494375_BT_P_1_PB_BAU.png | Q53: 0.4116
B54: 01526104 | C54: 20K4101A FRO-B V20 NI | D54: HK-XS Крепление фасада для узких алюм. рамок | E54: 4.169485714 | F54: =IF(PriceSwitch=1,Q54-(Q54*AddDisc%),E54)*Kurs -> 4.169485714 | H54: 0 | I54: 20 | J54: 01526104 20K4101A FRO-B V20 NIHK-XS Крепление фасада для узких алюм. рамок | L54: 0.06881 | M54: 0.06585 | N54: 9009494083392 | P54: 01526104_ID_P_1_PB_BAU.png | Q54: 2.91864
B55: 05239420 | C55: 20K4131 FRO-B V200 NI | D55: HK-XS Крепление фасада под пресс | E55: 1.193657143 | F55: =IF(PriceSwitch=1,Q55-(Q55*AddDisc%),E55)*Kurs -> 1.193657143 | H55: 0 | I55: 200 | J55: 05239420 20K4131 FRO-B V200 NIHK-XS Крепление фасада под пресс | K55: * | L55: 0.01672 | M55: 0.029865 | N55: 9009494082654 | P55: 48177771_BT_P_1_PB_BAU.png | Q55: 0.83556
B56: 05697170 | C56: 20K41E1 FRO-B V200 NI | D56: HK-XS Крепление фасада EXPANDO | E56: 0.8910857143 | F56: =IF(PriceSwitch=1,Q56-(Q56*AddDisc%),E56)*Kurs -> 0.8910857143 | H56: 0 | I56: 200 | J56: 05697170 20K41E1 FRO-B V200 NIHK-XS Крепление фасада EXPANDO | K56: * | L56: 0.01542 | M56: 0.029865 | N56: 9009494082678 | P56: 41566507_BT_P_1_PB_BAU.png | Q56: 0.62376
B57: 07542129 | C57: 20K4A00A02FR-B R+LV1 NI | D57: HK-S-крепл.фас. к узк.ал.рам. Л+П | E57: 9.937371429 | F57: =IF(PriceSwitch=1,Q57-(Q57*AddDisc%),E57)*Kurs -> 9.937371429 | H57: 0 | I57: 1 | J57: 07542129 20K4A00A02FR-B R+LV1 NIHK-S-крепл.фас. к узк.ал.рам. Л+П | L57: 0.14549 | M57: 0.29865 | N57: 9009494056068 | P57: 07542129_ID_P_1_PB_BAU.png | Q57: 6.95616
B58: 01409446 | C58: 20K5101 KOR-B V200 NI | D58: HK-XS Крепление корпуса на самор. | E58: 0.8646857143 | F58: =IF(PriceSwitch=1,Q58-(Q58*AddDisc%),E58)*Kurs -> 0.8646857143 | H58: 0 | I58: 200 | J58: 01409446 20K5101 KOR-B V200 NIHK-XS Крепление корпуса на самор. | L58: 0.01883 | M58: 0.04406 | N58: 9009494068283 | P58: 40226396_BT_P_1_PB_BAU.png | Q58: 0.60528
B59: 05679109 | C59: 20K5131 KOR-B V200 NI | D59: HK-XS Крепление корпуса под пресс | E59: 1.470514286 | F59: =IF(PriceSwitch=1,Q59-(Q59*AddDisc%),E59)*Kurs -> 1.470514286 | H59: 0 | I59: 200 | J59: 05679109 20K5131 KOR-B V200 NIHK-XS Крепление корпуса под пресс | K59: * | L59: 0.02187 | M59: 0.04406 | N59: 9009494082708 | P59: 43074277_BT_P_1_PB_BAU.png | Q59: 1.02936
B60: 05296642 | C60: 20K51E1 KOR-B V200 NI | D60: HK-XS Крепление корпуса EXPANDO | E60: 1.167771429 | F60: =IF(PriceSwitch=1,Q60-(Q60*AddDisc%),E60)*Kurs -> 1.167771429 | H60: 0 | I60: 200 | J60: 05296642 20K51E1 KOR-B V200 NIHK-XS Крепление корпуса EXPANDO | K60: * | L60: 0.0211 | M60: 0.04406 | N60: 9009494082722 | P60: 40281858_BT_P_1_PB_BAU.png | Q60: 0.81744
B61: 07831970 | C61: 20K7011 BEGR V100R737 | D61: HK Ограничитель откр. до 75° | E61: 0.8067428571 | F61: =IF(PriceSwitch=1,Q61-(Q61*AddDisc%),E61)*Kurs -> 0.8067428571 | H61: 0 | I61: 100 | J61: 07831970 20K7011 BEGR V100R737HK Ограничитель откр. до 75° | L61: 0.00359 | M61: 0.01779 | N61: 9002617702491 | P61: 45244111_BT_P_1_PB_BAU.png | Q61: 0.56472
B62: 07832190 | C62: 20K7041 BEGR V100 TGR | D62: HK Ограничитель откр. до 100° | E62: 0.8067428571 | F62: =IF(PriceSwitch=1,Q62-(Q62*AddDisc%),E62)*Kurs -> 0.8067428571 | H62: 0 | I62: 100 | J62: 07832190 20K7041 BEGR V100 TGRHK Ограничитель откр. до 100° | L62: 0.00249 | M62: 0.00901 | N62: 9002617702514 | P62: 43449598_BT_P_1_PB_BAU.png | Q62: 0.56472
B63: 08671840 | C63: 20K7A11 BEGR V100R737 | D63: HK-S Ограничитель откр. до 75° | E63: 0.8067428571 | F63: =IF(PriceSwitch=1,Q63-(Q63*AddDisc%),E63)*Kurs -> 0.8067428571 | H63: 0 | I63: 100 | J63: 08671840 20K7A11 BEGR V100R737HK-S Ограничитель откр. до 75° | L63: 0.00181 | M63: 0.00901 | N63: 9002617752489 | P63: 41118320_BT_P_1_PB_BAU.png | Q63: 0.56472
B64: 08671910 | C64: 20K7A41 BEGR V100 TGR | D64: HK-S Ограничитель откр. до 100° | E64: 0.8067428571 | F64: =IF(PriceSwitch=1,Q64-(Q64*AddDisc%),E64)*Kurs -> 0.8067428571 | H64: 0 | I64: 100 | J64: 08671910 20K7A41 BEGR V100 TGRHK-S Ограничитель откр. до 100° | L64: 0.00155 | M64: 0.00901 | N64: 9002617752502 | P64: 43460962_BT_P_1_PB_BAU.png | Q64: 0.56472
B65: 09383588 | C65: 20K8001.02ABD L V20 HGR | D65: HK Заглушка основн. светло-сер. Ле. | E65: 2.471485714 | F65: =IF(PriceSwitch=1,Q65-(Q65*AddDisc%),E65)*Kurs -> 2.471485714 | H65: 0 | I65: 20 | J65: 09383588 20K8001.02ABD L V20 HGRHK Заглушка основн. светло-сер. Ле. | L65: 0.08248 | M65: 0.9403 | N65: 9002617799293 | P65: 43205093_BT_P_1_PB_BAU.png | Q65: 1.73004
B66: 02434552 | C66: 20K8001.02ABD L V20 TGR | D66: HK Заглушка основн. тёмно-сер. Ле. | E66: 3.004971429 | F66: =IF(PriceSwitch=1,Q66-(Q66*AddDisc%),E66)*Kurs -> 3.004971429 | H66: 0 | I66: 20 | J66: 02434552 20K8001.02ABD L V20 TGRHK Заглушка основн. тёмно-сер. Ле. | L66: 0.08941 | M66: 0.9403 | N66: 9002617856590 | P66: 41534579_BT_P_1_PB_BAU.png | Q66: 2.10348
B67: 08260220 | C67: 20K8001.02ABD L V20HB-M | D67: HK Заглушка основн. гавана-кор. Ле. | E67: 3.004971429 | F67: =IF(PriceSwitch=1,Q67-(Q67*AddDisc%),E67)*Kurs -> 3.004971429 | H67: 0 | I67: 20 | J67: 08260220 20K8001.02ABD L V20HB-MHK Заглушка основн. гавана-кор. Ле. | L67: 0.08845 | M67: 0.9403 | N67: 9009494226096 | P67: K_20K8001HGRLI_P_1_PB_BAU.png | Q67: 2.10348
B68: 09383582 | C68: 20K8001.02ABD L V20SEIW | D68: HK Заглушка основн. бел.шёлк Ле. | E68: 3.004971429 | F68: =IF(PriceSwitch=1,Q68-(Q68*AddDisc%),E68)*Kurs -> 3.004971429 | H68: 0 | I68: 20 | J68: 09383582 20K8001.02ABD L V20SEIWHK Заглушка основн. бел.шёлк Ле. | L68: 0.08868 | M68: 0.9403 | N68: 9002617799392 | P68: 42548373_BT_P_1_PB_BAU.png | Q68: 2.10348
B69: 09383658 | C69: 20K8001.02ABD R V20 HGR | D69: HK Заглушка основн. светло-сер. Пр. | E69: 2.471485714 | F69: =IF(PriceSwitch=1,Q69-(Q69*AddDisc%),E69)*Kurs -> 2.471485714 | H69: 0 | I69: 20 | J69: 09383658 20K8001.02ABD R V20 HGRHK Заглушка основн. светло-сер. Пр. | L69: 0.08248 | M69: 0.9403 | N69: 9002617799309 | P69: 41303528_BT_P_1_PB_BAU.png | Q69: 1.73004
B70: 07873085 | C70: 20K8001.02ABD R V20 TGR | D70: HK Заглушка основн. тёмно-сер. Пр. | E70: 3.004971429 | F70: =IF(PriceSwitch=1,Q70-(Q70*AddDisc%),E70)*Kurs -> 3.004971429 | H70: =F70*G70 -> 0 | I70: 20 | J70: 07873085 20K8001.02ABD R V20 TGRHK Заглушка основн. тёмно-сер. Пр. | K70: * | L70: 0.09105 | M70: 0.9403 | N70: 9002617856606 | P70: 40085838_BT_P_1_PB_BAU.png | Q70: 2.10348
B71: 01423054 | C71: 20K8001.02ABD R V20HB-M | D71: HK Заглушка основн. гавана-кор. Пр. | E71: 3.004971429 | F71: =IF(PriceSwitch=1,Q71-(Q71*AddDisc%),E71)*Kurs -> 3.004971429 | H71: 0 | I71: 20 | J71: 01423054 20K8001.02ABD R V20HB-MHK Заглушка основн. гавана-кор. Пр. | L71: 0.08845 | M71: 0.9403 | N71: 9009494226300 | P71: K_20K8001NIRE_P_1_PB_BAU.png | Q71: 2.10348
B72: 09383652 | C72: 20K8001.02ABD R V20SEIW | D72: HK Заглушка основн. бел.шёлк Пр. | E72: 3.004971429 | F72: =IF(PriceSwitch=1,Q72-(Q72*AddDisc%),E72)*Kurs -> 3.004971429 | H72: 0 | I72: 20 | J72: 09383652 20K8001.02ABD R V20SEIWHK Заглушка основн. бел.шёлк Пр. | L72: 0.08938 | M72: 0.9403 | N72: 9002617799408 | P72: 43374966_BT_P_1_PB_BAU.png | Q72: 2.10348
B73: 01868381 | C73: 20K8A21 ABD L V40 HGR | D73: HK-S Заглушка основн. светло-сер. Ле. | E73: 2.112342857 | F73: =IF(PriceSwitch=1,Q73-(Q73*AddDisc%),E73)*Kurs -> 2.112342857 | H73: 0 | I73: 40 | J73: 01868381 20K8A21 ABD L V40 HGRHK-S Заглушка основн. светло-сер. Ле. | L73: 0.06642 | M73: 0.654075 | N73: 9009494327045 | P73: 49483187_BT_P_1_PB_BAU.png | Q73: 1.47864
B74: 07471737 | C74: 20K8A21 ABD L V40 TGR | D74: HK-S Заглушка основн. тёмно-сер. Ле. | E74: 2.688514286 | F74: =IF(PriceSwitch=1,Q74-(Q74*AddDisc%),E74)*Kurs -> 2.688514286 | H74: 0 | I74: 40 | J74: 07471737 20K8A21 ABD L V40 TGRHK-S Заглушка основн. тёмно-сер. Ле. | L74: 0.0684 | M74: 0.654075 | N74: 9009494327083 | P74: 40115854_BT_P_1_PB_BAU.png | Q74: 1.88196
B75: 02102754 | C75: 20K8A21 ABD L V40SEIW | D75: HK-S Заглушка основн. бел.шёлк Ле. | E75: 2.688514286 | F75: =IF(PriceSwitch=1,Q75-(Q75*AddDisc%),E75)*Kurs -> 2.688514286 | H75: 0 | I75: 40 | J75: 02102754 20K8A21 ABD L V40SEIWHK-S Заглушка основн. бел.шёлк Ле. | L75: 0.07282 | M75: 0.654075 | N75: 9009494327069 | P75: 40240077_BT_P_1_PB_BAU.png | Q75: 1.88196
B76: 03654010 | C76: 20K8A21 ABD R V40 HGR | D76: HK-S Заглушка основн. светло-сер. Пр. | E76: 2.112342857 | F76: =IF(PriceSwitch=1,Q76-(Q76*AddDisc%),E76)*Kurs -> 2.112342857 | H76: 0 | I76: 40 | J76: 03654010 20K8A21 ABD R V40 HGRHK-S Заглушка основн. светло-сер. Пр. | L76: 0.06622 | M76: 0.654075 | N76: 9009494327052 | P76: 41302022_BT_P_1_PB_BAU.png | Q76: 1.47864
B77: 01093327 | C77: 20K8A21 ABD R V40 TGR | D77: HK-S Заглушка основн. тёмно-сер. Пр. | E77: 2.688514286 | F77: =IF(PriceSwitch=1,Q77-(Q77*AddDisc%),E77)*Kurs -> 2.688514286 | H77: 0 | I77: 40 | J77: 01093327 20K8A21 ABD R V40 TGRHK-S Заглушка основн. тёмно-сер. Пр. | L77: 0.06816 | M77: 0.654075 | N77: 9009494327090 | P77: 41428098_BT_P_1_PB_BAU.png | Q77: 1.88196
B78: 08363513 | C78: 20K8A21 ABD R V40SEIW | D78: HK-S Заглушка основн. бел.шёлк Пр. | E78: 2.688514286 | F78: =IF(PriceSwitch=1,Q78-(Q78*AddDisc%),E78)*Kurs -> 2.688514286 | H78: 0 | I78: 40 | J78: 08363513 20K8A21 ABD R V40SEIWHK-S Заглушка основн. бел.шёлк Пр. | L78: 0.07262 | M78: 0.654075 | N78: 9009494327076 | P78: 41540958_BT_P_1_PB_BAU.png | Q78: 1.88196
B79: 08119915 | C79: 20K8A21.21ABD L+ZT40HGIG | D79: HK-S Новая заглушка основн.: светло-сер., мал.: нерж. Ле. | E79: 3.4212 | F79: =IF(PriceSwitch=1,Q79-(Q79*AddDisc%),E79)*Kurs -> 3.4212 | H79: 0 | I79: 40 | J79: 08119915 20K8A21.21ABD L+ZT40HGIGHK-S Новая заглушка основн.: светло-сер., мал.: нерж. Ле. | L79: 0.06713 | M79: 0.654075 | Q79: 2.39484
B80: 03088505 | C80: 20K8A21.21ABD L+ZT40SWIG | D80: HK-S Новая заглушка основн.: бел.шёлк, мал.: нерж. Ле. | E80: 3.9972 | F80: =IF(PriceSwitch=1,Q80-(Q80*AddDisc%),E80)*Kurs -> 3.9972 | H80: 0 | I80: 40 | J80: 03088505 20K8A21.21ABD L+ZT40SWIGHK-S Новая заглушка основн.: бел.шёлк, мал.: нерж. Ле. | L80: 0.07353 | M80: 0.654075 | Q80: 2.79804
B81: 01418098 | C81: 20K8A21.21ABD L+ZT40TGIG | D81: HK-S Новая заглушка основн.: тёмно-сер., мал.: нерж. Ле. | E81: 3.9972 | F81: =IF(PriceSwitch=1,Q81-(Q81*AddDisc%),E81)*Kurs -> 3.9972 | H81: 0 | I81: 40 | J81: 01418098 20K8A21.21ABD L+ZT40TGIGHK-S Новая заглушка основн.: тёмно-сер., мал.: нерж. Ле. | K81: * | L81: 0.06847 | M81: 0.654075 | Q81: 2.79804
B82: 03819940 | C82: 20K8A21.21ABD R+ZT40HGIG | D82: HK-S Новая заглушка основн.: светло-сер., мал.: нерж. Пр. | E82: 3.4212 | F82: =IF(PriceSwitch=1,Q82-(Q82*AddDisc%),E82)*Kurs -> 3.4212 | H82: 0 | I82: 40 | J82: 03819940 20K8A21.21ABD R+ZT40HGIGHK-S Новая заглушка основн.: светло-сер., мал.: нерж. Пр. | L82: 0.06693 | M82: 0.654075 | Q82: 2.39484
B83: 06670706 | C83: 20K8A21.21ABD R+ZT40SWIG | D83: HK-S Новая заглушка основн.: бел.шёлк, мал.: нерж. Пр. | E83: 3.9972 | F83: =IF(PriceSwitch=1,Q83-(Q83*AddDisc%),E83)*Kurs -> 3.9972 | H83: 0 | I83: 40 | J83: 06670706 20K8A21.21ABD R+ZT40SWIGHK-S Новая заглушка основн.: бел.шёлк, мал.: нерж. Пр. | L83: 0.07333 | M83: 0.654075 | Q83: 2.79804
B84: 07641293 | C84: 20K8A21.21ABD R+ZT40TGIG | D84: HK-S Новая заглушка основн.: тёмно-сер., мал.: нерж. Пр. | E84: 3.9972 | F84: =IF(PriceSwitch=1,Q84-(Q84*AddDisc%),E84)*Kurs -> 3.9972 | H84: 0 | I84: 40 | J84: 07641293 20K8A21.21ABD R+ZT40TGIGHK-S Новая заглушка основн.: тёмно-сер., мал.: нерж. Пр. | K84: * | L84: 0.06823 | M84: 0.654075 | Q84: 2.79804
B85: 05653918 | C85: 20K9001 ABD V500HB-M | D85: HK Заглушка мал. гавана-кор. сим. | E85: 0.3497142857 | F85: =IF(PriceSwitch=1,Q85-(Q85*AddDisc%),E85)*Kurs -> 0.3497142857 | H85: 0 | I85: 500 | J85: 05653918 20K9001 ABD V500HB-MHK Заглушка мал. гавана-кор. сим. | L85: 0.00724 | M85: 0.059202 | N85: 9009494269420 | P85: K_20K9001_P_1_PB_BAU.png | Q85: 0.2448
B86: 07392872 | C86: 20K9001 ABD V500SEIW | D86: HK Заглушка мал. бел.шёлк сим. | E86: 0.3606857143 | F86: =IF(PriceSwitch=1,Q86-(Q86*AddDisc%),E86)*Kurs -> 0.3606857143 | H86: 0 | I86: 500 | J86: 07392872 20K9001 ABD V500SEIWHK Заглушка мал. бел.шёлк сим. | L86: 0.00785 | M86: 0.059202 | N86: 9002617717853 | P86: K_20K9001SEIW_P_1_PB_BAU.png | Q86: 0.25248
B87: 07609100 | C87: 20K9001.BLABD L V500 TGR | D87: HK Заглушка мал. тёмно-сер. Ле. с лого "Blum" | E87: 0.3198857143 | F87: =IF(PriceSwitch=1,Q87-(Q87*AddDisc%),E87)*Kurs -> 0.3198857143 | H87: 0 | I87: 500 | J87: 07609100 20K9001.BLABD L V500 TGRHK Заглушка мал. тёмно-сер. Ле. с лого "Blum" | L87: 0.00726 | M87: 0.059202 | N87: 9002617691320 | P87: K_20K9001_P_1_PB_BAU.png | Q87: 0.22392
B88: 07609280 | C88: 20K9001.BLABD R V500 TGR | D88: HK Заглушка мал. тёмно-сер. Пр. с лого "Blum" | E88: 0.3198857143 | F88: =IF(PriceSwitch=1,Q88-(Q88*AddDisc%),E88)*Kurs -> 0.3198857143 | H88: 0 | I88: 500 | J88: 07609280 20K9001.BLABD R V500 TGRHK Заглушка мал. тёмно-сер. Пр. с лого "Blum" | L88: 0.00726 | M88: 0.059202 | N88: 9002617691337 | P88: K_20K9001_P_1_PB_BAU.png | Q88: 0.22392
B89: 08992392 | C89: 20L2101.05KRAFTSP 20 ZN | D89: HL Силовой механизм 21 | E89: 35.142 | F89: =IF(PriceSwitch=1,Q89-(Q89*AddDisc%),E89)*Kurs -> 35.142 | H89: 0 | I89: 20 | J89: 08992392 20L2101.05KRAFTSP 20 ZNHL Силовой механизм 21 | L89: 0.86845 | M89: 1.6819 | N89: 9002617772715 | P89: 41210468_BT_P_1_PB_BAU.png | Q89: 24.5994
B90: 08992462 | C90: 20L2301.05KRAFTSP 20 ZN | D90: HL Силовой механизм 23 | E90: 35.142 | F90: =IF(PriceSwitch=1,Q90-(Q90*AddDisc%),E90)*Kurs -> 35.142 | H90: 0 | I90: 20 | J90: 08992462 20L2301.05KRAFTSP 20 ZNHL Силовой механизм 23 | L90: 0.82765 | M90: 1.6819 | N90: 9002617772746 | P90: 46272281_BT_P_1_PB_BAU.png | Q90: 24.5994
B91: 08992532 | C91: 20L2501.05KRAFTSP 20 ZN | D91: HL Силовой механизм 25 | E91: 38.98234286 | F91: =IF(PriceSwitch=1,Q91-(Q91*AddDisc%),E91)*Kurs -> 38.98234286 | H91: 0 | I91: 20 | J91: 08992532 20L2501.05KRAFTSP 20 ZNHL Силовой механизм 25 | L91: 0.88378 | M91: 1.6819 | N91: 9002617772753 | P91: 40505464_BT_P_1_PB_BAU.png | Q91: 27.28764
B92: 08992602 | C92: 20L2701.05KRAFTSP 20 ZN | D92: HL Силовой механизм 27 | E92: 38.98234286 | F92: =IF(PriceSwitch=1,Q92-(Q92*AddDisc%),E92)*Kurs -> 38.98234286 | H92: 0 | I92: 20 | J92: 08992602 20L2701.05KRAFTSP 20 ZNHL Силовой механизм 27 | L92: 0.86918 | M92: 1.6819 | N92: 9002617772777 | P92: 45306828_BT_P_1_PB_BAU.png | Q92: 27.28764
B93: 08992772 | C93: 20L2901.05KRAFTSP 20 ZN | D93: HL Силовой механизм 29 | E93: 66.52011429 | F93: =IF(PriceSwitch=1,Q93-(Q93*AddDisc%),E93)*Kurs -> 66.52011429 | H93: 0 | I93: 20 | J93: 08992772 20L2901.05KRAFTSP 20 ZNHL Силовой механизм 29 | L93: 1.00474 | M93: 1.6819 | N93: 9002617772791 | P93: 48114817_BT_P_1_PB_BAU.png | Q93: 46.56408
B94: 09851151 | C94: 20L3201.06HEBEL L 10 NI | D94: HL Рычаг 300-350мм 32 Ле. | E94: 21.3156 | F94: =IF(PriceSwitch=1,Q94-(Q94*AddDisc%),E94)*Kurs -> 21.3156 | H94: 0 | I94: 10 | J94: 09851151 20L3201.06HEBEL L 10 NIHL Рычаг 300-350мм 32 Ле. | L94: 0.37219 | M94: 1.5671 | N94: 9002617873375 | P94: 47011249_BT_P_1_PB_BAU.png | Q94: 14.92092
B95: 03898962 | C95: 20L3201.06HEBEL R 10 NI | D95: HL Рычаг 300-350мм 32 Пр. | E95: 25.92445714 | F95: =IF(PriceSwitch=1,Q95-(Q95*AddDisc%),E95)*Kurs -> 25.92445714 | H95: 0 | I95: 10 | J95: 03898962 20L3201.06HEBEL R 10 NIHL Рычаг 300-350мм 32 Пр. | L95: 0.42327 | M95: 1.5671 | N95: 9002617873412 | P95: 40410111_BT_P_1_PB_BAU.png | Q95: 18.14712
B96: 09511993 | C96: 20L3501.06HEBEL L 10 NI | D96: HL Рычаг 350-400мм 35 Ле. | E96: 22.4676 | F96: =IF(PriceSwitch=1,Q96-(Q96*AddDisc%),E96)*Kurs -> 22.4676 | H96: 0 | I96: 10 | J96: 09511993 20L3501.06HEBEL L 10 NIHL Рычаг 350-400мм 35 Ле. | L96: 0.42191 | M96: 1.5671 | N96: 9002617873436 | P96: 41295786_BT_P_1_PB_BAU.png | Q96: 15.72732
B97: 07189171 | C97: 20L3501.06HEBEL R 10 NI | D97: HL Рычаг 350-400мм 35 Пр. | E97: 27.0768 | F97: =IF(PriceSwitch=1,Q97-(Q97*AddDisc%),E97)*Kurs -> 27.0768 | H97: 0 | I97: 10 | J97: 07189171 20L3501.06HEBEL R 10 NIHL Рычаг 350-400мм 35 Пр. | L97: 0.47299 | M97: 1.5671 | N97: 9002617873443 | P97: 44481179_BT_P_1_PB_BAU.png | Q97: 18.95376
B98: 06077454 | C98: 20L3801.06HEBEL L 10 NI | D98: HL Рычаг 400-550мм 38 Ле. | E98: 23.62011429 | F98: =IF(PriceSwitch=1,Q98-(Q98*AddDisc%),E98)*Kurs -> 23.62011429 | H98: 0 | I98: 10 | J98: 06077454 20L3801.06HEBEL L 10 NIHL Рычаг 400-550мм 38 Ле. | L98: 0.46569 | M98: 1.5671 | N98: 9002617873467 | P98: 46079129_BT_P_1_PB_BAU.png | Q98: 16.53408
B99: 01682518 | C99: 20L3801.06HEBEL R 10 NI | D99: HL Рычаг 400-550мм 38 Пр. | E99: 28.22897143 | F99: =IF(PriceSwitch=1,Q99-(Q99*AddDisc%),E99)*Kurs -> 28.22897143 | H99: 0 | I99: 10 | J99: 01682518 20L3801.06HEBEL R 10 NIHL Рычаг 400-550мм 38 Пр. | L99: 0.51677 | M99: 1.5671 | N99: 9002617873474 | P99: 44533863_BT_P_1_PB_BAU.png | Q99: 19.76028
B100: 02475957 | C100: 20L3901.06HEBEL L 10 NI | D100: HL Рычаг 450-580мм 39 Ле. | E100: 26.69211429 | F100: =IF(PriceSwitch=1,Q100-(Q100*AddDisc%),E100)*Kurs -> 26.69211429 | H100: 0 | I100: 10 | J100: 02475957 20L3901.06HEBEL L 10 NIHL Рычаг 450-580мм 39 Ле. | L100: 0.50959 | M100: 1.5671 | N100: 9002617873498 | P100: 46541257_BT_P_1_PB_BAU.png | Q100: 18.68448
B101: 09044422 | C101: 20L3901.06HEBEL R 10 NI | D101: HL Рычаг 450-580мм 39 Пр. | E101: 31.30131429 | F101: =IF(PriceSwitch=1,Q101-(Q101*AddDisc%),E101)*Kurs -> 31.30131429 | H101: 0 | I101: 10 | J101: 09044422 20L3901.06HEBEL R 10 NIHL Рычаг 450-580мм 39 Пр. | L101: 0.56767 | M101: 1.5671 | N101: 9002617873504 | P101: 45146459_BT_P_1_PB_BAU.png | Q101: 21.91092
B102: 09329500 | C102: 20L7051 BEGR V100R737 | D102: HL Ограничитель откр. до 124° | E102: 6.774857143 | F102: =IF(PriceSwitch=1,Q102-(Q102*AddDisc%),E102)*Kurs -> 6.774857143 | H102: 0 | I102: 100 | J102: 09329500 20L7051 BEGR V100R737HL Ограничитель откр. до 124° | L102: 0.00367 | M102: 0.01317 | N102: 9002617793628 | P102: 48046170_BT_P_1_PB_BAU.png | Q102: 4.7424
B103: 09329670 | C103: 20L7071 BEGR V100 TGR | D103: HL Ограничитель откр. до 130° | E103: 6.774857143 | F103: =IF(PriceSwitch=1,Q103-(Q103*AddDisc%),E103)*Kurs -> 6.774857143 | H103: 0 | I103: 100 | J103: 09329670 20L7071 BEGR V100 TGRHL Ограничитель откр. до 130° | K103: * | L103: 0.00292 | M103: 0.01317 | N103: 9002617793659 | P103: K_20L7071_P_1_PB_BAU.png | Q103: 4.7424
B104: 08546678 | C104: 20L7081 BEGR V100 S | D104: HL Ограничитель откр. до 133° | E104: 7.846628571 | F104: =IF(PriceSwitch=1,Q104-(Q104*AddDisc%),E104)*Kurs -> 7.846628571 | H104: 0 | I104: 100 | J104: 08546678 20L7081 BEGR V100 SHL Ограничитель откр. до 133° | K104: * | L104: 0.00269 | M104: 0.01317 | N104: 9002617819243 | P104: K_20L7081_P_1_PB_BAU.png | Q104: 5.49264
B105: 01907126 | C105: 20L8001.02ABD L V20 HGR | D105: HL Заглушка основн. светло-сер. Ле. | E105: 2.457942857 | F105: =IF(PriceSwitch=1,Q105-(Q105*AddDisc%),E105)*Kurs -> 2.457942857 | H105: 0 | I105: 20 | J105: 01907126 20L8001.02ABD L V20 HGRHL Заглушка основн. светло-сер. Ле. | L105: 0.09653 | M105: 0.9778 | N105: 9002617853759 | P105: 47283857_BT_P_1_PB_BAU.png | Q105: 1.72056
B106: 07093277 | C106: 20L8001.02ABD L V20SEIW | D106: HL Заглушка основн. бел.шёлк Ле. | E106: 3.033942857 | F106: =IF(PriceSwitch=1,Q106-(Q106*AddDisc%),E106)*Kurs -> 3.033942857 | H106: 0 | I106: 20 | J106: 07093277 20L8001.02ABD L V20SEIWHL Заглушка основн. бел.шёлк Ле. | L106: 0.10433 | M106: 0.9778 | N106: 9002617853773 | P106: 48222479_BT_P_1_PB_BAU.png | Q106: 2.12376
B107: 07260639 | C107: 20L8001.02ABD R V20 HGR | D107: HL Заглушка основн. светло-сер. Пр. | E107: 2.457942857 | F107: =IF(PriceSwitch=1,Q107-(Q107*AddDisc%),E107)*Kurs -> 2.457942857 | H107: 0 | I107: 20 | J107: 07260639 20L8001.02ABD R V20 HGRHL Заглушка основн. светло-сер. Пр. | L107: 0.09653 | M107: 0.9778 | N107: 9002617853780 | P107: 49212389_BT_P_1_PB_BAU.png | Q107: 1.72056
B108: 06489215 | C108: 20L8001.02ABD R V20SEIW | D108: HL Заглушка основн. бел.шёлк Пр. | E108: 3.033942857 | F108: =IF(PriceSwitch=1,Q108-(Q108*AddDisc%),E108)*Kurs -> 3.033942857 | H108: 0 | I108: 20 | J108: 06489215 20L8001.02ABD R V20SEIWHL Заглушка основн. бел.шёлк Пр. | L108: 0.10433 | M108: 0.9778 | N108: 9002617853803 | P108: 40038083_BT_P_1_PB_BAU.png | Q108: 2.12376
B109: 07917160 | C109: 20L8021.22ABD L+ZT20HGIG | D109: HL Новая заглушка основн.: светло-сер., мал.: нерж. Ле. | E109: 3.766628571 | F109: =IF(PriceSwitch=1,Q109-(Q109*AddDisc%),E109)*Kurs -> 3.766628571 | H109: 0 | I109: 20 | J109: 07917160 20L8021.22ABD L+ZT20HGIGHL Новая заглушка основн.: светло-сер., мал.: нерж. Ле. | L109: 0.10529 | M109: 0.9778 | Q109: 2.63664
B110: 01628427 | C110: 20L8021.22ABD L+ZT20SWIG | D110: HL Новая заглушка основн.: бел.шёлк, мал.: нерж. Ле. | E110: 4.342628571 | F110: =IF(PriceSwitch=1,Q110-(Q110*AddDisc%),E110)*Kurs -> 4.342628571 | H110: 0 | I110: 20 | J110: 01628427 20L8021.22ABD L+ZT20SWIGHL Новая заглушка основн.: бел.шёлк, мал.: нерж. Ле. | L110: 0.11019 | M110: 0.9778 | Q110: 3.03984
B111: 05179557 | C111: 20L8021.22ABD L+ZT20TGIG | D111: HL Новая заглушка основн.: тёмно-сер., мал.: нерж. Ле. | E111: 4.342628571 | F111: =IF(PriceSwitch=1,Q111-(Q111*AddDisc%),E111)*Kurs -> 4.342628571 | H111: 0 | I111: 20 | J111: 05179557 20L8021.22ABD L+ZT20TGIGHL Новая заглушка основн.: тёмно-сер., мал.: нерж. Ле. | K111: * | L111: 0.10524 | M111: 0.9778 | Q111: 3.03984
B112: 04411547 | C112: 20L8021.22ABD R+ZT20HGIG | D112: HL Новая заглушка основн.: светло-сер., мал.: нерж. Пр. | E112: 3.766628571 | F112: =IF(PriceSwitch=1,Q112-(Q112*AddDisc%),E112)*Kurs -> 3.766628571 | H112: 0 | I112: 20 | J112: 04411547 20L8021.22ABD R+ZT20HGIGHL Новая заглушка основн.: светло-сер., мал.: нерж. Пр. | L112: 0.10514 | M112: 0.9778 | Q112: 2.63664
B113: 09749574 | C113: 20L8021.22ABD R+ZT20SWIG | D113: HL Новая заглушка основн.: бел.шёлк, мал.: нерж. Пр. | E113: 4.342628571 | F113: =IF(PriceSwitch=1,Q113-(Q113*AddDisc%),E113)*Kurs -> 4.342628571 | H113: 0 | I113: 20 | J113: 09749574 20L8021.22ABD R+ZT20SWIGHL Новая заглушка основн.: бел.шёлк, мал.: нерж. Пр. | L113: 0.11054 | M113: 0.9778 | Q113: 3.03984
B114: 02831941 | C114: 20L8021.22ABD R+ZT20TGIG | D114: HL Новая заглушка основн.: тёмно-сер., мал.: нерж. Пр. | E114: 4.342628571 | F114: =IF(PriceSwitch=1,Q114-(Q114*AddDisc%),E114)*Kurs -> 4.342628571 | H114: 0 | I114: 20 | J114: 02831941 20L8021.22ABD R+ZT20TGIGHL Новая заглушка основн.: тёмно-сер., мал.: нерж. Пр. | K114: * | L114: 0.10524 | M114: 0.9778 | Q114: 3.03984
B115: 08262749 | C115: 20Q0003.03ABDECK 200 TGR | D115: HS Заглушка попер. кругл. стабилизатора | E115: 0.2072571429 | F115: =IF(PriceSwitch=1,Q115-(Q115*AddDisc%),E115)*Kurs -> 0.2072571429 | H115: 0 | I115: 200 | J115: 08262749 20Q0003.03ABDECK 200 TGRHS Заглушка попер. кругл. стабилизатора | L115: 0.00706 | M115: 0.07873 | N115: 9002617873566 | P115: 40453253_BT_P_1_PB_BAU.png | Q115: 0.14508
B116: 04391429 | C116: 20Q0003A01ABDECK 200 TGR | D116: HL Заглушка попер. овал. стабилизатора | E116: 0.4606285714 | F116: =IF(PriceSwitch=1,Q116-(Q116*AddDisc%),E116)*Kurs -> 0.4606285714 | H116: 0 | I116: 200 | J116: 04391429 20Q0003A01ABDECK 200 TGRHL Заглушка попер. овал. стабилизатора | L116: 0.01012 | M116: 0.09403 | N116: 9002617873573 | P116: 41220627_BT_P_1_PB_BAU.png | Q116: 0.32244
B117: 09056083 | C117: 20Q1034PA QUERST V20 EV1 | D117: HL Поперечный стабилизатор предустановл. 1034мм., овальн. | E117: 14.90057143 | F117: =IF(PriceSwitch=1,Q117-(Q117*AddDisc%),E117)*Kurs -> 14.90057143 | H117: 0 | I117: 20 | J117: 09056083 20Q1034PA QUERST V20 EV1HL Поперечный стабилизатор предустановл. 1034мм., овальн. | K117: * | L117: 0.53382 | M117: 1.3178 | N117: 9002617874365 | P117: K_20QXXXPA_P_2_PB_BAU.png | Q117: 10.4304
B118: 09339337 | C118: 20Q1034PN QUERST V20 EV1 | D118: HS Поперечный стабилизатор предустановл. 1034мм, кругл. | E118: 10.44514286 | F118: =IF(PriceSwitch=1,Q118-(Q118*AddDisc%),E118)*Kurs -> 10.44514286 | H118: 0 | I118: 20 | J118: 09339337 20Q1034PN QUERST V20 EV1HS Поперечный стабилизатор предустановл. 1034мм, кругл. | K118: * | L118: 0.27094 | M118: 1.04825 | N118: 9002617873924 | P118: K_20Q153ZN_P_1_PB_BAU.png | Q118: 7.3116
B119: 07799390 | C119: 20Q1061UA QUERST V20 EV1 | D119: HL Штанга стаб. овал. под раскрой | E119: 15.36274286 | F119: =IF(PriceSwitch=1,Q119-(Q119*AddDisc%),E119)*Kurs -> 15.36274286 | H119: 0 | I119: 20 | J119: 07799390 20Q1061UA QUERST V20 EV1HL Штанга стаб. овал. под раскрой | L119: 0.52951 | M119: 1.18045 | N119: 9002617701418 | P119: 48201825_BT_P_1_PB_BAU.png | Q119: 10.75392
B120: 03626183 | C120: 20Q1061UN QUERST V20 EV1 | D120: HS Штанга стаб. кругл. под раскрой | E120: 10.36971429 | F120: =IF(PriceSwitch=1,Q120-(Q120*AddDisc%),E120)*Kurs -> 10.36971429 | H120: 0 | I120: 20 | J120: 03626183 20Q1061UN QUERST V20 EV1HS Штанга стаб. кругл. под раскрой | L120: 0.26257 | M120: 0.7188 | N120: 9002617869194 | P120: 47367647_BT_P_1_PB_BAU.png | Q120: 7.2588
B121: 05989274 | C121: 20Q153ZA VBST+ZT V1 EV1 | D121: HL Соединитель к попер.стабилиз., кругл., заглушки, держ. | E121: 16.95531429 | F121: =IF(PriceSwitch=1,Q121-(Q121*AddDisc%),E121)*Kurs -> 16.95531429 | H121: 0 | I121: 1 | J121: 05989274 20Q153ZA VBST+ZT V1 EV1HL Соединитель к попер.стабилиз., кругл., заглушки, держ. | L121: 0.12606 | M121: 0.4406 | N121: 9002617870916 | P121: 05989274_ID_P_1_PB_BAU.png | Q121: 11.86872
B122: 04767297 | C122: 20Q153ZN VBST+ZT V1 EV1 | D122: HS Соединитель к попер.стабилиз., кругл., заглушки, держ. | E122: 15.66634286 | F122: =IF(PriceSwitch=1,Q122-(Q122*AddDisc%),E122)*Kurs -> 15.66634286 | H122: 0 | I122: 1 | J122: 04767297 20Q153ZN VBST+ZT V1 EV1HS Соединитель к попер.стабилиз., кругл., заглушки, держ. | L122: 0.11964 | M122: 0.4406 | N122: 9002617870923 | P122: 04767297_ID_P_1_PB_BAU.png | Q122: 10.96644
B123: 08987822 | C123: 20S2A01.05KRAFTSP 20 ZN | D123: HS Силовой механизм A | E123: 35.142 | F123: =IF(PriceSwitch=1,Q123-(Q123*AddDisc%),E123)*Kurs -> 35.142 | H123: 0 | I123: 20 | J123: 08987822 20S2A01.05KRAFTSP 20 ZNHS Силовой механизм A | L123: 0.85573 | M123: 1.6819 | N123: 9002617772289 | P123: 41069224_BT_P_1_PB_BAU.png | Q123: 24.5994
B124: 08987992 | C124: 20S2B01.05KRAFTSP 20 ZN | D124: HS Силовой механизм B | E124: 35.142 | F124: =IF(PriceSwitch=1,Q124-(Q124*AddDisc%),E124)*Kurs -> 35.142 | H124: 0 | I124: 20 | J124: 08987992 20S2B01.05KRAFTSP 20 ZNHS Силовой механизм B | L124: 0.80453 | M124: 1.6819 | N124: 9002617772364 | P124: 45297782_BT_P_1_PB_BAU.png | Q124: 24.5994
B125: 08988122 | C125: 20S2C01.05KRAFTSP 20 ZN | D125: HS Силовой механизм C | E125: 38.98234286 | F125: =IF(PriceSwitch=1,Q125-(Q125*AddDisc%),E125)*Kurs -> 38.98234286 | H125: 0 | I125: 20 | J125: 08988122 20S2C01.05KRAFTSP 20 ZNHS Силовой механизм C | L125: 0.88746 | M125: 1.6819 | N125: 9002617772371 | P125: 41302707_BT_P_1_PB_BAU.png | Q125: 27.28764
B126: 08988292 | C126: 20S2D01.05KRAFTSP 20 ZN | D126: HS Силовой механизм D | E126: 35.142 | F126: =IF(PriceSwitch=1,Q126-(Q126*AddDisc%),E126)*Kurs -> 35.142 | H126: 0 | I126: 20 | J126: 08988292 20S2D01.05KRAFTSP 20 ZNHS Силовой механизм D | L126: 0.81413 | M126: 1.6819 | N126: 9002617772388 | P126: 45097117_BT_P_1_PB_BAU.png | Q126: 24.5994
B127: 08988362 | C127: 20S2E01.05KRAFTSP 20 ZN | D127: HS Силовой механизм E | E127: 38.98234286 | F127: =IF(PriceSwitch=1,Q127-(Q127*AddDisc%),E127)*Kurs -> 38.98234286 | H127: 0 | I127: 20 | J127: 08988362 20S2E01.05KRAFTSP 20 ZNHS Силовой механизм E | L127: 0.86446 | M127: 1.6819 | N127: 9002617772418 | P127: 48509253_BT_P_1_PB_BAU.png | Q127: 27.28764
B128: 08988432 | C128: 20S2F01.05KRAFTSP 20 ZN | D128: HS Силовой механизм F | E128: 66.52011429 | F128: =IF(PriceSwitch=1,Q128-(Q128*AddDisc%),E128)*Kurs -> 66.52011429 | H128: 0 | I128: 20 | J128: 08988432 20S2F01.05KRAFTSP 20 ZNHS Силовой механизм F | L128: 1.00848 | M128: 1.6819 | N128: 9002617772425 | P128: 42020750_BT_P_1_PB_BAU.png | Q128: 46.56408
B129: 08988502 | C129: 20S2G01.05KRAFTSP 20 ZN | D129: HS Силовой механизм G | E129: 38.98234286 | F129: =IF(PriceSwitch=1,Q129-(Q129*AddDisc%),E129)*Kurs -> 38.98234286 | H129: 0 | I129: 20 | J129: 08988502 20S2G01.05KRAFTSP 20 ZNHS Силовой механизм G | L129: 0.90806 | M129: 1.6819 | N129: 9002617772432 | P129: 45234648_BT_P_1_PB_BAU.png | Q129: 27.28764
B130: 08992152 | C130: 20S2H01.05KRAFTSP 20 ZN | D130: HS Силовой механизм H | E130: 38.98234286 | F130: =IF(PriceSwitch=1,Q130-(Q130*AddDisc%),E130)*Kurs -> 38.98234286 | H130: 0 | I130: 20 | J130: 08992152 20S2H01.05KRAFTSP 20 ZNHS Силовой механизм H | L130: 0.85986 | M130: 1.6819 | N130: 9002617772487 | P130: 48290733_BT_P_1_PB_BAU.png | Q130: 27.28764
B131: 08992222 | C131: 20S2I01.05KRAFTSP 20 ZN | D131: HS Силовой механизм I | E131: 66.52011429 | F131: =IF(PriceSwitch=1,Q131-(Q131*AddDisc%),E131)*Kurs -> 66.52011429 | H131: 0 | I131: 20 | J131: 08992222 20S2I01.05KRAFTSP 20 ZNHS Силовой механизм I | L131: 1.00064 | M131: 1.6819 | N131: 9002617772494 | P131: 41402731_BT_P_1_PB_BAU.png | Q131: 46.56408
B132: 07640954 | C132: 20S3501.06HEBEL L 10 NI | D132: HS Рычаг Ле. | E132: 24.38811429 | F132: =IF(PriceSwitch=1,Q132-(Q132*AddDisc%),E132)*Kurs -> 24.38811429 | H132: 0 | I132: 10 | J132: 07640954 20S3501.06HEBEL L 10 NIHS Рычаг Ле. | L132: 0.52387 | M132: 1.5538 | N132: 9002617873337 | P132: 49423215_BT_P_1_PB_BAU.png | Q132: 17.07168
B133: 05537484 | C133: 20S3501.06HEBEL R 10 NI | D133: HS Рычаг Пр. | E133: 27.84462857 | F133: =IF(PriceSwitch=1,Q133-(Q133*AddDisc%),E133)*Kurs -> 27.84462857 | H133: 0 | I133: 10 | J133: 05537484 20S3501.06HEBEL R 10 NIHS Рычаг Пр. | L133: 0.57412 | M133: 1.5538 | N133: 9002617873344 | P133: 43233847_BT_P_1_PB_BAU.png | Q133: 19.49124
B134: 07259956 | C134: 20S4201 FRO-B V100 NI | D134: HS/HL/HK top/HK Крепл.фас. п.самор., симм. | E134: 1.920685714 | F134: =IF(PriceSwitch=1,Q134-(Q134*AddDisc%),E134)*Kurs -> 1.920685714 | H134: =F134*G134 -> 0 | I134: 100 | J134: 07259956 20S4201 FRO-B V100 NIHS/HL/HK top/HK Крепл.фас. п.самор., симм. | L134: 0.0387 | M134: 0.08812 | N134: 9002617665796 | P134: 43181434_BT_P_1_PB_BAU.png | Q134: 1.34448
B135: 07486403 | C135: 20S4201A FRO-B V100 NI | D135: HS/HL/HK top/HK Крепл.фас. под самор. для узкого алюм. профиля, симм. | E135: 9.5568 | F135: =IF(PriceSwitch=1,Q135-(Q135*AddDisc%),E135)*Kurs -> 9.5568 | H135: 0 | I135: 100 | J135: 07486403 20S4201A FRO-B V100 NIHS/HL/HK top/HK Крепл.фас. под самор. для узкого алюм. профиля, симм. | L135: 0.12227 | M135: 0.15746 | N135: 9002617678840 | P135: K_20S4201A_P_1_PB_BAU.png | Q135: 6.68976
B136: 08860933 | C136: 20S42E1 FRO-B V100 NI | D136: HS/HL/HK top/HK Крепл.фас. EXPANDO, симм. | E136: 2.5752 | F136: =IF(PriceSwitch=1,Q136-(Q136*AddDisc%),E136)*Kurs -> 2.5752 | H136: 0 | I136: 100 | J136: 08860933 20S42E1 FRO-B V100 NIHS/HL/HK top/HK Крепл.фас. EXPANDO, симм. | L136: 0.04556 | M136: 0.12126 | N136: 9002617764802 | P136: 41132786_BT_P_1_PB_BAU.png | Q136: 1.80264
B137: 03613770 | C137: 20S42T1 FRO-B V100 NI | D137: HS/HL/HK top/HK Крепл.фас. (толщина от 8мм) EXPANDO T, симм. | E137: 14.62388571 | F137: =IF(PriceSwitch=1,Q137-(Q137*AddDisc%),E137)*Kurs -> 14.62388571 | H137: 0 | I137: 100 | J137: 03613770 20S42T1 FRO-B V100 NIHS/HL/HK top/HK Крепл.фас. (толщина от 8мм) EXPANDO T, симм. | L137: 0.04641 | M137: 0.12126 | N137: 9009494309836 | P137: 47329308_BT_P_1_PB_BAU.png | Q137: 10.23672
B138: 07259508 | C138: 20S8001 ABD L V20 HGR | D138: HS Заглушка основн. светло-сер. Ле. | E138: 2.457942857 | F138: =IF(PriceSwitch=1,Q138-(Q138*AddDisc%),E138)*Kurs -> 2.457942857 | H138: 0 | I138: 20 | J138: 07259508 20S8001 ABD L V20 HGRHS Заглушка основн. светло-сер. Ле. | L138: 0.09798 | M138: 0.9778 | N138: 9002617665765 | P138: 48445230_BT_P_1_PB_BAU.png | Q138: 1.72056
B139: 07259502 | C139: 20S8001 ABD L V20SEIW | D139: HS Заглушка основн. бел.шёлк Ле. | E139: 3.033942857 | F139: =IF(PriceSwitch=1,Q139-(Q139*AddDisc%),E139)*Kurs -> 3.033942857 | H139: 0 | I139: 20 | J139: 07259502 20S8001 ABD L V20SEIWHS Заглушка основн. бел.шёлк Ле. | L139: 0.10443 | M139: 0.9778 | N139: 9002617702705 | P139: 40374659_BT_P_1_PB_BAU.png | Q139: 2.12376
B140: 07259448 | C140: 20S8001 ABD R V20 HGR | D140: HS Заглушка основн. светло-сер. Пр. | E140: 2.457942857 | F140: =IF(PriceSwitch=1,Q140-(Q140*AddDisc%),E140)*Kurs -> 2.457942857 | H140: 0 | I140: 20 | J140: 07259448 20S8001 ABD R V20 HGRHS Заглушка основн. светло-сер. Пр. | L140: 0.09843 | M140: 0.9778 | N140: 9002617665758 | P140: 47325843_BT_P_1_PB_BAU.png | Q140: 1.72056
B141: 07259442 | C141: 20S8001 ABD R V20SEIW | D141: HS Заглушка основн. бел.шёлк Пр. | E141: 3.033942857 | F141: =IF(PriceSwitch=1,Q141-(Q141*AddDisc%),E141)*Kurs -> 3.033942857 | H141: 0 | I141: 20 | J141: 07259442 20S8001 ABD R V20SEIWHS Заглушка основн. бел.шёлк Пр. | L141: 0.10433 | M141: 0.9778 | N141: 9002617702699 | P141: 43121843_BT_P_1_PB_BAU.png | Q141: 2.12376
B142: 01929079 | C142: 20S8021.22ABD L+ZT20HGIG | D142: HS Новая заглушка основн.: светло-сер., мал.: нерж. Ле. | E142: 3.766628571 | F142: =IF(PriceSwitch=1,Q142-(Q142*AddDisc%),E142)*Kurs -> 3.766628571 | H142: 0 | I142: 20 | J142: 01929079 20S8021.22ABD L+ZT20HGIGHS Новая заглушка основн.: светло-сер., мал.: нерж. Ле. | L142: 0.10428 | M142: 0.9778 | Q142: 2.63664
B143: 06943159 | C143: 20S8021.22ABD L+ZT20SWIG | D143: HS Новая заглушка основн.: бел.шёлк, мал.: нерж. Ле. | E143: 4.342628571 | F143: =IF(PriceSwitch=1,Q143-(Q143*AddDisc%),E143)*Kurs -> 4.342628571 | H143: 0 | I143: 20 | J143: 06943159 20S8021.22ABD L+ZT20SWIGHS Новая заглушка основн.: бел.шёлк, мал.: нерж. Ле. | L143: 0.11318 | M143: 0.9778 | Q143: 3.03984
B144: 02064855 | C144: 20S8021.22ABD L+ZT20TGIG | D144: HS Новая заглушка основн.: тёмно-сер., мал.: нерж. Ле. | E144: 4.342628571 | F144: =IF(PriceSwitch=1,Q144-(Q144*AddDisc%),E144)*Kurs -> 4.342628571 | H144: 0 | I144: 20 | J144: 02064855 20S8021.22ABD L+ZT20TGIGHS Новая заглушка основн.: тёмно-сер., мал.: нерж. Ле. | K144: * | L144: 0.10423 | M144: 0.9778 | Q144: 3.03984
B145: 05757929 | C145: 20S8021.22ABD R+ZT20HGIG | D145: HS Новая заглушка основн.: светло-сер., мал.: нерж. Пр. | E145: 3.766628571 | F145: =IF(PriceSwitch=1,Q145-(Q145*AddDisc%),E145)*Kurs -> 3.766628571 | H145: 0 | I145: 20 | J145: 05757929 20S8021.22ABD R+ZT20HGIGHS Новая заглушка основн.: светло-сер., мал.: нерж. Пр. | L145: 0.10408 | M145: 0.9778 | Q145: 2.63664
B146: 06580200 | C146: 20S8021.22ABD R+ZT20SWIG | D146: HS Новая заглушка основн.: бел.шёлк, мал.: нерж. Пр. | E146: 4.342628571 | F146: =IF(PriceSwitch=1,Q146-(Q146*AddDisc%),E146)*Kurs -> 4.342628571 | H146: 0 | I146: 20 | J146: 06580200 20S8021.22ABD R+ZT20SWIGHS Новая заглушка основн.: бел.шёлк, мал.: нерж. Пр. | L146: 0.11308 | M146: 0.9778 | Q146: 3.03984
B147: 07295114 | C147: 20S8021.22ABD R+ZT20TGIG | D147: HS Новая заглушка основн.: тёмно-сер., мал.: нерж. Пр. | E147: 4.342628571 | F147: =IF(PriceSwitch=1,Q147-(Q147*AddDisc%),E147)*Kurs -> 4.342628571 | H147: 0 | I147: 20 | J147: 07295114 20S8021.22ABD R+ZT20TGIGHS Новая заглушка основн.: тёмно-сер., мал.: нерж. Пр. | K147: * | L147: 0.10408 | M147: 0.9778 | Q147: 3.03984
B148: 08979458 | C148: 21F8001 ABD L V5 HGR | D148: HF Заглушка основн. для SD (привода) светло-сер. Ле. | E148: 7.104857143 | F148: =IF(PriceSwitch=1,Q148-(Q148*AddDisc%),E148)*Kurs -> 7.104857143 | H148: 0 | I148: 5 | J148: 08979458 21F8001 ABD L V5 HGRHF Заглушка основн. для SD (привода) светло-сер. Ле. | L148: 0.25413 | M148: 3.1316 | N148: 9002617772982 | P148: 48240693_BT_P_1_PB_BAU.png | Q148: 4.9734
B149: 08979452 | C149: 21F8001 ABD L V5SEIW | D149: HF Заглушка основн. для SD (привода) бел.шёлк Ле. | E149: 7.872857143 | F149: =IF(PriceSwitch=1,Q149-(Q149*AddDisc%),E149)*Kurs -> 7.872857143 | H149: 0 | I149: 5 | J149: 08979452 21F8001 ABD L V5SEIWHF Заглушка основн. для SD (привода) бел.шёлк Ле. | L149: 0.26653 | M149: 3.1316 | N149: 9002617772975 | P149: 49405125_BT_P_1_PB_BAU.png | Q149: 5.511
B150: 02266164 | C150: 21F8021 ABD L V5 HGR | D150: HF Новая заглушка основн. для SD (привода) светло-сер. Ле. | E150: 7.104857143 | F150: =IF(PriceSwitch=1,Q150-(Q150*AddDisc%),E150)*Kurs -> 7.104857143 | H150: 0 | I150: 5 | J150: 02266164 21F8021 ABD L V5 HGRHF Новая заглушка основн. для SD (привода) светло-сер. Ле. | L150: 0.22323 | M150: 3.1316 | Q150: 4.9734
B151: 05198589 | C151: 21F8021 ABD L V5 TGR | D151: HF Новая заглушка основн. для SD (привода) тёмно-сер. Ле. | E151: 7.872857143 | F151: =IF(PriceSwitch=1,Q151-(Q151*AddDisc%),E151)*Kurs -> 7.872857143 | H151: 0 | I151: 5 | J151: 05198589 21F8021 ABD L V5 TGRHF Новая заглушка основн. для SD (привода) тёмно-сер. Ле. | K151: * | L151: 0.22323 | M151: 3.1316 | Q151: 5.511
B152: 09358394 | C152: 21F8021 ABD L V5SEIW | D152: HF Новая заглушка основн. для SD (привода) бел.шёлк Ле. | E152: 7.872857143 | F152: =IF(PriceSwitch=1,Q152-(Q152*AddDisc%),E152)*Kurs -> 7.872857143 | H152: 0 | I152: 5 | J152: 09358394 21F8021 ABD L V5SEIWHF Новая заглушка основн. для SD (привода) бел.шёлк Ле. | L152: 0.23653 | M152: 3.1316 | Q152: 5.511
B153: 08978460 | C153: 21FA001 ANTR-EH V5R737 | D153: Привод SD AVENTOS HF/HS/HL | E153: 336.2238857 | F153: =IF(PriceSwitch=1,Q153-(Q153*AddDisc%),E153)*Kurs -> 336.2238857 | H153: 0 | I153: 5 | J153: 08978460 21FA001 ANTR-EH V5R737Привод SD AVENTOS HF/HS/HL | L153: 0.75966 | M153: 2.3468 | N153: 9002617772821 | P153: 41520204_BT_P_1_PB_BAU.png | Q153: 235.35672
B154: 09424478 | C154: 21K8001 ABD L V5 HGR | D154: HK Заглушка основн. для SD (привода) светло-сер. Ле. | E154: 7.254342857 | F154: =IF(PriceSwitch=1,Q154-(Q154*AddDisc%),E154)*Kurs -> 7.254342857 | H154: 0 | I154: 5 | J154: 09424478 21K8001 ABD L V5 HGRHK Заглушка основн. для SD (привода) светло-сер. Ле. | L154: 0.26909 | M154: 4.161 | N154: 9002617802252 | P154: 47076598_BT_P_1_PB_BAU.png | Q154: 5.07804
B155: 09424472 | C155: 21K8001 ABD L V5SEIW | D155: HK Заглушка основн. для SD (привода) бел.шёлк Ле. | E155: 7.9656 | F155: =IF(PriceSwitch=1,Q155-(Q155*AddDisc%),E155)*Kurs -> 7.9656 | H155: 0 | I155: 5 | J155: 09424472 21K8001 ABD L V5SEIWHK Заглушка основн. для SD (привода) бел.шёлк Ле. | L155: 0.28626 | M155: 4.161 | N155: 9002617802245 | P155: 49152405_BT_P_1_PB_BAU.png | Q155: 5.57592
B156: 09431540 | C156: 21KA001 ANTR+AD V5R737 | D156: Привод SD AVENTOS HK с держ. | E156: 375.6408 | F156: =IF(PriceSwitch=1,Q156-(Q156*AddDisc%),E156)*Kurs -> 375.6408 | H156: 0 | I156: 5 | J156: 09431540 21KA001 ANTR+AD V5R737Привод SD AVENTOS HK с держ. | L156: 1.49894 | M156: 3.9336 | N156: 9002617802290 | P156: 48304582_BT_P_1_PB_BAU.png | Q156: 262.94856
B157: 02148692 | C157: 21L3201.01HEBEL L V5 NI | D157: HL Рычаг 300-350мм для SD 32 Ле. | E157: 42.24685714 | F157: =IF(PriceSwitch=1,Q157-(Q157*AddDisc%),E157)*Kurs -> 42.24685714 | H157: 0 | I157: 5 | J157: 02148692 21L3201.01HEBEL L V5 NIHL Рычаг 300-350мм для SD 32 Ле. | L157: 0.53773 | M157: 2.3468 | N157: 9002617873511 | P157: 48559359_BT_P_1_PB_BAU.png | Q157: 29.5728
B158: 05936371 | C158: 21L3501.01HEBEL L V5 NI | D158: HL Рычаг 350-400мм для SD 35 Ле. | E158: 43.39902857 | F158: =IF(PriceSwitch=1,Q158-(Q158*AddDisc%),E158)*Kurs -> 43.39902857 | H158: 0 | I158: 5 | J158: 05936371 21L3501.01HEBEL L V5 NIHL Рычаг 350-400мм для SD 35 Ле. | L158: 0.59336 | M158: 2.3468 | N158: 9002617873528 | P158: 49014851_BT_P_1_PB_BAU.png | Q158: 30.37932
B159: 01012963 | C159: 21L3801.01HEBEL L V5 NI | D159: HL Рычаг 400-550мм для SD 38 Ле. | E159: 44.55154286 | F159: =IF(PriceSwitch=1,Q159-(Q159*AddDisc%),E159)*Kurs -> 44.55154286 | H159: 0 | I159: 5 | J159: 01012963 21L3801.01HEBEL L V5 NIHL Рычаг 400-550мм для SD 38 Ле. | L159: 0.66431 | M159: 3.1342 | N159: 9002617873535 | P159: 47015300_BT_P_1_PB_BAU.png | Q159: 31.18608
B160: 09618963 | C160: 21L3901.01HEBEL L V5 NI | D160: HL Рычаг 450-580мм для SD 39 Ле. | E160: 47.62354286 | F160: =IF(PriceSwitch=1,Q160-(Q160*AddDisc%),E160)*Kurs -> 47.62354286 | H160: 0 | I160: 5 | J160: 09618963 21L3901.01HEBEL L V5 NIHL Рычаг 450-580мм для SD 39 Ле. | L160: 0.72247 | M160: 3.1342 | N160: 9002617873542 | P160: 43312733_BT_P_1_PB_BAU.png | Q160: 33.33648
B161: 08979528 | C161: 21L8001 ABD L V5 HGR | D161: HL Заглушка основн. для SD (привода) светло-сер. Ле. | E161: 7.104857143 | F161: =IF(PriceSwitch=1,Q161-(Q161*AddDisc%),E161)*Kurs -> 7.104857143 | H161: 0 | I161: 5 | J161: 08979528 21L8001 ABD L V5 HGRHL Заглушка основн. для SD (привода) светло-сер. Ле. | L161: 0.27895 | M161: 3.9112 | N161: 9002617773002 | P161: 40578767_BT_P_1_PB_BAU.png | Q161: 4.9734
B162: 03423940 | C162: 21L8001 ABD L V5 TGR | D162: HL Заглушка основн. для SD (привода) т.сер. Ле. | E162: 7.872857143 | F162: =IF(PriceSwitch=1,Q162-(Q162*AddDisc%),E162)*Kurs -> 7.872857143 | H162: 0 | I162: 5 | J162: 03423940 21L8001 ABD L V5 TGRHL Заглушка основн. для SD (привода) т.сер. Ле. | K162: * | L162: 0.29155 | M162: 3.9112 | N162: 9009494288056 | P162: 46544968_BT_P_1_PB_BAU.png | Q162: 5.511
B163: 08979522 | C163: 21L8001 ABD L V5SEIW | D163: HL Заглушка основн. для SD (привода) бел.шёлк Ле. | E163: 7.872857143 | F163: =IF(PriceSwitch=1,Q163-(Q163*AddDisc%),E163)*Kurs -> 7.872857143 | H163: 0 | I163: 5 | J163: 08979522 21L8001 ABD L V5SEIWHL Заглушка основн. для SD (привода) бел.шёлк Ле. | L163: 0.29365 | M163: 3.9112 | N163: 9002617772999 | P163: 42072634_BT_P_1_PB_BAU.png | Q163: 5.511
B164: 09349915 | C164: 21L8021 ABD L V5 HGR | D164: HL Новая заглушка основн. для SD (привода) светло-сер. Ле. | E164: 7.104857143 | F164: =IF(PriceSwitch=1,Q164-(Q164*AddDisc%),E164)*Kurs -> 7.104857143 | H164: 0 | I164: 5 | J164: 09349915 21L8021 ABD L V5 HGRHL Новая заглушка основн. для SD (привода) светло-сер. Ле. | L164: 0.25855 | M164: 3.9112 | Q164: 4.9734
B165: 04660345 | C165: 21L8021 ABD L V5 TGR | D165: HL Новая заглушка основн. для SD (привода) тёмно-сер. Ле. | E165: 7.872857143 | F165: =IF(PriceSwitch=1,Q165-(Q165*AddDisc%),E165)*Kurs -> 7.872857143 | H165: 0 | I165: 5 | J165: 04660345 21L8021 ABD L V5 TGRHL Новая заглушка основн. для SD (привода) тёмно-сер. Ле. | K165: * | L165: 0.25855 | M165: 3.9112 | Q165: 5.511
B166: 02709056 | C166: 21L8021 ABD L V5SEIW | D166: HL Новая заглушка основн. для SD (привода) бел.шёлк Ле. | E166: 7.872857143 | F166: =IF(PriceSwitch=1,Q166-(Q166*AddDisc%),E166)*Kurs -> 7.872857143 | H166: 0 | I166: 5 | J166: 02709056 21L8021 ABD L V5SEIWHL Новая заглушка основн. для SD (привода) бел.шёлк Ле. | L166: 0.2742 | M166: 3.9112 | Q166: 5.511
B167: 08978392 | C167: 21P5020 SCHALT V20SEIW | D167: Радиокнопка SD Aventos HF/HS/HL/HK бел.шёлк [r.p.] | E167: 47.46617143 | F167: =IF(PriceSwitch=1,Q167-(Q167*AddDisc%),E167)*Kurs -> 47.46617143 | H167: 0 | I167: 20 | J167: 08978392 21P5020 SCHALT V20SEIWРадиокнопка SD Aventos HF/HS/HL/HK бел.шёлк [r.p.] | L167: 0.01787 | M167: 0.11175 | N167: 9002617772647 | P167: 44529903_BT_P_1_PB_BAU.png | Q167: 33.22632
B168: 00005298 | C168: 21P5216 AUFN 100 HGR | D168: Держатель радиокнопки SD светло-сер. | E168: 5.689885714 | F168: =IF(PriceSwitch=1,Q168-(Q168*AddDisc%),E168)*Kurs -> 5.689885714 | H168: 0 | I168: 100 | J168: 00005298 21P5216 AUFN 100 HGRДержатель радиокнопки SD светло-сер. | L168: 0.0055 | M168: 0.04313 | N168: 9002617807882 | P168: K_21P5216HGR_P_1_PB_BAU.png | Q168: 3.98292
B169: 03508856 | C169: 21S3501.01HEBEL L V5 NI | D169: HS Рычаг для SD Ле. | E169: 51.4644 | F169: =IF(PriceSwitch=1,Q169-(Q169*AddDisc%),E169)*Kurs -> 51.4644 | H169: 0 | I169: 5 | J169: 03508856 21S3501.01HEBEL L V5 NIHS Рычаг для SD Ле. | L169: 0.84423 | M169: 5.2326 | N169: 9002617873351 | P169: 46065304_BT_P_1_PB_BAU.png | Q169: 36.02508
B170: 09045179 | C170: 21S3501.01HEBEL R V5 NI | D170: HS Рычаг для SD Пр. | E170: 34.75748571 | F170: =IF(PriceSwitch=1,Q170-(Q170*AddDisc%),E170)*Kurs -> 34.75748571 | H170: 0 | I170: 5 | J170: 09045179 21S3501.01HEBEL R V5 NIHS Рычаг для SD Пр. | L170: 0.73738 | M170: 5.2326 | N170: 9002617873368 | P170: 42225476_BT_P_1_PB_BAU.png | Q170: 24.33024
B171: 08979698 | C171: 21S8001 ABD L V5 HGR | D171: HS Заглушка основн. для SD (привода) светло-сер. Ле. | E171: 7.104857143 | F171: =IF(PriceSwitch=1,Q171-(Q171*AddDisc%),E171)*Kurs -> 7.104857143 | H171: 0 | I171: 5 | J171: 08979698 21S8001 ABD L V5 HGRHS Заглушка основн. для SD (привода) светло-сер. Ле. | L171: 0.26825 | M171: 3.9112 | N171: 9002617773026 | P171: 43113653_BT_P_1_PB_BAU.png | Q171: 4.9734
B172: 08979692 | C172: 21S8001 ABD L V5SEIW | D172: HS Заглушка основн. для SD (привода) бел.шёлк Ле. | E172: 7.872857143 | F172: =IF(PriceSwitch=1,Q172-(Q172*AddDisc%),E172)*Kurs -> 7.872857143 | H172: 0 | I172: 5 | J172: 08979692 21S8001 ABD L V5SEIWHS Заглушка основн. для SD (привода) бел.шёлк Ле. | L172: 0.28255 | M172: 3.9112 | N172: 9002617773019 | P172: 43511521_BT_P_1_PB_BAU.png | Q172: 5.511
B173: 06996494 | C173: 21S8021 ABD L V5 HGR | D173: HS Новая заглушка основн. для SD (привода) светло-сер. Ле. | E173: 7.104857143 | F173: =IF(PriceSwitch=1,Q173-(Q173*AddDisc%),E173)*Kurs -> 7.104857143 | H173: 0 | I173: 5 | J173: 06996494 21S8021 ABD L V5 HGRHS Новая заглушка основн. для SD (привода) светло-сер. Ле. | L173: 0.24345 | M173: 3.9112 | Q173: 4.9734
B174: 09893004 | C174: 21S8021 ABD L V5 TGR | D174: HS Новая заглушка основн. для SD (привода) тёмно-сер. Ле. | E174: 7.872857143 | F174: =IF(PriceSwitch=1,Q174-(Q174*AddDisc%),E174)*Kurs -> 7.872857143 | H174: 0 | I174: 5 | J174: 09893004 21S8021 ABD L V5 TGRHS Новая заглушка основн. для SD (привода) тёмно-сер. Ле. | K174: * | L174: 0.24345 | M174: 3.9112 | Q174: 5.511
B175: 01072356 | C175: 21S8021 ABD L V5SEIW | D175: HS Новая заглушка основн. для SD (привода) бел.шёлк Ле. | E175: 7.872857143 | F175: =IF(PriceSwitch=1,Q175-(Q175*AddDisc%),E175)*Kurs -> 7.872857143 | H175: 0 | I175: 5 | J175: 01072356 21S8021 ABD L V5SEIWHS Новая заглушка основн. для SD (привода) бел.шёлк Ле. | L175: 0.25575 | M175: 3.9112 | Q175: 5.511
B176: 03758753 | C176: 22K2301 KRAFTSP 20 ZN | D176: HK top Силовой механизм под саморезы 23 Коэфф. мощн. 420 – 1 610 | E176: 34.29548571 | F176: =IF(PriceSwitch=1,Q176-(Q176*AddDisc%),E176)*Kurs -> 34.29548571 | H176: 0 | I176: 20 | J176: 03758753 22K2301 KRAFTSP 20 ZNHK top Силовой механизм под саморезы 23 Коэфф. мощн. 420 – 1 610 | L176: 0.77688 | M176: 1.54155 | N176: 9009494326420 | P176: K_HKTOPSPAX_P_1_PB_BAU.png | Q176: 24.00684
B177: 02086205 | C177: 22K2301T KRAFTSP 20 ZN | D177: HK top TIP-ON Силовой механизм под саморезы 23 Коэфф. мощн. 420 – 1 610 | E177: 36.99257143 | F177: =IF(PriceSwitch=1,Q177-(Q177*AddDisc%),E177)*Kurs -> 36.99257143 | H177: 0 | I177: 20 | J177: 02086205 22K2301T KRAFTSP 20 ZNHK top TIP-ON Силовой механизм под саморезы 23 Коэфф. мощн. 420 – 1 610 | L177: 0.76093 | M177: 1.54155 | N177: 9009494326468 | P177: K_HKTOPSPAX_P_1_PB_BAU.png | Q177: 25.8948
B178: 06544322 | C178: 22K2311 KRAFTSP 20 ZN | D178: HK top Силовой механизм под евровинты 23 Коэфф. мощн. 420 – 1 610 | E178: 34.51817143 | F178: =IF(PriceSwitch=1,Q178-(Q178*AddDisc%),E178)*Kurs -> 34.51817143 | H178: 0 | I178: 20 | J178: 06544322 22K2311 KRAFTSP 20 ZNHK top Силовой механизм под евровинты 23 Коэфф. мощн. 420 – 1 610 | L178: 0.793 | M178: 1.54155 | N178: 9009494317107 | P178: K_HKTOPSYS_P_1_PB_BAU.png | Q178: 24.16272
B179: 01807785 | C179: 22K2311T KRAFTSP 20 ZN | D179: HK top TIP-ON Силовой механизм под евровинты 23 Коэфф. мощн. 420 – 1 610 | E179: 37.21508571 | F179: =IF(PriceSwitch=1,Q179-(Q179*AddDisc%),E179)*Kurs -> 37.21508571 | H179: 0 | I179: 20 | J179: 01807785 22K2311T KRAFTSP 20 ZNHK top TIP-ON Силовой механизм под евровинты 23 Коэфф. мощн. 420 – 1 610 | L179: 0.77674 | M179: 1.54155 | N179: 9009494317145 | P179: K_HKTOPSYS_P_1_PB_BAU.png | Q179: 26.05056
B180: 05826741 | C180: 22K2501 KRAFTSP 20 ZN | D180: HK top Силовой механизм под саморезы 25 Коэфф. мощн. 930 – 2 800 | E180: 34.29548571 | F180: =IF(PriceSwitch=1,Q180-(Q180*AddDisc%),E180)*Kurs -> 34.29548571 | H180: 0 | I180: 20 | J180: 05826741 22K2501 KRAFTSP 20 ZNHK top Силовой механизм под саморезы 25 Коэфф. мощн. 930 – 2 800 | L180: 0.78707 | M180: 1.54155 | N180: 9009494326437 | P180: K_HKTOPSPAX_P_1_PB_BAU.png | Q180: 24.00684
B181: 08242517 | C181: 22K2501T KRAFTSP 20 ZN | D181: HK top TIP-ON Силовой механизм под саморезы 25 Коэфф. мощн. 930 – 2 800 | E181: 36.99257143 | F181: =IF(PriceSwitch=1,Q181-(Q181*AddDisc%),E181)*Kurs -> 36.99257143 | H181: 0 | I181: 20 | J181: 08242517 22K2501T KRAFTSP 20 ZNHK top TIP-ON Силовой механизм под саморезы 25 Коэфф. мощн. 930 – 2 800 | L181: 0.77965 | M181: 1.54155 | N181: 9009494326475 | P181: K_HKTOPSPAX_P_1_PB_BAU.png | Q181: 25.8948
B182: 04369408 | C182: 22K2511 KRAFTSP 20 ZN | D182: HK top Силовой механизм под евровинты 25 Коэфф. мощн. 930 – 2 800 | E182: 34.51817143 | F182: =IF(PriceSwitch=1,Q182-(Q182*AddDisc%),E182)*Kurs -> 34.51817143 | H182: 0 | I182: 20 | J182: 04369408 22K2511 KRAFTSP 20 ZNHK top Силовой механизм под евровинты 25 Коэфф. мощн. 930 – 2 800 | L182: 0.80319 | M182: 1.54155 | N182: 9009494317114 | P182: K_HKTOPSYS_P_1_PB_BAU.png | Q182: 24.16272
B183: 08645519 | C183: 22K2511T KRAFTSP 20 ZN | D183: HK top TIP-ON Силовой механизм под евровинты 25 Коэфф. мощн. 930 – 2 800 | E183: 37.21508571 | F183: =IF(PriceSwitch=1,Q183-(Q183*AddDisc%),E183)*Kurs -> 37.21508571 | H183: 0 | I183: 20 | J183: 08645519 22K2511T KRAFTSP 20 ZNHK top TIP-ON Силовой механизм под евровинты 25 Коэфф. мощн. 930 – 2 800 | L183: 0.79546 | M183: 1.54155 | N183: 9009494317152 | P183: K_HKTOPSYS_P_1_PB_BAU.png | Q183: 26.05056
B184: 08560166 | C184: 22K2701 KRAFTSP 20 ZN | D184: HK top Силовой механизм под саморезы 27 Коэфф. мощн. 1 730 – 5 200 | E184: 34.47548571 | F184: =IF(PriceSwitch=1,Q184-(Q184*AddDisc%),E184)*Kurs -> 34.47548571 | H184: 0 | I184: 20 | J184: 08560166 22K2701 KRAFTSP 20 ZNHK top Силовой механизм под саморезы 27 Коэфф. мощн. 1 730 – 5 200 | L184: 0.81083 | M184: 1.54155 | N184: 9009494326444 | P184: K_HKTOPSPAX_P_1_PB_BAU.png | Q184: 24.13284
B185: 05691973 | C185: 22K2701T KRAFTSP 20 ZN | D185: HK top TIP-ON Силовой механизм под саморезы 27 Коэфф. мощн. 1 730 – 5 200 | E185: 39.50931429 | F185: =IF(PriceSwitch=1,Q185-(Q185*AddDisc%),E185)*Kurs -> 39.50931429 | H185: 0 | I185: 20 | J185: 05691973 22K2701T KRAFTSP 20 ZNHK top TIP-ON Силовой механизм под саморезы 27 Коэфф. мощн. 1 730 – 5 200 | L185: 0.86104 | M185: 1.54155 | N185: 9009494326482 | P185: K_HKTOPSPAX_P_1_PB_BAU.png | Q185: 27.65652
B186: 03160964 | C186: 22K2711 KRAFTSP 20 ZN | D186: HK top Силовой механизм под евровинты 27 Коэфф. мощн. 1 730 – 5 200 | E186: 34.698 | F186: =IF(PriceSwitch=1,Q186-(Q186*AddDisc%),E186)*Kurs -> 34.698 | H186: 0 | I186: 20 | J186: 03160964 22K2711 KRAFTSP 20 ZNHK top Силовой механизм под евровинты 27 Коэфф. мощн. 1 730 – 5 200 | L186: 0.82695 | M186: 1.54155 | N186: 9009494317121 | P186: K_HKTOPSYS_P_1_PB_BAU.png | Q186: 24.2886
B187: 05100749 | C187: 22K2711T KRAFTSP 20 ZN | D187: HK top TIP-ON Силовой механизм под евровинты 27 Коэфф. мощн. 1 730 – 5 200 | E187: 39.732 | F187: =IF(PriceSwitch=1,Q187-(Q187*AddDisc%),E187)*Kurs -> 39.732 | H187: 0 | I187: 20 | J187: 05100749 22K2711T KRAFTSP 20 ZNHK top TIP-ON Силовой механизм под евровинты 27 Коэфф. мощн. 1 730 – 5 200 | L187: 0.87685 | M187: 1.54155 | N187: 9009494317169 | P187: K_HKTOPSYS_P_1_PB_BAU.png | Q187: 27.8124
B188: 05185968 | C188: 22K2901 KRAFTSP 20 ZN | D188: HK top Силовой механизм под саморезы 29 Коэфф. мощн. 3 200 – 9 000 | E188: 40.76794286 | F188: =IF(PriceSwitch=1,Q188-(Q188*AddDisc%),E188)*Kurs -> 40.76794286 | H188: 0 | I188: 20 | J188: 05185968 22K2901 KRAFTSP 20 ZNHK top Силовой механизм под саморезы 29 Коэфф. мощн. 3 200 – 9 000 | L188: 0.88053 | M188: 1.54155 | N188: 9009494326451 | P188: K_HKTOPSPAX_P_1_PB_BAU.png | Q188: 28.53756
B189: 06802136 | C189: 22K2901T KRAFTSP 20 ZN | D189: HK top TIP-ON Силовой механизм под саморезы 29 Коэфф. мощн. 3 200 – 9 000 | E189: 45.80177143 | F189: =IF(PriceSwitch=1,Q189-(Q189*AddDisc%),E189)*Kurs -> 45.80177143 | H189: 0 | I189: 20 | J189: 06802136 22K2901T KRAFTSP 20 ZNHK top TIP-ON Силовой механизм под саморезы 29 Коэфф. мощн. 3 200 – 9 000 | L189: 0.87734 | M189: 1.54155 | N189: 9009494326499 | P189: K_HKTOPSPAX_P_1_PB_BAU.png | Q189: 32.06124
B190: 07615900 | C190: 22K2911 KRAFTSP 20 ZN | D190: HK top Силовой механизм под евровинты 29 Коэфф. мощн. 3 200 – 9 000 | E190: 40.99045714 | F190: =IF(PriceSwitch=1,Q190-(Q190*AddDisc%),E190)*Kurs -> 40.99045714 | H190: 0 | I190: 20 | J190: 07615900 22K2911 KRAFTSP 20 ZNHK top Силовой механизм под евровинты 29 Коэфф. мощн. 3 200 – 9 000 | L190: 0.89665 | M190: 1.54155 | N190: 9009494317138 | P190: K_HKTOPSYS_P_1_PB_BAU.png | Q190: 28.69332
B191: 03003469 | C191: 22K2911T KRAFTSP 20 ZN | D191: HK top TIP-ON Силовой механизм под евровинты 29 Коэфф. мощн. 3 200 – 9 000 | E191: 46.02445714 | F191: =IF(PriceSwitch=1,Q191-(Q191*AddDisc%),E191)*Kurs -> 46.02445714 | H191: 0 | I191: 20 | J191: 03003469 22K2911T KRAFTSP 20 ZNHK top TIP-ON Силовой механизм под евровинты 29 Коэфф. мощн. 3 200 – 9 000 | L191: 0.89315 | M191: 1.54155 | N191: 9009494317176 | P191: K_HKTOPSYS_P_1_PB_BAU.png | Q191: 32.21712
B192: 04748119 | C192: 22K8001 ABD L V20 HGR | D192: HK top Заглушка основн. светло-сер. Ле. | E192: 2.444914286 | F192: =IF(PriceSwitch=1,Q192-(Q192*AddDisc%),E192)*Kurs -> 2.444914286 | H192: 0 | I192: 20 | J192: 04748119 22K8001 ABD L V20 HGRHK top Заглушка основн. светло-сер. Ле. | L192: 0.06405 | M192: 0.4776 | N192: 9009494326697 | P192: 40426567_BT_P_1_PB_BAU.png | Q192: 1.71144
B193: 02060570 | C193: 22K8001 ABD L V20 TGR | D193: HK top Заглушка основн. тёмно-сер. Ле. | E193: 2.9484 | F193: =IF(PriceSwitch=1,Q193-(Q193*AddDisc%),E193)*Kurs -> 2.9484 | H193: 0 | I193: 20 | J193: 02060570 22K8001 ABD L V20 TGRHK top Заглушка основн. тёмно-сер. Ле. | K193: * | L193: 0.06405 | M193: 0.4776 | N193: 9009494327014 | P193: 40586003_BT_P_1_PB_BAU.png | Q193: 2.06388
B194: 08156987 | C194: 22K8001 ABD L V20SEIW | D194: HK top Заглушка основн. бел.шёлк Ле. | E194: 2.9484 | F194: =IF(PriceSwitch=1,Q194-(Q194*AddDisc%),E194)*Kurs -> 2.9484 | H194: 0 | I194: 20 | J194: 08156987 22K8001 ABD L V20SEIWHK top Заглушка основн. бел.шёлк Ле. | K194: * | L194: 0.06405 | M194: 0.4776 | N194: 9009494317404 | P194: 43180837_BT_P_1_PB_BAU.png | Q194: 2.06388
B195: 02565537 | C195: 22K8001 ABD R V20 HGR | D195: HK top Заглушка основн. светло-сер. Пр. | E195: 2.444914286 | F195: =IF(PriceSwitch=1,Q195-(Q195*AddDisc%),E195)*Kurs -> 2.444914286 | H195: 0 | I195: 20 | J195: 02565537 22K8001 ABD R V20 HGRHK top Заглушка основн. светло-сер. Пр. | L195: 0.06385 | M195: 0.4776 | N195: 9009494327007 | P195: 42025070_BT_P_1_PB_BAU.png | Q195: 1.71144
B196: 05055798 | C196: 22K8001 ABD R V20 TGR | D196: HK top Заглушка основн. тёмно-сер. Пр. | E196: 2.9484 | F196: =IF(PriceSwitch=1,Q196-(Q196*AddDisc%),E196)*Kurs -> 2.9484 | H196: 0 | I196: 20 | J196: 05055798 22K8001 ABD R V20 TGRHK top Заглушка основн. тёмно-сер. Пр. | K196: * | L196: 0.06385 | M196: 0.4776 | N196: 9009494327021 | Q196: 2.06388
B197: 06152485 | C197: 22K8001 ABD R V20SEIW | D197: HK top Заглушка основн. бел.шёлк Пр. | E197: 2.9484 | F197: =IF(PriceSwitch=1,Q197-(Q197*AddDisc%),E197)*Kurs -> 2.9484 | H197: 0 | I197: 20 | J197: 06152485 22K8001 ABD R V20SEIWHK top Заглушка основн. бел.шёлк Пр. | K197: * | L197: 0.06385 | M197: 0.4776 | N197: 9009494317411 | P197: 44176787_BT_P_1_PB_BAU.png | Q197: 2.06388
B198: 09813805 | C198: 22K8001.21ABD L+ZT20HGIG | D198: HK top Заглушка основн.: светло-сер., мал.: нерж. Ле. | E198: 3.753771429 | F198: =IF(PriceSwitch=1,Q198-(Q198*AddDisc%),E198)*Kurs -> 3.753771429 | H198: =F198*G198 -> 0 | I198: 20 | J198: 09813805 22K8001.21ABD L+ZT20HGIGHK top Заглушка основн.: светло-сер., мал.: нерж. Ле. | L198: 0.06476 | M198: 0.4776 | N198: 9009494346855 | P198: 09813805_ID_P_1_PB_BAU.png | Q198: 2.62764
B199: 06363008 | C199: 22K8001.21ABD L+ZT20SWIG | D199: HK top Заглушка основн.: бел.шёлк, мал.: нерж. Ле. | E199: 4.257085714 | F199: =IF(PriceSwitch=1,Q199-(Q199*AddDisc%),E199)*Kurs -> 4.257085714 | H199: 0 | I199: 20 | J199: 06363008 22K8001.21ABD L+ZT20SWIGHK top Заглушка основн.: бел.шёлк, мал.: нерж. Ле. | L199: 0.06476 | M199: 0.4776 | N199: 9009494346879 | P199: 06363008_ID_P_1_PB_BAU.png | Q199: 2.97996
B200: 04704338 | C200: 22K8001.21ABD L+ZT20TGIG | D200: HK top Заглушка основн.: тёмно-сер., мал.: нерж. Ле. | E200: 4.257085714 | F200: =IF(PriceSwitch=1,Q200-(Q200*AddDisc%),E200)*Kurs -> 4.257085714 | H200: 0 | I200: 20 | J200: 04704338 22K8001.21ABD L+ZT20TGIGHK top Заглушка основн.: тёмно-сер., мал.: нерж. Ле. | L200: 0.06476 | M200: 0.4776 | N200: 9009494346886 | P200: 04704338_ID_P_1_PB_BAU.png | Q200: 2.97996
... 2933 more rows

Sheet Комплекты
A1: Код компл. | B1: Ид. № компл. | C1: Артикул комплекта | D1: Идент. № | E1: Артикул | F1: Описание артикула | G1: Кол-во | J1: Наличие | K1: ЦенаФиз. | L1: ЦенаЮр.
A2: 40.02NB | B2: 09434407 | C2: 40.0200N *40.02NB M B | E2: Стяжка эксц. с дюб. (корпус, штырь, дюбель), кор. | H2: =IF(PriceSwitch=1,L2-(L2*AddDisc%),K2)*Kurs -> 0.4002857143 | K2: 0.4002857143 | L2: 0.2802
A3: <-- | D3: 04025167 | E3: 40.0110N GEH V2500 B | F3: Гнездо стяжки коричневое | G3: 1 | H3: =IF(PriceSwitch=1,L3-(L3*AddDisc%),K3)*Kurs -> 0.3041142857 | K3: 0.3041142857 | L3: 0.21288
D4: 01100011 | E4: 40.0130 BOLZ V2500 BL | F4: Распорный штырь для стяжки | G4: 1 | H4: =IF(PriceSwitch=1,L4-(L4*AddDisc%),K4)*Kurs -> 0.02965714286 | K4: 0.02965714286 | L4: 0.02076
D5: 01100861 | E5: 40.0220 DUEB V2500 NA | F5: Дюбель для стяжки | G5: 1 | H5: =IF(PriceSwitch=1,L5-(L5*AddDisc%),K5)*Kurs -> 0.06651428571 | K5: 0.06651428571 | L5: 0.04656
H6: =IF(PriceSwitch=1,L6-(L6*AddDisc%),K6)*Kurs -> 0
A7: 40.02NW | B7: 06011132 | C7: 40.0200N *40.02NW M W | E7: Стяжка эксц. с дюб. (корпус, штырь, дюбель), бел. | H7: =IF(PriceSwitch=1,L7-(L7*AddDisc%),K7)*Kurs -> 0.4002857143 | K7: 0.4002857143 | L7: 0.2802
A8: <-- | D8: 04025166 | E8: 40.0110N GEH V2500 W | F8: Гнездо стяжки белое | G8: 1 | H8: =IF(PriceSwitch=1,L8-(L8*AddDisc%),K8)*Kurs -> 0.3041142857 | K8: 0.3041142857 | L8: 0.21288
D9: 01100011 | E9: 40.0130 BOLZ V2500 BL | F9: Распорный штырь для стяжки | G9: 1 | H9: =IF(PriceSwitch=1,L9-(L9*AddDisc%),K9)*Kurs -> 0.02965714286 | K9: 0.02965714286 | L9: 0.02076
D10: 01100861 | E10: 40.0220 DUEB V2500 NA | F10: Дюбель для стяжки | G10: 1 | H10: =IF(PriceSwitch=1,L10-(L10*AddDisc%),K10)*Kurs -> 0.06651428571 | K10: 0.06651428571 | L10: 0.04656
H11: =IF(PriceSwitch=1,L11-(L11*AddDisc%),K11)*Kurs -> 0
A12: 40.20B | B12: 07340944 | C12: 40.2000 *40.20B M B | E12: Стяжка на самор. (корпус, отв. часть), коричн. | H12: =IF(PriceSwitch=1,L12-(L12*AddDisc%),K12)*Kurs -> 0.6084 | K12: 0.6084 | L12: 0.42588
A13: <-- | D13: 02237357 | E13: 40.2010 GEH V1000 B | F13: Стяжка корп. (гнездо) коричн. | G13: 1 | H13: =IF(PriceSwitch=1,L13-(L13*AddDisc%),K13)*Kurs -> 0.4745142857 | K13: 0.4745142857 | L13: 0.33216
D14: 02237431 | E14: 40.2020 GPL V1000 NA | F14: Стяжка корп. (ответ.часть) | G14: 1 | H14: =IF(PriceSwitch=1,L14-(L14*AddDisc%),K14)*Kurs -> 0.1338857143 | K14: 0.1338857143 | L14: 0.09372
H15: =IF(PriceSwitch=1,L15-(L15*AddDisc%),K15)*Kurs -> 0
A16: 40.20W | B16: 07330422 | C16: 40.2000 *40.20W M W | E16: Стяжка на самор. (корпус, отв. часть), белая | H16: =IF(PriceSwitch=1,L16-(L16*AddDisc%),K16)*Kurs -> 0.6084 | K16: 0.6084 | L16: 0.42588
A17: <-- | D17: 02237356 | E17: 40.2010 GEH V1000 W | F17: Стяжка корп. (гнездо) бел. | G17: 1 | H17: =IF(PriceSwitch=1,L17-(L17*AddDisc%),K17)*Kurs -> 0.4745142857 | K17: 0.4745142857 | L17: 0.33216
D18: 02237431 | E18: 40.2020 GPL V1000 NA | F18: Стяжка корп. (ответ.часть) | G18: 1 | H18: =IF(PriceSwitch=1,L18-(L18*AddDisc%),K18)*Kurs -> 0.1338857143 | K18: 0.1338857143 | L18: 0.09372
H19: =IF(PriceSwitch=1,L19-(L19*AddDisc%),K19)*Kurs -> 0
A20: 40.21B | B20: 04840798 | C20: 40.2100 *40.21B M B | E20: Стяжка под пресс (корпус, отв. часть), коричн. | H20: =IF(PriceSwitch=1,L20-(L20*AddDisc%),K20)*Kurs -> 0.6084 | K20: 0.6084 | L20: 0.42588
A21: <-- | D21: 02237197 | E21: 40.2110 GEH V1000 B | F21: Стяжка (гнездо под пресс) кор. | G21: 1 | H21: =IF(PriceSwitch=1,L21-(L21*AddDisc%),K21)*Kurs -> 0.4745142857 | K21: 0.4745142857 | L21: 0.33216
D22: 03225551 | E22: 40.2120.02DPL V1000 NA | F22: Стяжка (ответная часть под пресс) | G22: 1 | H22: =IF(PriceSwitch=1,L22-(L22*AddDisc%),K22)*Kurs -> 0.1338857143 | J22: * | K22: 0.1338857143 | L22: 0.09372
H23: =IF(PriceSwitch=1,L23-(L23*AddDisc%),K23)*Kurs -> 0
A24: 40.21W | B24: 07027715 | C24: 40.2100 *40.21W M W | E24: Стяжка под пресс (корпус, отв. часть), белая | H24: =IF(PriceSwitch=1,L24-(L24*AddDisc%),K24)*Kurs -> 0.6084 | K24: 0.6084 | L24: 0.42588
A25: <-- | D25: 02237196 | E25: 40.2110 GEH V1000 W | F25: Стяжка (гнездо под пресс) бел. | G25: 1 | H25: =IF(PriceSwitch=1,L25-(L25*AddDisc%),K25)*Kurs -> 0.4745142857 | K25: 0.4745142857 | L25: 0.33216
D26: 03225551 | E26: 40.2120.02DPL V1000 NA | F26: Стяжка (ответная часть под пресс) | G26: 1 | H26: =IF(PriceSwitch=1,L26-(L26*AddDisc%),K26)*Kurs -> 0.1338857143 | J26: * | K26: 0.1338857143 | L26: 0.09372
H27: =IF(PriceSwitch=1,L27-(L27*AddDisc%),K27)*Kurs -> 0
A28: 40.40B | B28: 01611003 | C28: 40.4001 *40.40B M B | E28: Стяжка-полкодерж. (корпус + заглушка), коричн. | H28: =IF(PriceSwitch=1,L28-(L28*AddDisc%),K28)*Kurs -> 0.1858285714 | K28: 0.1858285714 | L28: 0.13008
A29: <-- | D29: 03031607 | E29: 40.4001 GEH V2500 B | F29: Стяжка-полкодерж. коричн. | G29: 1 | H29: =IF(PriceSwitch=1,L29-(L29*AddDisc%),K29)*Kurs -> 0.1152 | K29: 0.1152 | L29: 0.08064
D30: 03160597 | E30: 41.5400 ABD V250 B | F30: Заглушка полкодерж.корич. | G30: 1 | H30: =IF(PriceSwitch=1,L30-(L30*AddDisc%),K30)*Kurs -> 0.07062857143 | K30: 0.07062857143 | L30: 0.04944
H31: =IF(PriceSwitch=1,L31-(L31*AddDisc%),K31)*Kurs -> 0
A32: 40.40W | B32: 05390802 | C32: 40.4001 *40.40W M W | E32: Стяжка-полкодерж. (корпус + заглушка), белая | H32: =IF(PriceSwitch=1,L32-(L32*AddDisc%),K32)*Kurs -> 0.1858285714 | K32: 0.1858285714 | L32: 0.13008
A33: <-- | D33: 03031606 | E33: 40.4001 GEH V2500 W | F33: Стяжка-полкодерж. белая | G33: 1 | H33: =IF(PriceSwitch=1,L33-(L33*AddDisc%),K33)*Kurs -> 0.1152 | K33: 0.1152 | L33: 0.08064
D34: 03160596 | E34: 41.5400 ABD V250 W | F34: Заглушка полкодерж.белая | G34: 1 | H34: =IF(PriceSwitch=1,L34-(L34*AddDisc%),K34)*Kurs -> 0.07062857143 | K34: 0.07062857143 | L34: 0.04944
H35: =IF(PriceSwitch=1,L35-(L35*AddDisc%),K35)*Kurs -> 0
A36: 42.07B | B36: 01483961 | C36: 42.0700 *42.07B M B | E36: Стяжка эксц. с винтом (корпус, шуруп), коричн. | H36: =IF(PriceSwitch=1,L36-(L36*AddDisc%),K36)*Kurs -> 0.3505714286 | K36: 0.3505714286 | L36: 0.2454
A37: <-- | D37: 05436677 | E37: 42.0110.01GEH V2500 B | F37: Корпусная стяжка (гнездо) кор. | G37: 1 | H37: =IF(PriceSwitch=1,L37-(L37*AddDisc%),K37)*Kurs -> 0.2242285714 | K37: 0.2242285714 | L37: 0.15696
D38: 04340601 | E38: 42.0720 SCHR V500 BL | F38: Корпусная стяжка (шуруп) | G38: 1 | H38: =IF(PriceSwitch=1,L38-(L38*AddDisc%),K38)*Kurs -> 0.1263428571 | K38: 0.1263428571 | L38: 0.08844
H39: =IF(PriceSwitch=1,L39-(L39*AddDisc%),K39)*Kurs -> 0
A40: 42.07BG | B40: 09455495 | C40: 42.0700 *42.07BG MHEBG | E40: Стяжка эксц. с винтом (корпус, шуруп), бежевая | H40: =IF(PriceSwitch=1,L40-(L40*AddDisc%),K40)*Kurs -> 0.3505714286 | K40: 0.3505714286 | L40: 0.2454
A41: <-- | D41: 05436671 | E41: 42.0110.01GEH V2500HEBG | F41: Корпусная стяжка (гнездо) беж. | G41: 1 | H41: =IF(PriceSwitch=1,L41-(L41*AddDisc%),K41)*Kurs -> 0.2242285714 | K41: 0.2242285714 | L41: 0.15696
D42: 04340601 | E42: 42.0720 SCHR V500 BL | F42: Корпусная стяжка (шуруп) | G42: 1 | H42: =IF(PriceSwitch=1,L42-(L42*AddDisc%),K42)*Kurs -> 0.1263428571 | K42: 0.1263428571 | L42: 0.08844
H43: =IF(PriceSwitch=1,L43-(L43*AddDisc%),K43)*Kurs -> 0
A44: 42.07G | B44: 09576853 | C44: 42.0700 *42.07G MR735 | E44: Стяжка эксц. с винтом (корпус, шуруп), серая | H44: =IF(PriceSwitch=1,L44-(L44*AddDisc%),K44)*Kurs -> 0.3917142857 | K44: 0.3917142857 | L44: 0.2742
A45: <-- | D45: 05436679 | E45: 42.0110.01GEH V2500R735 | F45: Корпусная стяжка (гнездо) светлосер. | G45: 1 | H45: =IF(PriceSwitch=1,L45-(L45*AddDisc%),K45)*Kurs -> 0.2653714286 | K45: 0.2653714286 | L45: 0.18576
D46: 04340601 | E46: 42.0720 SCHR V500 BL | F46: Корпусная стяжка (шуруп) | G46: 1 | H46: =IF(PriceSwitch=1,L46-(L46*AddDisc%),K46)*Kurs -> 0.1263428571 | K46: 0.1263428571 | L46: 0.08844
H47: =IF(PriceSwitch=1,L47-(L47*AddDisc%),K47)*Kurs -> 0
A48: 42.07RB | B48: 04208950 | C48: 42.0700 *42.07RB M RBG | E48: Стяжка эксц. с винтом (корпус, шуруп), розово-беж. | H48: =IF(PriceSwitch=1,L48-(L48*AddDisc%),K48)*Kurs -> 0.3917142857 | K48: 0.3917142857 | L48: 0.2742
A49: <-- | D49: 02752635 | E49: 42.0110.01GEH V2500 RBG | F49: Корпусная стяжка (гнездо) роз.-беж. | G49: 1 | H49: =IF(PriceSwitch=1,L49-(L49*AddDisc%),K49)*Kurs -> 0.2653714286 | K49: 0.2653714286 | L49: 0.18576
D50: 04340601 | E50: 42.0720 SCHR V500 BL | F50: Корпусная стяжка (шуруп) | G50: 1 | H50: =IF(PriceSwitch=1,L50-(L50*AddDisc%),K50)*Kurs -> 0.1263428571 | K50: 0.1263428571 | L50: 0.08844
H51: =IF(PriceSwitch=1,L51-(L51*AddDisc%),K51)*Kurs -> 0
A52: 42.07W | B52: 08326576 | C52: 42.0700 *42.07W M W | E52: Стяжка эксц. с винтом (корпус, шуруп), белая | H52: =IF(PriceSwitch=1,L52-(L52*AddDisc%),K52)*Kurs -> 0.3505714286 | K52: 0.3505714286 | L52: 0.2454
A53: <-- | D53: 05436676 | E53: 42.0110.01GEH V2500 W | F53: Корпусная стяжка (гнездо) бел. | G53: 1 | H53: =IF(PriceSwitch=1,L53-(L53*AddDisc%),K53)*Kurs -> 0.2242285714 | K53: 0.2242285714 | L53: 0.15696
D54: 04340601 | E54: 42.0720 SCHR V500 BL | F54: Корпусная стяжка (шуруп) | G54: 1 | H54: =IF(PriceSwitch=1,L54-(L54*AddDisc%),K54)*Kurs -> 0.1263428571 | K54: 0.1263428571 | L54: 0.08844
H55: =IF(PriceSwitch=1,L55-(L55*AddDisc%),K55)*Kurs -> 0
A56: 42.07WC | B56: 01169953 | C56: 42.0700 *42.07WC MR901 | E56: Стяжка эксц. с винтом (корпус, шуруп), белый крем | H56: =IF(PriceSwitch=1,L56-(L56*AddDisc%),K56)*Kurs -> 0.3792 | K56: 0.3792 | L56: 0.26544
A57: <-- | D57: 02752633 | E57: 42.0110.01GEH V2500R901 | F57: Корпус стяжки, пластмасса, под пресс | G57: 1 | H57: =IF(PriceSwitch=1,L57-(L57*AddDisc%),K57)*Kurs -> 0.2528571429 | K57: 0.2528571429 | L57: 0.177
D58: 04340601 | E58: 42.0720 SCHR V500 BL | F58: Корпусная стяжка (шуруп) | G58: 1 | H58: =IF(PriceSwitch=1,L58-(L58*AddDisc%),K58)*Kurs -> 0.1263428571 | K58: 0.1263428571 | L58: 0.08844
H59: =IF(PriceSwitch=1,L59-(L59*AddDisc%),K59)*Kurs -> 0
A60: 48N05B | B60: 09886304 | C60: 48N0510 *48N05B M B | E60: Навески под шуруп (Ле.+Пр.), коричневые | H60: =IF(PriceSwitch=1,L60-(L60*AddDisc%),K60)*Kurs -> 3.568457143 | K60: 3.568457143 | L60: 2.49792
A61: <-- | D61: 07167667 | E61: 48N0510.03S.AUF L250 B | F61: Навеска п.самор. корич. Ле. | G61: 1 | H61: =IF(PriceSwitch=1,L61-(L61*AddDisc%),K61)*Kurs -> 1.784228571 | K61: 1.784228571 | L61: 1.24896
D62: 07167587 | E62: 48N0510.02S.AUF R250 B | F62: Навеска п.самор. корич. Пр. | G62: 1 | H62: =IF(PriceSwitch=1,L62-(L62*AddDisc%),K62)*Kurs -> 1.784228571 | K62: 1.784228571 | L62: 1.24896
H63: =IF(PriceSwitch=1,L63-(L63*AddDisc%),K63)*Kurs -> 0
A64: 48N05G | B64: 04295286 | C64: 48N0510 *48N05G MR735 | E64: Специальный комплект | H64: =IF(PriceSwitch=1,L64-(L64*AddDisc%),K64)*Kurs -> 3.568457143 | K64: 3.568457143 | L64: 2.49792
A65: <-- | D65: 07167665 | E65: 48N0510.03S.AUF L250R735 | F65: Навеска п.самор. св.-сер. Ле. | G65: 1 | H65: =IF(PriceSwitch=1,L65-(L65*AddDisc%),K65)*Kurs -> 1.784228571 | J65: * | K65: 1.784228571 | L65: 1.24896
D66: 07167585 | E66: 48N0510.02S.AUF R250R735 | F66: Навеска п.самор. св.-сер. Пр. | G66: 1 | H66: =IF(PriceSwitch=1,L66-(L66*AddDisc%),K66)*Kurs -> 1.784228571 | J66: * | K66: 1.784228571 | L66: 1.24896
H67: =IF(PriceSwitch=1,L67-(L67*AddDisc%),K67)*Kurs -> 0
A68: 48N05T | B68: 01145772 | C68: 48N0510 *48N05T M TGR | E68: Навески под шуруп (Ле.+Пр.), темно-серые | H68: =IF(PriceSwitch=1,L68-(L68*AddDisc%),K68)*Kurs -> 3.768 | K68: 3.768 | L68: 2.6376
A69: <-- | D69: 07493726 | E69: 48N0510.03S.AUF L250 TGR | F69: Навеска п.самор. тёмно-сер. Ле. | G69: 1 | H69: =IF(PriceSwitch=1,L69-(L69*AddDisc%),K69)*Kurs -> 1.884 | K69: 1.884 | L69: 1.3188
D70: 09830532 | E70: 48N0510.02S.AUF R250 TGR | F70: Навеска п.самор. тёмно-сер. Пр. | G70: 1 | H70: =IF(PriceSwitch=1,L70-(L70*AddDisc%),K70)*Kurs -> 1.884 | K70: 1.884 | L70: 1.3188
H71: =IF(PriceSwitch=1,L71-(L71*AddDisc%),K71)*Kurs -> 0
A72: 48N05W | B72: 03798219 | C72: 48N0510 *48N05W M W | E72: Навески под шуруп (Ле.+Пр.), белые | H72: =IF(PriceSwitch=1,L72-(L72*AddDisc%),K72)*Kurs -> 3.568457143 | K72: 3.568457143 | L72: 2.49792
A73: <-- | D73: 07167666 | E73: 48N0510.03S.AUF L250 W | F73: Навеска п.самор. белая Ле. | G73: 1 | H73: =IF(PriceSwitch=1,L73-(L73*AddDisc%),K73)*Kurs -> 1.784228571 | K73: 1.784228571 | L73: 1.24896
D74: 07167586 | E74: 48N0510.02S.AUF R250 W | F74: Навеска п.самор. белая Пр. | G74: 1 | H74: =IF(PriceSwitch=1,L74-(L74*AddDisc%),K74)*Kurs -> 1.784228571 | K74: 1.784228571 | L74: 1.24896
H75: =IF(PriceSwitch=1,L75-(L75*AddDisc%),K75)*Kurs -> 0
A76: 48N06B | B76: 03614163 | C76: 48N0610 *48N06B M B | E76: Навески под пресс (Ле.+Пр.), коричневые | H76: =IF(PriceSwitch=1,L76-(L76*AddDisc%),K76)*Kurs -> 3.716571429 | K76: 3.716571429 | L76: 2.6016
A77: <-- | D77: 07168047 | E77: 48N0610.03S.AUF L250 B | F77: Навеска п.пресс коричн. Ле. | G77: 1 | H77: =IF(PriceSwitch=1,L77-(L77*AddDisc%),K77)*Kurs -> 1.858285714 | K77: 1.858285714 | L77: 1.3008
D78: 07167917 | E78: 48N0610.02S.AUF R250 B | F78: Навеска п.пресс коричн. Пр. | G78: 1 | H78: =IF(PriceSwitch=1,L78-(L78*AddDisc%),K78)*Kurs -> 1.858285714 | K78: 1.858285714 | L78: 1.3008
H79: =IF(PriceSwitch=1,L79-(L79*AddDisc%),K79)*Kurs -> 0
A80: 48N06W | B80: 06208123 | C80: 48N0610 *48N06W M W | E80: Навески под пресс (Ле.+Пр.), белые | H80: =IF(PriceSwitch=1,L80-(L80*AddDisc%),K80)*Kurs -> 3.716571429 | K80: 3.716571429 | L80: 2.6016
A81: <-- | D81: 07168046 | E81: 48N0610.03S.AUF L250 W | F81: Навеска п.пресс белая Ле. | G81: 1 | H81: =IF(PriceSwitch=1,L81-(L81*AddDisc%),K81)*Kurs -> 1.858285714 | K81: 1.858285714 | L81: 1.3008
D82: 07167916 | E82: 48N0610.02S.AUF R250 W | F82: Навеска п.пресс белая Пр. | G82: 1 | H82: =IF(PriceSwitch=1,L82-(L82*AddDisc%),K82)*Kurs -> 1.858285714 | K82: 1.858285714 | L82: 1.3008
H83: =IF(PriceSwitch=1,L83-(L83*AddDisc%),K83)*Kurs -> 0
A84: AF1D27B | B84: 07407098 | C84: 378M27B0SA *AF1D27B MTERS | E84: TANDEMBOX antaro M с выс. фас., "D", 1 релинг, 270мм, т.чёрн. | H84: =IF(PriceSwitch=1,L84-(L84*AddDisc%),K84)*Kurs -> 62.57622857 | K84: 62.57622857 | L84: 43.80336
A85: <-- | D85: 06178281 | E85: 378M2702SA Z LI V20TERS | F85: TANDEMBOX antaro Царга "M" 270мм т.чёрн. Ле. | G85: 1 | H85: =IF(PriceSwitch=1,L85-(L85*AddDisc%),K85)*Kurs -> 11.32628571 | K85: 11.32628571 | L85: 7.9284
D86: 06163598 | E86: 378M2702SA Z RE V20TERS | F86: TANDEMBOX antaro Царга "M" 270мм т.чёрн. Пр. | G86: 1 | H86: =IF(PriceSwitch=1,L86-(L86*AddDisc%),K86)*Kurs -> 11.32628571 | K86: 11.32628571 | L86: 7.9284
D87: 08046154 | E87: ZAA.532C.BLABD V1000 KU | F87: Заглушка antaro с лого Blum медн. к т.чёрн. | G87: 2 | H87: =IF(PriceSwitch=1,L87-(L87*AddDisc%),K87)*Kurs -> 0.1690285714 | K87: 0.1690285714 | L87: 0.11832
D88: 08000501 | E88: 578.2701B K R+L MP ZN | F88: Tandembox Направл. 30кг BLUMOTION 270мм Л+П | G88: 1 | H88: =IF(PriceSwitch=1,L88-(L88*AddDisc%),K88)*Kurs -> 24.88834286 | K88: 24.88834286 | L88: 17.42184
D89: 04722054 | E89: Z30D000S HO-R L V50TERS | F89: Держатель задней стенки "D" для TANDEMBOX, т.чёрн. Ле. | G89: 1 | H89: =IF(PriceSwitch=1,L89-(L89*AddDisc%),K89)*Kurs -> 1.885028571 | K89: 1.885028571 | L89: 1.31952
D90: 04721834 | E90: Z30D000S HO-R R V50TERS | F90: Держатель задней стенки "D" для TANDEMBOX, т.чёрн. Пр. | G90: 1 | H90: =IF(PriceSwitch=1,L90-(L90*AddDisc%),K90)*Kurs -> 1.885028571 | K90: 1.885028571 | L90: 1.31952
D91: 08338119 | E91: ZSF.39A2 FROB V500 BL | F91: Крепл. фасада Tandembox INSERTA симм. | G91: 2 | H91: =IF(PriceSwitch=1,L91-(L91*AddDisc%),K91)*Kurs -> 1.165371429 | K91: 1.165371429 | L91: 0.81576
D92: 01522138 | E92: ZRG.207RSICREL*LAE L TERS | F92: Релинг Tandembox antaro 270мм (к ящику с фас., верхний) т.чёрн., Ле. | G92: 1 | H92: =IF(PriceSwitch=1,L92-(L92*AddDisc%),K92)*Kurs -> 4.298228571 | K92: 4.298228571 | L92: 3.00876
D93: 03528278 | E93: ZRG.207RSICREL*LAE R TERS | F93: Релинг Tandembox antaro 270мм (к ящику с фас., верхний) т.чёрн., Пр. | G93: 1 | H93: =IF(PriceSwitch=1,L93-(L93*AddDisc%),K93)*Kurs -> 4.298228571 | K93: 4.298228571 | L93: 3.00876
H94: =IF(PriceSwitch=1,L94-(L94*AddDisc%),K94)*Kurs -> 0
A95: AF1D27G | B95: 01607126 | C95: 378M27B0SA *AF1D27G MR906 | E95: TANDEMBOX antaro M с выс. фас., "D", 1 релинг, 270мм, сер. | H95: =IF(PriceSwitch=1,L95-(L95*AddDisc%),K95)*Kurs -> 62.57622857 | K95: 62.57622857 | L95: 43.80336
A96: <-- | D96: 06071645 | E96: 378M2702SA Z LI V20R906 | F96: TANDEMBOX antaro Царга "M" 270мм сер. Ле. | G96: 1 | H96: =IF(PriceSwitch=1,L96-(L96*AddDisc%),K96)*Kurs -> 11.32628571 | K96: 11.32628571 | L96: 7.9284
D97: 06069687 | E97: 378M2702SA Z RE V20R906 | F97: TANDEMBOX antaro Царга "M" 270мм сер. Пр. | G97: 1 | H97: =IF(PriceSwitch=1,L97-(L97*AddDisc%),K97)*Kurs -> 11.32628571 | K97: 11.32628571 | L97: 7.9284
D98: 08046150 | E98: ZAA.532C.BLABD V1000R737 | F98: Заглушка antaro с лого Blum т.сер. | G98: 2 | H98: =IF(PriceSwitch=1,L98-(L98*AddDisc%),K98)*Kurs -> 0.1690285714 | K98: 0.1690285714 | L98: 0.11832
D99: 08000501 | E99: 578.2701B K R+L MP ZN | F99: Tandembox Направл. 30кг BLUMOTION 270мм Л+П | G99: 1 | H99: =IF(PriceSwitch=1,L99-(L99*AddDisc%),K99)*Kurs -> 24.88834286 | K99: 24.88834286 | L99: 17.42184
D100: 04722050 | E100: Z30D000S HO-R L V50R906 | F100: Держатель задней стенки "D" для TANDEMBOX, сер. Ле. | G100: 1 | H100: =IF(PriceSwitch=1,L100-(L100*AddDisc%),K100)*Kurs -> 1.885028571 | K100: 1.885028571 | L100: 1.31952
D101: 04721830 | E101: Z30D000S HO-R R V50R906 | F101: Держатель задней стенки "D" для TANDEMBOX, сер. Пр. | G101: 1 | H101: =IF(PriceSwitch=1,L101-(L101*AddDisc%),K101)*Kurs -> 1.885028571 | K101: 1.885028571 | L101: 1.31952
D102: 08338119 | E102: ZSF.39A2 FROB V500 BL | F102: Крепл. фасада Tandembox INSERTA симм. | G102: 2 | H102: =IF(PriceSwitch=1,L102-(L102*AddDisc%),K102)*Kurs -> 1.165371429 | K102: 1.165371429 | L102: 0.81576
D103: 03425990 | E103: ZRG.207RSICREL*LAE L R906 | F103: Релинг Tandembox antaro 270мм (к ящику с фас., верхний) сер., Ле. | G103: 1 | H103: =IF(PriceSwitch=1,L103-(L103*AddDisc%),K103)*Kurs -> 4.298228571 | K103: 4.298228571 | L103: 3.00876
D104: 07764690 | E104: ZRG.207RSICREL*LAE R R906 | F104: Релинг Tandembox antaro 270мм (к ящику с фас., верхний) сер., Пр. | G104: 1 | H104: =IF(PriceSwitch=1,L104-(L104*AddDisc%),K104)*Kurs -> 4.298228571 | K104: 4.298228571 | L104: 3.00876
H105: =IF(PriceSwitch=1,L105-(L105*AddDisc%),K105)*Kurs -> 0
A106: AF1D27O | B106: 01325370 | C106: 378M27B0ST *AF1D27O MOG-M | E106: TANDEMBOX дизайн T, царга M, с выс. фас., "D", 1 релинг, 270мм, сер.орион | H106: =IF(PriceSwitch=1,L106-(L106*AddDisc%),K106)*Kurs -> 62.97462857 | K106: 62.97462857 | L106: 44.08224
A107: <-- | D107: 04866053 | E107: 378M2702ST Z LI V20OG-M | F107: TANDEMBOX antaro (дизайн T) Царга "M" 270мм сер.орион Ле. | G107: 1 | H107: =IF(PriceSwitch=1,L107-(L107*AddDisc%),K107)*Kurs -> 11.41885714 | K107: 11.41885714 | L107: 7.9932
D108: 04857770 | E108: 378M2702ST Z RE V20OG-M | F108: TANDEMBOX antaro (дизайн T) Царга "M" 270мм сер.орион Пр. | G108: 1 | H108: =IF(PriceSwitch=1,L108-(L108*AddDisc%),K108)*Kurs -> 11.41885714 | K108: 11.41885714 | L108: 7.9932
D109: 08046150 | E109: ZAA.532C.BLABD V1000R737 | F109: Заглушка antaro с лого Blum т.сер. | G109: 2 | H109: =IF(PriceSwitch=1,L109-(L109*AddDisc%),K109)*Kurs -> 0.1690285714 | K109: 0.1690285714 | L109: 0.11832
D110: 08000501 | E110: 578.2701B K R+L MP ZN | F110: Tandembox Направл. 30кг BLUMOTION 270мм Л+П | G110: 1 | H110: =IF(PriceSwitch=1,L110-(L110*AddDisc%),K110)*Kurs -> 24.88834286 | K110: 24.88834286 | L110: 17.42184
D111: 07334670 | E111: Z30D000S HO-R L V50OG-M | F111: Держатель задней стенки "D" для TANDEMBOX, сер.орион Ле. | G111: 1 | H111: =IF(PriceSwitch=1,L111-(L111*AddDisc%),K111)*Kurs -> 1.885028571 | K111: 1.885028571 | L111: 1.31952
D112: 07334590 | E112: Z30D000S HO-R R V50OG-M | F112: Держатель задней стенки "D" для TANDEMBOX, сер.орион Пр. | G112: 1 | H112: =IF(PriceSwitch=1,L112-(L112*AddDisc%),K112)*Kurs -> 1.885028571 | K112: 1.885028571 | L112: 1.31952
D113: 08338119 | E113: ZSF.39A2 FROB V500 BL | F113: Крепл. фасада Tandembox INSERTA симм. | G113: 2 | H113: =IF(PriceSwitch=1,L113-(L113*AddDisc%),K113)*Kurs -> 1.165371429 | K113: 1.165371429 | L113: 0.81576
D114: 01964111 | E114: ZRG.207RSICREL*LAE L OG-M | F114: Релинг Tandembox antaro 270мм (к ящику с фас., верхний) сер.орион, Ле. | G114: 1 | H114: =IF(PriceSwitch=1,L114-(L114*AddDisc%),K114)*Kurs -> 4.404857143 | K114: 4.404857143 | L114: 3.0834
D115: 07277531 | E115: ZRG.207RSICREL*LAE R OG-M | F115: Релинг Tandembox antaro 270мм (к ящику с фас., верхний) сер.орион, Пр. | G115: 1 | H115: =IF(PriceSwitch=1,L115-(L115*AddDisc%),K115)*Kurs -> 4.404857143 | K115: 4.404857143 | L115: 3.0834
H116: =IF(PriceSwitch=1,L116-(L116*AddDisc%),K116)*Kurs -> 0
A117: AF1D27W | B117: 05726874 | C117: 378M27B0SA *AF1D27W MSEIW | E117: TANDEMBOX antaro M с выс. фас., "D", 1 релинг, 270мм, бел.ш. | H117: =IF(PriceSwitch=1,L117-(L117*AddDisc%),K117)*Kurs -> 62.57622857 | K117: 62.57622857 | L117: 43.80336
A118: <-- | D118: 01066967 | E118: 378M2702SA Z LI V20SEIW | F118: TANDEMBOX antaro Царга "M" 270мм бел.шёлк Ле. | G118: 1 | H118: =IF(PriceSwitch=1,L118-(L118*AddDisc%),K118)*Kurs -> 11.32628571 | K118: 11.32628571 | L118: 7.9284
D119: 01060840 | E119: 378M2702SA Z RE V20SEIW | F119: TANDEMBOX antaro Царга "M" 270мм бел.шёлк Пр. | G119: 1 | H119: =IF(PriceSwitch=1,L119-(L119*AddDisc%),K119)*Kurs -> 11.32628571 | K119: 11.32628571 | L119: 7.9284
D120: 08046152 | E120: ZAA.532C.BLABD V1000SEIW | F120: Заглушка antaro с лого Blum бел.шёлк | G120: 2 | H120: =IF(PriceSwitch=1,L120-(L120*AddDisc%),K120)*Kurs -> 0.1690285714 | K120: 0.1690285714 | L120: 0.11832
D121: 08000501 | E121: 578.2701B K R+L MP ZN | F121: Tandembox Направл. 30кг BLUMOTION 270мм Л+П | G121: 1 | H121: =IF(PriceSwitch=1,L121-(L121*AddDisc%),K121)*Kurs -> 24.88834286 | K121: 24.88834286 | L121: 17.42184
D122: 04722052 | E122: Z30D000S HO-R L V50SEIW | F122: Держатель задней стенки "D" для TANDEMBOX, бел.шёлк Ле. | G122: 1 | H122: =IF(PriceSwitch=1,L122-(L122*AddDisc%),K122)*Kurs -> 1.885028571 | K122: 1.885028571 | L122: 1.31952
D123: 04721832 | E123: Z30D000S HO-R R V50SEIW | F123: Держатель задней стенки "D" для TANDEMBOX, бел.шёлк Пр. | G123: 1 | H123: =IF(PriceSwitch=1,L123-(L123*AddDisc%),K123)*Kurs -> 1.885028571 | K123: 1.885028571 | L123: 1.31952
D124: 08338119 | E124: ZSF.39A2 FROB V500 BL | F124: Крепл. фасада Tandembox INSERTA симм. | G124: 2 | H124: =IF(PriceSwitch=1,L124-(L124*AddDisc%),K124)*Kurs -> 1.165371429 | K124: 1.165371429 | L124: 0.81576
D125: 04536661 | E125: ZRG.207RSICREL*LAE L SEIW | F125: Релинг Tandembox antaro 270мм (к ящику с фас., верхний) бел.шёлк, Ле. | G125: 1 | H125: =IF(PriceSwitch=1,L125-(L125*AddDisc%),K125)*Kurs -> 4.298228571 | K125: 4.298228571 | L125: 3.00876
D126: 06191701 | E126: ZRG.207RSICREL*LAE R SEIW | F126: Релинг Tandembox antaro 270мм (к ящику с фас., верхний) бел.шёлк, Пр. | G126: 1 | H126: =IF(PriceSwitch=1,L126-(L126*AddDisc%),K126)*Kurs -> 4.298228571 | K126: 4.298228571 | L126: 3.00876
H127: =IF(PriceSwitch=1,L127-(L127*AddDisc%),K127)*Kurs -> 0
A128: AF1D30O | B128: 07020746 | C128: 378M30B0ST *AF1D30O MOG-M | E128: TANDEMBOX дизайн T, царга M, с выс. фас., "D", 1 релинг, 300мм, сер.орион | H128: =IF(PriceSwitch=1,L128-(L128*AddDisc%),K128)*Kurs -> 63.12342857 | K128: 63.12342857 | L128: 44.1864
A129: <-- | D129: 06052884 | E129: 378M3002ST Z LI V20OG-M | F129: TANDEMBOX antaro (дизайн T) Царга "M" 300мм сер.орион Ле. | G129: 1 | H129: =IF(PriceSwitch=1,L129-(L129*AddDisc%),K129)*Kurs -> 11.41885714 | K129: 11.41885714 | L129: 7.9932
D130: 06041514 | E130: 378M3002ST Z RE V20OG-M | F130: TANDEMBOX antaro (дизайн T) Царга "M" 300мм сер.орион Пр. | G130: 1 | H130: =IF(PriceSwitch=1,L130-(L130*AddDisc%),K130)*Kurs -> 11.41885714 | K130: 11.41885714 | L130: 7.9932
D131: 08046150 | E131: ZAA.532C.BLABD V1000R737 | F131: Заглушка antaro с лого Blum т.сер. | G131: 2 | H131: =IF(PriceSwitch=1,L131-(L131*AddDisc%),K131)*Kurs -> 0.1690285714 | K131: 0.1690285714 | L131: 0.11832
D132: 08091502 | E132: 578.3001B K R+L MP ZN | F132: Tandembox Направл. 30кг BLUMOTION 300мм Л+П | G132: 1 | H132: =IF(PriceSwitch=1,L132-(L132*AddDisc%),K132)*Kurs -> 24.88834286 | K132: 24.88834286 | L132: 17.42184
D133: 07334670 | E133: Z30D000S HO-R L V50OG-M | F133: Держатель задней стенки "D" для TANDEMBOX, сер.орион Ле. | G133: 1 | H133: =IF(PriceSwitch=1,L133-(L133*AddDisc%),K133)*Kurs -> 1.885028571 | K133: 1.885028571 | L133: 1.31952
D134: 07334590 | E134: Z30D000S HO-R R V50OG-M | F134: Держатель задней стенки "D" для TANDEMBOX, сер.орион Пр. | G134: 1 | H134: =IF(PriceSwitch=1,L134-(L134*AddDisc%),K134)*Kurs -> 1.885028571 | K134: 1.885028571 | L134: 1.31952
D135: 08338119 | E135: ZSF.39A2 FROB V500 BL | F135: Крепл. фасада Tandembox INSERTA симм. | G135: 2 | H135: =IF(PriceSwitch=1,L135-(L135*AddDisc%),K135)*Kurs -> 1.165371429 | K135: 1.165371429 | L135: 0.81576
D136: 07610049 | E136: ZRG.237RSICREL*LAE L OG-M | F136: Релинг Tandembox antaro 300мм (к ящику с фас., верхний) сер.орион, Ле. | G136: 1 | H136: =IF(PriceSwitch=1,L136-(L136*AddDisc%),K136)*Kurs -> 4.479257143 | K136: 4.479257143 | L136: 3.13548
D137: 09710579 | E137: ZRG.237RSICREL*LAE R OG-M | F137: Релинг Tandembox antaro 300мм (к ящику с фас., верхний) сер.орион, Пр. | G137: 1 | H137: =IF(PriceSwitch=1,L137-(L137*AddDisc%),K137)*Kurs -> 4.479257143 | K137: 4.479257143 | L137: 3.13548
H138: =IF(PriceSwitch=1,L138-(L138*AddDisc%),K138)*Kurs -> 0
A139: AF1D35B | B139: 07628098 | C139: 378M35B0SA *AF1D35B MTERS | E139: TANDEMBOX antaro M с выс. фас., "D", 1 релинг, 350мм, т.чёрн. | H139: =IF(PriceSwitch=1,L139-(L139*AddDisc%),K139)*Kurs -> 62.53577143 | K139: 62.53577143 | L139: 43.77504
A140: <-- | D140: 06498575 | E140: 378M3502SA Z LI V20TERS | F140: TANDEMBOX antaro Царга "M" 350мм т.чёрн. Ле. | G140: 1 | H140: =IF(PriceSwitch=1,L140-(L140*AddDisc%),K140)*Kurs -> 11.32628571 | K140: 11.32628571 | L140: 7.9284
D141: 08359762 | E141: 578.3501B K R+L MP ZN | F141: Tandembox Направл. 30кг BLUMOTION 350мм Л+П | G141: 1 | H141: =IF(PriceSwitch=1,L141-(L141*AddDisc%),K141)*Kurs -> 24.88834286 | K141: 24.88834286 | L141: 17.42184
D142: 04722054 | E142: Z30D000S HO-R L V50TERS | F142: Держатель задней стенки "D" для TANDEMBOX, т.чёрн. Ле. | G142: 1 | H142: =IF(PriceSwitch=1,L142-(L142*AddDisc%),K142)*Kurs -> 1.885028571 | K142: 1.885028571 | L142: 1.31952
D143: 04721834 | E143: Z30D000S HO-R R V50TERS | F143: Держатель задней стенки "D" для TANDEMBOX, т.чёрн. Пр. | G143: 1 | H143: =IF(PriceSwitch=1,L143-(L143*AddDisc%),K143)*Kurs -> 1.885028571 | K143: 1.885028571 | L143: 1.31952
D144: 08338119 | E144: ZSF.39A2 FROB V500 BL | F144: Крепл. фасада Tandembox INSERTA симм. | G144: 2 | H144: =IF(PriceSwitch=1,L144-(L144*AddDisc%),K144)*Kurs -> 1.165371429 | K144: 1.165371429 | L144: 0.81576
D145: 03719331 | E145: ZRG.287RSICREL*LAE L TERS | F145: Релинг Tandembox antaro 350мм (к ящику с фас., верхний) т.чёрн., Ле. | G145: 1 | H145: =IF(PriceSwitch=1,L145-(L145*AddDisc%),K145)*Kurs -> 4.447028571 | K145: 4.447028571 | L145: 3.11292
D146: 08629361 | E146: ZRG.287RSICREL*LAE R TERS | F146: Релинг Tandembox antaro 350мм (к ящику с фас., верхний) т.чёрн., Пр. | G146: 1 | H146: =IF(PriceSwitch=1,L146-(L146*AddDisc%),K146)*Kurs -> 4.447028571 | K146: 4.447028571 | L146: 3.11292
D147: 06495837 | E147: 378M3502SA Z RE V20TERS | F147: TANDEMBOX antaro Царга "M" 350мм т.чёрн. Пр. | G147: 1 | H147: =IF(PriceSwitch=1,L147-(L147*AddDisc%),K147)*Kurs -> 11.32628571 | K147: 11.32628571 | L147: 7.9284
H148: =IF(PriceSwitch=1,L148-(L148*AddDisc%),K148)*Kurs -> 0
A149: AF1D35G | B149: 09559723 | C149: 378M35B0SA *AF1D35G MR906 | E149: TANDEMBOX antaro M с выс. фас., "D", 1 релинг, 350мм, сер. | H149: =IF(PriceSwitch=1,L149-(L149*AddDisc%),K149)*Kurs -> 63.21977143 | K149: 63.21977143 | L149: 44.25384
A150: <-- | D150: 06491725 | E150: 378M3502SA Z LI V20R906 | F150: TANDEMBOX antaro Царга "M" 350мм сер. Ле. | G150: 1 | H150: =IF(PriceSwitch=1,L150-(L150*AddDisc%),K150)*Kurs -> 11.32628571 | K150: 11.32628571 | L150: 7.9284
D151: 06474650 | E151: 378M3502SA Z RE V20R906 | F151: TANDEMBOX antaro Царга "M" 350мм сер. Пр. | G151: 1 | H151: =IF(PriceSwitch=1,L151-(L151*AddDisc%),K151)*Kurs -> 11.32628571 | K151: 11.32628571 | L151: 7.9284
D152: 08046150 | E152: ZAA.532C.BLABD V1000R737 | F152: Заглушка antaro с лого Blum т.сер. | G152: 2 | H152: =IF(PriceSwitch=1,L152-(L152*AddDisc%),K152)*Kurs -> 0.1690285714 | K152: 0.1690285714 | L152: 0.11832
D153: 08359762 | E153: 578.3501B K R+L MP ZN | F153: Tandembox Направл. 30кг BLUMOTION 350мм Л+П | G153: 1 | H153: =IF(PriceSwitch=1,L153-(L153*AddDisc%),K153)*Kurs -> 24.88834286 | K153: 24.88834286 | L153: 17.42184
D154: 04722050 | E154: Z30D000S HO-R L V50R906 | F154: Держатель задней стенки "D" для TANDEMBOX, сер. Ле. | G154: 1 | H154: =IF(PriceSwitch=1,L154-(L154*AddDisc%),K154)*Kurs -> 1.885028571 | K154: 1.885028571 | L154: 1.31952
D155: 04721830 | E155: Z30D000S HO-R R V50R906 | F155: Держатель задней стенки "D" для TANDEMBOX, сер. Пр. | G155: 1 | H155: =IF(PriceSwitch=1,L155-(L155*AddDisc%),K155)*Kurs -> 1.885028571 | K155: 1.885028571 | L155: 1.31952
D156: 08338119 | E156: ZSF.39A2 FROB V500 BL | F156: Крепл. фасада Tandembox INSERTA симм. | G156: 2 | H156: =IF(PriceSwitch=1,L156-(L156*AddDisc%),K156)*Kurs -> 1.165371429 | K156: 1.165371429 | L156: 0.81576
D157: 04262438 | E157: ZRG.287RSICRE*R+L MP R906 | F157: Релинг Tandembox antaro 350мм (к ящику с фас., верхний) сер., Л+П | G157: 1 | H157: =IF(PriceSwitch=1,L157-(L157*AddDisc%),K157)*Kurs -> 9.24 | K157: 9.24 | L157: 6.468
H158: =IF(PriceSwitch=1,L158-(L158*AddDisc%),K158)*Kurs -> 0
A159: AF1D35O | B159: 08293034 | C159: 378M35B0ST *AF1D35O MOG-M | E159: TANDEMBOX дизайн T, царга M, с выс. фас., "D", 1 релинг, 350мм, сер.орион | H159: =IF(PriceSwitch=1,L159-(L159*AddDisc%),K159)*Kurs -> 63.27222857 | K159: 63.27222857 | L159: 44.29056
A160: <-- | D160: 06099902 | E160: 378M3502ST Z LI V20OG-M | F160: TANDEMBOX antaro (дизайн T) Царга "M" 350мм сер.орион Ле. | G160: 1 | H160: =IF(PriceSwitch=1,L160-(L160*AddDisc%),K160)*Kurs -> 11.41885714 | K160: 11.41885714 | L160: 7.9932
D161: 06086856 | E161: 378M3502ST Z RE V20OG-M | F161: TANDEMBOX antaro (дизайн T) Царга "M" 350мм сер.орион Пр. | G161: 1 | H161: =IF(PriceSwitch=1,L161-(L161*AddDisc%),K161)*Kurs -> 11.41885714 | K161: 11.41885714 | L161: 7.9932
D162: 08046150 | E162: ZAA.532C.BLABD V1000R737 | F162: Заглушка antaro с лого Blum т.сер. | G162: 2 | H162: =IF(PriceSwitch=1,L162-(L162*AddDisc%),K162)*Kurs -> 0.1690285714 | K162: 0.1690285714 | L162: 0.11832
D163: 08359762 | E163: 578.3501B K R+L MP ZN | F163: Tandembox Направл. 30кг BLUMOTION 350мм Л+П | G163: 1 | H163: =IF(PriceSwitch=1,L163-(L163*AddDisc%),K163)*Kurs -> 24.88834286 | K163: 24.88834286 | L163: 17.42184
D164: 07334670 | E164: Z30D000S HO-R L V50OG-M | F164: Держатель задней стенки "D" для TANDEMBOX, сер.орион Ле. | G164: 1 | H164: =IF(PriceSwitch=1,L164-(L164*AddDisc%),K164)*Kurs -> 1.885028571 | K164: 1.885028571 | L164: 1.31952
D165: 07334590 | E165: Z30D000S HO-R R V50OG-M | F165: Держатель задней стенки "D" для TANDEMBOX, сер.орион Пр. | G165: 1 | H165: =IF(PriceSwitch=1,L165-(L165*AddDisc%),K165)*Kurs -> 1.885028571 | K165: 1.885028571 | L165: 1.31952
D166: 08338119 | E166: ZSF.39A2 FROB V500 BL | F166: Крепл. фасада Tandembox INSERTA симм. | G166: 2 | H166: =IF(PriceSwitch=1,L166-(L166*AddDisc%),K166)*Kurs -> 1.165371429 | K166: 1.165371429 | L166: 0.81576
D167: 04121820 | E167: ZRG.287RSICREL*LAE L OG-M | F167: Релинг Tandembox antaro 350мм (к ящику с фас., верхний) сер.орион, Ле. | G167: 1 | H167: =IF(PriceSwitch=1,L167-(L167*AddDisc%),K167)*Kurs -> 4.553657143 | K167: 4.553657143 | L167: 3.18756
D168: 09300720 | E168: ZRG.287RSICREL*LAE R OG-M | F168: Релинг Tandembox antaro 350мм (к ящику с фас., верхний) сер.орион, Пр. | G168: 1 | H168: =IF(PriceSwitch=1,L168-(L168*AddDisc%),K168)*Kurs -> 4.553657143 | K168: 4.553657143 | L168: 3.18756
H169: =IF(PriceSwitch=1,L169-(L169*AddDisc%),K169)*Kurs -> 0
A170: AF1D35W | B170: 04976045 | C170: 378M35B0SA *AF1D35W MSEIW | E170: TANDEMBOX antaro M с выс. фас., "D", 1 релинг, 350мм, бел.ш. | H170: =IF(PriceSwitch=1,L170-(L170*AddDisc%),K170)*Kurs -> 62.87382857 | K170: 62.87382857 | L170: 44.01168
A171: <-- | D171: 01391462 | E171: 378M3502SA Z LI V20SEIW | F171: TANDEMBOX antaro Царга "M" 350мм бел.шёлк Ле. | G171: 1 | H171: =IF(PriceSwitch=1,L171-(L171*AddDisc%),K171)*Kurs -> 11.32628571 | K171: 11.32628571 | L171: 7.9284
D172: 08359762 | E172: 578.3501B K R+L MP ZN | F172: Tandembox Направл. 30кг BLUMOTION 350мм Л+П | G172: 1 | H172: =IF(PriceSwitch=1,L172-(L172*AddDisc%),K172)*Kurs -> 24.88834286 | K172: 24.88834286 | L172: 17.42184
D173: 04722052 | E173: Z30D000S HO-R L V50SEIW | F173: Держатель задней стенки "D" для TANDEMBOX, бел.шёлк Ле. | G173: 1 | H173: =IF(PriceSwitch=1,L173-(L173*AddDisc%),K173)*Kurs -> 1.885028571 | K173: 1.885028571 | L173: 1.31952
D174: 04721832 | E174: Z30D000S HO-R R V50SEIW | F174: Держатель задней стенки "D" для TANDEMBOX, бел.шёлк Пр. | G174: 1 | H174: =IF(PriceSwitch=1,L174-(L174*AddDisc%),K174)*Kurs -> 1.885028571 | K174: 1.885028571 | L174: 1.31952
D175: 08338119 | E175: ZSF.39A2 FROB V500 BL | F175: Крепл. фасада Tandembox INSERTA симм. | G175: 2 | H175: =IF(PriceSwitch=1,L175-(L175*AddDisc%),K175)*Kurs -> 1.165371429 | K175: 1.165371429 | L175: 0.81576
D176: 05343193 | E176: ZRG.287RSICREL*LAE L SEIW | F176: Релинг Tandembox antaro 350мм (к ящику с фас., верхний) бел.шёлк, Ле. | G176: 1 | H176: =IF(PriceSwitch=1,L176-(L176*AddDisc%),K176)*Kurs -> 4.447028571 | K176: 4.447028571 | L176: 3.11292
D177: 06457513 | E177: ZRG.287RSICREL*LAE R SEIW | F177: Релинг Tandembox antaro 350мм (к ящику с фас., верхний) бел.шёлк, Пр. | G177: 1 | H177: =IF(PriceSwitch=1,L177-(L177*AddDisc%),K177)*Kurs -> 4.447028571 | K177: 4.447028571 | L177: 3.11292
D178: 08046152 | E178: ZAA.532C.BLABD V1000SEIW | F178: Заглушка antaro с лого Blum бел.шёлк | G178: 2 | H178: =IF(PriceSwitch=1,L178-(L178*AddDisc%),K178)*Kurs -> 0.1690285714 | K178: 0.1690285714 | L178: 0.11832
D179: 01365463 | E179: 378M3502SA Z RE V20SEIW | F179: TANDEMBOX antaro Царга "M" 350мм бел.шёлк Пр. | G179: 1 | H179: =IF(PriceSwitch=1,L179-(L179*AddDisc%),K179)*Kurs -> 11.32628571 | K179: 11.32628571 | L179: 7.9284
H180: =IF(PriceSwitch=1,L180-(L180*AddDisc%),K180)*Kurs -> 0
A181: AF1D40B | B181: 01277585 | C181: 378M40B0SA *AF1D40B MTERS | E181: TANDEMBOX antaro M с выс. фас., "D", 1 релинг, 400мм, т.чёрн. | H181: =IF(PriceSwitch=1,L181-(L181*AddDisc%),K181)*Kurs -> 68.31514286 | K181: 68.31514286 | L181: 47.8206
A182: <-- | D182: 08456024 | E182: 378M4002SA Z R+L V1 TERS | F182: TANDEMBOX antaro Царга "M" 400мм т.чёрн. Л+П | G182: 1 | H182: =IF(PriceSwitch=1,L182-(L182*AddDisc%),K182)*Kurs -> 27.75137143 | K182: 27.75137143 | L182: 19.42596
D183: 08445585 | E183: 578.4001B K R+L MP ZN | F183: Tandembox Направл. 30кг BLUMOTION 400мм Л+П | G183: 1 | H183: =IF(PriceSwitch=1,L183-(L183*AddDisc%),K183)*Kurs -> 25.07434286 | K183: 25.07434286 | L183: 17.55204
D184: 04722054 | E184: Z30D000S HO-R L V50TERS | F184: Держатель задней стенки "D" для TANDEMBOX, т.чёрн. Ле. | G184: 1 | H184: =IF(PriceSwitch=1,L184-(L184*AddDisc%),K184)*Kurs -> 1.885028571 | K184: 1.885028571 | L184: 1.31952
D185: 04721834 | E185: Z30D000S HO-R R V50TERS | F185: Держатель задней стенки "D" для TANDEMBOX, т.чёрн. Пр. | G185: 1 | H185: =IF(PriceSwitch=1,L185-(L185*AddDisc%),K185)*Kurs -> 1.885028571 | K185: 1.885028571 | L185: 1.31952
D186: 08338119 | E186: ZSF.39A2 FROB V500 BL | F186: Крепл. фасада Tandembox INSERTA симм. | G186: 2 | H186: =IF(PriceSwitch=1,L186-(L186*AddDisc%),K186)*Kurs -> 1.165371429 | K186: 1.165371429 | L186: 0.81576
D187: 07703025 | E187: ZRG.337RSICRE*R+L MP TERS | F187: Релинг Tandembox antaro 400мм (к ящику с фас., верхний) т.чёрн., Л+П | G187: 1 | H187: =IF(PriceSwitch=1,L187-(L187*AddDisc%),K187)*Kurs -> 9.388628571 | K187: 9.388628571 | L187: 6.57204
H188: =IF(PriceSwitch=1,L188-(L188*AddDisc%),K188)*Kurs -> 0
A189: AF1D40G | B189: 04584296 | C189: 378M40B0SA *AF1D40G MR906 | E189: TANDEMBOX antaro M с выс. фас., "D", 1 релинг, 400мм, сер. | H189: =IF(PriceSwitch=1,L189-(L189*AddDisc%),K189)*Kurs -> 63.80057143 | K189: 63.80057143 | L189: 44.6604
A190: <-- | D190: 06514512 | E190: 378M4002SA Z LI V20R906 | F190: TANDEMBOX antaro Царга "M" 400мм сер. Ле. | G190: 1 | H190: =IF(PriceSwitch=1,L190-(L190*AddDisc%),K190)*Kurs -> 11.44937143 | K190: 11.44937143 | L190: 8.01456
D191: 08445585 | E191: 578.4001B K R+L MP ZN | F191: Tandembox Направл. 30кг BLUMOTION 400мм Л+П | G191: 1 | H191: =IF(PriceSwitch=1,L191-(L191*AddDisc%),K191)*Kurs -> 25.07434286 | K191: 25.07434286 | L191: 17.55204
D192: 04722050 | E192: Z30D000S HO-R L V50R906 | F192: Держатель задней стенки "D" для TANDEMBOX, сер. Ле. | G192: 1 | H192: =IF(PriceSwitch=1,L192-(L192*AddDisc%),K192)*Kurs -> 1.885028571 | K192: 1.885028571 | L192: 1.31952
D193: 04721830 | E193: Z30D000S HO-R R V50R906 | F193: Держатель задней стенки "D" для TANDEMBOX, сер. Пр. | G193: 1 | H193: =IF(PriceSwitch=1,L193-(L193*AddDisc%),K193)*Kurs -> 1.885028571 | K193: 1.885028571 | L193: 1.31952
D194: 08338119 | E194: ZSF.39A2 FROB V500 BL | F194: Крепл. фасада Tandembox INSERTA симм. | G194: 2 | H194: =IF(PriceSwitch=1,L194-(L194*AddDisc%),K194)*Kurs -> 1.165371429 | K194: 1.165371429 | L194: 0.81576
D195: 03741088 | E195: ZRG.337RSICRE*R+L MP R906 | F195: Релинг Tandembox antaro 400мм (к ящику с фас., верхний) сер., Л+П | G195: 1 | H195: =IF(PriceSwitch=1,L195-(L195*AddDisc%),K195)*Kurs -> 9.388628571 | K195: 9.388628571 | L195: 6.57204
D196: 08046150 | E196: ZAA.532C.BLABD V1000R737 | F196: Заглушка antaro с лого Blum т.сер. | G196: 2 | H196: =IF(PriceSwitch=1,L196-(L196*AddDisc%),K196)*Kurs -> 0.1690285714 | K196: 0.1690285714 | L196: 0.11832
D197: 06512281 | E197: 378M4002SA Z RE V20R906 | F197: TANDEMBOX antaro Царга "M" 400мм сер. Пр. | G197: 1 | H197: =IF(PriceSwitch=1,L197-(L197*AddDisc%),K197)*Kurs -> 11.44937143 | K197: 11.44937143 | L197: 8.01456
H198: =IF(PriceSwitch=1,L198-(L198*AddDisc%),K198)*Kurs -> 0
A199: AF1D40O | B199: 06684831 | C199: 378M40B0ST *AF1D40O MOG-M | E199: TANDEMBOX дизайн T, царга M, с выс. фас., "D", 1 релинг, 400мм, сер.орион | H199: =IF(PriceSwitch=1,L199-(L199*AddDisc%),K199)*Kurs -> 63.85251429 | K199: 63.85251429 | L199: 44.69676
A200: <-- | D200: 07830527 | E200: 378M4002ST Z LI V20OG-M | F200: TANDEMBOX antaro (дизайн T) Царга "M" 400мм сер.орион Ле. | G200: 1 | H200: =IF(PriceSwitch=1,L200-(L200*AddDisc%),K200)*Kurs -> 11.54177143 | K200: 11.54177143 | L200: 8.07924
... 4300 more rows

Sheet Параметры
B2: Курс Евро: | C2: 1 | L2: Незащищенные ячейки:
B3: Цены: | H3: Di: (Discount 1+2) | I3: =1-($C$3/100) -> 1
H4: Цена юрлиц (1) / розн. (2): | I4: 2 | K4: zProcess: | L4: FALSE
B5: Доп. скидка юрлиц:
H6: DiscountFull | I6: =IF(PriceSwitch=1,IF(AddDisc>0,"Цена юр.-"&AddDisc&"%","Цена юрлиц"),"Цена розн.") -> Цена розн. | K6: NoSepFile: | L6: FALSE
B7: Дата: | C7: 2021-09-21 | H7: KursFull:
B8: ="(сегодня: "&TEXT(TODAY(),"ДД.ММ.ГГГГ")&")" -> (сегодня: 21.09.2021) | K8: Версия Excel: | L8: 2016
H12: Текущий номер! (WB_Version) | L12: 5 формул с если: (_Fin)
H13: <- заносится кнопкой | K13: Update_Availability: | L13: =IF(SUBSTITUTE(Price_Inet_Date,"-","")>SUBSTITUTE(Price_WB_Date,"-",""),"Доступно обновление!","Обновлений нет") -> Обновлений нет
H14: V5.3.2.предварительный | J14: V5.3.2 | K14: Price_Inet_Version_Fin: | L14: =IF(Update_Availability="Доступно обновление!",Price_Inet_Version,"-") -> -
H15: 2021-09-22 | J15: 2021-07-01 | K15: Price_Inet_Date_Fin: | L15: =IF(Update_Availability="Доступно обновление!",Price_Inet_Date,"-") -> -
G16: ShowFotoParam: | H16: Размер шрифта здесь не менять!
G17: TRUE | K17: Доступно обновл.: | L17: =IF(Update_Availability="Доступно обновление!","Что нового","") -> 
G18: PicLoadParam: | K18: Нажмите для скач: | L18: =IF(Update_Availability="Доступно обновление!","Для скачивания нажмите ""Проверить обновление""! ","") -> 
G19: 3 | K19: Скачать (ссылка).: | L19: =IF(Update_Availability="Доступно обновление!",HYPERLINK("https://www.blum-training.ru/price_exel_update.html","Скачать обновление"),"") -> 
G20: on
G21: form | J21: Описание в справку грузится
J22: автоматически!
J23: V. 5.3.2:<br>- Новые цены<br>- Новые заглушки HF/HS/HL<br>- Доп. длины комплектов TANDEMBOX<br>- Цены юрлиц для приспособлений<br>- Другие изменения | K23: Price_Inet_Info_Fin: | L23: =IF(Update_Availability="Доступно обновление!",SUBSTITUTE(Price_Inet_Info,"<br>",CHAR(10)),"") -> 

Sheet Справка
B1: Справка – содержание
B2: Требования к ПО / Включение макросов
B3: Панель управления – лист «Прайс»
B4: Панель управления – лист «Артикулы»
B5: Комплектация – лист «Комплекты»
B6: Настройки курса, скидки и др. – лист «Параметры»
B7: Отдельный файл заказа – листы «Заказ» и «Сумм.»
B8: Заказ без макросов в Excel, в «OpenOffice»/«LibreOffice» и т.п.
B9: Сокращения
B10: Контакты и техническая поддержка
B11: Что нового
B14: Требования к ПО / Включение макросов
B15: n Автоматический заказ (с помощью макросов) возможен только в версиях, начиная с MS Excel 2010!
B16: n Макросы в «OpenOffice»/«LibreOffice» необходимо отключить!
B18: n Включение макросов вручную:
B19: “Файл” -> “Параметры” -> "Параметры центра управления безопасностью" -> "Параметры макросов" -> "Включить все макросы"
B46: n
B47: n Во всех случаях после изменения настроек перезапустите Excel
B49: Панель управления – лист «Прайс»
B50: Заказ как по печатному прайс-листу
B124: Панель управления – лист «Артикулы»
B125: Заказ списка артикулов
B141: Комплектация – лист «Комплекты»
B142: n На листе «Прайс» для каждого комплекта имеется ссылка на лист «Комплекты», где показана полная комплектация
B144: Настройки курса, скидки и др. – лист «Параметры»
B145: n Курс Евро
B146: n Обновление курса при старте Excel или вручную
B147: n Скидки
B148: n Скидка юрлица
B149: n Дополнительная скидка от 0 до 100%
B150: n Загрузка фото – включение / отключение
B151: n Загрузка фото только при щелчке в колонке "B"
B152: n Проверка обновления прайс-листа
B153: n Заказ без создания отдельного файла
B156: Отдельный файл заказа – листы «Заказ» и «Сумм.»
B157: n Заказ сохраняется в отдельном файле, который имеет листы «Заказ» и «Сумм.»
B158: n Заказ сохраняется также и в основном файле прайс-листа на листах «Заказ» и «Сумм.», заменяя предыдущие данные
B159: n На листе «Заказ» – комплекты и артикулы
B160: n На листе «Сумм.» – отдельные артикулы (комплекты суммированы)
B161: n Сохранение данных в файле CSV требуется для заказа через систему OMP
B162: n Перед заказом данных CSV позиции заказа можно исправить на листе «Сумм.» в колонках "A" и "B"
B163: n Кнопка «Округлить» округляет до коробок
B164: n Возможно округление всех данных или только выделенных в колонке "B".
B166: Заказ без макросов в Excel, в «OpenOffice»/«LibreOffice» и т.п.
B167: n Макросы в «OpenOffice»/«LibreOffice» не работают! Возможен просмотр и копирование данных
B168: n Для заказа укажите нужное количество в соответствующих строках
B169: n В колонке "G" нажмите на стрелку ▼ автофильтра и выберите "Непустые"
B170: n Скопируйте данные в новую книгу
B172: Сокращения
B173: n НД Номинальная длина
B174: n ШК Ширина корпуса
B175: n SD SERVO-DRIVE
B176: n Ле. / Пр. / Л+П левый / правый / левый и правый
B177: n п.самор. / п.пресс / п.фальшп. под саморез / под пресс / под фальшпанель
B178: n Clip t. B. / Tandem+Bl. / Tandembox+Bl. CLIP top BLUMOTION / TANDEM plus BLUMOTION / TANDEMBOX plus BLUMOTION
B179: n Цвета
B180: n Сокращение Расшифровка Код в «Артикуле»
B181: n бел. / бел.ш. / бел.кр. белый / белый шёлк / белый крем W, W/G / SW,SEIW / R901
B182: n сер. серый WA, HGR, R906, R907, R704, SGWA
B183: n чёрн. / т.чёрн. чёрный / терра-чёрный
B184: n нерж. нержавейка IG, IG/G, IN-G
B185: n алюм. алюминий EV
B186: n коричн. коричневый B
B187: n Прим.: код в «№» отличается от кода в «Артикуле»
B189: Контакты и техническая поддержка
B190: n Полную информацию для заказа см. в печатной версии прайс-листа и в каталоге Blum
B191: n Заказы в головной офис, пожалуйста, отправляйте по адресу
B192: n Адреса дилеров Blum находятся на странице
B193: n Ваши отзывы и предложения отправляйте по адресу
B194: n В случае возникновения ошибки сделайте снимок экрана с ошибкой (кнопка "Print screen" на клавиатуре)
B195: n Отправьте файл Excel
B196: и снимок экрана по адресу
B199: Что нового
B200: =Price_Inet_Version & " от " &Price_Inet_Date -> V5.3.2 от 2021-07-01
B201: =SUBSTITUTE(Price_Inet_Info,"<br>",CHAR(10)) -> V. 5.3.2: - Новые цены - Новые заглушки HF/HS/HL - Доп. длины комплектов TANDEMBOX - Цены юрлиц для приспособлений - Другие изменения

Sheet Выбор_AVENTOS (hidden)
A1: Подбор комплекта | O1: Lift Mechanism Border Definition Factor (0,5-1)
A2: AVENTOS HF | C2: AVENTOS HL | E2: AVENTOS HK-S | J2: Для более точного и удобного подбора | O2: 0.8 | P2: Фактор "Граница для пересекающихся областей силовых механизмов"
A3: AVENTOS HS | C3: AVENTOS HK | E3: AVENTOS HK-XS | J3: комплектов рекомендуется использовать
A4: Расчёт веса фасада | J4: формы, предварительно включив макросы!
A5: Фасады из ДСП | C5: Фасады из алюм. рамки | H5: Информацию о включении макросов см. в "Справке"
J6: Возможные варианты только для специалистов!
A8: Подбор комплекта
A9: AVENTOS HF | M9: Подбор силового механизма | O9: HF
O10: По возр.(мин) | T10: По возр.(мин)
B11: Высота корпуса | E11: Вес фасада (включая вес ручки) | G11: 2 | J11: Коэффициент мощности | O11: =IF(HF_MechMain<> IF((AND(HF_KM>=960,HF_KM<=2650)),"F22(1) 1 мех.", IF((AND(HF_KM>=2600,HF_KM<=5500)),"F22", IF((AND(HF_KM>=5350,HF_KM<=10150)),"F25", IF((AND(HF_KM>=9000,HF_KM<=17250)),"F28", IF((AND(HF_KM>=13500,HF_KM<=25900)),"F28(3) 3 мех.",""))))), IF((AND(HF_KM>=960,HF_KM<=2650)),"F22(1) 1 мех.", IF((AND(HF_KM>=2600,HF_KM<=5500)),"F22", IF((AND(HF_KM>=5350,HF_KM<=10150)),"F25", IF((AND(HF_KM>=9000,HF_KM<=17250)),"F28", IF((AND(HF_KM>=13500,HF_KM<=25900)),"F28(3) 3 мех.",""))))),"") ->  | T11: =IF(HF_HebMain<> IF(OR(AND(HF_KorpusH>=480,HF_KorpusH<=570),HF_KorpusH="480-570"),"F32", IF(OR(AND(HF_KorpusH>=560,HF_KorpusH<=710),HF_KorpusH="560-710"),"F35", IF(OR(AND(HF_KorpusH>=700,HF_KorpusH<=900),HF_KorpusH="700-900"),"F38", IF(OR(AND(HF_KorpusH>=760,HF_KorpusH<=1040),HF_KorpusH="760-1040"),"F39","")))), IF(OR(AND(HF_KorpusH>=480,HF_KorpusH<=570),HF_KorpusH="480-570"),"F32", IF(OR(AND(HF_KorpusH>=560,HF_KorpusH<=710),HF_KorpusH="560-710"),"F35", IF(OR(AND(HF_KorpusH>=700,HF_KorpusH<=900),HF_KorpusH="700-900"),"F38", IF(OR(AND(HF_KorpusH>=760,HF_KorpusH<=1040),HF_KorpusH="760-1040"),"F39","")))),"") -> 
B12: 600 | C12: мм | D12: * | E12: 4.09 | F12: кг | H12: = | J12: =ROUND(HF_KorpusH*HF_Weight,0) -> 2454 | O12: По убыв.(макс) | T12: По убыв.(макс)
O13: =IF(HF_MechMain<> IF((AND(HF_KM>=13500,HF_KM<=25900)),"F28(3) 3 мех.", IF((AND(HF_KM>=9000,HF_KM<=17250)),"F28", IF((AND(HF_KM>=5350,HF_KM<=10150)),"F25", IF((AND(HF_KM>=2600,HF_KM<=5500)),"F22", IF((AND(HF_KM>=960,HF_KM<=2650)),"F22(1) 1 мех.",""))))), IF((AND(HF_KM>=13500,HF_KM<=25900)),"F28(3) 3 мех.", IF((AND(HF_KM>=9000,HF_KM<=17250)),"F28", IF((AND(HF_KM>=5350,HF_KM<=10150)),"F25", IF((AND(HF_KM>=2600,HF_KM<=5500)),"F22", IF((AND(HF_KM>=960,HF_KM<=2650)),"F22(1) 1 мех.",""))))),"") ->  | T13: =IF(HF_HebMain<> IF(OR(AND(HF_KorpusH>=760,HF_KorpusH<=1040),HF_KorpusH="760-1040"),"F39", IF(OR(AND(HF_KorpusH>=700,HF_KorpusH<=900),HF_KorpusH="700-900"),"F38", IF(OR(AND(HF_KorpusH>=560,HF_KorpusH<=710),HF_KorpusH="560-710"),"F35", IF(OR(AND(HF_KorpusH>=480,HF_KorpusH<=570),HF_KorpusH="480-570"),"F32","")))), IF(OR(AND(HF_KorpusH>=760,HF_KorpusH<=1040),HF_KorpusH="760-1040"),"F39", IF(OR(AND(HF_KorpusH>=700,HF_KorpusH<=900),HF_KorpusH="700-900"),"F38", IF(OR(AND(HF_KorpusH>=560,HF_KorpusH<=710),HF_KorpusH="560-710"),"F35", IF(OR(AND(HF_KorpusH>=480,HF_KorpusH<=570),HF_KorpusH="480-570"),"F32","")))),"") -> 
B14: Ширина корпуса | E14: Кол-во петель | G14: (шир. корпуса и вес фасада | J14: Цвет заглушки | L14: Тип фасада | O14: Мех. | P14: KM HF | R14: гр bFact. | S14: Гр/2 | T14: Рыч. | U14: Выс. | W14: Гр/2 | Y14: Осн.комп. | Z14: =INDEX(D32:G43, MATCH(HF_MechMain&HF_KolPetel,B32:B43&C32:C43,0), MATCH(HF_HebMain,D30:G30,0)) -> HF14-2
B15: 600 | C15: мм | E15: =IF(OR(HF_KorpusW>=1800,VALUE(HF_Weight)>=20),4, IF(OR(AND(HF_KorpusW>=1200,HF_KorpusW<1800),AND(VALUE(HF_Weight)>=12,VALUE(HF_Weight)<20)),3, 2)) -> 2 | G15: определяют кол-во петель) | J15: G | L15: DSP | O15: F22(1) | P15: 960 | Q15: 2650 | T15: F32 | U15: 480 | V15: 570 | Y15: 3 варианта: | Z15: V1 | AA15: V2 | AB15: V3
R16: =P17+(Q15-P17)*BFactor -> 2640 | S16: =(Q15+P17)/2 -> 2625 | W16: =(V15+U17)/2 -> 565 | Y16: HF_MechMain | AA16: x
C17: Рычаг | F17: Механизм | J17: Комплект | O17: F22 | P17: 2600 | Q17: 5500 | T17: F35 | U17: 560 | V17: 710 | Y17: HF_MechVar | Z17: x | AB17: x
B18: Основной: | C18: =IF(OR(AND(HF_KorpusH>=480,HF_KorpusH<=565),HF_KorpusH="480-570"),"F32", IF(OR(AND(HF_KorpusH>=565,HF_KorpusH<=705),HF_KorpusH="560-710"),"F35", IF(OR(AND(HF_KorpusH>=705,HF_KorpusH<830),HF_KorpusH="700-900"),"F38", IF(OR(AND(HF_KorpusH>=830,HF_KorpusH<=1040),HF_KorpusH="760-1040"),"F39","")))) -> F35 | E18: Основной: | F18: =IF((AND(HF_KM>R22,HF_KM<=25900)),"F28(3) 3 мех.", IF((AND(HF_KM>=R20,HF_KM<=R22)),"F28", IF((AND(HF_KM>=R18,HF_KM<=R20)),"F25", IF((AND(HF_KM>=R16,HF_KM<=R18)),"F22", IF((AND(HF_KM>=960,HF_KM<=R16)),"F22(1) 1 мех.","Нет механизма!"))))) -> F22(1) 1 мех. | I18: Основной: | J18: =IF(ISERROR(HF_SetTempM),"Нет, либо вручную!",HF_SetTempM&HF_Color) -> HF14-2G | R18: =P19+(Q17-P19)*BFactor -> 5470 | S18: =(Q17+P19)/2 -> 5425 | W18: =(V17+U19)/2 -> 705 | Y18: HF_HebMain | AB18: x
O19: F25 | P19: 5350 | Q19: 10150 | T19: F38 | U19: 700 | V19: 900 | Y19: HF_HebVar | Z19: x | AA19: x
B20: Возможен: | C20: =IF((T11&T13)<>"",T11&T13,"") ->  | E20: Возможен: | F20: =IF((O11&O13)<>"",O11&O13,"") ->  | I20: Возможен: | J20: =HF_SetTmpV1 & IF(AND(HF_SetTmpV1<>"",HF_SetTmpV2<>""), ", " & HF_SetTmpV2, HF_SetTmpV2) & IF(AND(OR(HF_SetTmpV1<>"",HF_SetTmpV2<>""),HF_SetTmpV3<>""), ", " & HF_SetTmpV3, HF_SetTmpV3) ->  | R20: =P21+(Q19-P21)*BFactor -> 9920 | S20: =(Q19+P21)/2 -> 9575 | W20: =(V19+U21)/2 -> 830 | Y20: =3-COUNTIF(Z20:AB20,"") -> 0 | Z20: =IF(ISERROR(INDEX(D32:G43,MATCH(HF_MechVar&HF_KolPetel,B32:B43&C32:C43,0),MATCH(HF_HebVar,D30:G30,0))), "", INDEX(D32:G43,MATCH(HF_MechVar&HF_KolPetel,B32:B43&C32:C43,0),MATCH(HF_HebVar,D30:G30,0))) ->  | AA20: =IF(ISERROR(INDEX(D32:G43,MATCH(HF_MechMain&HF_KolPetel,B32:B43&C32:C43,0),MATCH(HF_HebVar,D30:G30,0))), "", INDEX(D32:G43,MATCH(HF_MechMain&HF_KolPetel,B32:B43&C32:C43,0),MATCH(HF_HebVar,D30:G30,0))) ->  | AB20: =IF(ISERROR(INDEX(D32:G43,MATCH(HF_MechVar&HF_KolPetel,B32:B43&C32:C43,0),MATCH(HF_HebMain,D30:G30,0))), "", INDEX(D32:G43,MATCH(HF_MechVar&HF_KolPetel,B32:B43&C32:C43,0),MATCH(HF_HebMain,D30:G30,0))) -> 
M21: < | O21: F28 | P21: 9000 | Q21: 17250 | T21: F39 | U21: 760 | V21: 1040 | Y21: К основому возможны + 3 вар. (800*19)
R22: =P23+(Q21-P23)*BFactor -> 16500 | S22: =(Q21+P23)/2 -> 15375
O23: F28(3) | P23: 13500 | Q23: 25900
A28: Дополнительная информация
A29: Коэфф. | B29: Механизм | C29: Выс.корп. | D29: 480-570 | E29: 560-710 | F29: 700-900 | G29: 760-1040
A30: мощн. | C30: Рычаг | D30: F32 | E30: F35 | F30: F38 | G30: F39
C31: Петли
A32: 960-2650 | B32: F22(1) 1 мех. | C32: 2 | D32: HF13-2 | E32: HF14-2 | F32: HF15-2 | G32: HF16-2 | J32: Рекомендуемый комплект/мех-м/рычаг
A33: 2600 | B33: F22 | C33: 2 | D33: HF01-2 | E33: HF04-2 | F33: HF07-2 | G33: HF10-2 | J33: Возможный комплект/механизм/рычаг
A34: - | B34: F22 | C34: 3 | D34: HF01-3 | E34: HF04-3 | F34: HF07-3 | G34: HF10-3 | J34: Невозможно для заданных параметров
A35: 5500 | B35: F22 | C35: 4 | D35: HF01-4 | E35: HF04-4 | F35: HF07-4 | G35: HF10-4 | I35: Курсив | J35: Нет в печатном прайсе
A36: 5350 | B36: F25 | C36: 2 | D36: HF02-2 | E36: HF05-2 | F36: HF08-2 | G36: HF11-2
A37: - | B37: F25 | C37: 3 | D37: HF02-3 | E37: HF05-3 | F37: HF08-3 | G37: HF11-3
A38: 10150 | B38: F25 | C38: 4 | D38: HF02-4 | E38: HF05-4 | F38: HF08-4 | G38: HF11-4
A39: 9000 | B39: F28 | C39: 2 | F39: HF09-2 | G39: HF12-2
A40: - | B40: F28 | C40: 3 | D40: HF03-3 | E40: HF06-3 | F40: HF09-3 | G40: HF12-3
A41: 17250 | B41: F28 | C41: 4 | D41: HF03-4 | E41: HF06-4 | F41: HF09-4 | G41: HF12-4
A42: 13500 - | B42: F28(3) 3 мех. | C42: 3 | D42: HF17-3 | E42: HF18-3 | F42: HF19-3 | G42: HF20-3
A43: 25900 | B43: F28(3) 3 мех. | C43: 4 | D43: HF17-4 | E43: HF18-4 | F43: HF19-4 | G43: HF20-4
A44: Параметры выбора петель
A45: Стандарт 2шт. 3 петли при ширине корпуса > 1200мм или весе фасада с ручкой 12-20кг. 4 петли при ширине 1800мм или весе от 20кг.
A46: Комбинация разных механизмов
A47: Можно комбинировать ближайшие по мощности силовые механизмы, например, F22 и F25 (только для HF и HK/HK-S!)
B48: Арт. | D48: F22 + F25 | F48: F25 + F28
B49: КМ | D49: 3975 - 7825 | F49: 7175 - 13700
A50: В подборе комплектов данная возможность не используется. Информация о комбинациях только для специалистов!
A51: AVENTOS HS | M51: Подбор силового механизма | O51: HS | T51: HS_G_List | Z51: HS_H_List | AF51: Только если 2 - выбор 1го, 2го: | AG51: =INDEX(AG53:AG78,MATCH(MAX(LEN(AG53:AG78)),LEN(AG53:AG78),0),1) ->  | AH51: =INDEX(AH53:AH78,MATCH(MAX(LEN(AH53:AH78)),LEN(AH53:AH78),0),1) ->  | AO51: HS_D_List | AU51: HS_E_List | BA51: Только если 2 - выбор 1го, 2го: | BB51: =INDEX(BB53:BB83,MATCH(MAX(LEN(BB53:BB83)),LEN(BB53:BB83),0),1) ->  | BC51: =INDEX(BC53:BC83,MATCH(MAX(LEN(BC53:BC83)),LEN(BC53:BC83),0),1) ->  | BJ51: HS_A_List | BP51: HS_B_List | BV51: Только если 2 - выбор 1го, 2го: | BW51: =INDEX(BW53:BW88,MATCH(MAX(LEN(BW53:BW88)),LEN(BW53:BW88),0),1) ->  | BX51: =INDEX(BX53:BX88,MATCH(MAX(LEN(BX53:BX88)),LEN(BX53:BX88),0),1) -> 
O52: KH | P52: Выс. | Q52: S2G | S52: Вес | T52: =SUM(HS_G_List) -> 0 | U52: KH | V52: Выс. | W52: S2H | Y52: Вес | Z52: =SUM(HS_H_List) -> 0 | AA52: KH | AB52: Выс. | AC52: S2I | AE52: Вес | AF52: =SUM(HS_I_List) -> 0 | AJ52: KH | AK52: Выс. | AL52: S2D | AN52: Вес | AO52: =SUM(HS_D_List) -> 0 | AP52: KH | AQ52: Выс. | AR52: S2E | AT52: Вес | AU52: =SUM(HS_E_List) -> 0 | AV52: KH | AW52: Выс. | AX52: S2F | AZ52: Вес | BA52: =SUM(HS_F_List) -> 0 | BE52: KH | BF52: Выс. | BG52: S2A | BI52: Вес | BJ52: =SUM(HS_A_List) -> 1 | BK52: KH | BL52: Выс. | BM52: S2B | BO52: Вес | BP52: =SUM(HS_B_List) -> 0 | BQ52: KH | BR52: Выс. | BS52: S2C | BU52: Вес | BV52: =SUM(HS_C_List) -> 0
C53: Высота корпуса | F53: Вес фасада (включая вес ручки) | J53: Цвет заглушки | L53: Тип фасада | O53: 800 | P53: =IF(AND(HS_KorpusH<=O53,HS_KorpusH>O54),"OK","-") -> - | Q53: 4 | R53: 7 | S53: =IF(AND(VALUE(HS_Weight)>=Q53,VALUE(HS_Weight)<=R53),"OK","-") -> - | T53: =IF(AND(P53="OK",S53="OK"),1,"") ->  | U53: 800 | V53: =IF(AND(HS_KorpusH<=U53,HS_KorpusH>U54),"OK","-") -> - | W53: 6 | X53: 12.25 | Y53: =IF(AND(VALUE(HS_Weight)>=W53,VALUE(HS_Weight)<=X53),"OK","-") -> - | Z53: =IF(AND(V53="OK",Y53="OK"),1,"") ->  | AA53: 800 | AB53: =IF(AND(HS_KorpusH<=AA53,HS_KorpusH>AA54),"OK","-") -> - | AC53: 10.5 | AD53: 20 | AE53: =IF(AND(VALUE(HS_Weight)>=AC53,VALUE(HS_Weight)<=AD53),"OK","-") -> - | AF53: =IF(AND(AB53="OK",AE53="OK"),1,"") ->  | AG53: =IF(AND(T53=1,Z53=1),IF(AND(T53=1,Z53=1), IF(VALUE(HS_Weight)<W53+(R53-W53)*BFactor,"S2G","S2H")),"")& IF(AND(Z53=1,AF53=1),IF(AND(Z53=1,AF53=1), IF(VALUE(HS_Weight)<AC53+(X53-AC53)*BFactor,"S2H","S2I")),"") ->  | AH53: =IF(AND(T53=1,Z53=1),IF(AND(T53=1,Z53=1), IF(VALUE(HS_Weight)<W53+(R53-W53)*BFactor,"S2H","S2G")),"")& IF(AND(Z53=1,AF53=1),IF(AND(Z53=1,AF53=1), IF(VALUE(HS_Weight)<AC53+(X53-AC53)*BFactor,"S2I","S2H")),"") ->  | AJ53: 675 | AK53: =IF(AND(HS_KorpusH<=AJ53,HS_KorpusH>AJ54),"OK","-") -> - | AL53: 3 | AM53: 5.25 | AN53: =IF(AND(VALUE(HS_Weight)>=AL53,VALUE(HS_Weight)<=AM53),"OK","-") -> OK | AO53: =IF(AND(AK53="OK",AN53="OK"),1,"") ->  | AP53: 675 | AQ53: =IF(AND(HS_KorpusH<=AP53,HS_KorpusH>AP54),"OK","-") -> - | AR53: 5 | AS53: 11 | AT53: =IF(AND(VALUE(HS_Weight)>=AR53,VALUE(HS_Weight)<=AS53),"OK","-") -> - | AU53: =IF(AND(AQ53="OK",AT53="OK"),1,"") ->  | AV53: 675 | AW53: =IF(AND(HS_KorpusH<=AV53,HS_KorpusH>AV54),"OK","-") -> - | AX53: 9.75 | AY53: 19 | AZ53: =IF(AND(VALUE(HS_Weight)>=AX53,VALUE(HS_Weight)<=AY53),"OK","-") -> - | BA53: =IF(AND(AW53="OK",AZ53="OK"),1,"") ->  | BB53: =IF(AND(AO53=1,AU53=1),IF(AND(AO53=1,AU53=1), IF(VALUE(HS_Weight)<AR53+(AM53-AR53)*BFactor,"S2D","S2E")),"")& IF(AND(AU53=1,BA53=1),IF(AND(AU53=1,BA53=1), IF(VALUE(HS_Weight)<AX53+(AS53-AX53)*BFactor,"S2E","S2F")),"") ->  | BC53: =IF(AND(AO53=1,AU53=1),IF(AND(AO53=1,AU53=1), IF(VALUE(HS_Weight)<AR53+(AM53-AR53)*BFactor,"S2H","S2G")),"")& IF(AND(AU53=1,BA53=1),IF(AND(AU53=1,BA53=1), IF(VALUE(HS_Weight)<AX53+(AS53-AX53)*BFactor,"S2I","S2H")),"") ->  | BE53: 525 | BF53: =IF(AND(HS_KorpusH<=BE53,HS_KorpusH>BE54),"OK","-") -> - | BG53: 2.5 | BH53: 4 | BI53: =IF(AND(VALUE(HS_Weight)>=BG53,VALUE(HS_Weight)<=BH53),"OK","-") -> OK | BJ53: =IF(AND(BF53="OK",BI53="OK"),1,"") ->  | BK53: 525 | BL53: =IF(AND(HS_KorpusH<=BK53,HS_KorpusH>BK54),"OK","-") -> - | BM53: 3.25 | BN53: 7.5 | BO53: =IF(AND(VALUE(HS_Weight)>=BM53,VALUE(HS_Weight)<=BN53),"OK","-") -> - | BP53: =IF(AND(BL53="OK",BO53="OK"),1,"") ->  | BQ53: 525 | BR53: =IF(AND(HS_KorpusH<=BQ53,HS_KorpusH>BQ54),"OK","-") -> - | BS53: 7.25 | BT53: 15 | BU53: =IF(AND(VALUE(HS_Weight)>=BS53,VALUE(HS_Weight)<=BT53),"OK","-") -> - | BV53: =IF(AND(BR53="OK",BU53="OK"),1,"") ->  | BW53: =IF(AND(BJ53=1,BP53=1),IF(AND(BJ53=1,BP53=1), IF(VALUE(HS_Weight)<BM53+(BH53-BM53)*BFactor,"S2A","S2B")),"")& IF(AND(BP53=1,BV53=1),IF(AND(BP53=1,BV53=1), IF(VALUE(HS_Weight)<BS53+(BN53-BS53)*BFactor,"S2B","S2C")),"") ->  | BX53: =IF(AND(BJ53=1,BP53=1),IF(AND(BJ53=1,BP53=1), IF(VALUE(HS_Weight)<BM53+(BH53-BM53)*BFactor,"S2H","S2G")),"")& IF(AND(BP53=1,BV53=1),IF(AND(BP53=1,BV53=1), IF(VALUE(HS_Weight)<BS53+(BN53-BS53)*BFactor,"S2I","S2H")),"") -> 
C54: 380 | D54: мм | F54: 3,04 | G54: кг | J54: G | L54: DSP | O54: 795 | P54: - | Q54: 4 | R54: 7 | S54: - | U54: 795 | V54: - | W54: 6 | X54: 12.25 | Y54: - | AA54: 795 | AB54: - | AC54: 10.5 | AD54: 20 | AE54: - | AJ54: 670 | AK54: - | AL54: 3 | AM54: 5.25 | AN54: OK | AP54: 670 | AQ54: - | AR54: 5 | AS54: 11 | AT54: - | AV54: 670 | AW54: - | AX54: 9.75 | AY54: 19 | AZ54: - | BE54: 520 | BF54: - | BG54: 2.5 | BH54: 4 | BI54: OK | BK54: 520 | BL54: - | BM54: 3.5 | BN54: 7.5 | BO54: - | BQ54: 520 | BR54: - | BS54: 7.25 | BT54: 15 | BU54: -
O55: 790 | P55: - | Q55: 4 | R55: 7 | S55: - | U55: 790 | V55: - | W55: 6 | X55: 12.25 | Y55: - | AA55: 790 | AB55: - | AC55: 10.75 | AD55: 20 | AE55: - | AJ55: 665 | AK55: - | AL55: 3 | AM55: 5.25 | AN55: OK | AP55: 665 | AQ55: - | AR55: 5 | AS55: 11 | AT55: - | AV55: 665 | AW55: - | AX55: 9.75 | AY55: 19 | AZ55: - | BE55: 515 | BF55: - | BG55: 2.5 | BH55: 4 | BI55: OK | BK55: 515 | BL55: - | BM55: 3.5 | BN55: 7.5 | BO55: - | BQ55: 515 | BR55: - | BS55: 7.25 | BT55: 14.75 | BU55: -
F56: Механизм | J56: Комплект | O56: 785 | P56: - | Q56: 4 | R56: 7 | S56: - | U56: 785 | V56: - | W56: 6.25 | X56: 12.5 | Y56: - | AA56: 785 | AB56: - | AC56: 10.75 | AD56: 20 | AE56: - | AJ56: 660 | AK56: - | AL56: 3 | AM56: 5.5 | AN56: OK | AP56: 660 | AQ56: - | AR56: 5.25 | AS56: 11.25 | AT56: - | AV56: 660 | AW56: - | AX56: 10 | AY56: 19 | AZ56: - | BE56: 510 | BF56: - | BG56: 2.5 | BH56: 4 | BI56: OK | BK56: 510 | BL56: - | BM56: 3.5 | BN56: 7.75 | BO56: - | BQ56: 510 | BR56: - | BS56: 7.5 | BT56: 14.75 | BU56: -
E57: Основной: | F57: =IF(HS_Sum_List>0,IF(HS_Sum_List=1, IF(SUM(HS_A_List)>=1,"S2A","") & IF(SUM(HS_B_List)>=1,"S2B","") & IF(SUM(HS_C_List)>=1,"S2C","") & IF(SUM(HS_D_List)>=1,"S2D","") & IF(SUM(HS_E_List)>=1,"S2E","") & IF(SUM(HS_F_List)>=1,"S2F","") & IF(SUM(HS_G_List)>=1,"S2G","") & IF(SUM(HS_H_List)>=1,"S2H","") & IF(SUM(HS_I_List)>=1,"S2I",""),HS_GHIv1&HS_DEFv1&HS_ABCv1),"Нет механизма") -> S2A | I57: Основной: | J57: =IF(ISERROR(HS_SetTempM),"Нет, либо вручную!",HS_SetTempM) -> HS1G | O57: 780 | P57: - | Q57: 4 | R57: 7 | S57: - | U57: 780 | V57: - | W57: 6.25 | X57: 12.5 | Y57: - | AA57: 780 | AB57: - | AC57: 10.75 | AD57: 20.25 | AE57: - | AJ57: 655 | AK57: - | AL57: 3 | AM57: 5.5 | AN57: OK | AP57: 655 | AQ57: - | AR57: 5.25 | AS57: 11.25 | AT57: - | AV57: 655 | AW57: - | AX57: 10 | AY57: 19 | AZ57: - | BE57: 505 | BF57: - | BG57: 2.5 | BH57: 4 | BI57: OK | BK57: 505 | BL57: - | BM57: 3.5 | BN57: 7.75 | BO57: - | BQ57: 505 | BR57: - | BS57: 7.5 | BT57: 14.75 | BU57: -
O58: 775 | P58: - | Q58: 3.75 | R58: 7 | S58: - | U58: 775 | V58: - | W58: 6.25 | X58: 12.5 | Y58: - | AA58: 775 | AB58: - | AC58: 11 | AD58: 20.25 | AE58: - | AJ58: 650 | AK58: - | AL58: 3 | AM58: 5.5 | AN58: OK | AP58: 650 | AQ58: - | AR58: 5.25 | AS58: 11.25 | AT58: - | AV58: 650 | AW58: - | AX58: 10 | AY58: 19 | AZ58: - | BE58: 500 | BF58: - | BG58: 2.5 | BH58: 4.25 | BI58: OK | BK58: 500 | BL58: - | BM58: 3.5 | BN58: 7.75 | BO58: - | BQ58: 500 | BR58: - | BS58: 7.5 | BT58: 14.75 | BU58: -
E59: Возможен: | F59: =IF(HS_Sum_List>0,HS_GHIv2&HS_DEFv2&HS_ABCv2,"") ->  | I59: Возможен: | J59: =IF(ISERROR(HS_SetTempV),"",HS_SetTempV) ->  | O59: 770 | P59: - | Q59: 3.75 | R59: 7 | S59: - | U59: 770 | V59: - | W59: 6.25 | X59: 12.5 | Y59: - | AA59: 770 | AB59: - | AC59: 11 | AD59: 20.25 | AE59: - | AJ59: 645 | AK59: - | AL59: 3 | AM59: 5.5 | AN59: OK | AP59: 645 | AQ59: - | AR59: 5.25 | AS59: 11.25 | AT59: - | AV59: 645 | AW59: - | AX59: 10 | AY59: 18.75 | AZ59: - | BE59: 495 | BF59: - | BG59: 2.5 | BH59: 4.25 | BI59: OK | BK59: 495 | BL59: - | BM59: 3.75 | BN59: 7.75 | BO59: - | BQ59: 495 | BR59: - | BS59: 7.5 | BT59: 14.5 | BU59: -
B60: 500 | M60: < | O60: 765 | P60: - | Q60: 3.75 | R60: 7.25 | S60: - | U60: 765 | V60: - | W60: 6.5 | X60: 12.5 | Y60: - | AA60: 765 | AB60: - | AC60: 11 | AD60: 20.25 | AE60: - | AJ60: 640 | AK60: - | AL60: 3 | AM60: 5.5 | AN60: OK | AP60: 640 | AQ60: - | AR60: 5.25 | AS60: 11.25 | AT60: - | AV60: 640 | AW60: - | AX60: 10 | AY60: 18.75 | AZ60: - | BE60: 490 | BF60: - | BG60: 2.5 | BH60: 4.25 | BI60: OK | BK60: 490 | BL60: - | BM60: 3.75 | BN60: 8 | BO60: - | BQ60: 490 | BR60: - | BS60: 7.75 | BT60: 14.5 | BU60: -
O61: 760 | P61: - | Q61: 3.75 | R61: 7.25 | S61: - | U61: 760 | V61: - | W61: 6.5 | X61: 12.75 | Y61: - | AA61: 760 | AB61: - | AC61: 11.25 | AD61: 20.25 | AE61: - | AJ61: 635 | AK61: - | AL61: 3 | AM61: 5.5 | AN61: OK | AP61: 635 | AQ61: - | AR61: 5.25 | AS61: 11.5 | AT61: - | AV61: 635 | AW61: - | AX61: 10.25 | AY61: 18.75 | AZ61: - | BE61: 485 | BF61: - | BG61: 2.5 | BH61: 4.25 | BI61: OK | BK61: 485 | BL61: - | BM61: 3.75 | BN61: 8 | BO61: - | BQ61: 485 | BR61: - | BS61: 7.75 | BT61: 14.25 | BU61: -
O62: 755 | P62: - | Q62: 3.75 | R62: 7.25 | S62: - | U62: 755 | V62: - | W62: 6.5 | X62: 12.75 | Y62: - | AA62: 755 | AB62: - | AC62: 11.25 | AD62: 20.5 | AE62: - | AJ62: 630 | AK62: - | AL62: 3 | AM62: 5.75 | AN62: OK | AP62: 630 | AQ62: - | AR62: 5.5 | AS62: 11.5 | AT62: - | AV62: 630 | AW62: - | AX62: 10.25 | AY62: 18.75 | AZ62: - | BE62: 480 | BF62: - | BG62: 2.5 | BH62: 4.25 | BI62: OK | BK62: 480 | BL62: - | BM62: 3.75 | BN62: 8 | BO62: - | BQ62: 480 | BR62: - | BS62: 7.75 | BT62: 14.25 | BU62: -
O63: 750 | P63: - | Q63: 3.5 | R63: 7.25 | S63: - | U63: 750 | V63: - | W63: 6.5 | X63: 12.75 | Y63: - | AA63: 750 | AB63: - | AC63: 11.5 | AD63: 20.5 | AE63: - | AJ63: 625 | AK63: - | AL63: 3 | AM63: 5.75 | AN63: OK | AP63: 625 | AQ63: - | AR63: 5.5 | AS63: 11.5 | AT63: - | AV63: 625 | AW63: - | AX63: 10.25 | AY63: 18.75 | AZ63: - | BE63: 475 | BF63: - | BG63: 2.5 | BH63: 4.25 | BI63: OK | BK63: 475 | BL63: - | BM63: 3.75 | BN63: 8 | BO63: - | BQ63: 475 | BR63: - | BS63: 7.75 | BT63: 14 | BU63: -
O64: 745 | P64: - | Q64: 3.5 | R64: 7.25 | S64: - | U64: 745 | V64: - | W64: 6.5 | X64: 12.75 | Y64: - | AA64: 745 | AB64: - | AC64: 11.5 | AD64: 20.5 | AE64: - | AJ64: 620 | AK64: - | AL64: 3 | AM64: 5.75 | AN64: OK | AP64: 620 | AQ64: - | AR64: 5.5 | AS64: 11.5 | AT64: - | AV64: 620 | AW64: - | AX64: 10.25 | AY64: 18.75 | AZ64: - | BE64: 470 | BF64: - | BG64: 2.5 | BH64: 4.25 | BI64: OK | BK64: 470 | BL64: - | BM64: 4 | BN64: 8.25 | BO64: - | BQ64: 470 | BR64: - | BS64: 8 | BT64: 14 | BU64: -
O65: 740 | P65: - | Q65: 3.5 | R65: 7.25 | S65: - | U65: 740 | V65: - | W65: 6.5 | X65: 12.75 | Y65: - | AA65: 740 | AB65: - | AC65: 11.75 | AD65: 20.75 | AE65: - | AJ65: 615 | AK65: - | AL65: 3 | AM65: 5.75 | AN65: OK | AP65: 615 | AQ65: - | AR65: 5.5 | AS65: 11.5 | AT65: - | AV65: 615 | AW65: - | AX65: 10.25 | AY65: 18.75 | AZ65: - | BE65: 465 | BF65: - | BG65: 2.25 | BH65: 4.25 | BI65: OK | BK65: 465 | BL65: - | BM65: 4 | BN65: 8.25 | BO65: - | BQ65: 465 | BR65: - | BS65: 8 | BT65: 13.75 | BU65: -
O66: 735 | P66: - | Q66: 3.5 | R66: 7.5 | S66: - | U66: 735 | V66: - | W66: 6.5 | X66: 13 | Y66: - | AA66: 735 | AB66: - | AC66: 11.75 | AD66: 20.75 | AE66: - | AJ66: 610 | AK66: - | AL66: 3 | AM66: 6 | AN66: OK | AP66: 610 | AQ66: - | AR66: 5.5 | AS66: 11.75 | AT66: - | AV66: 610 | AW66: - | AX66: 10.5 | AY66: 18.5 | AZ66: - | BE66: 460 | BF66: - | BG66: 2.25 | BH66: 4.25 | BI66: OK | BK66: 460 | BL66: - | BM66: 4 | BN66: 8.25 | BO66: - | BQ66: 460 | BR66: - | BS66: 8 | BT66: 13.75 | BU66: -
O67: 730 | P67: - | Q67: 3.5 | R67: 7.5 | S67: - | U67: 730 | V67: - | W67: 6.75 | X67: 13 | Y67: - | AA67: 730 | AB67: - | AC67: 11.75 | AD67: 21 | AE67: - | AJ67: 605 | AK67: - | AL67: 3 | AM67: 6 | AN67: OK | AP67: 605 | AQ67: - | AR67: 5.5 | AS67: 11.75 | AT67: - | AV67: 605 | AW67: - | AX67: 10.5 | AY67: 18.5 | AZ67: - | BE67: 455 | BF67: - | BG67: 2.25 | BH67: 4.25 | BI67: OK | BK67: 455 | BL67: - | BM67: 4 | BN67: 8.5 | BO67: - | BQ67: 455 | BR67: - | BS67: 8.25 | BT67: 13.5 | BU67: -
O68: 725 | P68: - | Q68: 3.5 | R68: 7.5 | S68: - | U68: 725 | V68: - | W68: 6.75 | X68: 13 | Y68: - | AA68: 725 | AB68: - | AC68: 12 | AD68: 21 | AE68: - | AJ68: 600 | AK68: - | AL68: 3 | AM68: 6 | AN68: OK | AP68: 600 | AQ68: - | AR68: 5.5 | AS68: 11.75 | AT68: - | AV68: 600 | AW68: - | AX68: 10.5 | AY68: 18.5 | AZ68: - | BE68: 450 | BF68: - | BG68: 2.25 | BH68: 4.25 | BI68: OK | BK68: 450 | BL68: - | BM68: 4 | BN68: 8.5 | BO68: - | BQ68: 450 | BR68: - | BS68: 8.25 | BT68: 13.5 | BU68: -
O69: 720 | P69: - | Q69: 3.5 | R69: 7.5 | S69: - | U69: 720 | V69: - | W69: 6.75 | X69: 13 | Y69: - | AA69: 720 | AB69: - | AC69: 12 | AD69: 21.25 | AE69: - | AJ69: 595 | AK69: - | AL69: 3 | AM69: 6 | AN69: OK | AP69: 595 | AQ69: - | AR69: 5.5 | AS69: 11.75 | AT69: - | AV69: 595 | AW69: - | AX69: 10.5 | AY69: 18.5 | AZ69: - | BE69: 445 | BF69: - | BG69: 2.25 | BH69: 4.5 | BI69: OK | BK69: 445 | BL69: - | BM69: 4.25 | BN69: 8.5 | BO69: - | BQ69: 445 | BR69: - | BS69: 8.25 | BT69: 13.25 | BU69: -
O70: 715 | P70: - | Q70: 3.5 | R70: 7.5 | S70: - | U70: 715 | V70: - | W70: 6.75 | X70: 13 | Y70: - | AA70: 715 | AB70: - | AC70: 12 | AD70: 21.25 | AE70: - | AJ70: 590 | AK70: - | AL70: 3 | AM70: 6 | AN70: OK | AP70: 590 | AQ70: - | AR70: 5.5 | AS70: 12 | AT70: - | AV70: 590 | AW70: - | AX70: 10.75 | AY70: 18.25 | AZ70: - | BE70: 440 | BF70: - | BG70: 2.25 | BH70: 4.5 | BI70: OK | BK70: 440 | BL70: - | BM70: 4.25 | BN70: 8.5 | BO70: - | BQ70: 440 | BR70: - | BS70: 8.25 | BT70: 13 | BU70: -
O71: 710 | P71: - | Q71: 3.5 | R71: 7.75 | S71: - | U71: 710 | V71: - | W71: 6.75 | X71: 13.25 | Y71: - | AA71: 710 | AB71: - | AC71: 12.25 | AD71: 21.25 | AE71: - | AJ71: 585 | AK71: - | AL71: 3 | AM71: 6.25 | AN71: OK | AP71: 585 | AQ71: - | AR71: 5.75 | AS71: 12 | AT71: - | AV71: 585 | AW71: - | AX71: 10.75 | AY71: 18.25 | AZ71: - | BE71: 435 | BF71: - | BG71: 2.25 | BH71: 4.5 | BI71: OK | BK71: 435 | BL71: - | BM71: 4.25 | BN71: 8.75 | BO71: - | BQ71: 435 | BR71: - | BS71: 8.5 | BT71: 13 | BU71: -
O72: 705 | P72: - | Q72: 3.5 | R72: 7.75 | S72: - | U72: 705 | V72: - | W72: 6.75 | X72: 13.25 | Y72: - | AA72: 705 | AB72: - | AC72: 12.25 | AD72: 21.5 | AE72: - | AJ72: 580 | AK72: - | AL72: 3 | AM72: 6.25 | AN72: OK | AP72: 580 | AQ72: - | AR72: 5.75 | AS72: 12 | AT72: - | AV72: 580 | AW72: - | AX72: 11 | AY72: 18 | AZ72: - | BE72: 430 | BF72: - | BG72: 2.25 | BH72: 4.5 | BI72: OK | BK72: 430 | BL72: - | BM72: 4.25 | BN72: 8.75 | BO72: - | BQ72: 430 | BR72: - | BS72: 8.5 | BT72: 12.75 | BU72: -
O73: 700 | P73: - | Q73: 3.5 | R73: 7.75 | S73: - | U73: 700 | V73: - | W73: 6.75 | X73: 13.25 | Y73: - | AA73: 700 | AB73: - | AC73: 12.5 | AD73: 21.5 | AE73: - | AJ73: 575 | AK73: - | AL73: 3 | AM73: 6.25 | AN73: OK | AP73: 575 | AQ73: - | AR73: 5.75 | AS73: 12 | AT73: - | AV73: 575 | AW73: - | AX73: 11 | AY73: 18 | AZ73: - | BE73: 425 | BF73: - | BG73: 2.25 | BH73: 4.5 | BI73: OK | BK73: 425 | BL73: - | BM73: 4.25 | BN73: 8.75 | BO73: - | BQ73: 425 | BR73: - | BS73: 8.5 | BT73: 12.75 | BU73: -
O74: 695 | P74: - | Q74: 3.5 | R74: 7.75 | S74: - | U74: 695 | V74: - | W74: 6.75 | X74: 13.25 | Y74: - | AA74: 695 | AB74: - | AC74: 12.5 | AD74: 21.5 | AE74: - | AJ74: 570 | AK74: - | AL74: 3 | AM74: 6.25 | AN74: OK | AP74: 570 | AQ74: - | AR74: 5.75 | AS74: 12.25 | AT74: - | AV74: 570 | AW74: - | AX74: 11.25 | AY74: 17.75 | AZ74: - | BE74: 420 | BF74: - | BG74: 2.25 | BH74: 4.5 | BI74: OK | BK74: 420 | BL74: - | BM74: 4.25 | BN74: 8.75 | BO74: - | BQ74: 420 | BR74: - | BS74: 8.5 | BT74: 12.5 | BU74: -
O75: 690 | P75: - | Q75: 3.5 | R75: 7.75 | S75: - | U75: 690 | V75: - | W75: 6.75 | X75: 13.25 | Y75: - | AA75: 690 | AB75: - | AC75: 12.75 | AD75: 21.5 | AE75: - | AJ75: 565 | AK75: - | AL75: 3 | AM75: 6.25 | AN75: OK | AP75: 565 | AQ75: - | AR75: 5.75 | AS75: 12.25 | AT75: - | AV75: 565 | AW75: - | AX75: 11.25 | AY75: 17.75 | AZ75: - | BE75: 415 | BF75: - | BG75: 2.25 | BH75: 4.5 | BI75: OK | BK75: 415 | BL75: - | BM75: 4.25 | BN75: 8.75 | BO75: - | BQ75: 415 | BR75: - | BS75: 8.5 | BT75: 12.5 | BU75: -
O76: 685 | P76: - | Q76: 3.5 | R76: 8 | S76: - | U76: 685 | V76: - | W76: 7 | X76: 13.25 | Y76: - | AA76: 685 | AB76: - | AC76: 12.75 | AD76: 21.5 | AE76: - | AJ76: 560 | AK76: - | AL76: 3 | AM76: 6.5 | AN76: OK | AP76: 560 | AQ76: - | AR76: 6 | AS76: 12.25 | AT76: - | AV76: 560 | AW76: - | AX76: 11.25 | AY76: 17.5 | AZ76: - | BE76: 410 | BF76: - | BG76: 2.25 | BH76: 4.5 | BI76: OK | BK76: 410 | BL76: - | BM76: 4.25 | BN76: 9 | BO76: - | BQ76: 410 | BR76: - | BS76: 8.75 | BT76: 12.25 | BU76: -
O77: 680 | P77: - | Q77: 3.5 | R77: 8 | S77: - | U77: 680 | V77: - | W77: 7 | X77: 13.5 | Y77: - | AA77: 680 | AB77: - | AC77: 13 | AD77: 21.5 | AE77: - | AJ77: 555 | AK77: - | AL77: 3 | AM77: 6.5 | AN77: OK | AP77: 555 | AQ77: - | AR77: 6 | AS77: 12.5 | AT77: - | AV77: 555 | AW77: - | AX77: 11.5 | AY77: 17.5 | AZ77: - | BE77: 405 | BF77: - | BG77: 2.25 | BH77: 4.5 | BI77: OK | BK77: 405 | BL77: - | BM77: 4.25 | BN77: 9 | BO77: - | BQ77: 405 | BR77: - | BS77: 8.75 | BT77: 12 | BU77: -
O78: 676 | P78: - | Q78: 3.5 | R78: 8 | S78: - | U78: 676 | V78: - | W78: 7 | X78: 13.5 | Y78: - | AA78: 676 | AB78: - | AC78: 13 | AD78: 21.5 | AE78: - | AJ78: 550 | AK78: - | AL78: 3 | AM78: 6.5 | AN78: OK | AP78: 550 | AQ78: - | AR78: 6 | AS78: 12.5 | AT78: - | AV78: 550 | AW78: - | AX78: 11.5 | AY78: 17.25 | AZ78: - | BE78: 400 | BF78: - | BG78: 2 | BH78: 4.75 | BI78: OK | BK78: 400 | BL78: - | BM78: 4.25 | BN78: 9 | BO78: - | BQ78: 400 | BR78: - | BS78: 8.75 | BT78: 12 | BU78: -
O79: 675 | U79: 675 | AA79: 675 | AJ79: 545 | AK79: - | AL79: 3 | AM79: 6.5 | AN79: OK | AP79: 545 | AQ79: - | AR79: 6 | AS79: 12.5 | AT79: - | AV79: 545 | AW79: - | AX79: 11.5 | AY79: 17.25 | AZ79: - | BE79: 395 | BF79: - | BG79: 2 | BH79: 4.75 | BI79: OK | BK79: 395 | BL79: - | BM79: 4.5 | BN79: 9 | BO79: - | BQ79: 395 | BR79: - | BS79: 8.75 | BT79: 11.75 | BU79: -
O80: HS_Sum_List | AJ80: 540 | AK80: - | AL80: 3 | AM80: 6.5 | AN80: OK | AP80: 540 | AQ80: - | AR80: 6 | AS80: 12.75 | AT80: - | AV80: 540 | AW80: - | AX80: 11.75 | AY80: 17 | AZ80: - | BE80: 390 | BF80: - | BG80: 2 | BH80: 4.75 | BI80: OK | BK80: 390 | BL80: - | BM80: 4.5 | BN80: 9 | BO80: - | BQ80: 390 | BR80: - | BS80: 8.75 | BT80: 11.5 | BU80: -
O81: =SUM(HS_A_List)+SUM(HS_B_List)+SUM(HS_C_List)+SUM(HS_D_List)+SUM(HS_E_List)+SUM(HS_F_List)+SUM(HS_G_List)+SUM(HS_H_List)+SUM(HS_I_List) -> 1 | P81: - кол-во механизмов | AJ81: 535 | AK81: - | AL81: 3 | AM81: 6.75 | AN81: OK | AP81: 535 | AQ81: - | AR81: 6.25 | AS81: 12.75 | AT81: - | AV81: 535 | AW81: - | AX81: 11.75 | AY81: 16.75 | AZ81: - | BE81: 385 | BF81: - | BG81: 2 | BH81: 4.75 | BI81: OK | BK81: 385 | BL81: - | BM81: 4.5 | BN81: 9.25 | BO81: - | BQ81: 385 | BR81: - | BS81: 9 | BT81: 11.5 | BU81: -
P82: HS_SetTempM | AJ82: 530 | AK82: - | AL82: 3 | AM82: 6.75 | AN82: OK | AP82: 530 | AQ82: - | AR82: 6.25 | AS82: 12.75 | AT82: - | AV82: 530 | AW82: - | AX82: 11.75 | AY82: 16.75 | AZ82: - | BE82: 380 | BF82: OK | BG82: 2 | BH82: 4.75 | BI82: OK | BJ82: 1 | BK82: 380 | BL82: OK | BM82: 4.5 | BN82: 9.25 | BO82: - | BQ82: 380 | BR82: OK | BS82: 9 | BT82: 11.25 | BU82: -
O83: =INDEX({"S2A","S2B","S2C","S2D","S2E","S2F","S2G","S2H","S2I";"HS1","HS2","HS3","HS4","HS5","HS6","HS7","HS8","HS9"},2,MATCH(HS_MechMain,{"S2A","S2B","S2C","S2D","S2E","S2F","S2G","S2H","S2I"},0)) -> HS1 | P83: =O83&HS_Color -> HS1G | Q83: - Комплект в зависимости от мех-ма | AJ83: 526 | AK83: - | AL83: 3 | AM83: 6.75 | AN83: OK | AP83: 526 | AQ83: - | AR83: 6.25 | AS83: 13 | AT83: - | AV83: 526 | AW83: - | AX83: 12 | AY83: 16.5 | AZ83: - | BE83: 375 | BF83: - | BG83: 2 | BH83: 4.75 | BI83: OK | BK83: 375 | BL83: - | BM83: 4.5 | BN83: 9.25 | BO83: - | BQ83: 375 | BR83: - | BS83: 9 | BT83: 11.25 | BU83: -
P84: HS_SetTempV | AJ84: 525 | AP84: 525 | AV84: 525 | BE84: 370 | BF84: - | BG84: 2 | BH84: 4.75 | BI84: OK | BK84: 370 | BL84: - | BM84: 4.5 | BN84: 9.25 | BO84: - | BQ84: 370 | BR84: - | BS84: 9 | BT84: 11 | BU84: -
O85: =INDEX({"S2A","S2B","S2C","S2D","S2E","S2F","S2G","S2H","S2I";"HS1","HS2","HS3","HS4","HS5","HS6","HS7","HS8","HS9"},2,MATCH(HS_MechVar,{"S2A","S2B","S2C","S2D","S2E","S2F","S2G","S2H","S2I"},0)) ->  | P85: - Комплект в зависимости от мех-ма | BE85: 365 | BF85: - | BG85: 2 | BH85: 4.75 | BI85: OK | BK85: 365 | BL85: - | BM85: 4.5 | BN85: 9.25 | BO85: - | BQ85: 365 | BR85: - | BS85: 9 | BT85: 11 | BU85: -
BE86: 360 | BF86: - | BG86: 2 | BH86: 4.75 | BI86: OK | BK86: 360 | BL86: - | BM86: 4.5 | BN86: 9.5 | BO86: - | BQ86: 360 | BR86: - | BS86: 9.25 | BT86: 10.75 | BU86: -
O87: Для 1 высоты возможно 1 или 2 механизма (включая центральный, если 2) | BE87: 355 | BF87: - | BG87: 2 | BH87: 4.75 | BI87: OK | BK87: 355 | BL87: - | BM87: 4.5 | BN87: 9.5 | BO87: - | BQ87: 355 | BR87: - | BS87: 9.25 | BT87: 10.5 | BU87: -
BE88: 350 | BF88: - | BG88: 2 | BH88: 5 | BI88: OK | BK88: 350 | BL88: - | BM88: 4.5 | BN88: 9.5 | BO88: - | BQ88: 350 | BR88: - | BS88: 9.25 | BT88: 10.5 | BU88: -
BE89: 349 | BK89: 349 | BQ89: 349
A91: AVENTOS HL | M91: Подбор силового механизма | O91: HL
P92: Рыч. L32 | R92: =R94&R95&R96&R97&R98 ->  | S92: :все | V92: Рыч. L35 | X92: =X94&X95&X96&X97&X98 ->  | Y92: :все
B93: Высота корпуса | E93: Вес фасада (включая вес ручки) | J93: Цвет заглушки | L93: Тип фасада | P93: К.300-349: | Q93: =IF(OR(AND(HL_KorpusH>=300,HL_KorpusH<=349),HL_KorpusH="300-349"),"OK","-") -> - | R93: =SUBSTITUTE(R92,U93,"") ->  | S93: :Возм. | T93: Осн: | U93: =U94&U95&U96&U97&U98 ->  | V93: К.350-399: | W93: =IF(OR(AND(HL_KorpusH>=350,HL_KorpusH<=399),HL_KorpusH="350-399"),"OK","-") -> - | X93: =SUBSTITUTE(X92,AA93,"") ->  | Y93: :Возм. | Z93: Осн: | AA93: =AA94&AA95&AA96&AA97&AA98 -> 
B94: 480 | C94: мм | E94: 3,34 | F94: кг | J94: G | L94: DSP | O94: L21 | P94: 1.25 | Q94: 4.25 | R94: =IF(AND(AND(P94<=VALUE(HL_Weight),VALUE(HL_Weight)<=Q94),$Q$93="OK"),O94,"") ->  | S94: 1.25 | T94: =P95+(Q94-P95)*BFactor -> 4.1 | U94: =IF(AND(AND(S94<=VALUE(HL_Weight),VALUE(HL_Weight)<T94),$Q$93="OK"),O94,"") ->  | V94: 1.25 | W94: 2.5 | X94: =IF(AND(AND(V94<=VALUE(HL_Weight),VALUE(HL_Weight)<=W94),$W$93="OK"),O94,"") ->  | Y94: 1.25 | Z94: =V95+(W94-V95)*BFactor -> 2.35 | AA94: =IF(AND(AND(Y94<=VALUE(HL_Weight),VALUE(HL_Weight)<Z94),$W$93="OK"),O94,"") -> 
O95: L23 | P95: 3.5 | Q95: 7.25 | R95: =IF(AND(AND(P95<=VALUE(HL_Weight),VALUE(HL_Weight)<=Q95),$Q$93="OK"),O95,"") ->  | S95: =P95+(Q94-P95)*BFactor -> 4.1 | T95: =P96+(Q95-P96)*BFactor -> 7.1 | U95: =IF(AND(AND(S95<=VALUE(HL_Weight),VALUE(HL_Weight)<T95),$Q$93="OK"),O95,"") ->  | V95: 1.75 | W95: 5 | X95: =IF(AND(AND(V95<=VALUE(HL_Weight),VALUE(HL_Weight)<=W95),$W$93="OK"),O95,"") ->  | Y95: =V95+(W94-V95)*BFactor -> 2.35 | Z95: =V96+(W95-V96)*BFactor -> 4.85 | AA95: =IF(AND(AND(Y95<=VALUE(HL_Weight),VALUE(HL_Weight)<Z95),$W$93="OK"),O95,"") -> 
C96: Рычаг | F96: Механизм | J96: Комплект | O96: L25 | P96: 6.5 | Q96: 12 | R96: =IF(AND(AND(P96<=VALUE(HL_Weight),VALUE(HL_Weight)<=Q96),$Q$93="OK"),O96,"") ->  | S96: =P96+(Q95-P96)*BFactor -> 7.1 | T96: =P97+(Q96-P97)*BFactor -> 11.8 | U96: =IF(AND(AND(S96<=VALUE(HL_Weight),VALUE(HL_Weight)<T96),$Q$93="OK"),O96,"") ->  | V96: 4.25 | W96: 9 | X96: =IF(AND(AND(V96<=VALUE(HL_Weight),VALUE(HL_Weight)<=W96),$W$93="OK"),O96,"") ->  | Y96: =V96+(W95-V96)*BFactor -> 4.85 | Z96: =V97+(W96-V97)*BFactor -> 8.8 | AA96: =IF(AND(AND(Y96<=VALUE(HL_Weight),VALUE(HL_Weight)<Z96),$W$93="OK"),O96,"") -> 
B97: Основной: | C97: =IF(AND(HL_KorpusH>=300,HL_KorpusH<=349),"L32", IF(AND(HL_KorpusH>=350,HL_KorpusH<=399),"L35", IF(AND(HL_KorpusH>=400,HL_KorpusH<500),"L38", IF(AND(HL_KorpusH>=500,HL_KorpusH<=580),"L39", IF(OR(HL_KorpusH<300,HL_KorpusH>580),"Нет",""))))) -> L38 | E97: Основной: | F97: =IF(T110="","Нет механизма!",T110) -> L23 | I97: Основной: | J97: =IF(OR(HL_HebMain="Нет",HL_MechMain="Нет механизма!"),"Нет", IF(AND(HL_HebMain="L32",HL_MechMain="L21"),"HL01"&HL_Color,"")& IF(AND(HL_HebMain="L32",HL_MechMain="L23"),"HL02"&HL_Color,"")& IF(AND(HL_HebMain="L32",HL_MechMain="L25"),"HL03"&HL_Color,"")& IF(AND(HL_HebMain="L32",HL_MechMain="L27"),"HL04"&HL_Color,"")& IF(AND(HL_HebMain="L35",HL_MechMain="L21"),"HL05"&HL_Color,"")& IF(AND(HL_HebMain="L35",HL_MechMain="L23"),"HL06"&HL_Color,"")& IF(AND(HL_HebMain="L35",HL_MechMain="L25"),"HL07"&HL_Color,"")& IF(AND(HL_HebMain="L35",HL_MechMain="L27"),"HL08"&HL_Color,"")& IF(AND(HL_HebMain="L35",HL_MechMain="L29"),"HL09"&HL_Color,"")& IF(AND(HL_HebMain="L38",HL_MechMain="L23"),"HL10"&HL_Color,"")& IF(AND(HL_HebMain="L38",HL_MechMain="L25"),"HL11"&HL_Color,"")& IF(AND(HL_HebMain="L38",HL_MechMain="L27"),"HL12"&HL_Color,"")& IF(AND(HL_HebMain="L38",HL_MechMain="L29"),"HL13"&HL_Color,"")& IF(AND(HL_HebMain="L39",HL_MechMain="L25"),"HL14"&HL_Color,"")& IF(AND(HL_HebMain="L39",HL_MechMain="L27"),"HL15"&HL_Color,"")& IF(AND(HL_HebMain="L39",HL_MechMain="L29"),"HL16"&HL_Color,"")) -> HL10G | O97: L27 | P97: 11 | Q97: 20 | R97: =IF(AND(AND(P97<=VALUE(HL_Weight),VALUE(HL_Weight)<=Q97),$Q$93="OK"),O97,"") ->  | S97: =P97+(Q96-P97)*BFactor -> 11.8 | T97: 20 | U97: =IF(AND(AND(S97<=VALUE(HL_Weight),VALUE(HL_Weight)<=T97),$Q$93="OK"),O97,"") ->  | V97: 8 | W97: 14.75 | X97: =IF(AND(AND(V97<=VALUE(HL_Weight),VALUE(HL_Weight)<=W97),$W$93="OK"),O97,"") ->  | Y97: =V97+(W96-V97)*BFactor -> 8.8 | Z97: =V98+(W97-V98)*BFactor -> 14.5 | AA97: =IF(AND(AND(Y97<=VALUE(HL_Weight),VALUE(HL_Weight)<Z97),$W$93="OK"),O97,"") -> 
O98: L29 | R98: =IF(AND(AND(P98<=VALUE(HL_Weight),VALUE(HL_Weight)<=Q98),$Q$93="OK"),O98,"") ->  | U98: =IF(AND(AND(S98<=VALUE(HL_Weight),VALUE(HL_Weight)<=T98),$Q$93="OK"),O98,"") ->  | V98: 13.5 | W98: 20 | X98: =IF(AND(AND(V98<=VALUE(HL_Weight),VALUE(HL_Weight)<=W98),$W$93="OK"),O98,"") ->  | Y98: =V98+(W97-V98)*BFactor -> 14.5 | Z98: 20 | AA98: =IF(AND(AND(Y98<=VALUE(HL_Weight),VALUE(HL_Weight)<=Z98),$W$93="OK"),O98,"") -> 
B99: Возможен: | C99: =IF(OR(AND(HL_KorpusH>=450,HL_KorpusH<500),HL_KorpusH="400-550"),"L39", IF(OR(AND(HL_KorpusH>=500,HL_KorpusH<=580),HL_KorpusH="450-580"),"L38", IF(AND(HL_KorpusH>=450,HL_KorpusH<=550),"",""))) -> L39 | E99: Возможен: | F99: =T109 -> L25 | I99: Возможен: | J99: =IF(OR(HL_HebVar="",HL_MechVar=""),"", IF(AND(HL_HebVar="L32",HL_MechVar="L21"),"HL01","")& IF(AND(HL_HebVar="L32",HL_MechVar="L23"),"HL02","")& IF(AND(HL_HebVar="L32",HL_MechVar="L25"),"HL03","")& IF(AND(HL_HebVar="L32",HL_MechVar="L27"),"HL04","")& IF(AND(HL_HebVar="L35",HL_MechVar="L21"),"HL05","")& IF(AND(HL_HebVar="L35",HL_MechVar="L23"),"HL06","")& IF(AND(HL_HebVar="L35",HL_MechVar="L25"),"HL07","")& IF(AND(HL_HebVar="L35",HL_MechVar="L27"),"HL08","")& IF(AND(HL_HebVar="L35",HL_MechVar="L29"),"HL09","")& IF(AND(HL_HebVar="L38",HL_MechVar="L23"),"HL10","")& IF(AND(HL_HebVar="L38",HL_MechVar="L25"),"HL11","")& IF(AND(HL_HebVar="L38",HL_MechVar="L27"),"HL12","")& IF(AND(HL_HebVar="L38",HL_MechVar="L29"),"HL13","")& IF(AND(HL_HebVar="L39",HL_MechVar="L25"),"HL14","")& IF(AND(HL_HebVar="L39",HL_MechVar="L27"),"HL15","")& IF(AND(HL_HebVar="L39",HL_MechVar="L29"),"HL16","")) -> HL14 | P99: Данные каталога | S99: Оптим. границы | V99: Данные каталога | Y99: Оптим. границы
M100: < | P100: Рыч. L38 | R100: =R102&R103&R104&R105&R106 -> L23L25 | S100: :все | T100: все ос: | U100: =U102&U103&U104&U105&U106 -> L23 | V100: Рыч. L39 | X100: =X102&X103&X104&X105&X106 -> L25 | Y100: :все | Z100: все ос: | AA100: =AA102&AA103&AA104&AA105&AA106 -> L25
P101: К.400-550: | Q101: =IF(OR(AND(HL_KorpusH>=400,HL_KorpusH<=550),HL_KorpusH="400-550"),"OK","-") -> OK | R101: =SUBSTITUTE(R100,U101,"") -> L25 | S101: :Возм. | T101: Осн: | U101: =IF(AND(HL_KorpusH>=400,HL_KorpusH<=499),U102&U103&U104&U105&U106,"") -> L23 | V101: К.450-580 | W101: =IF(OR(AND(HL_KorpusH>=450,HL_KorpusH<=580),HL_KorpusH="450-580"),"OK","-") -> OK | X101: =SUBSTITUTE(X100,AA101,"") -> L25 | Y101: :Возм. | Z101: Осн: | AA101: =IF(AND(HL_KorpusH>=500,HL_KorpusH<=580),AA102&AA103&AA104&AA105&AA106,"") -> 
B102: 450 | O102: L21 | R102: =IF(AND(AND(P102<=VALUE(HL_Weight),VALUE(HL_Weight)<=Q102),$Q$101="OK"),O102,"") ->  | U102: =IF(AND(AND(S102<=VALUE(HL_Weight),VALUE(HL_Weight)<T102),$Q$101="OK"),O102,"") ->  | X102: =IF(AND(AND(V102<=VALUE(HL_Weight),VALUE(HL_Weight)<=W102),$W$101="OK"),O102,"") ->  | AA102: =IF(AND(AND(Y102<=VALUE(HL_Weight),VALUE(HL_Weight)<Z102),$W$101="OK"),O102,"") -> 
O103: L23 | P103: 1.75 | Q103: 3.5 | R103: =IF(AND(AND(P103<=VALUE(HL_Weight),VALUE(HL_Weight)<=Q103),$Q$101="OK"),O103,"") -> L23 | S103: 1.75 | T103: =P104+(Q103-P104)*BFactor -> 3.35 | U103: =IF(AND(AND(S103<=VALUE(HL_Weight),VALUE(HL_Weight)<T103),$Q$101="OK"),O103,"") -> L23 | X103: =IF(AND(AND(V103<=VALUE(HL_Weight),VALUE(HL_Weight)<=W103),$W$101="OK"),O103,"") ->  | AA103: =IF(AND(AND(Y103<=VALUE(HL_Weight),VALUE(HL_Weight)<Z103),$W$101="OK"),O103,"") -> 
O104: L25 | P104: 2.75 | Q104: 6.75 | R104: =IF(AND(AND(P104<=VALUE(HL_Weight),VALUE(HL_Weight)<=Q104),$Q$101="OK"),O104,"") -> L25 | S104: =P104+(Q103-P104)*BFactor -> 3.35 | T104: =P105+(Q104-P105)*BFactor -> 6.55 | U104: =IF(AND(AND(S104<=VALUE(HL_Weight),VALUE(HL_Weight)<T104),$Q$101="OK"),O104,"") ->  | V104: 2 | W104: 5.25 | X104: =IF(AND(AND(V104<=VALUE(HL_Weight),VALUE(HL_Weight)<=W104),$W$101="OK"),O104,"") -> L25 | Y104: 2 | Z104: =V105+(W104-V105)*BFactor -> 5.05 | AA104: =IF(AND(AND(Y104<=VALUE(HL_Weight),VALUE(HL_Weight)<Z104),$W$101="OK"),O104,"") -> L25
O105: L27 | P105: 5.75 | Q105: 11.75 | R105: =IF(AND(AND(P105<=VALUE(HL_Weight),VALUE(HL_Weight)<=Q105),$Q$101="OK"),O105,"") ->  | S105: =P105+(Q104-P105)*BFactor -> 6.55 | T105: =P106+(Q105-P106)*BFactor -> 11.5 | U105: =IF(AND(AND(S105<=VALUE(HL_Weight),VALUE(HL_Weight)<T105),$Q$101="OK"),O105,"") ->  | V105: 4.25 | W105: 9.25 | X105: =IF(AND(AND(V105<=VALUE(HL_Weight),VALUE(HL_Weight)<=W105),$W$101="OK"),O105,"") ->  | Y105: =V105+(W104-V105)*BFactor -> 5.05 | Z105: =V106+(W105-V106)*BFactor -> 9.05 | AA105: =IF(AND(AND(Y105<=VALUE(HL_Weight),VALUE(HL_Weight)<Z105),$W$101="OK"),O105,"") -> 
O106: L29 | P106: 10.5 | Q106: 20 | R106: =IF(AND(AND(P106<=VALUE(HL_Weight),VALUE(HL_Weight)<=Q106),$Q$101="OK"),O106,"") ->  | S106: =P106+(Q105-P106)*BFactor -> 11.5 | T106: 20 | U106: =IF(AND(AND(S106<=VALUE(HL_Weight),VALUE(HL_Weight)<=T106),$Q$101="OK"),O106,"") ->  | V106: 8.25 | W106: 16.5 | X106: =IF(AND(AND(V106<=VALUE(HL_Weight),VALUE(HL_Weight)<=W106),$W$101="OK"),O106,"") ->  | Y106: =V106+(W105-V106)*BFactor -> 9.05 | Z106: 16.5 | AA106: =IF(AND(AND(Y106<=VALUE(HL_Weight),VALUE(HL_Weight)<=Z106),$W$101="OK"),O106,"") -> 
O108: =IF(R101=X101,R101,R101&X101) -> L25 | P108: Один возм. при двух одинаковых
O109: =SUBSTITUTE(R93&X93&O108,O110,"") -> L25 | P109: Сумм. возм. искл. осн. | T109: =IF(AND(O110="",LEN(O109)>0),"",O109) -> L25 | U109: Окончательный возм. (Если осн. нет, и ест вар., то пусто)
O110: =U93&AA93&U101&AA101 -> L23 | P110: Сумм. осн. | T110: =IF(AND(O110="",LEN(O109)>0),O109,O110) -> L23 | U110: Окончательный осн. (Если осн. нет, то вар.)
A112: AVENTOS HK top | M112: Подбор силового механизма | O112: HK top
A113: Тип открывания (1 - BLUMOTION, 2 - TIP-ON) | O113: По возр.(мин) | P113: BL/TO | Q113: Set | R113: BL/TO
A114: 1 | B114: Высота корпуса | E114: Вес фасада (включая двойной вес ручки) | J114: Коэффициент мощности | O114: =IF(W116<> IF((AND(HKtop_KM>=480,HKtop_KM<=1500)),"K23", IF((AND(HKtop_KM>=750,HKtop_KM<=2500)),"K25", IF((AND(HKtop_KM>=1500,HKtop_KM<=4900)),"K27", IF((AND(HKtop_KM>=3200,HKtop_KM<=9000)),"K29","")))), IF((AND(HKtop_KM>=480,HKtop_KM<=1500)),"K23", IF((AND(HKtop_KM>=750,HKtop_KM<=2500)),"K25", IF((AND(HKtop_KM>=1500,HKtop_KM<=4900)),"K27", IF((AND(HKtop_KM>=3200,HKtop_KM<=9000)),"K29","")))),"") ->  | P114: =IF(OR(HKtop_Type=1,HKtop_Min=""),HKtop_Min,HKtop_Min&"..T") ->  | Q114: =IF(HKtop_Min<>"",INDEX({"K29","K27","K25","K23";"Hx4","Hx3","Hx2","Hx1"},2,MATCH(HKtop_Min,{"K29","K27","K25","K23"},0)),"") ->  | R114: =IF(OR(HKtop_Type=1,HKtop_Min=""),Q114,SUBSTITUTE(Q114,"HT","HTT")) -> 
B115: 205 | C115: мм | D115: * | E115: 4,08 | F115: кг | H115: = | J115: =ROUND(HKtop_KorpusH*VALUE(HKtop_Weight),0) -> 836 | O115: По убыв.(макс)
B116: Ширина корпуса | O116: =IF(W116<> IF((AND(HKtop_KM>=3200,HKtop_KM<=9000)),"K29", IF((AND(HKtop_KM>=1500,HKtop_KM<=4900)),"K27", IF((AND(HKtop_KM>=750,HKtop_KM<=2500)),"K25", IF((AND(HKtop_KM>=480,HKtop_KM<=1500)),"K23","")))), IF((AND(HKtop_KM>=3200,HKtop_KM<=9000)),"K29", IF((AND(HKtop_KM>=1500,HKtop_KM<=4900)),"K27", IF((AND(HKtop_KM>=750,HKtop_KM<=2500)),"K25", IF((AND(HKtop_KM>=480,HKtop_KM<=1500)),"K23","")))),"") -> K25 | P116: =IF(OR(HKtop_Type=1,HKtop_Max=""),HKtop_Max,HKtop_Max&"..T") -> K25 | Q116: =IF(HKtop_Max<>"",INDEX({"K29","K27","K25","K23";"HTx4","HTx3","HTx2","HTx1"},2,MATCH(HKtop_Max,{"K29","K27","K25","K23"},0)),"") -> HTx2 | R116: =IF(OR(HKtop_Type=1,HKtop_Max=""),Q116,SUBSTITUTE(Q116,"HT","HTT")) -> HTx2 | U116: BLUMOT. | V116: Мех.: | W116: =IF((AND(HKtop_KM>=R123,HKtop_KM<=9000)),"K29", IF((AND(HKtop_KM>=R121,HKtop_KM<=R123)),"K27", IF((AND(HKtop_KM>=R119,HKtop_KM<=R121)),"K25", IF((AND(HKtop_KM>=480,HKtop_KM<=R119)),"K23","Нет механизма!")))) -> K23 | X116: Комплект: | Y116: =INDEX({"K29","K27","K25","K23","Нет механизма!";"4","3","2","1","Нет"},2,MATCH(W116,{"K29","K27","K25","K23","Нет механизма!"},0)) -> 1 | Z116: =IF(OR(Y116="Нет",Y116="Нет механизма!"),Y116,"HT"&HKtop_FixTyp_SE&Y116&HKtop_Color) -> HTS1W
B117: 1200 | F117: Механизм | J117: Комплект | O117: Мех. | P117: Мин.КМ | Q117: Макс.КМ | R117: гр bFact. | S117: Гр/2 | U117: TIP-ON | V117: Мех.: | W117: =IF((AND(HKtop_KM>=R123,HKtop_KM<=9000)),"K29", IF((AND(HKtop_KM>=R121,HKtop_KM<=R123)),"K27", IF((AND(HKtop_KM>=R119,HKtop_KM<=R121)),"K25", IF((AND(HKtop_KM>=480,HKtop_KM<=R119)),"K23","Нет механизма!")))) -> K23 | X117: Комплект: | Y117: =SUBSTITUTE(Y116,"H","HT") -> 1 | Z117: =IF(OR(Y117="Нет",Y117="Нет механизма!"),Y117,"HTT"&HKtop_FixTyp_SE&Y117&HKtop_Color) -> HTTS1W
A118: Тип крепления сил. мех. (E:1, S:0) | E118: Основной: | F118: =IF(HKtop_Type=1,W116&HKtop_FixTyp,W117&HKtop_FixTyp&"..T") -> K230 | I118: Основной: | J118: =IF(HKtop_Type=1,Z116,Z117) -> HTS1W | O118: K23 | P118: 420 | Q118: 1610
A119: 0 | B119: =IF(HKtop_FixTyp=0,"S","E") -> S | R119: =P120+(Q118-P120)*BFactor -> 1474 | S119: =(Q118+P120)/2 -> 1270
A120: Тип фасада | C120: Цвет заглушки | E120: Возможен: | F120: =IF((P114&P116)<>"", IF(AND(P114<>"",P116<>""),P114&", "&P116,P114&P116),"") -> K25 | I120: Возможен: | J120: =SUBSTITUTE( IF((R114&R116)<>"", IF(AND(R114<>"",R116<>""),R114&", "&R116,R114&R116),""),"x",HKtop_FixTyp_SE) -> HTS2 | O120: K25 | P120: 930 | Q120: 2800
A121: DSP | C121: W | M121: < | R121: =P122+(Q120-P122)*BFactor -> 2586 | S121: =(Q120+P122)/2 -> 2265
O122: K27 | P122: 1730 | Q122: 5200
R123: =P124+(Q122-P124)*BFactor -> 4800 | S123: =(Q122+P124)/2 -> 4200
O124: K29 | P124: 3200 | Q124: 9000
A128: AVENTOS | M128: Подбор силового механизма | O128: HK
A129: Тип открывания (1 - BLUMOTION, 2 - TIP-ON) | O129: По возр.(мин) | P129: BL/TO | Q129: Set | R129: BL/TO
A130: 2 | B130: Высота корпуса | E130: Вес фасада (включая двойной вес ручки) | J130: Коэффициент мощности | O130: =IF(W132<> IF((AND(HK_KM>=480,HK_KM<=1500)),"K23", IF((AND(HK_KM>=750,HK_KM<=2500)),"K25", IF((AND(HK_KM>=1500,HK_KM<=4900)),"K27", IF((AND(HK_KM>=3200,HK_KM<=9000)),"K29","")))), IF((AND(HK_KM>=480,HK_KM<=1500)),"K23", IF((AND(HK_KM>=750,HK_KM<=2500)),"K25", IF((AND(HK_KM>=1500,HK_KM<=4900)),"K27", IF((AND(HK_KM>=3200,HK_KM<=9000)),"K29","")))),"") -> K23 | P130: =IF(OR(HK_Type=1,HK_Min=""),HK_Min,HK_Min&"T") -> K23T | Q130: =IF(HK_Min<>"",INDEX({"K29","K27","K25","K23";"HK4","HK3","HK2","HK1"},2,MATCH(HK_Min,{"K29","K27","K25","K23"},0)),"") -> HK1 | R130: =IF(OR(HK_Type=1,HK_Min=""),Q130,Q130&"T") -> HK1T
B131: 360 | C131: мм | D131: * | E131: 4,08 | F131: кг | H131: = | J131: =ROUND(HK_KorpusH*VALUE(HK_Weight),0) -> 1469 | O131: По убыв.(макс)
B132: Ширина корпуса | O132: =IF(W132<> IF((AND(HK_KM>=3200,HK_KM<=9000)),"K29", IF((AND(HK_KM>=1500,HK_KM<=4900)),"K27", IF((AND(HK_KM>=750,HK_KM<=2500)),"K25", IF((AND(HK_KM>=480,HK_KM<=1500)),"K23","")))), IF((AND(HK_KM>=3200,HK_KM<=9000)),"K29", IF((AND(HK_KM>=1500,HK_KM<=4900)),"K27", IF((AND(HK_KM>=750,HK_KM<=2500)),"K25", IF((AND(HK_KM>=480,HK_KM<=1500)),"K23","")))),"") ->  | P132: =IF(OR(HK_Type=1,HK_Max=""),HK_Max,HK_Max&"T") ->  | Q132: =IF(HK_Max<>"",INDEX({"K29","K27","K25","K23";"HK4","HK3","HK2","HK1"},2,MATCH(HK_Max,{"K29","K27","K25","K23"},0)),"") ->  | R132: =IF(OR(HK_Type=1,HK_Max=""),Q132,Q132&"T") ->  | U132: BLUMOT. | V132: Мех.: | W132: =IF((AND(HK_KM>=R139,HK_KM<=9000)),"K29", IF((AND(HK_KM>=R137,HK_KM<=R139)),"K27", IF((AND(HK_KM>=R135,HK_KM<=R137)),"K25", IF((AND(HK_KM>=480,HK_KM<=R135)),"K23","Нет механизма!")))) -> K25 | X132: Комплект: | Y132: =INDEX({"K29","K27","K25","K23","Нет механизма!";"HK4","HK3","HK2","HK1","Нет"},2,MATCH(W132,{"K29","K27","K25","K23","Нет механизма!"},0)) -> HK2 | Z132: =IF(OR(Y132="Нет",Y132="Нет механизма!"),Y132,Y132&HK_Color) -> HK2G
B133: 1200 | F133: Механизм | J133: Комплект | O133: Мех. | P133: Мин.КМ | Q133: Макс.КМ | R133: гр bFact. | S133: Гр/2 | U133: TIP-ON | V133: Мех.: | W133: =IF((AND(HK_KM>=R139,HK_KM<=9000)),"K29T", IF((AND(HK_KM>=R137,HK_KM<=R139)),"K27T", IF((AND(HK_KM>=R135,HK_KM<=R137)),"K25T", IF((AND(HK_KM>=480,HK_KM<=R135)),"K23T","Нет механизма!")))) -> K25T | X133: Комплект: | Y133: =SUBSTITUTE(Y132,"K","KT") -> HKT2 | Z133: =IF(OR(Y133="Нет",Y133="Нет механизма!"),Y133,Y133&HK_Color) -> HKT2G
B134: Тип фасада | E134: Основной: | F134: =IF(HK_Type=1,W132,W133) -> K25T | I134: Основной: | J134: =IF(HK_Type=1,Z132,Z133) -> HKT2G | O134: K23 | P134: 480 | Q134: 1500
B135: DSP | R135: =P136+(Q134-P136)*BFactor -> 1350 | S135: =(Q134+P136)/2 -> 1125
B136: Цвет заглушки | E136: Возможен: | F136: =IF((P130&P132)<>"", IF(AND(P130<>"",P132<>""),P130&", "&P132,P130&P132),"") -> K23T | I136: Возможен: | J136: =IF((R130&R132)<>"", IF(AND(R130<>"",R132<>""),R130&", "&R132,R130&R132),"") -> HK1T | O136: K25 | P136: 750 | Q136: 2500
B137: G | M137: < | R137: =P138+(Q136-P138)*BFactor -> 2300 | S137: =(Q136+P138)/2 -> 2000
O138: K27 | P138: 1500 | Q138: 4900
R139: =P140+(Q138-P140)*BFactor -> 4560 | S139: =(Q138+P140)/2 -> 4050
O140: K29 | P140: 3200 | Q140: 9000
A144: AVENTOS | M144: Подбор силового механизма | O144: HK-S
A145: Тип открывания (1 - BLUMOTION, 2 - TIP-ON) | O145: Компл. | P145: Мех. | Q145: Мин.КМ | R145: Макс.КМ | S145: гр bFact. | T145: Гр/2 | U145: M.<>осн. | W145: К.<>осн.
A146: 1 | B146: Высота корпуса | E146: Вес фасада (включая двойной вес ручки) | J146: Коэффициент мощности | O146: =IF(HKS_Type=1,"HKS1","HKST1") -> HKS1 | P146: =IF(HKS_Type=1,"K2A+K2C","K2A+K2CT") -> K2A+K2C | Q146: 220 | R146: 500 | U146: =IF(P146=HKS_MechMain,"",IF(AND(HKS_KM>=Q146,HKS_KM<=R146),P146,"")) ->  | W146: =IF(O146=HKS_SetMain,"",IF(AND(HKS_KM>=Q146,HKS_KM<=R146),O146,"")) -> 
B147: 400 | C147: мм | D147: * | E147: 5,29 | F147: кг | H147: = | J147: =ROUND(HKS_KorpusH*VALUE(HKS_Weight),0) -> 2116 | S147: =Q148+(R146-Q148)*BFactor -> 480 | T147: =(R146+Q148)/2 -> 450
O148: =IF(HKS_Type=1,"HKS2","HKST2") -> HKS2 | P148: =IF(HKS_Type=1,"2xK2C","2xK2CT") -> 2xK2C | Q148: 400 | R148: 1000 | U148: =IF(P148=HKS_MechMain,"",IF(AND(HKS_KM>=Q148,HKS_KM<=R148),P148,"")) ->  | W148: =IF(O148=HKS_SetMain,"",IF(AND(HKS_KM>=Q148,HKS_KM<=R148),O148,"")) -> 
B149: Цвет заглушки | F149: Механизм | J149: Комплект | S149: =Q150+(R148-Q150)*BFactor -> 936 | T149: =(R148+Q150)/2 -> 840
B150: G | E150: Основной: | F150: =IF(HKS_Type=1,Q154,Q155) -> 2xK2E | I150: Основной: | J150: =IF(HKS_Type=1,T154,T155) -> HKS4G | O150: =IF(HKS_Type=1,"HKS3","HKST3") -> HKS3 | P150: =IF(HKS_Type=1,"K2C+K2E","K2CT+K2ET") -> K2C+K2E | Q150: 680 | R150: 1520 | U150: =IF(P150=HKS_MechMain,"",IF(AND(HKS_KM>=Q150,HKS_KM<=R150),P150,"")) ->  | W150: =IF(O150=HKS_SetMain,"",IF(AND(HKS_KM>=Q150,HKS_KM<=R150),O150,"")) -> 
S151: =Q152+(R150-Q152)*BFactor -> 1408 | T151: =(R150+Q152)/2 -> 1240
B152: Тип фасада | E152: Возможен: | F152: =U154 ->  | I152: Возможен: | J152: =W154 -> HKS4 | O152: =IF(HKS_Type=1,"HKS4","HKST4") -> HKS4 | P152: =IF(HKS_Type=1,"2xK2E","2xK2ET") -> 2xK2E | Q152: 960 | R152: 2215 | U152: =IF(P152=HKS_MechMain,"",IF(AND(HKS_KM>=Q152,HKS_KM<=R152),P152,"")) ->  | W152: =IF(O152=HKS_SetMain,"",IF(AND(HKS_KM>=Q152,HKS_KM<=R152),O152,"")) -> HKS4
B153: DSP | M153: < | U153: =COUNTIF((U146:U152),"*K*") -> 0 | W153: =COUNTIF((W146:W152),"*K*") -> 1
O154: BLUMOT. | P154: Мех.: | Q154: =IF((AND(HKS_KM>=S151,HKS_KM<=2215)),"2xK2E", IF((AND(HKS_KM>=S149,HKS_KM<=S151)),"K2C+K2E", IF((AND(HKS_KM>=S147,HKS_KM<=S149)),"2xK2C", IF((AND(HKS_KM>=220,HKS_KM<=S147)),"K2A+K2C","Нет механизма!")))) -> 2xK2E | R154: Компл.: | S154: =INDEX({"2xK2E","K2C+K2E","2xK2C","K2A+K2C","Нет механизма!";"HKS4","HKS3","HKS2","HKS1","Нет"},2,MATCH(Q154,{"2xK2E","K2C+K2E","2xK2C","K2A+K2C","Нет механизма!"},0)) -> HKS4 | T154: =IF(OR(S154="Нет",S154="Нет механизма!"),S154,S154&HKS_Color) -> HKS4G | U154: =IF(U153=0,"", IF(U153=1,U146&U148&U150&U152, IF(U153=2, IF(U146="",U148,U146&", "&U148)& IF(U150="","",IF(AND(U146="",U148=""),U150,", "&U150))& IF(U152="","",IF(AND(U146="",U148="",U150=""),U152,", "&U152))))) ->  | W154: =IF(W153=0,"", IF(W153=1,W146&W148&W150&W152, IF(W153=2, IF(W146="",W148,W146&", "&W148)& IF(W150="","",IF(AND(W146="",W148=""),W150,", "&W150))& IF(W152="","",IF(AND(W146="",W148="",W150=""),W152,", "&W152))))) -> HKS4
B155: 900 | O155: TIP-ON | P155: Мех.: | Q155: =IF((AND(HKS_KM>=S151,HKS_KM<=2215)),"2xK2ET", IF((AND(HKS_KM>=S149,HKS_KM<=S151)),"K2CT+K2ET", IF((AND(HKS_KM>=S147,HKS_KM<=S149)),"2xK2CT", IF((AND(HKS_KM>=220,HKS_KM<=S147)),"K2A+K2CT","Нет механизма!")))) -> 2xK2ET | R155: Компл.: | S155: =SUBSTITUTE(S154,"S","ST") -> HKST4 | T155: =IF(OR(S155="Нет",S155="Нет механизма!"),S155,S155&HKS_Color) -> HKST4G
A161: AVENTOS | M161: Подбор силового механизма | O161: HK-XS | Z161: HK-XS TIP-ON
A162: Тип открывания (1 - BLUMOTION, 2 - TIP-ON) | O162: Компл. | P162: Мех. | Q162: Мин.КМ | R162: Макс.КМ | S162: гр bFact. | T162: Гр/2 | U162: M.<>осн. | W162: К.<>осн. | Z162: Компл. | AA162: Мех. | AB162: Мин.КМ | AC162: Макс.КМ | AD162: гр bFact. | AE162: Гр/2 | AF162: M.<>осн. | AH162: К.<>осн.
A163: 2 | C163: Высота корпуса | E163: Вес фасада (включая двойной вес ручки) | J163: Коэффициент мощности | O163: HXS1 | P163: K11 | Q163: 200 | R163: 1000 | U163: =IF(P163=$P$175,"",IF(AND(HKXS_KM>=Q163,HKXS_KM<=R163),P163,"")) ->  | W163: =IF($O163=$S$175,"",IF(AND(HKXS_KM>=$Q163,HKXS_KM<=$R163),$O163,"")) ->  | X163: HXST4 | Z163: HXST1 | AA163: K11T | AB163: 180 | AC163: 800 | AF163: =IF($AA163=$AA$175,"",IF(AND(HKXS_KM>=$AB163,HKXS_KM<=$AC163),$AA163,"")) ->  | AH163: =IF($Z163=$AD$175,"",IF(AND(HKXS_KM>=$AB163,HKXS_KM<=$AC163),$Z163,"")) -> 
C164: 300 | D164: мм * | E164: 3.89 | F164: кг | H164: = | J164: =ROUND(HKXS_KorpusH*VALUE(HKXS_Weight),0) -> 1167 | S164: =Q165+(R163-Q165)*BFactor -> 900 | T164: =(R163+Q165)/2 -> 750 | AD164: =AB165+(AC163-AB165)*BFactor -> 740 | AE164: =(AC163+AB165)/2 -> 650 | AF164: =IF($AA164=$AA$175,"",IF(AND(HKXS_KM>=$AB164,HKXS_KM<=$AC164),$AA164,"")) -> 
O165: HXS2 | P165: K13 | Q165: 500 | R165: 1500 | X165: HXST5 | Z165: HXST2 | AA165: K13T | AB165: 500 | AC165: 1200 | AF165: =IF($AA165=$AA$175,"",IF(AND(HKXS_KM>=$AB165,HKXS_KM<=$AC165),$AA165,"")) -> K13T | AH165: HXST2
C166: Ширина корпуса | F166: Механизм | J166: Комплект | S166: =Q167+(R165-Q167)*BFactor -> 1360 | T166: =(R165+Q167)/2 -> 1150 | AD166: =AB167+(AC165-AB167)*BFactor -> 1120 | AE166: =(AC165+AB167)/2 -> 1000 | AF166: =IF($AA166=$AA$175,"",IF(AND(HKXS_KM>=$AB166,HKXS_KM<=$AC166),$AA166,"")) -> 
C167: 1200 | D167: мм | E167: Основной: | F167: =IF(HKXS_Type=1,P175,AA175) -> K15T | I167: Основной: | J167: =IF(IF(HKXS_Type=1,S175,AD175)="Нет","Нет",IF(HKXS_Type=1,S175,AD175)&"-"&HKXS_KolPetel) -> HXST3-4 | O167: HXS3 | P167: K15 | Q167: 800 | R167: 1800 | U167: K15 | W167: HXS3 | Z167: HXST3 | AA167: K15T | AB167: 800 | AC167: 1600 | AF167: =IF($AA167=$AA$175,"",IF(AND(HKXS_KM>=$AB167,HKXS_KM<=$AC167),$AA167,"")) -> 
A168: Тип фасада | AF168: =IF($AA168=$AA$175,"",IF(AND(HKXS_KM>=$AB168,HKXS_KM<=$AC168),$AA168,"")) -> 
A169: DSP | C169: Кол-во петель | E169: Возможен: | F169: =IF(HKXS_Type=1,U176,AF176) -> K13T, 2xK13T, 2xK11T | I169: Возможен: | J169: =IF(HKXS_Type=1,W176,AH176) -> HXST2, HXST5, HXST4 | S169: =Q170+(R167-Q170)*BFactor -> 1520 | T169: =(R167+Q170)/2 -> 1100 | AD169: =AB170+(AC167-AB170)*BFactor -> 1352 | AE169: =(AC167+AB170)/2 -> 980 | AF169: =IF($AA169=$AA$175,"",IF(AND(HKXS_KM>=$AB169,HKXS_KM<=$AC169),$AA169,"")) -> 
C170: =IF(OR(HKXS_KorpusW>=1200,HKXS_KM>=2700),4, IF(OR(AND(HKXS_KorpusW>=900,HKXS_KorpusW<1200),AND(HKXS_KM>=1800,HKXS_KM<2700)),3, 2)) -> 4 | O170: HXS4 | P170: 2xK11 | Q170: 400 | R170: 2000 | U170: 2xK11 | W170: HXS4 | Z170: HXST4 | AA170: 2xK11T | AB170: 360 | AC170: 1600 | AF170: =IF($AA170=$AA$175,"",IF(AND(HKXS_KM>=$AB170,HKXS_KM<=$AC170),$AA170,"")) -> 2xK11T | AH170: HXST4
M171: < | S171: =Q172+(R167-Q172)*0.9 -> 1720 | T171: =(R170+Q172)/2 -> 1500 | AD171: =AB172+(AC167-AB172)*0.9 -> 1540 | AE171: =(AC170+AB172)/2 -> 1300 | AF171: =IF($AA171=$AA$175,"",IF(AND(HKXS_KM>=$AB171,HKXS_KM<=$AC171),$AA171,"")) ->  | AI171: bFactor здесь = 0,9
A172: BLUMOTION | H172: TIP-ON | O172: HXS5 | P172: 2xK13 | Q172: 1000 | R172: 3000 | U172: 2xK13 | W172: HXS5 | Z172: HXST5 | AA172: 2xK13T | AB172: 1000 | AC172: 2400 | AF172: =IF($AA172=$AA$175,"",IF(AND(HKXS_KM>=$AB172,HKXS_KM<=$AC172),$AA172,"")) -> 2xK13T | AH172: HXST5
S173: =Q174+(R172-Q174)*BFactor -> 2720 | T173: =(R172+Q174)/2 -> 2300 | AD173: =AB174+(AC172-AB174)*BFactor -> 2240 | AE173: =(AC172+AB174)/2 -> 2000 | AF173: =IF($AA173=$AA$175,"",IF(AND(HKXS_KM>=$AB173,HKXS_KM<=$AC173),$AA173,"")) -> 
O174: HXS6 | P174: 2xK15 | Q174: 1600 | R174: 3600 | Z174: HXST6 | AA174: 2xK15T | AB174: 1600 | AC174: 3200 | AF174: =IF($AA174=$AA$175,"",IF(AND(HKXS_KM>=$AB174,HKXS_KM<=$AC174),$AA174,"")) -> 
P175: =IF((AND(HKXS_KM>=2720,HKXS_KM<=3600)),"2xK15", IF((AND(HKXS_KM>=1720,HKXS_KM<=2720)),"2xK13", IF((AND(HKXS_KM>=1360,HKXS_KM<=1720)),"K15", IF((AND(HKXS_KM>=900,HKXS_KM<=1360)),"K13", IF((AND(HKXS_KM>=200,HKXS_KM<=900)),"K11","Нет механизма!"))))) -> K13 | S175: =INDEX({"2xK15","2xK13","K15","K13","K11","Нет механизма!";"HXS6","HXS5","HXS3","HXS2","HXS1","Нет"},2, MATCH(P175,{"2xK15","2xK13","K15","K13","K11","Нет механизма!"},0)) -> HXS2 | U175: =COUNTIF((U163:U174),"*K*") -> 3 | W175: =COUNTIF((W163:W174),"*HXS*") -> 3 | AA175: =IF((AND(HKXS_KM>=2240,HKXS_KM<=3200)),"2xK15T", IF((AND(HKXS_KM>=1540,HKXS_KM<=2240)),"2xK13T", IF((AND(HKXS_KM>=1120,HKXS_KM<=1540)),"K15T", IF((AND(HKXS_KM>=740,HKXS_KM<=1120)),"K13T", IF((AND(HKXS_KM>=180,HKXS_KM<=740)),"K11T","Нет механизма!"))))) -> K15T | AD175: =INDEX({"2xK15T","2xK13T","K15T","K13T","K11T","Нет механизма!";"HXST6","HXST5","HXST3","HXST2","HXST1","Нет"},2, MATCH(AA175,{"2xK15T","2xK13T","K15T","K13T","K11T","Нет механизма!"},0)) -> HXST3 | AF175: =COUNTIF((AF163:AF174),"*K*") -> 3 | AH175: =COUNTIF((AH163:AH174),"*HXS*") -> 3
P176: Осн.мех. | S176: Осн.комп. | U176: =SUBSTITUTE(TRIM(CONCATENATE(U167," ",U165," ",U163," ",U174," ",U172," ",U170))," ",", ") -> K15, 2xK13, 2xK11 | W176: =SUBSTITUTE(TRIM(CONCATENATE(W167," ",W165," ",W163," ",W174," ",W172," ",W170))," ",", ") -> HXS3, HXS5, HXS4 | AA176: Осн.мех. | AD176: Осн.комп. | AF176: =SUBSTITUTE(TRIM(CONCATENATE(AF167," ",AF165," ",AF163," ",AF174," ",AF172," ",AF170))," ",", ") -> K13T, 2xK13T, 2xK11T | AH176: =SUBSTITUTE(TRIM(CONCATENATE(AH167," ",AH165," ",AH163," ",AH174," ",AH172," ",AH170))," ",", ") -> HXST2, HXST5, HXST4
U177: Возм. мех. | W177: Возм. компл. | AF177: Возм.мех. | AH177: Возм.компл.
R182: = HK top
A183: Расчёт веса | O183: HF_FasList | P183: HS_FasList | Q183: HL_FasList | R183: HK_FasList | S183: HKS_FasList | T183: HKXS_FasList | U183: KorpHeight | V183: KorpWidth | W183: W_FrontTList | Z183: WG_GlasDList | AB183: WG_GlasTList | AC183: WG_FrameWidList | AD183: W_HandleWList | AF183: WG_FrameWeiList | AH183: BAK: | AI183: Общ. | AJ183: Общ. | AK183: Выс.ф. | AL183: Шир.ф.
D184: Фасады из МДФ/ДСП | M184: Расчёт веса | O184: 480 | P184: 350 | Q184: 300 | R184: 205 | S184: 180 | T184: 240 | U184: 240 | V184: 300 | W184: 16 | Z184: 2500 | AA184: Стандартное / закалённое | AB184: 3 | AC184: 19 | AD184: 0,1 | AE184: Лёгкая | AF184: 0,3 | AI184: 1320 | AJ184: 240 | AK184: 240 | AL184: 400 | AM184: 0.265 | AN184: Квадратная
B185: Высота фасада | O185: 540 | P185: 360 | Q185: 360 | R185: 240 | S185: 240 | T185: 300 | U185: 300 | V185: 400 | W185: 18 | Z185: 1190 | AA185: Оргстекло | AB185: 4 | AC185: 20 | AD185: 0,2 | AE185: Лёгкая | AF185: 0,4 | AI185: 1200 | AJ185: 300 | AK185: 300 | AL185: 450 | AM185: 0.367 | AN185: Квадратная
B186: 300 | C186: мм | E186: Толщина фасада | G186: Плотность | L186: Вес фасада | O186: 600 | P186: 380 | Q186: 380 | R186: 300 | S186: 300 | T186: 360 | U186: 360 | V186: 450 | W186: 19 | X186: Начинается с 0: | Z186: 550 | AA186: Шпон Файн-Лайн (450-650) | AB186: 5 | AC186: 45 | AD186: 0,5 | AE186: Средняя | AF186: 0,5 | AI186: 1100 | AJ186: 360 | AK186: 350 | AL186: 500 | AM186: 0.387 | AN186: Квадратная
E187: 16 | F187: мм | G187: 675 | H187: кг/м³ | L187: с ручкой | O187: 720 | P187: 420 | Q187: 420 | R187: 360 | S187: 360 | T187: 380 | U187: 380 | V187: 500 | W187: 22 | X187: MatPlot_ListIndex | Z187: 650 | AA187: Шпон натуральный (400-900) | AB187: 6 | AC187: 50 | AD187: 1 | AE187: Тяжёлая | AG187: Другой | AI187: 960 | AJ187: 380 | AK187: 400 | AL187: 550 | AM187: 0.475 | AN187: Широкая
B188: Ширина фасада | G188: Указана плотность часто встречающихся плит ДСП/МДФ! | L188: =IF(OR(W_FrontH="",W_FrontW="",W_FrontT="",W_FrontD="",ISERROR(J194)),0,J194) -> 3.89 | M188: кг | O188: 960 | P188: 480 | Q188: 480 | R188: 380 | S188: 380 | T188: 420 | U188: 420 | V188: 600 | X188: 0 | AA188: Другая | AB188: 8 | AE188: Другой | AI188: 720 | AJ188: 420 | AK188: 450 | AL188: 600 | AM188: 0.507 | AN188: Широкая
B189: 1200 | C189: мм | G189: Фактические данные могут отличаться! Используйте: | O189: 1040 | P189: 540 | Q189: 540 | R189: 420 | S189: 420 | T189: 480 | U189: 480 | V189: 800 | AB189: 10 | AI189: 600 | AJ189: 480 | AK189: 500 | AL189: 700 | AM189: 0.531 | AN189: Широкая
G190: Точное определение плотности фасадов одного типа | P190: 600 | Q190: 580 | R190: 480 | S190: 480 | T190: 540 | U190: 540 | V190: 900 | X190: W_MatPlotList | Z190: W_MatPlotListBackup - не удалять! | AF190: 0,3 | AI190: 540 | AJ190: 540 | AK190: 550 | AL190: 800 | AM190: 0.582 | AN190: Широкая
D191: Алюминиевые рамки со стеклом | M191: Расчёт веса | P191: 720 | R191: 540 | S191: 540 | T191: 600 | U191: 600 | V191: 1200 | X191: 675 | Y191: ДСП Egger Eurospan (675) | Z191: 675 | AA191: ДСП Egger Eurospan (675) | AD191: 0,1 | AF191: 0,4 | AI191: 480 | AJ191: 600 | AK191: 600 | AL191: 900 | AN191: Другая рамка
P192: 800 | R192: 600 | S192: 600 | U192: 720 | V192: 1800 | X192: 680 | Y192: ДСП [620-720] (680) | Z192: 680 | AA192: ДСП [620-720] (680) | AD192: 0,2 | AF192: 0,5 | AI192: 420 | AJ192: 720 | AK192: 650 | AL192: 1000
E193: Плотность стекла | G193: Вес ал.рамки | L193: Вес фасада | U193: 960 | X193: 730 | Y193: ЛДСП Egger Eurodekor (730) | Z193: 730 | AA193: ЛДСП Egger Eurodekor (730) | AD193: 0,5 | AI193: 380 | AJ193: 960 | AK193: 700 | AL193: 1200
E194: 2500 | F194: кг/м³ | G194: 0,3 | H194: кг/пог. м | J194: =ROUND( W_FrontH*W_FrontW*W_FrontT/1000000000*W_FrontD +IF(VALUE(W_HandleHF)=3,0,VALUE(W_HandleW)*VALUE(W_HandleHF)),2) -> 3.89 | L194: с ручкой | U194: 1040 | X194: 740 | Y194: МДФ Egger FORMline (740) | Z194: 740 | AA194: МДФ Egger FORMline (740) | AD194: 1 | AI194: 360 | AJ194: 1100 | AK194: 750 | AL194: 1500
B195: 3 | G195: Ширина рамки | J195: =ROUND( (W_FrontH-WG_FrameInd*2) *(W_FrontW-WG_FrameInd*2) *WG_GlasT/1000000000*WG_GlasD +((W_FrontH*2+W_FrontW*2-VALUE(WG_FrameWid)*4)*VALUE(WG_FrameWei)/1000) +IF(VALUE(W_HandleHF)=3,0,VALUE(W_HandleW)*VALUE(W_HandleHF)),2) -> 5.23 | L195: =IF( OR( ISERROR(J195),AND(W_HandleW="",W_HandleHF<>3),W_FrontH="",W_FrontW="",WG_GlasD="",WG_GlasT="",WG_FrameWei="",WG_FrameWid="",WG_FrameInd=""),0,J195) -> 5.23 | M195: кг | X195: 760 | Y195: МДФ [740-780] (760) | Z195: 760 | AA195: МДФ [740-780] (760) | AI195: 300 | AJ195: 1200 | AK195: 800 | AL195: 1800
B196: Вес ручки | E196: Толщина стекла | G196: 19 | H196: мм | X196: 900 | Y196: Панели ХДФ (900) | Z196: 900 | AA196: Панели ХДФ (900) | AI196: 240 | AJ196: 1320 | AK196: 850
B197: 0,2 | C197: кг | E197: 5 | F197: мм | G197: Отступ (с 1 стороны) | X197: 1400 | Y197: Пластик HPL (1400) | Z197: 1400 | AA197: Пластик HPL (1400) | AK197: 900
G198: 4 | X198: 1700 | Y198: Искусственный камень (1700) | Z198: 1700 | AA198: Искусственный камень (1700) | AK198: 950
X199: 2350 | Y199: Искусственный кварцевый камень (2350) | Z199: 2350 | AA199: Искусственный кварцевый камень (2350) | AK199: 1000
A200: Более точное определение плотности фасадов из МДФ/ДСП одного типа | M200: Расчёт плотности | X200: 2300 | Y200: Керамическая плитка (2300) | Z200: 2300 | AA200: Керамическая плитка (2300) | AK200: 1040
A201: При использовании фасадов одного типа рекомендуется определить их плотность, взвесив один из них и введя данные для расчета | X201: 3000 | Y201: Натуральный гранит Nero Assoluto (3000) | Z201: 3000 | AA201: Натуральный гранит Nero Assoluto (3000)
B202: Вес: | D202: кг | E202: Взвесьте фасад и введите вес | I202: пример: 3,5 | W202: MatPlot_New:
B203: Объём: | C203: =IF(LEN(TEXT(W_FrontH,"##"))<5, (W_FrontH/1000)*(W_FrontW/1000)*(W_FrontT/1000), (((RIGHT(W_FrontH,3)+LEFT(W_FrontH,3))/2)/1000)*(W_FrontW/1000)*(W_FrontT/1000)) -> 0.00576 | D203: м3 | E203: Объём = Высота * Ширина * Толщина (м) | I203: пример: 0,4 * 0,6 * 0,019 = 0,00456 | L203: Данные берутся | W203: Yes
B204: Плотность | C204: =ROUND(VALUE(WE_Weight)/WE_Volume,0) -> 0 | D204: кг/м3 | E204: Плотность = Вес / Объём | I204: пример: 3,5 / 0,00456 = 767 | L204: из ячеек сверху
A205: На основе рассчитанной плотности определяется точный вес фасадов различных размеров | L205: <-- | M205: <

Sheet Заказ (hidden)
F1: 1 | G1: ="Курс: "&zKurs -> Курс: 1
F2: 1 | G2: Цена юр.-15%
A3: Код компл. | B3: Идент№ | C3: Артикул | D3: Описание | E3: за 1 | F3: ="" & SUMIF(F5:F65534,">=1",F5:F65534) & " шт." -> 0 шт. | G3: Сумма: | H3: Примечание | I3: Примечание
E4: с НДС | F4: =COUNTIF(F5:F65534,">=1") & " поз." -> 0 поз. | G4: =SUM(G5:G65534) -> 0

Sheet Сумм. (hidden)
A1: Суммированные артикулы | L1: =IF(SUMPRODUCT(#REF!*(#REF!=0))>0,"* Неполные данные!","") ->  | M1: =IF(SUMPRODUCT(#REF!*(#REF!=0))>0,"* Неполные данные!","") -> 
I2: =H2 -> 0 | L2: =SUMPRODUCT(#REF!,#REF!) ->  | M2: =SUMPRODUCT(#REF!,#REF!) -> 
L3: Вес | M3: Объём
A4: Идент№ | B4: Кол-во | C4: Артикул | D4: Описание | E4: В кор. | F4: =SUM(#REF!) ->  | L4: =IF(L2>=1,"Вес: ~ "&ROUND(L2,2)&" кг","Вес: ~ "&ROUND(L2*1000,0)&" гр") ->  | M4: =IF(M2>=100,"Объём: ~ "&ROUND(M2/1000,2)&" м³","Объём: ~ "&ROUND(M2,2)&" дм³") -> 
